Workbook

Sheet Step 1 - Set global parameters
A1: User parameters
A2: Country | B2: Greece
A3: IFI name | B3: Hellenic Fiscal Council
A5: Scenario parameters
A6: What are you assessing? | B6: Implementation of an endorsed MTP
A7: Enter a name for your scenario (free text): | B7: Annual Progress Report 2026
A9: Escape clause parameters
B10: =_xlfn.SEQUENCE(1, MTP_EndYear-MTP_BaseYear, MTP_BaseYear+1) -> 2024 | C10: 2025 | D10: 2026 | E10: 2027 | F10: 2028
B11: =CHOOSE(SIGN(_xlfn.ANCHORARRAY(B10) - MTP_YearT) + 2, "T-1", "T", "T+" & (_xlfn.ANCHORARRAY(B10) - MTP_YearT)) -> T | C11: T+1 | D11: T+2 | E11: T+3 | F11: T+4
A12: Years for which an escape clause has been activated | B12: FALSE | C12: TRUE | D12: TRUE | E12: TRUE | F12: TRUE | G12: FALSE
A13: General or country-specific? | C13: Country | D13: Country | E13: Country | F13: Country | G13: NA
A14: If activated, what was the reason? | C14: Defence | D14: Defence | E14: Defence | F14: Defence | G14: Defence | H14: NA
A15: Cap on deviation from max growth rates of net expenditure, if applicable (% of GDP) | C15: 1.5 | D15: 1.5 | E15: 1.5 | F15: 1.5
A17: Base year for max increase in defence expenditures, if applicable | B17: 2024
A18: General government defence expenditure in base year (% GDP) | B18: 2.2
A20: Excessive debt/deficit procedure parameters
A21: Excessive deficit procedure opened | B21: FALSE
A22: Deadline year to correct excessive deficit
A23: Excessive debt procedure opened | B23: FALSE
A24: Deadline year to correct excessive debt

Sheet Step 2 - Update outturn data
B1: Outturn data
D2: Last year of outturn data | E2: 2025
R3: Enter alternative scenario to override AMECO net expenditure growth components
B4: Calendar year | E4: =_xlfn.SEQUENCE(1, OutturnThrough-MTP_BaseYear+1, MTP_BaseYear) -> 2023 | F4: 2024 | G4: 2025 | S4: Calendar year | V4: =_xlfn.SEQUENCE(1, OutturnThrough-MTP_BaseYear+1, MTP_BaseYear) -> 2023 | W4: 2024 | X4: 2025
B5: MTP reference year | E5: =IF( AND(_xlfn.ANCHORARRAY(E4) >= MTP_YearT-1,_xlfn.ANCHORARRAY( E4) <= MTP_EndYear), "T" & TEXT(_xlfn.ANCHORARRAY(E4) - MTP_YearT, "+0;-0;"), "" ) -> T-1 | F5: T | G5: T+1 | R5: Flag | S5: MTP reference year | V5: =IF( AND(_xlfn.ANCHORARRAY(V4) >= MTP_YearT-1,_xlfn.ANCHORARRAY( V4) <= MTP_EndYear), "T" & TEXT(_xlfn.ANCHORARRAY(V4) - MTP_YearT, "+0;-0;"), "" ) -> T-1 | W5: T | X5: T+1
B6: Total expenditure | C6: bn NAC | E6: =INDEX(184:184, _xlfn.XMATCH(INDEX(_xlfn.ANCHORARRAY(E4),1,1), 33:33, 0) + _xlfn.SEQUENCE(1, COLUMNS(_xlfn.ANCHORARRAY(E4))) - 1)/1000 -> 111.255 | F6: 113.87 | G6: 119.875 | R6: TRUE | S6: Cyclical unemployment expenditure | V6: 0.3 | W6: 0.1 | X6: -0.1
B7: Interest expenditure | C7: bn NAC | E7: =INDEX(175:175, _xlfn.XMATCH(INDEX(_xlfn.ANCHORARRAY(E4),1,1), 33:33, 0) + _xlfn.SEQUENCE(1, COLUMNS(_xlfn.ANCHORARRAY(E4))) - 1)/1000 -> 7.612 | F7: 8.225 | G7: 7.841 | R7: FALSE | S7: One-off expenditure (levels, excl. EU funded) | V7: 0.3 | W7: 0.4 | X7: 0.4
B8: Cyclical unemployment expenditure | C8: bn NAC | E8: =IF(R6, INDEX(6:6, COLUMN(V1) + _xlfn.SEQUENCE(1, COLUMNS(_xlfn.ANCHORARRAY(E4))) - 1), INDEX(188:188, _xlfn.XMATCH(INDEX(_xlfn.ANCHORARRAY(E4),1,1), 33:33, 0) + _xlfn.SEQUENCE(1, COLUMNS(_xlfn.ANCHORARRAY(E4))) - 1) / 1000 ) -> 0.3 | F8: 0.1 | G8: -0.1 | R8: TRUE | S8: Discretionary revenue measures (excl. one-off revenue, incremental impact) | W8: 2 | X8: 1.1
B9: Expenditure funded by transfers from the EU | C9: bn NAC | E9: =INDEX(185:185, _xlfn.XMATCH(INDEX(_xlfn.ANCHORARRAY(E4),1,1), 33:33, 0) + _xlfn.SEQUENCE(1, COLUMNS(_xlfn.ANCHORARRAY(E4))) - 1)/1000 -> 5.664 | F9: 5.873 | G9: 8.43 | R9: TRUE | S9: Defence expenditure | V9: 5.2 | W9: 5.288 | X9: 5.986
B10: National co-financing of EU programmes | C10: bn NAC | E10: =INDEX(187:187, _xlfn.XMATCH(INDEX(_xlfn.ANCHORARRAY(E4),1,1), 33:33, 0) + _xlfn.SEQUENCE(1, COLUMNS(_xlfn.ANCHORARRAY(E4))) - 1)/1000 -> 0.739 | F10: 0.705 | G10: 0.78
B11: One-off expenditure (levels, excl. EU funded) | C11: bn NAC | E11: =IF(R7, INDEX(7:7, COLUMN(V1) + _xlfn.SEQUENCE(1, COLUMNS(_xlfn.ANCHORARRAY(E4))) - 1),INDEX(189:189, _xlfn.XMATCH(INDEX(_xlfn.ANCHORARRAY(E4),1,1), 33:33, 0) + _xlfn.SEQUENCE(1, COLUMNS(_xlfn.ANCHORARRAY(E4))) - 1)/1000) -> 0.302 | F11: 0.4 | G11: 0.436
B12: Net nationally financed primary expenditure (before DRM) | C12: bn NAC | E12: =INDEX(190:190, _xlfn.XMATCH(INDEX(_xlfn.ANCHORARRAY(E4),1,1), 33:33, 0) + _xlfn.SEQUENCE(1, COLUMNS(_xlfn.ANCHORARRAY(E4))) - 1)/1000 -> 96.64254 | F12: 98.51742 | G12: 102.40949
B13: Discretionary revenue measures (excl. one-off revenue, incremental impact) | C13: bn NAC | E13: =IF(R8, INDEX(8:8, COLUMN(V1) + _xlfn.SEQUENCE(1, COLUMNS(_xlfn.ANCHORARRAY(E4))) - 1),(INDEX(169:169, _xlfn.XMATCH(INDEX(_xlfn.ANCHORARRAY(E4),1,1)+0, 33:33+0, 0) + _xlfn.SEQUENCE(1, COLUMNS(_xlfn.ANCHORARRAY(E4))) - 1))/1000) -> 0 | F13: 2 | G13: 1.1
B14: Defence expenditure | C14: bn NAC | E14: =IF(R9, INDEX(9:9,COLUMN(V1)+_xlfn.SEQUENCE(1,COLUMNS(_xlfn.ANCHORARRAY(E4)))-1),INDEX(92:92,_xlfn.XMATCH(INDEX(_xlfn.ANCHORARRAY(E4),1,1),33:33,0)+_xlfn.SEQUENCE(1,COLUMNS(_xlfn.ANCHORARRAY(E4)))-1)/1000) -> 5.2 | F14: 5.288 | G14: 5.986
B15: Net expenditure growth (annual) | C15: growth rate (%) | E15: =_xlfn.LET( _xlpm.n, COLUMNS(_xlfn.ANCHORARRAY(E4)), _xlpm.seq, _xlfn.SEQUENCE(1,_xlpm.n), _xlpm.col, COLUMN()+_xlpm.seq-1, _xlpm.curr13, INDEX(12:12, _xlpm.col), _xlpm.curr14, INDEX(13:13, _xlpm.col), _xlpm.prev13, INDEX(12:12, _xlpm.col-1), IF(_xlpm.seq=1, "", IFERROR((((_xlpm.curr13-_xlpm.curr14)/_xlpm.prev13)-1)*100, "")) ) ->  | F15: -0.1294667959 | G15: 2.834087616
B16: Net expenditure growth (cumulative) | C16: growth rate (%) | E16: =_xlfn.LET( _xlpm.n, COLUMNS(_xlfn.ANCHORARRAY(E4)), _xlpm.seq, _xlfn.SEQUENCE(1,_xlpm.n), _xlpm.vals, INDEX(15:15, COLUMN()-1+_xlpm.seq), _xlpm.clean, IF(_xlpm.vals="",0,_xlpm.vals/100), _xlpm.cum, _xlfn.SCAN(1, _xlpm.clean, _xlfn.LAMBDA(_xlpm.a,_xlpm.b,_xlpm.a*(1+_xlpm.b))), IF(_xlpm.seq=1,"",(_xlpm.cum-1)*100) ) ->  | F16: -0.1294667959 | G16: 2.700951618
B17: Net lending/borrowing | C17: % GDP | E17: =INDEX(139:139, _xlfn.XMATCH(INDEX(_xlfn.ANCHORARRAY(E4),1,1), 33:33, 0) + _xlfn.SEQUENCE(1, COLUMNS(_xlfn.ANCHORARRAY(E4))) - 1) -> -1.429994365 | F17: 1.347070154 | G17: 1.727375111
B18: Structural balance | C18: % GDP | E18: =INDEX(142:142, _xlfn.XMATCH(INDEX(_xlfn.ANCHORARRAY(E4),1,1), 33:33, 0) + _xlfn.SEQUENCE(1, COLUMNS(_xlfn.ANCHORARRAY(E4))) - 1) -> -1.84205 | F18: 0.34607 | G18: 0.48634
B19: Structural primary balance | C19: % GDP | E19: =INDEX(143:143, _xlfn.XMATCH(INDEX(_xlfn.ANCHORARRAY(E4),1,1), 33:33, 0) + _xlfn.SEQUENCE(1, COLUMNS(_xlfn.ANCHORARRAY(E4))) - 1) -> 1.54579 | F19: 3.82041 | G19: 3.64353
B20: Gross debt | C20: % GDP | E20: =INDEX(145:145, _xlfn.XMATCH(INDEX(_xlfn.ANCHORARRAY(E4),1,1), 33:33, 0) + _xlfn.SEQUENCE(1, COLUMNS(_xlfn.ANCHORARRAY(E4))) - 1) -> 164.2780019 | F20: 154.164977 | G20: 146.1323105
B21: Change in gross debt | C21: % GDP | E21: =INDEX(146:146, _xlfn.XMATCH(INDEX(_xlfn.ANCHORARRAY(E4),1,1), 33:33, 0) + _xlfn.SEQUENCE(1, COLUMNS(_xlfn.ANCHORARRAY(E4))) - 1) -> 0.491797004 | F21: -1.751317924 | G21: -0.821006492
B22: Real GDP (rate of change, %) | C22: rate of change, % | E22: =_xlfn.LET( _xlpm.pos, _xlfn.XMATCH(INDEX(_xlfn.ANCHORARRAY(E4),1,1)+0, 33:33+0, 0) + _xlfn.SEQUENCE(1, COLUMNS(_xlfn.ANCHORARRAY(E4))), _xlpm.num, INDEX(35:35, _xlpm.pos - 1), _xlpm.den, INDEX(35:35, _xlpm.pos - 2), IF((_xlpm.num=0) + (_xlpm.den=0), "", 100*(_xlpm.num/_xlpm.den - 1)) ) -> 2.135891186 | F22: 2.086577405 | G22: 2.073065247
B23: GDP deflator (rate of change, %) | C23: rate of change, % | E23: =_xlfn.LET( _xlpm.pos, _xlfn.XMATCH(INDEX(_xlfn.ANCHORARRAY(E4),1,1)+0, 33:33+0, 0) + _xlfn.SEQUENCE(1, COLUMNS(_xlfn.ANCHORARRAY(E4))), _xlpm.nomN, INDEX(34:34, _xlpm.pos - 1), _xlpm.nomD, INDEX(34:34, _xlpm.pos - 2), _xlpm.realN, INDEX(35:35, _xlpm.pos - 1), _xlpm.realD, INDEX(35:35, _xlpm.pos - 2), IF((_xlpm.nomN=0)+(_xlpm.nomD=0)+(_xlpm.realN=0)+(_xlpm.realD=0), "", 100*((_xlpm.nomN/_xlpm.realN)/(_xlpm.nomD/_xlpm.realD) - 1)) ) -> 6.269691198 | F23: 3.209402124 | G23: 2.776819129
B24: Nominal GDP (rate of change, %) | C24: rate of change, % | E24: =_xlfn.LET( _xlpm.pos, _xlfn.XMATCH(INDEX(_xlfn.ANCHORARRAY(E4),1,1)+0, 33:33+0, 0) + _xlfn.SEQUENCE(1, COLUMNS(_xlfn.ANCHORARRAY(E4))), _xlpm.num, INDEX(34:34, _xlpm.pos - 1), _xlpm.den, INDEX(34:34, _xlpm.pos - 2), IF((_xlpm.num=0) + (_xlpm.den=0), "", 100*(_xlpm.num/_xlpm.den - 1)) ) -> 8.539496166 | F24: 5.362946189 | G24: 4.907449649
B25: Potential growth (rate of change, %) | C25: rate of change, % | E25: =_xlfn.LET( _xlpm.pos, _xlfn.XMATCH(INDEX(_xlfn.ANCHORARRAY(E4),1,1)+0, 33:33+0, 0) + _xlfn.SEQUENCE(1, COLUMNS(_xlfn.ANCHORARRAY(E4))), _xlpm.num, INDEX(90:90, _xlpm.pos - 1), _xlpm.den, INDEX(90:90, _xlpm.pos - 2), IF((_xlpm.num=0) + (_xlpm.den=0), "", 100*(_xlpm.num/_xlpm.den - 1)) ) -> 0.4121477735 | F25: 0.8984012257 | G25: 1.605297922
B26: Output gap (% pot. GDP) | C26: % pot. GDP | E26: =_xlfn.LET( _xlpm.pos, _xlfn.XMATCH(INDEX(_xlfn.ANCHORARRAY(E4),1,1)+0, 33:33+0, 0) + _xlfn.SEQUENCE(1, COLUMNS(_xlfn.ANCHORARRAY(E4))), _xlpm.rGDP, INDEX(89:89, _xlpm.pos - 1), _xlpm.pGDP, INDEX(90:90, _xlpm.pos - 1), IF((_xlpm.rGDP=0) + (_xlpm.pGDP=0), "", 100*(_xlpm.rGDP/_xlpm.pGDP - 1)) ) -> 1.042873034 | F26: 2.232747373 | G26: 2.70340737
B27: Nominal GDP (level, millions of national currency) | C27: level, bn NAC | E27: =INDEX(34:34, _xlfn.XMATCH(INDEX(_xlfn.ANCHORARRAY(E4),1,1), 33:33, 0) + _xlfn.SEQUENCE(1, COLUMNS(_xlfn.ANCHORARRAY(E4))) - 1)/1000 -> 224.6862 | F27: 236.736 | G27: 248.3537
A29: Full historical data inputs (Eurostat and AMECO)
A30: Country: | B30: =Country -> Greece
A31: Last updated (Eurostat): | B31: 2026-06-06T20:31:26
A32: Units: | B32: millions NAC unless noted
A33: ESA code | B33: Indicator | C33: Source | D33: =_xlfn.SEQUENCE(1, OutturnThrough-MTP_BaseYear+2, MTP_BaseYear-1) -> 2022 | E33: 2023 | F33: 2024 | G33: 2025
A34: B1G [CP_MEUR] | B34: Gross domestic product at market prices [B1GQ] | C34: nama_10_gdp | D34: 207008.7 | E34: 224686.2 | F34: 236736 | G34: 248353.7
A35: B1G [CLV10_MEUR] | B35: Gross domestic product at market prices [B1GQ] | C35: nama_10_gdp | D35: 200136.6 | E35: 204411.3 | F35: 208676.5 | G35: 213002.5
A36: P3 | B36: Final consumption expenditure [P3] | C36: nama_10_gdp | D36: 188065.7 | E36: 199128.6 | F36: 206577.3 | G36: 216774.2
A37: P6 | B37: Exports of goods and services [P6] | C37: nama_10_gdp | D37: 101913.7 | E37: 98499.8 | F37: 99693.5 | G37: 98004.8
A38: P7 | B38: Imports of goods and services [P7] | C38: nama_10_gdp | D38: 121907.9 | E38: 109270 | F38: 112839.8 | G38: 109250.4
A39: P6X7 | B39: External balance of goods and services [P6X7] | C39: nama_10_gdp | D39: -19994.1 | E39: -10770.1 | F39: -13146.4 | G39: -11245.7
A40: P41 | B40: Actual individual consumption [P41] | C40: nama_10_gdp | D40: 167164.7 | E40: 177102.6 | F40: 184298.3 | G40: 193666.2
A41: P51 | B41: Gross fixed capital formation [P51G] | C41: nama_10_gdp | D41: 32544.5 | E41: 35689.7 | F41: 37971.3 | G41: 41925.1
A42: P52 | B42: Changes in inventories [P52] | C42: nama_10_gdp | D42: 6330.9 | E42: 471.4 | F42: 5192 | G42: 721.7
A43: P53 | B43: Acquisitions less disposals of valuables [P53] | C43: nama_10_gdp | D43: 61.7 | E43: 166.8 | F43: 141.7 | G43: 178.3
A44: P52_P53 | B44: Changes in inventories and acquisitions less disposals of valuables [P52_P53] | C44: nama_10_gdp | D44: 6392.6 | E44: 638.2 | F44: 5333.7 | G44: 900
A45: P31_S14_S15 | B45: Household and NPISH final consumption expenditure [P31_S14_S15] | C45: nama_10_gdp | D45: 146877.7 | E45: 155442.8 | F45: 162570.8 | G45: 171484.8
A46: P31_S14 | B46: Final consumption expenditure of households [P31_S14] | C46: nama_10_gdp | D46: 144007.4 | E46: 152523.9 | F46: 159572 | G46: 168321.5
A47: P31_S15 | B47: Final consumption expenditure of NPISH [P31_S15] | C47: nama_10_gdp | D47: 2870.2 | E47: 2918.9 | F47: 2998.7 | G47: 3163.2
A48: B9 | B48: Net lending (+)/net borrowing (-) [B9] | C48: gov_10a_main S13 | D48: -5324 | E48: -3213 | F48: 3189 | G48: 4290
A49: D1PAY | B49: Compensation of employees, expenditure [D1PAY] | C49: gov_10a_main S13 | D49: 22740 | E49: 23487 | F49: 24541 | G49: 25237
A50: D2REC | B50: Taxes on production and imports [D2REC] | C50: gov_10a_main S13 | D50: 39510 | E50: 38430 | F50: 40195 | G50: 42621
A51: D3PAY | B51: Subsidies [D3PAY] | C51: gov_10a_main S13 | D51: 11796 | E51: 4497 | F51: 3382 | G51: 3296
A52: D4PAY | B52: Property income, expenditure [D4PAY] | C52: gov_10a_main S13 | D52: 5167 | E52: 7617 | F52: 8231 | G52: 7847
A53: D4REC | B53: Property income, revenue [D4REC] | C53: gov_10a_main S13 | D53: 1331 | E53: 2368 | F53: 2472 | G53: 1914
A54: D5PAY | B54: Current taxes on income, wealth, etc., expenditure [D5PAY] | C54: gov_10a_main S13 | D54: 43 | E54: 78 | F54: 72 | G54: 61
A55: D5REC | B55: Current taxes on income, wealth, etc., revenue [D5REC] | C55: gov_10a_main S13 | D55: 19151 | E55: 22802 | F55: 26397 | G55: 27474
A56: D7PAY | B56: Other current transfers, expenditure [D7PAY] | C56: gov_10a_main S13 | D56: 2940 | E56: 2953 | F56: 3417 | G56: 3502
A57: D7REC | B57: Other current transfers, revenue [D7REC] | C57: gov_10a_main S13 | D57: 3662 | E57: 2692 | F57: 3175 | G57: 2904
A58: D7rec_S212 | B58: Other current transfers, revenue, from the institutions and bodies of the European Union | C58: gov_10a_main S13 | D58: 496 | E58: 601 | F58: 609 | G58: 641
A59: D8 | B59: Adjustment for the change in pension entitlements [D8] | C59: gov_10a_main S13 | D59: 0 | E59: 0 | F59: 0 | G59: 0
A60: D9PAY | B60: Capital transfers, expenditure [D9PAY] | C60: gov_10a_main S13 | D60: 3772 | E60: 5251 | F60: 5469 | G60: 6272
A61: D9REC | B61: Capital transfers, revenue [D9REC] | C61: gov_10a_main S13 | D61: 5398 | E61: 5653 | F61: 6011 | G61: 8457
A62: D9rec_S212 | B62: Capital transfers, revenue from the institutions and bodies of the EU | C62: gov_10a_main S13 | D62: 4290 | E62: 5063 | F62: 5264 | G62: 7789
A63: D11_S13 | B63: Wages and salaries [D11] | C63: gov_10a_main S13 | D63: 16005 | E63: 16618 | F63: 17517 | G63: 18098
A64: D29PAY | B64: Other taxes on production, expenditure [D29PAY] | C64: gov_10a_main S13 | D64: 80 | E64: 80 | F64: 91 | G64: 116
A65: D29REC | B65: Other taxes on production, revenue [D29REC] | C65: gov_10a_main S13 | D65: 6484 | E65: 6571 | F65: 6592 | G65: 6352
A66: D39PAY | B66: Other subsidies on production, expenditure [D39PAY] | C66: gov_10a_main S13 | D66: 3107 | E66: 1283 | F66: 1301 | G66: 1303
A67: D39REC | B67: Other subsidies on production, revenue [D39REC] | C67: gov_10a_main S13 | D67: 0 | E67: 0 | F67: 0 | G67: 0
A68: D41PAY | B68: Interest, expenditure [D41PAY] | C68: gov_10a_main S13 | D68: 5162 | E68: 7612 | F68: 8225 | G68: 7841
A69: D41REC | B69: Interest, revenue [D41REC] | C69: gov_10a_main S13 | D69: 385 | E69: 1374 | F69: 1723 | G69: 1175
A70: D61 | B70: Net social contributions, revenue [D61REC] | C70: gov_10a_main S13 | D70: 29041 | E70: 29219 | F70: 31519 | G70: 32504
A71: D62 | B71: Social benefits other than social transfers in kind, expenditure [D62PAY] | C71: gov_10a_main S13 | D71: 37164 | E71: 38785 | F71: 39639 | G71: 40757
A72: D632 | B72: Social transfers in kind, purchased market production, expenditure [D632PAY] | C72: gov_10a_main S13 | D72: 6146 | E72: 7148 | F72: 6639 | G72: 6901
A73: D91 | B73: Capital taxes, revenue [D91REC] | C73: gov_10a_main S13 | D73: 262 | E73: 259 | F73: 268 | G73: 294
A74: D92 | B74: Investment grants, revenue [D92REC] | C74: gov_10a_main S13 | D74: 4681 | E74: 5104 | F74: 5499 | G74: 7934
A75: D92+D99 | B75: Investment grants and other capital transfers, revenue [D92_D99REC] | C75: gov_10a_main S13 | D75: 5136 | E75: 5394 | F75: 5743 | G75: 8163
A76: D99PAY | B76: Other capital transfers, expenditure [D99PAY] | C76: gov_10a_main S13 | D76: 700 | E76: 1432 | F76: 1700 | G76: 1901
A77: D99REC | B77: Other capital transfers, revenue [D99REC] | C77: gov_10a_main S13 | D77: 455 | E77: 290 | F77: 244 | G77: 229
A78: NP | B78: Acquisitions less disposals of non-financial non-produced assets [NP] | C78: gov_10a_main S13 | D78: 69 | E78: 73 | F78: 75 | G78: 34
A79: P2 | B79: Intermediate consumption of general government [P2_S13] | C79: gov_10a_main S13 | D79: 11319 | E79: 12364 | F79: 12222 | G79: 14059
A80: P3 | B80: Final consumption expenditure of general government [P3_S13] | C80: gov_10a_main S13 | D80: 40956 | E80: 43708 | F80: 44014 | G80: 45833
A81: P31 | B81: Individual consumption expenditure of general government [P31_S13] | C81: gov_10a_main S13 | D81: 20629 | E81: 21890 | F81: 21560 | G81: 22431
A82: P32 | B82: Collective consumption expenditure of general government [P32_S13] | C82: gov_10a_main S13 | D82: 20327 | E82: 21818 | F82: 22454 | G82: 23402
A83: P51G | B83: Gross fixed capital formation [P51G] | C83: gov_10a_main S13 | D83: 8234 | E83: 9056 | F83: 10067 | G83: 11854
A84: P52_P53 | B84: Changes in inventories and acquisitions less disposals of valuables of general government [P52_P53_S13] | C84: gov_10a_main S13 | D84: 425 | E84: -134 | F84: 25 | G84: -61
A85: P11 | B85: Market output [P11] | C85: gov_10a_main S13 | D85: 275 | E85: 284 | F85: 321 | G85: 346
A86: P12 | B86: Output for own final use [P12] | C86: gov_10a_main S13 | D86: 1675 | E86: 1852 | F86: 2010 | G86: 2023
A87: P131 | B87: Payments for non-market output [P131] | C87: gov_10a_main S13 | D87: 4528 | E87: 4742 | F87: 4959 | G87: 5922
A88: GD | B88: Government consolidated gross debt [GD] | C88: gov_10dd_edpt1 S13 | D88: 368005 | E88: 369110 | F88: 364964 | G88: 362925
A89: OVGD | B89: Real GDP AMECO | C89: AMECO 6 | D89: 192091.41 | E89: 196194.31 | F89: 200288.05 | G89: 204440.16
A90: OVGDP | B90: Potential GDP (real) level | C90: AMECO 6 | D90: 193372.39 | E90: 194169.37 | F90: 195913.79 | G90: 199058.79
A91: UIGG02H | B91: Expenditure on defence - GFCF | C91: AMECO 16 | D91: 1019 | E91: 864 | F91: 572 | G91: 1326
A92: UUTG02H | B92: Expenditure on defence - Total general government expenditure | C92: AMECO 16 | D92: 5368 | E92: 5049 | F92: 5288 | G92: 5986
A93: UUTGCF | B93: Expenditure on national cofinancing of programmes funded by the EU - Total general government expenditure | C93: AMECO 16 | E93: 739 | F93: 705 | G93: 780
A94: UDMGR | B94: Discretionary measures (revenue) - excl. EU financed and one-off revenue (DRM): general government | C94: AMECO 16 | F94: 1995 | G94: 960
A95: URTGEU (D.7EU+D9EU) | B95: Expenditure funded by transfers from the EU: general government | C95: AMECO 16 | E95: 5664 | F95: 5873 | G95: 8430
A96: UUTZ105 | B96: Cyclical unemployment expenditure: general government | C96: AMECO 16 | E96: 295.46 | F96: 149.58 | G96: -21.49
A97: UOOMSE | B97: One-off measures (expenditure) - excl. EU financed: general government | C97: AMECO 16 | D97: -151 | E97: -302 | F97: -400 | G97: -436
A98: UBLGAPS | B98: Structural balance of general government :- Adjustment based on potential GDP Excessive deficit procedure (Percentage of potential GDP at current prices) | C98: AMECO 17 | D98: -2.75777 | E98: -1.84205 | F98: 0.34607 | G98: 0.48634
A99: UBLGBPS | B99: Structural balance of general government excluding interest :- Adjustment based on potential GDP Excessive deficit procedure (Percentage of potential GDP at current prices) | C99: AMECO 17 | D99: -0.26416 | E99: 1.54579 | F99: 3.82041 | G99: 3.64353
A101: Intermediary calculation tables
A102: Requirements as outlined in https://eur-lex.europa.eu/eli/C/2024/3975/oj/eng
A103: % of GDP | C103: ESA Code | D103: =_xlfn.SEQUENCE(1, OutturnThrough-MTP_BaseYear+2, MTP_BaseYear-1) -> 2022 | E103: 2023 | F103: 2024 | G103: 2025
B104: MTP year | D104: =IF(_xlfn.ANCHORARRAY(D103) = MTP_YearT, "T", "T" & IF(_xlfn.ANCHORARRAY(D103) > MTP_YearT, "+", "") & (_xlfn.ANCHORARRAY(D103) - MTP_YearT)) -> T-2 | E104: T-1 | F104: T | G104: T+1
B105: Revenue
A106: 1 | B106: Taxes on production and imports | C106: D.2 | D106: =IFERROR(D160/D$34*100,"") -> 19.08615435 | E106: =IFERROR(E160/E$34*100,"") -> 17.10385418 | F106: 16.97882874 | G106: 17.16141133 | L106: =IFERROR(L160/L$34*100,"") -> 
A107: 2 | B107: Current taxes on income, wealth, etc. | C107: D.5 | D107: 9.251301998 | E107: =IFERROR(E161/E$34*100,"") -> 10.14837582 | F107: 11.15039538 | G107: 11.06244844 | L107: =IFERROR(L161/L$34*100,"") -> 
A108: 3 | B108: Social contributions | C108: D.61 | D108: 14.02887898 | E108: =IFERROR(E162/E$34*100,"") -> 13.00435897 | F108: 13.31398689 | G108: 13.08778569 | L108: =IFERROR(L162/L$34*100,"") -> 
A109: 4 | B109: Other current revenue | C109: (P.11+P.12+P.131)+D.39+D.4+D.7 | D109: 5.541312998 | E109: =IFERROR(E163/E$34*100,"") -> 5.313187904 | F109: 5.464737091 | G109: 5.27835905 | L109: =IFERROR(L163/L$34*100,"") -> 
A110: 5 | B110: Capital taxes | C110: D.91 | D110: 0.1265647289 | E110: =IFERROR(E164/E$34*100,"") -> 0.115271877 | F110: 0.113206272 | G110: 0.118379553 | L110: =IFERROR(L164/L$34*100,"") -> 
A111: 6 | B111: Other capital revenue | C111: D.92+D.99 | D111: 2.481055144 | E111: =IFERROR(E165/E$34*100,"") -> 2.400681484 | F111: 2.425909029 | G111: 3.286844529 | L111: =IFERROR(L165/L$34*100,"") -> 
A112: 7 | B112: Total revenue (=1+2+3+4+5+6) | C112: TR | D112: 50.5152682 | E112: =IFERROR(E166/E$34*100,"") -> 48.08573023 | F112: 49.4470634 | G112: 49.99522858 | L112: =IFERROR(L166/L$34*100,"") -> 
A113: 8 | B113: Of which: Transfers from the EU (accrued revenue, not cash) | C113: D.7EU+D.9EU | D113: 2.311980125 | E113: =IFERROR(E167/E$34*100,"") -> 2.520849078 | F113: 2.48082252 | G113: 3.39435249 | L113: =IFERROR(L167/L$34*100,"") -> 
A114: 9 | B114: Total revenue other than transfers from the EU (=7-8) | D114: 48.20328807 | E114: =IFERROR(E168/E$34*100,"") -> 45.56488115 | F114: 46.96624088 | G114: 46.60087609 | L114: =IFERROR(L168/L$34*100,"") -> 
A115: 10 | B115: p.m. Revenue measures (increments, excluding EU funded measures) | D115: 0 | E115: =IFERROR(E169/E$34*100,"") -> 0 | F115: 0.8427108678 | G115: 0 | L115: =IFERROR(L169/L$34*100,"") -> 
A116: 11 | B116: p.m. One-off measures included in the projections (levels, excluding EU funded measures) | D116: =IFERROR(D171/D$34*100,"") -> 0 | E116: =IFERROR(E171/E$34*100,"") -> 0 | F116: 0.0004224114626 | G116: 0.0008053030819 | L116: =IFERROR(L171/L$34*100,"") -> 
B117: Expenditure
A118: 12 | B118: Compensation of employees | C118: D.1 | D118: =IFERROR(D173/D$34*100,"") -> 10.98504556 | E118: =IFERROR(E173/E$34*100,"") -> 10.45324546 | F118: 10.3663997 | G118: 10.16171694 | L118: =IFERROR(L173/L$34*100,"") -> 
A119: 13 | B119: Intermediate consumption | C119: P.2 | D119: 5.467886132 | E119: =IFERROR(E174/E$34*100,"") -> 5.502785663 | F119: 5.162712895 | G119: 5.660878014 | L119: =IFERROR(L174/L$34*100,"") -> 
A120: 14 | B120: Interest expenditure | C120: D.41 | D120: 2.493615003 | E120: =IFERROR(E175/E$34*100,"") -> 3.387836013 | F120: 3.47433428 | G120: 3.157190732 | L120: =IFERROR(L175/L$34*100,"") -> 
A121: 15 | B121: Social benefits other than social transfers in kind | C121: D.62 | D121: 17.95286865 | E121: =IFERROR(E176/E$34*100,"") -> 17.26185231 | F121: 16.74396796 | G121: 16.41086885 | L121: =IFERROR(L176/L$34*100,"") -> 
A122: 16 | B122: Social transfers in kind via market producers | C122: D.632 | D122: 2.968957343 | E122: =IFERROR(E177/E$34*100,"") -> 3.181325778 | F122: 2.8043897 | G122: 2.778698284 | L122: =IFERROR(L177/L$34*100,"") -> 
A123: 17 | B123: Subsidies | C123: D.3 | D123: 5.69831123 | E123: =IFERROR(E178/E$34*100,"") -> 2.001458033 | F123: 1.428595566 | G123: 1.327139479 | L123: =IFERROR(L178/L$34*100,"") -> 
A124: 18 | B124: Other current expenditure | C124: D.29+(D.4-D.41)+D.5+D.7+D.8 | D124: 1.482063314 | E124: =IFERROR(E179/E$34*100,"") -> 1.386823045 | F124: 1.514767505 | G124: 1.483770928 | L124: =IFERROR(L179/L$34*100,"") -> 
A125: 19 | B125: Gross fixed capital formation | C125: P.51 | D125: 3.977610603 | E125: =IFERROR(E180/E$34*100,"") -> 4.030510107 | F125: 4.252416194 | G125: 4.773031366 | L125: =IFERROR(L180/L$34*100,"") -> 
A126: 20 | B126: Of which: nationally financed public investment | D126: 0 | E126: =IFERROR(E181/E$34*100,"") -> 0 | F126: 0 | G126: 0 | L126: =IFERROR(L181/L$34*100,"") -> 
A127: 21 | B127: Capital transfers | C127: D.9 | D127: 1.822145639 | E127: =IFERROR(E182/E$34*100,"") -> 2.337037166 | F127: 2.310168289 | G127: 2.525430465 | L127: =IFERROR(L182/L$34*100,"") -> 
A128: 22 | B128: Other capital expenditure | C128: P.52+P.53+NP | D128: 0.2386373133 | E128: =IFERROR(E183/E$34*100,"") -> -0.02714897488 | F128: 0.04224114626 | G128: -0.01087159161 | L128: =IFERROR(L183/L$34*100,"") -> 
A129: 23 | B129: Total expenditure (=12+13+14+15+16+17+18+19+21+22) | C129: TE | D129: 53.08714078 | E129: =IFERROR(E184/E$34*100,"") -> 49.5157246 | F129: 48.09999324 | G129: 48.26785347 | L129: =IFERROR(L184/L$34*100,"") -> 
A130: 24 | B130: Of which: expenditure funded by transfers from the EU (=8) | C130: D.7EU+D.9EU
A131: 25 | B131: Nationally financed expenditure (=23-24) | D131: =IFERROR(D129-D130,"") -> 53.08714078 | E131: =IFERROR(E129-E130,"") -> 49.5157246 | F131: 48.09999324 | G131: 48.26785347 | L131: =IFERROR(L129-L130,"") ->  | M131: =IFERROR(M129-M130,"") ->  | N131: =IFERROR(N129-N130,"") ->  | O131: =IFERROR(O129-O130,"") ->  | P131: =IFERROR(P129-P130,"") ->  | Q131: =IFERROR(Q129-Q130,"") ->  | R131: =IFERROR(R129-R130,"") ->  | S131: =IFERROR(S129-S130,"") ->  | T131: =IFERROR(T129-T130,"") ->  | U131: =IFERROR(U129-U130,"") ->  | V131: =IFERROR(V129-V130,"") ->  | W131: =IFERROR(W129-W130,"") ->  | X131: =IFERROR(X129-X130,"") ->  | Y131: =IFERROR(Y129-Y130,"") ->  | Z131: =IFERROR(Z129-Z130,"") -> 
A132: 26 | B132: p.m. National co-financing of programmes funded by transfers from the EU | C132: AMECO16:UUTGCF | D132: =IFERROR(D187/D$34*100,"") -> 0 | E132: =IFERROR(E187/E$34*100,"") -> 0.3289031547 | F132: 0.2978000811 | G132: 0.3140682019 | L132: =IFERROR(L187/L$34*100,"") -> 
A133: 27 | B133: p.m. Cyclical component of unemployment benefits | C133: AMECO16: UUTZ105 | D133: =IFERROR(D188/D$34*100,"") -> 0 | E133: =IFERROR(E188/E$34*100,"") -> 0.1314989528 | F133: 0.06318430657 | G133: -0.008652981615 | L133: =IFERROR(L188/L$34*100,"") -> 
A134: 28 | B134: p.m. One-off expenditure included in the projections (levels, excluding EU funded measures) | C134: AMECO16:UOOMSE | D134: =IFERROR(D189/D$34*100,"") -> 0.07294379415 | E134: =IFERROR(E189/E$34*100,"") -> 0.1344096789 | F134: 0.168964585 | G134: 0.1755560718 | L134: =IFERROR(L189/L$34*100,"") -> 
A135: 29 | B135: Net nationally financed primary expenditure (before revenue measures) (=25-26-27-28-14) | D135: =IFERROR(D131-D132-D133-D134-D120,"") -> 50.52058199 | E135: =IFERROR(E131-E132-E133-E134-E120,"") -> 45.5330768 | F135: 44.09570999 | G135: 44.62969144 | L135: =IFERROR(L131-L132-L133-L134-L120,"") ->  | M135: =IFERROR(M131-M132-M133-M134-M120,"") ->  | N135: =IFERROR(N131-N132-N133-N134-N120,"") ->  | O135: =IFERROR(O131-O132-O133-O134-O120,"") ->  | P135: =IFERROR(P131-P132-P133-P134-P120,"") ->  | Q135: =IFERROR(Q131-Q132-Q133-Q134-Q120,"") ->  | R135: =IFERROR(R131-R132-R133-R134-R120,"") ->  | S135: =IFERROR(S131-S132-S133-S134-S120,"") ->  | T135: =IFERROR(T131-T132-T133-T134-T120,"") ->  | U135: =IFERROR(U131-U132-U133-U134-U120,"") ->  | V135: =IFERROR(V131-V132-V133-V134-V120,"") ->  | W135: =IFERROR(W131-W132-W133-W134-W120,"") ->  | X135: =IFERROR(X131-X132-X133-X134-X120,"") ->  | Y135: =IFERROR(Y131-Y132-Y133-Y134-Y120,"") ->  | Z135: =IFERROR(Z131-Z132-Z133-Z134-Z120,"") -> 
B136: Net nationally financed primary expenditure
B138: Balances
B139: Net lending/borrowing (=7-23) | C139: B.9 | D139: =IFERROR(D194/D$34*100,"") -> -2.571872583 | E139: =IFERROR(E194/E$34*100,"") -> -1.429994365 | F139: 1.347070154 | G139: 1.727375111 | L139: =IFERROR(L194/L$34*100,"") -> 
B140: Primary balance (=31-14) | C140: B.9-D.41p | D140: =IFERROR(D195/D$34*100,"") -> -5.065487586 | E140: =IFERROR(E195/E$34*100,"") -> -4.817830379 | F140: -2.127264125 | G140: -1.429815622 | L140: =IFERROR(L195/L$34*100,"") -> 
B141: Cyclical adjustment
B142: Structural balance | C142: AMECO17: UBLGAPS | D142: =IFERROR(D98,"") -> -2.75777 | E142: =IFERROR(E98,"") -> -1.84205 | F142: 0.34607 | G142: 0.48634 | H142: 0 | I142: 0 | J142: 0 | K142: 0 | L142: =IFERROR(L98,"") -> 0 | M142: 0 | N142: 0 | O142: 0 | P142: 0 | Q142: 0 | R142: 0 | S142: 0 | T142: 0 | U142: 0 | V142: 0 | W142: 0 | X142: 0 | Y142: 0 | Z142: 0
B143: Structural primary balance | C143: AMECO17: UBLGBPS | D143: =IFERROR(D99,"") -> -0.26416 | E143: =IFERROR(E99,"") -> 1.54579 | F143: 3.82041 | G143: 3.64353 | H143: 0 | I143: 0 | J143: 0 | K143: 0 | L143: =IFERROR(L99,"") -> 0 | M143: 0 | N143: 0 | O143: 0 | P143: 0 | Q143: 0 | R143: 0 | S143: 0 | T143: 0 | U143: 0 | V143: 0 | W143: 0 | X143: 0 | Y143: 0 | Z143: 0
B144: Debt
B145: Gross debt | D145: =IFERROR(D200/D$34*100,"") -> 177.7727216 | E145: =IFERROR(E200/E$34*100,"") -> 164.2780019 | F145: 154.164977 | G145: 146.1323105 | L145: =IFERROR(L200/L$34*100,"") -> 
B146: Change in gross debt | D146: =IFERROR(D201/D$34*100,"") -> 0 | E146: =IFERROR(E201/E$34*100,"") -> 0.491797004 | F146: -1.751317924 | G146: -0.821006492 | L146: =IFERROR(L201/L$34*100,"") -> 
B147: Contributions to change in gross debt
B148: Primary balance (=-32) | D148: =IFERROR(D203/D$34*100,"") -> 5.065487586 | E148: =IFERROR(E203/E$34*100,"") -> 4.817830379 | F148: 2.127264125 | G148: 1.429815622 | L148: =IFERROR(L203/L$34*100,"") -> 
B149: Snowball effect | D149: 0 | E149: =IFERROR(E204/E$34*100,"") -> 0 | F149: 0 | G149: 0 | L149: =IFERROR(L204/L$34*100,"") -> 
B150: Interest expenditure (=14) | D150: 2.493615003 | E150: =IFERROR(E205/E$34*100,"") -> 3.387836013 | F150: 3.47433428 | G150: 3.157190732 | L150: =IFERROR(L205/L$34*100,"") -> 
B151: Growth | D151: 0 | E151: =IFERROR(E206/E$34*100,"") -> 0 | F151: 0 | G151: 0 | L151: =IFERROR(L206/L$34*100,"") -> 
B152: Inflation | D152: 0 | E152: =IFERROR(E207/E$34*100,"") -> 0 | F152: 0 | G152: 0 | L152: =IFERROR(L207/L$34*100,"") -> 
B153: Stock-flow adjustment (=36-38-39) | D153: -5.065487586 | E153: =IFERROR(E208/E$34*100,"") -> -4.326033375 | F153: -3.878582049 | G153: -2.250822114 | L153: =IFERROR(L208/L$34*100,"") -> 
B155: p.m. Implicit interest rate on debt (=14/debt(t-1))
A157: millions national currency | C157: ESA Code | D157: =_xlfn.SEQUENCE(1, OutturnThrough-MTP_BaseYear+2, MTP_BaseYear-1) -> 2022 | E157: 2023 | F157: 2024 | G157: 2025
B158: MTP year | D158: =IF(_xlfn.ANCHORARRAY(D103) = MTP_YearT, "T", "T" & IF(_xlfn.ANCHORARRAY(D103) > MTP_YearT, "+", "") & (_xlfn.ANCHORARRAY(D103) - MTP_YearT)) -> T-2 | E158: T-1 | F158: T | G158: T+1
B159: Revenue
A160: 1 | B160: Taxes on production and imports | C160: D.2 | D160: =D50 -> 39510 | E160: 38430 | F160: =F50 -> 40195 | G160: 42621 | H160: 0 | I160: 0 | J160: 0 | K160: 0 | L160: =L50 -> 0 | M160: 0 | N160: 0 | O160: 0 | P160: 0 | Q160: 0 | R160: 0 | S160: 0 | T160: 0 | U160: 0 | V160: 0 | W160: 0 | X160: 0 | Y160: 0 | Z160: 0
A161: 2 | B161: Current taxes on income, wealth, etc. | C161: D.5 | D161: =D55 -> 19151 | E161: 22802 | F161: =F55 -> 26397 | G161: 27474 | H161: 0 | I161: 0 | J161: 0 | K161: 0 | L161: =L55 -> 0 | M161: 0 | N161: 0 | O161: 0 | P161: 0 | Q161: 0 | R161: 0 | S161: 0 | T161: 0 | U161: 0 | V161: 0 | W161: 0 | X161: 0 | Y161: 0 | Z161: 0
A162: 3 | B162: Social contributions | C162: D.61 | D162: =D70 -> 29041 | E162: 29219 | F162: =F70 -> 31519 | G162: 32504 | H162: 0 | I162: 0 | J162: 0 | K162: 0 | L162: =L70 -> 0 | M162: 0 | N162: 0 | O162: 0 | P162: 0 | Q162: 0 | R162: 0 | S162: 0 | T162: 0 | U162: 0 | V162: 0 | W162: 0 | X162: 0 | Y162: 0 | Z162: 0
A163: 4 | B163: Other current revenue | C163: (P.11+P.12+P.131)+D.39+D.4+D.7 | D163: =(D85+D86+D87)+D67+D53+D57 -> 11471 | E163: 11938 | F163: =(F85+F86+F87)+F67+F53+F57 -> 12937 | G163: 13109 | H163: 0 | I163: 0 | J163: 0 | K163: 0 | L163: =(L85+L86+L87)+L67+L53+L57 -> 0 | M163: 0 | N163: 0 | O163: 0 | P163: 0 | Q163: 0 | R163: 0 | S163: 0 | T163: 0 | U163: 0 | V163: 0 | W163: 0 | X163: 0 | Y163: 0 | Z163: 0
A164: 5 | B164: Capital taxes | C164: D.91 | D164: =D73 -> 262 | E164: 259 | F164: =F73 -> 268 | G164: 294 | H164: 0 | I164: 0 | J164: 0 | K164: 0 | L164: =L73 -> 0 | M164: 0 | N164: 0 | O164: 0 | P164: 0 | Q164: 0 | R164: 0 | S164: 0 | T164: 0 | U164: 0 | V164: 0 | W164: 0 | X164: 0 | Y164: 0 | Z164: 0
A165: 6 | B165: Other capital revenue | C165: D.92+D.99 | D165: =D74+D77 -> 5136 | E165: 5394 | F165: =F74+F77 -> 5743 | G165: 8163 | H165: 0 | I165: 0 | J165: 0 | K165: 0 | L165: =L74+L77 -> 0 | M165: 0 | N165: 0 | O165: 0 | P165: 0 | Q165: 0 | R165: 0 | S165: 0 | T165: 0 | U165: 0 | V165: 0 | W165: 0 | X165: 0 | Y165: 0 | Z165: 0
A166: 7 | B166: Total revenue (=1+2+3+4+5+6) | C166: TR | D166: =D160+D161+D162+D163+D164+D165 -> 104571 | E166: 108042 | F166: =F160+F161+F162+F163+F164+F165 -> 117059 | G166: 124165 | H166: 0 | I166: 0 | J166: 0 | K166: 0 | L166: =L160+L161+L162+L163+L164+L165 -> 0 | M166: 0 | N166: 0 | O166: 0 | P166: 0 | Q166: 0 | R166: 0 | S166: 0 | T166: 0 | U166: 0 | V166: 0 | W166: 0 | X166: 0 | Y166: 0 | Z166: 0
A167: 8 | B167: Of which: Transfers from the EU (accrued revenue, not cash) | C167: D.7EU+D.9EU | D167: =SUM(D58+D62) -> 4786 | E167: 5664 | F167: =SUM(F58+F62) -> 5873 | G167: 8430 | H167: 0 | I167: 0 | J167: 0 | K167: 0 | L167: =SUM(L58+L62) -> 0 | M167: 0 | N167: 0 | O167: 0 | P167: 0 | Q167: 0 | R167: 0 | S167: 0 | T167: 0 | U167: 0 | V167: 0 | W167: 0 | X167: 0 | Y167: 0 | Z167: 0
A168: 9 | B168: Total revenue other than transfers from the EU (=7-8) | D168: =D166-D167 -> 99785 | E168: 102378 | F168: =F166-F167 -> 111186 | G168: 115735 | H168: 0 | I168: 0 | J168: 0 | K168: 0 | L168: =L166-L167 -> 0 | M168: 0 | N168: 0 | O168: 0 | P168: 0 | Q168: 0 | R168: 0 | S168: 0 | T168: 0 | U168: 0 | V168: 0 | W168: 0 | X168: 0 | Y168: 0 | Z168: 0
A169: 10 | B169: p.m. Revenue measures (increments, excluding EU funded measures) | C169: AMECO16: UDMGR | D169: =D94 -> 0 | E169: =E94 -> 0 | F169: 1995
B170: p.m. Revenue reductions funded by transfers from the EU (levels)
A171: 11 | B171: p.m. One-off revenue included in projections (levels, excluding EU funded measures) | C171: AMECO17: UOOMSR | D171: 0 | E171: 0 | F171: 1 | G171: 2 | H171: 3 | I171: 4 | J171: 5 | K171: 6 | L171: 7 | M171: 8 | N171: 9 | O171: 10 | P171: 11 | Q171: 12 | R171: 13 | S171: 14 | T171: 15 | U171: 16 | V171: 17 | W171: 18 | X171: 19 | Y171: 20 | Z171: 21
B172: Expenditure
A173: 12 | B173: Compensation of employees | C173: D.1 | D173: =D49 -> 22740 | E173: 23487 | F173: =F49 -> 24541 | G173: 25237 | H173: 0 | I173: 0 | J173: 0 | K173: 0 | L173: =L49 -> 0 | M173: 0 | N173: 0 | O173: 0 | P173: 0 | Q173: 0 | R173: 0 | S173: 0 | T173: 0 | U173: 0 | V173: 0 | W173: 0 | X173: 0 | Y173: 0 | Z173: 0
A174: 13 | B174: Intermediate consumption | C174: P.2 | D174: =D79 -> 11319 | E174: 12364 | F174: =F79 -> 12222 | G174: 14059 | H174: 0 | I174: 0 | J174: 0 | K174: 0 | L174: =L79 -> 0 | M174: 0 | N174: 0 | O174: 0 | P174: 0 | Q174: 0 | R174: 0 | S174: 0 | T174: 0 | U174: 0 | V174: 0 | W174: 0 | X174: 0 | Y174: 0 | Z174: 0
A175: 14 | B175: Interest expenditure | C175: D.41 | D175: =D68 -> 5162 | E175: 7612 | F175: =F68 -> 8225 | G175: 7841 | H175: 0 | I175: 0 | J175: 0 | K175: 0 | L175: =L68 -> 0 | M175: 0 | N175: 0 | O175: 0 | P175: 0 | Q175: 0 | R175: 0 | S175: 0 | T175: 0 | U175: 0 | V175: 0 | W175: 0 | X175: 0 | Y175: 0 | Z175: 0
A176: 15 | B176: Social benefits other than social transfers in kind | C176: D.62 | D176: =D71 -> 37164 | E176: 38785 | F176: =F71 -> 39639 | G176: 40757 | H176: 0 | I176: 0 | J176: 0 | K176: 0 | L176: =L71 -> 0 | M176: 0 | N176: 0 | O176: 0 | P176: 0 | Q176: 0 | R176: 0 | S176: 0 | T176: 0 | U176: 0 | V176: 0 | W176: 0 | X176: 0 | Y176: 0 | Z176: 0
A177: 16 | B177: Social transfers in kind via market producers | C177: D.632 | D177: =D72 -> 6146 | E177: 7148 | F177: =F72 -> 6639 | G177: 6901 | H177: 0 | I177: 0 | J177: 0 | K177: 0 | L177: =L72 -> 0 | M177: 0 | N177: 0 | O177: 0 | P177: 0 | Q177: 0 | R177: 0 | S177: 0 | T177: 0 | U177: 0 | V177: 0 | W177: 0 | X177: 0 | Y177: 0 | Z177: 0
A178: 17 | B178: Subsidies | C178: D.3 | D178: =D51 -> 11796 | E178: 4497 | F178: =F51 -> 3382 | G178: 3296 | H178: 0 | I178: 0 | J178: 0 | K178: 0 | L178: =L51 -> 0 | M178: 0 | N178: 0 | O178: 0 | P178: 0 | Q178: 0 | R178: 0 | S178: 0 | T178: 0 | U178: 0 | V178: 0 | W178: 0 | X178: 0 | Y178: 0 | Z178: 0
A179: 18 | B179: Other current expenditure | C179: D.29+(D.4-D.41)+D.5+D.7+D.8 | D179: =D64+(D52-D68)+D54+D56+D59 -> 3068 | E179: 3116 | F179: =F64+(F52-F68)+F54+F56+F59 -> 3586 | G179: 3685 | H179: 0 | I179: 0 | J179: 0 | K179: 0 | L179: =L64+(L52-L68)+L54+L56+L59 -> 0 | M179: 0 | N179: 0 | O179: 0 | P179: 0 | Q179: 0 | R179: 0 | S179: 0 | T179: 0 | U179: 0 | V179: 0 | W179: 0 | X179: 0 | Y179: 0 | Z179: 0
A180: 19 | B180: Gross fixed capital formation | C180: P.51 | D180: =D83 -> 8234 | E180: 9056 | F180: =F83 -> 10067 | G180: 11854 | H180: 0 | I180: 0 | J180: 0 | K180: 0 | L180: =L83 -> 0 | M180: 0 | N180: 0 | O180: 0 | P180: 0 | Q180: 0 | R180: 0 | S180: 0 | T180: 0 | U180: 0 | V180: 0 | W180: 0 | X180: 0 | Y180: 0 | Z180: 0
A181: 20 | B181: Of which: nationally financed public investment
A182: 21 | B182: Capital transfers | C182: D.9 | D182: =D60 -> 3772 | E182: 5251 | F182: =F60 -> 5469 | G182: 6272 | H182: 0 | I182: 0 | J182: 0 | K182: 0 | L182: =L60 -> 0 | M182: 0 | N182: 0 | O182: 0 | P182: 0 | Q182: 0 | R182: 0 | S182: 0 | T182: 0 | U182: 0 | V182: 0 | W182: 0 | X182: 0 | Y182: 0 | Z182: 0
A183: 22 | B183: Other capital expenditure | C183: P.52+P.53+NP | D183: =D84+D78 -> 494 | E183: -61 | F183: =F84+F78 -> 100 | G183: -27 | H183: 0 | I183: 0 | J183: 0 | K183: 0 | L183: =L84+L78 -> 0 | M183: 0 | N183: 0 | O183: 0 | P183: 0 | Q183: 0 | R183: 0 | S183: 0 | T183: 0 | U183: 0 | V183: 0 | W183: 0 | X183: 0 | Y183: 0 | Z183: 0
A184: 23 | B184: Total expenditure (=12+13+14+15+16+17+18+19+21+22) | C184: TE | D184: =D173+D174+D175+D176+D177+D178+D179+D180+D182+D183 -> 109895 | E184: =E173+E174+E175+E176+E177+E178+E179+E180+E182+E183 -> 111255 | F184: =F173+F174+F175+F176+F177+F178+F179+F180+F182+F183 -> 113870 | G184: 119875 | H184: 0 | I184: 0 | J184: 0 | K184: 0 | L184: =L173+L174+L175+L176+L177+L178+L179+L180+L182+L183 -> 0 | M184: 0 | N184: 0 | O184: 0 | P184: 0 | Q184: 0 | R184: 0 | S184: 0 | T184: 0 | U184: 0 | V184: 0 | W184: 0 | X184: 0 | Y184: 0 | Z184: 0
A185: 24 | B185: Of which: expenditure funded by transfers from the EU (=8) | C185: D.7EU+D.9EU | D185: =D167 -> 4786 | E185: =E167 -> 5664 | F185: 5873 | G185: 8430 | H185: 0 | I185: 0 | J185: 0
A186: 25 | B186: Nationally financed expenditure (=23-24) | D186: =D184-D185 -> 105109 | E186: 105591 | F186: =F184-F185 -> 107997 | G186: 111445 | H186: 0 | I186: 0 | J186: 0 | K186: 0 | L186: =L184-L185 -> 0 | M186: 0 | N186: 0 | O186: 0 | P186: 0 | Q186: 0 | R186: 0 | S186: 0 | T186: 0 | U186: 0 | V186: 0 | W186: 0 | X186: 0 | Y186: 0 | Z186: 0
A187: 26 | B187: p.m. National co-financing of programmes funded by transfers from the EU | C187: AMECO16:UUTGCF | D187: =D93 -> 0 | E187: =E93 -> 739 | F187: 705 | G187: 780 | H187: 0 | I187: 0 | J187: 0
A188: 27 | B188: p.m. Cyclical component of unemployment benefits | C188: AMECO16: UUTZ105 | D188: =D96 -> 0 | E188: =E96 -> 295.46 | F188: 149.58 | G188: -21.49 | H188: 0 | I188: 0 | J188: 0
A189: 28 | B189: p.m. One-off expenditure included in the projections (levels, excluding EU funded measures) | C189: AMECO16:UOOMSE | D189: =-D97 -> 151 | E189: =-E97 -> 302 | F189: 400 | G189: 436 | H189: 0 | I189: 0 | J189: 0 | K189: 0 | L189: 0 | M189: 0 | N189: 0 | O189: 0 | P189: =P97 -> 0 | Q189: 0 | R189: 0 | S189: 0 | T189: 0 | U189: 0 | V189: 0 | W189: 0 | X189: 0 | Y189: 0 | Z189: 0
A190: 29 | B190: Net nationally financed primary expenditure (before revenue measures) (=25-26-27-28-14) | D190: =D186-D187-D188-D189-D175 -> 99796 | E190: 96642.54 | F190: =F186-F187-F188-F189-F175 -> 98517.42 | G190: 102409.49 | H190: 0 | I190: 0 | J190: 0 | K190: 0 | L190: =L186-L187-L188-L189-L175 -> 0 | M190: 0 | N190: 0 | O190: 0 | P190: 0 | Q190: 0 | R190: 0 | S190: 0 | T190: 0 | U190: 0 | V190: 0 | W190: 0 | X190: 0 | Y190: 0 | Z190: 0
B191: Net nationally financed primary expenditure
A192: 30 | B192: Net nationally financed primary expenditure growth
B193: Balances
A194: 31 | B194: Net lending/borrowing (=7-23) | C194: B.9 | D194: =D166-D184 -> -5324 | E194: -3213 | F194: =F166-F184 -> 3189 | G194: 4290 | H194: 0 | I194: 0 | J194: 0 | K194: 0 | L194: =L166-L184 -> 0 | M194: 0 | N194: 0 | O194: 0 | P194: 0 | Q194: 0 | R194: 0 | S194: 0 | T194: 0 | U194: 0 | V194: 0 | W194: 0 | X194: 0 | Y194: 0 | Z194: 0
A195: 32 | B195: Primary balance (=31-14) | C195: B.9-D.41p | D195: =D194-D175 -> -10486 | E195: -10825 | F195: =F194-F175 -> -5036 | G195: -3551 | H195: 0 | I195: 0 | J195: 0 | K195: 0 | L195: =L194-L175 -> 0 | M195: 0 | N195: 0 | O195: 0 | P195: 0 | Q195: 0 | R195: 0 | S195: 0 | T195: 0 | U195: 0 | V195: 0 | W195: 0 | X195: 0 | Y195: 0 | Z195: 0
B196: Cyclical adjustment
A197: 33 | B197: Structural balance | C197: AMECO17: UBLGAPS
A198: 34 | B198: Structural primary balance | C198: AMECO17: UBLGBPS
B199: Debt
A200: 35 | B200: Gross debt | D200: =D88 -> 368005 | E200: 369110 | F200: =F88 -> 364964 | G200: 362925 | H200: 0 | I200: 0 | J200: 0 | K200: 0 | L200: =L88 -> 0 | M200: 0 | N200: 0 | O200: 0 | P200: 0 | Q200: 0 | R200: 0 | S200: 0 | T200: 0 | U200: 0 | V200: 0 | W200: 0 | X200: 0 | Y200: 0 | Z200: 0
A201: 36 | B201: Change in gross debt | E201: =E200-D200 -> 1105 | F201: =F200-E200 -> -4146 | G201: =G200-F200 -> -2039 | H201: =H200-G200 -> -362925 | I201: =I200-H200 -> 0 | J201: =J200-I200 -> 0 | K201: =K200-J200 -> 0 | L201: =L200-K200 -> 0 | M201: =M200-L200 -> 0 | N201: =N200-M200 -> 0 | O201: =O200-N200 -> 0 | P201: =P200-O200 -> 0 | Q201: =Q200-P200 -> 0 | R201: =R200-Q200 -> 0 | S201: =S200-R200 -> 0 | T201: =T200-S200 -> 0 | U201: =U200-T200 -> 0 | V201: =V200-U200 -> 0 | W201: =W200-V200 -> 0 | X201: =X200-W200 -> 0 | Y201: =Y200-X200 -> 0 | Z201: =Z200-Y200 -> 0
A202: 37 | B202: Contributions to change in gross debt
A203: 38 | B203: Primary balance (=-32) | D203: =-D195 -> 10486 | E203: 10825 | F203: =-F195 -> 5036 | G203: 3551 | H203: 0 | I203: 0 | J203: 0 | K203: 0 | L203: =-L195 -> 0 | M203: 0 | N203: 0 | O203: 0 | P203: 0 | Q203: 0 | R203: 0 | S203: 0 | T203: 0 | U203: 0 | V203: 0 | W203: 0 | X203: 0 | Y203: 0 | Z203: 0
A204: 39 | B204: Snowball effect
A205: 40 | B205: Interest expenditure (=14) | D205: =D175 -> 5162 | E205: 7612 | F205: =F175 -> 8225 | G205: 7841 | H205: 0 | I205: 0 | J205: 0 | K205: 0 | L205: =L175 -> 0 | M205: 0 | N205: 0 | O205: 0 | P205: 0 | Q205: 0 | R205: 0 | S205: 0 | T205: 0 | U205: 0 | V205: 0 | W205: 0 | X205: 0 | Y205: 0 | Z205: 0
... 4 more rows

Sheet Step 3 (IMPL) - Enter outlook
B1: Enter implementation report or outlook (APR, DBP, risk scenario, etc.) to be assessed
F3: Enter final year to be assessed | G3: 2026
B5: =ScenarioName -> Annual Progress Report 2026
B6: Calendar year | D6: =_xlfn.SEQUENCE(1, AssessmentEnd-MTP_BaseYear+1, MTP_BaseYear) -> 2023 | E6: 2024 | F6: 2025 | G6: 2026 | O6: Report/Plan import tool:
B7: MTP reference year | D7: =IF( AND(_xlfn.ANCHORARRAY(D6)>=MTP_YearT-1,_xlfn.ANCHORARRAY( D6)<=MTP_EndYear), CHOOSE(SIGN(_xlfn.ANCHORARRAY(D6)-MTP_YearT)+2, "T-1", "T", "T+"&(_xlfn.ANCHORARRAY(D6)-MTP_YearT)), "" ) -> T-1 | E7: T | F7: T+1 | G7: T+2 | O7: Worksheet name containing budgetary developments | P7: Sheet1
B8: Total expenditure | C8: bn NAC | D8: =IF(ISNUMBER(D$6),IF(AND(D$6>=MTP_BaseYear,D$6<=OutturnThrough),'Step 2 - Update outturn data'!E6,INDEX($D$59:$J$59,MATCH(D$6,$D$34:$J$34,0))/100*D$29),"") -> 111.255 | E8: =IF(ISNUMBER(E$6),IF(AND(E$6>=MTP_BaseYear,E$6<=OutturnThrough),'Step 2 - Update outturn data'!F6,INDEX($D$59:$J$59,MATCH(E$6,$D$34:$J$34,0))/100*E$29),"") -> 113.87 | F8: =IF(ISNUMBER(F$6),IF(AND(F$6>=MTP_BaseYear,F$6<=OutturnThrough),'Step 2 - Update outturn data'!G6,INDEX($D$59:$J$59,MATCH(F$6,$D$34:$J$34,0))/100*F$29),"") -> 119.875 | G8: =IF(ISNUMBER(G$6),IF(AND(G$6>=MTP_BaseYear,G$6<=OutturnThrough),'Step 2 - Update outturn data'!H6,INDEX($D$59:$J$59,MATCH(G$6,$D$34:$J$34,0))/100*G$29),"") -> 131.1565824 | H8: =IF(ISNUMBER(H$6),IF(AND(H$6>=MTP_BaseYear,H$6<=OutturnThrough),'Step 2 - Update outturn data'!I6,INDEX($D$59:$J$59,MATCH(H$6,$D$34:$J$34,0))/100*H$29),"") ->  | I8: =IF(ISNUMBER(I$6),IF(AND(I$6>=MTP_BaseYear,I$6<=OutturnThrough),'Step 2 - Update outturn data'!#REF!,INDEX($D$59:$J$59,MATCH(I$6,$D$34:$J$34,0))/100*I$29),"") ->  | J8: =IF(ISNUMBER(J$6),IF(AND(J$6>=MTP_BaseYear,J$6<=OutturnThrough),'Step 2 - Update outturn data'!J6,INDEX($D$59:$J$59,MATCH(J$6,$D$34:$J$34,0))/100*J$29),"") ->  | O8: Worksheet name containing macroeconomic developments | P8: Sheet1
B9: Interest expenditure | C9: bn NAC | D9: =IF(ISNUMBER(D$6),IF(AND(D$6>=MTP_BaseYear,D$6<=OutturnThrough),'Step 2 - Update outturn data'!E7,INDEX($D$50:$J$50,MATCH(D$6,$D$34:$J$34,0))/100*D$29),"") -> 7.612 | E9: =IF(ISNUMBER(E$6),IF(AND(E$6>=MTP_BaseYear,E$6<=OutturnThrough),'Step 2 - Update outturn data'!F7,INDEX($D$50:$J$50,MATCH(E$6,$D$34:$J$34,0))/100*E$29),"") -> 8.225 | F9: =IF(ISNUMBER(F$6),IF(AND(F$6>=MTP_BaseYear,F$6<=OutturnThrough),'Step 2 - Update outturn data'!G7,INDEX($D$50:$J$50,MATCH(F$6,$D$34:$J$34,0))/100*F$29),"") -> 7.841 | G9: =IF(ISNUMBER(G$6),IF(AND(G$6>=MTP_BaseYear,G$6<=OutturnThrough),'Step 2 - Update outturn data'!H7,INDEX($D$50:$J$50,MATCH(G$6,$D$34:$J$34,0))/100*G$29),"") -> 7.838042772 | H9: =IF(ISNUMBER(H$6),IF(AND(H$6>=MTP_BaseYear,H$6<=OutturnThrough),'Step 2 - Update outturn data'!I7,INDEX($D$50:$J$50,MATCH(H$6,$D$34:$J$34,0))/100*H$29),"") ->  | I9: =IF(ISNUMBER(I$6),IF(AND(I$6>=MTP_BaseYear,I$6<=OutturnThrough),'Step 2 - Update outturn data'!#REF!,INDEX($D$50:$J$50,MATCH(I$6,$D$34:$J$34,0))/100*I$29),"") ->  | J9: =IF(ISNUMBER(J$6),IF(AND(J$6>=MTP_BaseYear,J$6<=OutturnThrough),'Step 2 - Update outturn data'!J7,INDEX($D$50:$J$50,MATCH(J$6,$D$34:$J$34,0))/100*J$29),"") ->  | O9: Last year of bn Nac | P9: 2023
B10: Cyclical unemployment expenditure | C10: bn NAC | D10: =IF(ISNUMBER(D$6),IF(AND(D$6>=MTP_BaseYear,D$6<=OutturnThrough),'Step 2 - Update outturn data'!E8,INDEX($D$63:$J$63,MATCH(D$6,$D$34:$J$34,0))/100*D$29),"") -> 0.3 | E10: =IF(ISNUMBER(E$6),IF(AND(E$6>=MTP_BaseYear,E$6<=OutturnThrough),'Step 2 - Update outturn data'!F8,INDEX($D$63:$J$63,MATCH(E$6,$D$34:$J$34,0))/100*E$29),"") -> 0.1 | F10: =IF(ISNUMBER(F$6),IF(AND(F$6>=MTP_BaseYear,F$6<=OutturnThrough),'Step 2 - Update outturn data'!G8,INDEX($D$63:$J$63,MATCH(F$6,$D$34:$J$34,0))/100*F$29),"") -> -0.1 | G10: =IF(ISNUMBER(G$6),IF(AND(G$6>=MTP_BaseYear,G$6<=OutturnThrough),'Step 2 - Update outturn data'!H8,INDEX($D$63:$J$63,MATCH(G$6,$D$34:$J$34,0))/100*G$29),"") -> -0.2612680924 | H10: =IF(ISNUMBER(H$6),IF(AND(H$6>=MTP_BaseYear,H$6<=OutturnThrough),'Step 2 - Update outturn data'!I8,INDEX($D$63:$J$63,MATCH(H$6,$D$34:$J$34,0))/100*H$29),"") ->  | I10: =IF(ISNUMBER(I$6),IF(AND(I$6>=MTP_BaseYear,I$6<=OutturnThrough),'Step 2 - Update outturn data'!#REF!,INDEX($D$63:$J$63,MATCH(I$6,$D$34:$J$34,0))/100*I$29),"") ->  | J10: =IF(ISNUMBER(J$6),IF(AND(J$6>=MTP_BaseYear,J$6<=OutturnThrough),'Step 2 - Update outturn data'!J8,INDEX($D$63:$J$63,MATCH(J$6,$D$34:$J$34,0))/100*J$29),"") ->  | O10: Column containing last year of bn Nac | P10: D
B11: Expenditure funded by transfers from the EU | C11: bn NAC | D11: =IF(ISNUMBER(D$6),IF(AND(D$6>=MTP_BaseYear,D$6<=OutturnThrough),'Step 2 - Update outturn data'!E9,INDEX($D$60:$J$60,MATCH(D$6,$D$34:$J$34,0))/100*D$29),"") -> 5.664 | E11: =IF(ISNUMBER(E$6),IF(AND(E$6>=MTP_BaseYear,E$6<=OutturnThrough),'Step 2 - Update outturn data'!F9,INDEX($D$60:$J$60,MATCH(E$6,$D$34:$J$34,0))/100*E$29),"") -> 5.873 | F11: =IF(ISNUMBER(F$6),IF(AND(F$6>=MTP_BaseYear,F$6<=OutturnThrough),'Step 2 - Update outturn data'!G9,INDEX($D$60:$J$60,MATCH(F$6,$D$34:$J$34,0))/100*F$29),"") -> 8.43 | G11: =IF(ISNUMBER(G$6),IF(AND(G$6>=MTP_BaseYear,G$6<=OutturnThrough),'Step 2 - Update outturn data'!H9,INDEX($D$60:$J$60,MATCH(G$6,$D$34:$J$34,0))/100*G$29),"") -> 12.54086844 | H11: =IF(ISNUMBER(H$6),IF(AND(H$6>=MTP_BaseYear,H$6<=OutturnThrough),'Step 2 - Update outturn data'!I9,INDEX($D$60:$J$60,MATCH(H$6,$D$34:$J$34,0))/100*H$29),"") ->  | I11: =IF(ISNUMBER(I$6),IF(AND(I$6>=MTP_BaseYear,I$6<=OutturnThrough),'Step 2 - Update outturn data'!#REF!,INDEX($D$60:$J$60,MATCH(I$6,$D$34:$J$34,0))/100*I$29),"") ->  | J11: =IF(ISNUMBER(J$6),IF(AND(J$6>=MTP_BaseYear,J$6<=OutturnThrough),'Step 2 - Update outturn data'!J9,INDEX($D$60:$J$60,MATCH(J$6,$D$34:$J$34,0))/100*J$29),"") ->  | O11: Column with line reference numbers | P11: A
B12: National co-financing of EU programmes | C12: bn NAC | D12: =IF(ISNUMBER(D$6),IF(AND(D$6>=MTP_BaseYear,D$6<=OutturnThrough),'Step 2 - Update outturn data'!E10,INDEX($D$62:$J$62,MATCH(D$6,$D$34:$J$34,0))/100*D$29),"") -> 0.739 | E12: =IF(ISNUMBER(E$6),IF(AND(E$6>=MTP_BaseYear,E$6<=OutturnThrough),'Step 2 - Update outturn data'!F10,INDEX($D$62:$J$62,MATCH(E$6,$D$34:$J$34,0))/100*E$29),"") -> 0.705 | F12: =IF(ISNUMBER(F$6),IF(AND(F$6>=MTP_BaseYear,F$6<=OutturnThrough),'Step 2 - Update outturn data'!G10,INDEX($D$62:$J$62,MATCH(F$6,$D$34:$J$34,0))/100*F$29),"") -> 0.78 | G12: =IF(ISNUMBER(G$6),IF(AND(G$6>=MTP_BaseYear,G$6<=OutturnThrough),'Step 2 - Update outturn data'!H10,INDEX($D$62:$J$62,MATCH(G$6,$D$34:$J$34,0))/100*G$29),"") -> 1.306340462 | H12: =IF(ISNUMBER(H$6),IF(AND(H$6>=MTP_BaseYear,H$6<=OutturnThrough),'Step 2 - Update outturn data'!I10,INDEX($D$62:$J$62,MATCH(H$6,$D$34:$J$34,0))/100*H$29),"") ->  | I12: =IF(ISNUMBER(I$6),IF(AND(I$6>=MTP_BaseYear,I$6<=OutturnThrough),'Step 2 - Update outturn data'!#REF!,INDEX($D$62:$J$62,MATCH(I$6,$D$34:$J$34,0))/100*I$29),"") ->  | J12: =IF(ISNUMBER(J$6),IF(AND(J$6>=MTP_BaseYear,J$6<=OutturnThrough),'Step 2 - Update outturn data'!J10,INDEX($D$62:$J$62,MATCH(J$6,$D$34:$J$34,0))/100*J$29),"") ->  | O12: Row containing years labels of budgetary developments table | P12: 2
B13: One-off expenditure ( excl. EU funded) | C13: bn NAC | D13: =IF(ISNUMBER(D$6),IF(AND(D$6>=MTP_BaseYear,D$6<=OutturnThrough),'Step 2 - Update outturn data'!E11,INDEX($D$64:$J$64,MATCH(D$6,$D$34:$J$34,0))/100*D$29),"") -> 0.302 | E13: =IF(ISNUMBER(E$6),IF(AND(E$6>=MTP_BaseYear,E$6<=OutturnThrough),'Step 2 - Update outturn data'!F11,INDEX($D$64:$J$64,MATCH(E$6,$D$34:$J$34,0))/100*E$29),"") -> 0.4 | F13: =IF(ISNUMBER(F$6),IF(AND(F$6>=MTP_BaseYear,F$6<=OutturnThrough),'Step 2 - Update outturn data'!G11,INDEX($D$64:$J$64,MATCH(F$6,$D$34:$J$34,0))/100*F$29),"") -> 0.436 | G13: =IF(ISNUMBER(G$6),IF(AND(G$6>=MTP_BaseYear,G$6<=OutturnThrough),'Step 2 - Update outturn data'!H11,INDEX($D$64:$J$64,MATCH(G$6,$D$34:$J$34,0))/100*G$29),"") -> 0 | H13: =IF(ISNUMBER(H$6),IF(AND(H$6>=MTP_BaseYear,H$6<=OutturnThrough),'Step 2 - Update outturn data'!I11,INDEX($D$64:$J$64,MATCH(H$6,$D$34:$J$34,0))/100*H$29),"") ->  | I13: =IF(ISNUMBER(I$6),IF(AND(I$6>=MTP_BaseYear,I$6<=OutturnThrough),'Step 2 - Update outturn data'!#REF!,INDEX($D$64:$J$64,MATCH(I$6,$D$34:$J$34,0))/100*I$29),"") ->  | J13: =IF(ISNUMBER(J$6),IF(AND(J$6>=MTP_BaseYear,J$6<=OutturnThrough),'Step 2 - Update outturn data'!J11,INDEX($D$64:$J$64,MATCH(J$6,$D$34:$J$34,0))/100*J$29),"") ->  | O13: Row containing years label of macroeconomic developments table | P13: 60
B14: Net nationally financed primary expenditure (before DRM) | C14: bn NAC | D14: =IF(ISNUMBER(D$6),IF(AND(D$6>=MTP_BaseYear,D$6<=OutturnThrough),'Step 2 - Update outturn data'!E12,INDEX($D$65:$J$65,MATCH(D$6,$D$34:$J$34,0))/100*D$29),"") -> 96.64254 | E14: =IF(ISNUMBER(E$6),IF(AND(E$6>=MTP_BaseYear,E$6<=OutturnThrough),'Step 2 - Update outturn data'!F12,INDEX($D$65:$J$65,MATCH(E$6,$D$34:$J$34,0))/100*E$29),"") -> 98.51742 | F14: =IF(ISNUMBER(F$6),IF(AND(F$6>=MTP_BaseYear,F$6<=OutturnThrough),'Step 2 - Update outturn data'!G12,INDEX($D$65:$J$65,MATCH(F$6,$D$34:$J$34,0))/100*F$29),"") -> 102.40949 | G14: =IF(ISNUMBER(G$6),IF(AND(G$6>=MTP_BaseYear,G$6<=OutturnThrough),'Step 2 - Update outturn data'!H12,INDEX($D$65:$J$65,MATCH(G$6,$D$34:$J$34,0))/100*G$29),"") -> 109.7325988 | H14: =IF(ISNUMBER(H$6),IF(AND(H$6>=MTP_BaseYear,H$6<=OutturnThrough),'Step 2 - Update outturn data'!I12,INDEX($D$65:$J$65,MATCH(H$6,$D$34:$J$34,0))/100*H$29),"") ->  | I14: =IF(ISNUMBER(I$6),IF(AND(I$6>=MTP_BaseYear,I$6<=OutturnThrough),'Step 2 - Update outturn data'!#REF!,INDEX($D$65:$J$65,MATCH(I$6,$D$34:$J$34,0))/100*I$29),"") ->  | J14: =IF(ISNUMBER(J$6),IF(AND(J$6>=MTP_BaseYear,J$6<=OutturnThrough),'Step 2 - Update outturn data'!J12,INDEX($D$65:$J$65,MATCH(J$6,$D$34:$J$34,0))/100*J$29),"") -> 
B15: Discretionary revenue measures (excl. one-off revenue, incremental impact) | C15: bn NAC | D15: =IF(ISNUMBER(D$6),IF(AND(D$6>=MTP_BaseYear,D$6<=OutturnThrough),'Step 2 - Update outturn data'!E13,(INDEX($D$45:$J$45,MATCH(D$6,$D$34:$J$34,0))-INDEX($D$46:$J$46,MATCH(D$6,$D$34:$J$34,0)))/100*D$29),"") -> 0 | E15: =IF(ISNUMBER(E$6),IF(AND(E$6>=MTP_BaseYear,E$6<=OutturnThrough),'Step 2 - Update outturn data'!F13,(INDEX($D$45:$J$45,MATCH(E$6,$D$34:$J$34,0))-INDEX($D$46:$J$46,MATCH(E$6,$D$34:$J$34,0)))/100*E$29),"") -> 2 | F15: =IF(ISNUMBER(F$6),IF(AND(F$6>=MTP_BaseYear,F$6<=OutturnThrough),'Step 2 - Update outturn data'!G13,(INDEX($D$45:$J$45,MATCH(F$6,$D$34:$J$34,0))-INDEX($D$46:$J$46,MATCH(F$6,$D$34:$J$34,0)))/100*F$29),"") -> 1.1 | G15: =IF(ISNUMBER(G$6),IF(AND(G$6>=MTP_BaseYear,G$6<=OutturnThrough),'Step 2 - Update outturn data'!H13,(INDEX($D$45:$J$45,MATCH(G$6,$D$34:$J$34,0))-INDEX($D$46:$J$46,MATCH(G$6,$D$34:$J$34,0)))/100*G$29),"") -> -0.5225361848 | H15: =IF(ISNUMBER(H$6),IF(AND(H$6>=MTP_BaseYear,H$6<=OutturnThrough),'Step 2 - Update outturn data'!I13,(INDEX($D$45:$J$45,MATCH(H$6,$D$34:$J$34,0))-INDEX($D$46:$J$46,MATCH(H$6,$D$34:$J$34,0)))/100*H$29),"") ->  | I15: =IF(ISNUMBER(I$6),IF(AND(I$6>=MTP_BaseYear,I$6<=OutturnThrough),'Step 2 - Update outturn data'!#REF!,(INDEX($D$45:$J$45,MATCH(I$6,$D$34:$J$34,0))-INDEX($D$46:$J$46,MATCH(I$6,$D$34:$J$34,0)))/100*I$29),"") ->  | J15: =IF(ISNUMBER(J$6),IF(AND(J$6>=MTP_BaseYear,J$6<=OutturnThrough),'Step 2 - Update outturn data'!J13,(INDEX($D$45:$J$45,MATCH(J$6,$D$34:$J$34,0))-INDEX($D$46:$J$46,MATCH(J$6,$D$34:$J$34,0)))/100*J$29),"") ->  | O15: Note: Total defence spending should be number 45, "defence, of which investment" should be 46. Macro automatically detects in last year of imported plan.
B16: Defence expenditure | C16: bn NAC | D16: =IF(ISNUMBER(D$6),IF(AND(D$6>=MTP_BaseYear,D$6<=OutturnThrough),'Step 2 - Update outturn data'!E14,INDEX($D$87:$J$87,MATCH(D$6,$D$34:$J$34,0))/100*D$29),"") -> 5.2 | E16: =IF(ISNUMBER(E$6),IF(AND(E$6>=MTP_BaseYear,E$6<=OutturnThrough),'Step 2 - Update outturn data'!F14,INDEX($D$87:$J$87,MATCH(E$6,$D$34:$J$34,0))/100*E$29),"") -> 5.288 | F16: =IF(ISNUMBER(F$6),IF(AND(F$6>=MTP_BaseYear,F$6<=OutturnThrough),'Step 2 - Update outturn data'!G14,INDEX($D$87:$J$87,MATCH(F$6,$D$34:$J$34,0))/100*F$29),"") -> 5.986 | G16: =IF(ISNUMBER(G$6),IF(AND(G$6>=MTP_BaseYear,G$6<=OutturnThrough),'Step 2 - Update outturn data'!H14,INDEX($D$87:$J$87,MATCH(G$6,$D$34:$J$34,0))/100*G$29),"") -> 6.792970402 | H16: =IF(ISNUMBER(H$6),IF(AND(H$6>=MTP_BaseYear,H$6<=OutturnThrough),'Step 2 - Update outturn data'!I14,INDEX($D$87:$J$87,MATCH(H$6,$D$34:$J$34,0))/100*H$29),"") ->  | I16: =IF(ISNUMBER(I$6),IF(AND(I$6>=MTP_BaseYear,I$6<=OutturnThrough),'Step 2 - Update outturn data'!#REF!,INDEX($D$87:$J$87,MATCH(I$6,$D$34:$J$34,0))/100*I$29),"") ->  | J16: =IF(ISNUMBER(J$6),IF(AND(J$6>=MTP_BaseYear,J$6<=OutturnThrough),'Step 2 - Update outturn data'!J14,INDEX($D$87:$J$87,MATCH(J$6,$D$34:$J$34,0))/100*J$29),"") -> 
B17: Net expenditure growth (annual) | C17: growth rate (%) | D17: =IF(ISNUMBER(D$6),IF(AND(D$6>=MTP_BaseYear,D$6<=OutturnThrough),'Step 2 - Update outturn data'!E15,INDEX($D$67:$J$67,MATCH(D$6,$D$34:$J$34,0))),"") ->  | E17: =IF(ISNUMBER(E$6),IF(AND(E$6>=MTP_BaseYear,E$6<=OutturnThrough),'Step 2 - Update outturn data'!F15,INDEX($D$67:$J$67,MATCH(E$6,$D$34:$J$34,0))),"") -> -0.1294667959 | F17: =IF(ISNUMBER(F$6),IF(AND(F$6>=MTP_BaseYear,F$6<=OutturnThrough),'Step 2 - Update outturn data'!G15,INDEX($D$67:$J$67,MATCH(F$6,$D$34:$J$34,0))),"") -> 2.834087616 | G17: =IF(ISNUMBER(G$6),IF(AND(G$6>=MTP_BaseYear,G$6<=OutturnThrough),'Step 2 - Update outturn data'!H15,INDEX($D$67:$J$67,MATCH(G$6,$D$34:$J$34,0))),"") -> 7.5 | H17: =IF(ISNUMBER(H$6),IF(AND(H$6>=MTP_BaseYear,H$6<=OutturnThrough),'Step 2 - Update outturn data'!I15,INDEX($D$67:$J$67,MATCH(H$6,$D$34:$J$34,0))),"") ->  | I17: =IF(ISNUMBER(I$6),IF(AND(I$6>=MTP_BaseYear,I$6<=OutturnThrough),'Step 2 - Update outturn data'!#REF!,INDEX($D$67:$J$67,MATCH(I$6,$D$34:$J$34,0))),"") ->  | J17: =IF(ISNUMBER(J$6),IF(AND(J$6>=MTP_BaseYear,J$6<=OutturnThrough),'Step 2 - Update outturn data'!J15,INDEX($D$67:$J$67,MATCH(J$6,$D$34:$J$34,0))),"") -> 
B18: Net expenditure growth (cumulative) | C18: growth rate (%) | D18: =IF(ISNUMBER(D$6),IF(D$6<=MTP_BaseYear,"",IF(ISNUMBER(C18),((1+C18/100)*(1+D17/100)-1)*100,D17)),"") ->  | E18: =IF(ISNUMBER(E$6),IF(E$6<=MTP_BaseYear,"",IF(ISNUMBER(D18),((1+D18/100)*(1+E17/100)-1)*100,E17)),"") -> -0.1294667959 | F18: =IF(ISNUMBER(F$6),IF(F$6<=MTP_BaseYear,"",IF(ISNUMBER(E18),((1+E18/100)*(1+F17/100)-1)*100,F17)),"") -> 2.700951618 | G18: =IF(ISNUMBER(G$6),IF(G$6<=MTP_BaseYear,"",IF(ISNUMBER(F18),((1+F18/100)*(1+G17/100)-1)*100,G17)),"") -> 10.40352299 | H18: =IF(ISNUMBER(H$6),IF(H$6<=MTP_BaseYear,"",IF(ISNUMBER(G18),((1+G18/100)*(1+H17/100)-1)*100,H17)),"") ->  | I18: =IF(ISNUMBER(I$6),IF(I$6<=MTP_YearT,"",IF(ISNUMBER(H18),((1+H18/100)*(1+I17/100)-1)*100,I17)),"") -> 
B19: Net lending/borrowing | C19: % GDP | D19: =IF(ISNUMBER(D$6),IF(AND(D$6>=MTP_BaseYear,D$6<=OutturnThrough),'Step 2 - Update outturn data'!E17,INDEX($D$69:$J$69,MATCH(D$6,$D$34:$J$34,0))),"") -> -1.429994365 | E19: =IF(ISNUMBER(E$6),IF(AND(E$6>=MTP_BaseYear,E$6<=OutturnThrough),'Step 2 - Update outturn data'!F17,INDEX($D$69:$J$69,MATCH(E$6,$D$34:$J$34,0))),"") -> 1.347070154 | F19: =IF(ISNUMBER(F$6),IF(AND(F$6>=MTP_BaseYear,F$6<=OutturnThrough),'Step 2 - Update outturn data'!G17,INDEX($D$69:$J$69,MATCH(F$6,$D$34:$J$34,0))),"") -> 1.727375111 | G19: =IF(ISNUMBER(G$6),IF(AND(G$6>=MTP_BaseYear,G$6<=OutturnThrough),'Step 2 - Update outturn data'!H17,INDEX($D$69:$J$69,MATCH(G$6,$D$34:$J$34,0))),"") -> 0.2 | H19: =IF(ISNUMBER(H$6),IF(AND(H$6>=MTP_BaseYear,H$6<=OutturnThrough),'Step 2 - Update outturn data'!I17,INDEX($D$69:$J$69,MATCH(H$6,$D$34:$J$34,0))),"") ->  | I19: =IF(ISNUMBER(I$6),IF(AND(I$6>=MTP_BaseYear,I$6<=OutturnThrough),'Step 2 - Update outturn data'!#REF!,INDEX($D$69:$J$69,MATCH(I$6,$D$34:$J$34,0))),"") ->  | J19: =IF(ISNUMBER(J$6),IF(AND(J$6>=MTP_BaseYear,J$6<=OutturnThrough),'Step 2 - Update outturn data'!J17,INDEX($D$69:$J$69,MATCH(J$6,$D$34:$J$34,0))),"") -> 
B20: Structural balance | C20: % GDP | D20: =IF(ISNUMBER(D$6),IF(AND(D$6>=MTP_BaseYear,D$6<=OutturnThrough),'Step 2 - Update outturn data'!E18,INDEX($D$72:$J$72,MATCH(D$6,$D$34:$J$34,0))),"") -> -1.84205 | E20: =IF(ISNUMBER(E$6),IF(AND(E$6>=MTP_BaseYear,E$6<=OutturnThrough),'Step 2 - Update outturn data'!F18,INDEX($D$72:$J$72,MATCH(E$6,$D$34:$J$34,0))),"") -> 0.34607 | F20: =IF(ISNUMBER(F$6),IF(AND(F$6>=MTP_BaseYear,F$6<=OutturnThrough),'Step 2 - Update outturn data'!G18,INDEX($D$72:$J$72,MATCH(F$6,$D$34:$J$34,0))),"") -> 0.48634 | G20: =IF(ISNUMBER(G$6),IF(AND(G$6>=MTP_BaseYear,G$6<=OutturnThrough),'Step 2 - Update outturn data'!H18,INDEX($D$72:$J$72,MATCH(G$6,$D$34:$J$34,0))),"") -> -1.2 | H20: =IF(ISNUMBER(H$6),IF(AND(H$6>=MTP_BaseYear,H$6<=OutturnThrough),'Step 2 - Update outturn data'!I18,INDEX($D$72:$J$72,MATCH(H$6,$D$34:$J$34,0))),"") ->  | I20: =IF(ISNUMBER(I$6),IF(AND(I$6>=MTP_BaseYear,I$6<=OutturnThrough),'Step 2 - Update outturn data'!#REF!,INDEX($D$72:$J$72,MATCH(I$6,$D$34:$J$34,0))),"") ->  | J20: =IF(ISNUMBER(J$6),IF(AND(J$6>=MTP_BaseYear,J$6<=OutturnThrough),'Step 2 - Update outturn data'!J18,INDEX($D$72:$J$72,MATCH(J$6,$D$34:$J$34,0))),"") -> 
B21: Structural primary balance | C21: % GDP | D21: =IF(ISNUMBER(D$6),IF(AND(D$6>=MTP_BaseYear,D$6<=OutturnThrough),'Step 2 - Update outturn data'!E19,INDEX($D$73:$J$73,MATCH(D$6,$D$34:$J$34,0))),"") -> 1.54579 | E21: =IF(ISNUMBER(E$6),IF(AND(E$6>=MTP_BaseYear,E$6<=OutturnThrough),'Step 2 - Update outturn data'!F19,INDEX($D$73:$J$73,MATCH(E$6,$D$34:$J$34,0))),"") -> 3.82041 | F21: =IF(ISNUMBER(F$6),IF(AND(F$6>=MTP_BaseYear,F$6<=OutturnThrough),'Step 2 - Update outturn data'!G19,INDEX($D$73:$J$73,MATCH(F$6,$D$34:$J$34,0))),"") -> 3.64353 | G21: =IF(ISNUMBER(G$6),IF(AND(G$6>=MTP_BaseYear,G$6<=OutturnThrough),'Step 2 - Update outturn data'!H19,INDEX($D$73:$J$73,MATCH(G$6,$D$34:$J$34,0))),"") -> 1.8 | H21: =IF(ISNUMBER(H$6),IF(AND(H$6>=MTP_BaseYear,H$6<=OutturnThrough),'Step 2 - Update outturn data'!I19,INDEX($D$73:$J$73,MATCH(H$6,$D$34:$J$34,0))),"") ->  | I21: =IF(ISNUMBER(I$6),IF(AND(I$6>=MTP_BaseYear,I$6<=OutturnThrough),'Step 2 - Update outturn data'!#REF!,INDEX($D$73:$J$73,MATCH(I$6,$D$34:$J$34,0))),"") ->  | J21: =IF(ISNUMBER(J$6),IF(AND(J$6>=MTP_BaseYear,J$6<=OutturnThrough),'Step 2 - Update outturn data'!J19,INDEX($D$73:$J$73,MATCH(J$6,$D$34:$J$34,0))),"") -> 
B22: Gross debt | C22: % GDP | D22: =IF(ISNUMBER(D$6),IF(AND(D$6>=MTP_BaseYear,D$6<=OutturnThrough),'Step 2 - Update outturn data'!E20,INDEX($D$75:$J$75,MATCH(D$6,$D$34:$J$34,0))),"") -> 164.2780019 | E22: =IF(ISNUMBER(E$6),IF(AND(E$6>=MTP_BaseYear,E$6<=OutturnThrough),'Step 2 - Update outturn data'!F20,INDEX($D$75:$J$75,MATCH(E$6,$D$34:$J$34,0))),"") -> 154.164977 | F22: =IF(ISNUMBER(F$6),IF(AND(F$6>=MTP_BaseYear,F$6<=OutturnThrough),'Step 2 - Update outturn data'!G20,INDEX($D$75:$J$75,MATCH(F$6,$D$34:$J$34,0))),"") -> 146.1323105 | G22: =IF(ISNUMBER(G$6),IF(AND(G$6>=MTP_BaseYear,G$6<=OutturnThrough),'Step 2 - Update outturn data'!H20,INDEX($D$75:$J$75,MATCH(G$6,$D$34:$J$34,0))),"") -> 136.8 | H22: =IF(ISNUMBER(H$6),IF(AND(H$6>=MTP_BaseYear,H$6<=OutturnThrough),'Step 2 - Update outturn data'!I20,INDEX($D$75:$J$75,MATCH(H$6,$D$34:$J$34,0))),"") ->  | I22: =IF(ISNUMBER(I$6),IF(AND(I$6>=MTP_BaseYear,I$6<=OutturnThrough),'Step 2 - Update outturn data'!#REF!,INDEX($D$75:$J$75,MATCH(I$6,$D$34:$J$34,0))),"") ->  | J22: =IF(ISNUMBER(J$6),IF(AND(J$6>=MTP_BaseYear,J$6<=OutturnThrough),'Step 2 - Update outturn data'!J20,INDEX($D$75:$J$75,MATCH(J$6,$D$34:$J$34,0))),"") -> 
B23: Change in gross debt | C23: % GDP | D23: =IF(ISNUMBER(D$6),IF(AND(D$6>=MTP_BaseYear,D$6<=OutturnThrough),'Step 2 - Update outturn data'!E21,INDEX($D$76:$J$76,MATCH(D$6,$D$34:$J$34,0))),"") -> 0.491797004 | E23: =IF(ISNUMBER(E$6),IF(AND(E$6>=MTP_BaseYear,E$6<=OutturnThrough),'Step 2 - Update outturn data'!F21,INDEX($D$76:$J$76,MATCH(E$6,$D$34:$J$34,0))),"") -> -1.751317924 | F23: =IF(ISNUMBER(F$6),IF(AND(F$6>=MTP_BaseYear,F$6<=OutturnThrough),'Step 2 - Update outturn data'!G21,INDEX($D$76:$J$76,MATCH(F$6,$D$34:$J$34,0))),"") -> -0.821006492 | G23: =IF(ISNUMBER(G$6),IF(AND(G$6>=MTP_BaseYear,G$6<=OutturnThrough),'Step 2 - Update outturn data'!H21,INDEX($D$76:$J$76,MATCH(G$6,$D$34:$J$34,0))),"") -> -9.3 | H23: =IF(ISNUMBER(H$6),IF(AND(H$6>=MTP_BaseYear,H$6<=OutturnThrough),'Step 2 - Update outturn data'!I21,INDEX($D$76:$J$76,MATCH(H$6,$D$34:$J$34,0))),"") ->  | I23: =IF(ISNUMBER(I$6),IF(AND(I$6>=MTP_BaseYear,I$6<=OutturnThrough),'Step 2 - Update outturn data'!#REF!,INDEX($D$76:$J$76,MATCH(I$6,$D$34:$J$34,0))),"") ->  | J23: =IF(ISNUMBER(J$6),IF(AND(J$6>=MTP_BaseYear,J$6<=OutturnThrough),'Step 2 - Update outturn data'!J21,INDEX($D$76:$J$76,MATCH(J$6,$D$34:$J$34,0))),"") -> 
B24: Real GDP (rate of change, %) | C24: rate of change, % | D24: =IF(ISNUMBER(D$6),IF(AND(D$6>=MTP_BaseYear,D$6<=OutturnThrough),'Step 2 - Update outturn data'!E22,INDEX($D$94:$J$94,MATCH(D$6,$D$92:$J$92,0))),"") -> 2.135891186 | E24: =IF(ISNUMBER(E$6),IF(AND(E$6>=MTP_BaseYear,E$6<=OutturnThrough),'Step 2 - Update outturn data'!F22,INDEX($D$94:$J$94,MATCH(E$6,$D$92:$J$92,0))),"") -> 2.086577405 | F24: =IF(ISNUMBER(F$6),IF(AND(F$6>=MTP_BaseYear,F$6<=OutturnThrough),'Step 2 - Update outturn data'!G22,INDEX($D$94:$J$94,MATCH(F$6,$D$92:$J$92,0))),"") -> 2.073065247 | G24: =IF(ISNUMBER(G$6),IF(AND(G$6>=MTP_BaseYear,G$6<=OutturnThrough),'Step 2 - Update outturn data'!H22,INDEX($D$94:$J$94,MATCH(G$6,$D$92:$J$92,0))),"") -> 2 | H24: =IF(ISNUMBER(H$6),IF(AND(H$6>=MTP_BaseYear,H$6<=OutturnThrough),'Step 2 - Update outturn data'!I22,INDEX($D$94:$J$94,MATCH(H$6,$D$92:$J$92,0))),"") ->  | I24: =IF(ISNUMBER(I$6),IF(AND(I$6>=MTP_BaseYear,I$6<=OutturnThrough),'Step 2 - Update outturn data'!#REF!,INDEX($D$94:$J$94,MATCH(I$6,$D$92:$J$92,0))),"") ->  | J24: =IF(ISNUMBER(J$6),IF(AND(J$6>=MTP_BaseYear,J$6<=OutturnThrough),'Step 2 - Update outturn data'!J22,INDEX($D$94:$J$94,MATCH(J$6,$D$92:$J$92,0))),"") -> 
B25: GDP deflator (rate of change, %) | C25: rate of change, % | D25: =IF(ISNUMBER(D$6),IF(AND(D$6>=MTP_BaseYear,D$6<=OutturnThrough),'Step 2 - Update outturn data'!E23,INDEX($D$95:$J$95,MATCH(D$6,$D$92:$J$92,0))),"") -> 6.269691198 | E25: =IF(ISNUMBER(E$6),IF(AND(E$6>=MTP_BaseYear,E$6<=OutturnThrough),'Step 2 - Update outturn data'!F23,INDEX($D$95:$J$95,MATCH(E$6,$D$92:$J$92,0))),"") -> 3.209402124 | F25: =IF(ISNUMBER(F$6),IF(AND(F$6>=MTP_BaseYear,F$6<=OutturnThrough),'Step 2 - Update outturn data'!G23,INDEX($D$95:$J$95,MATCH(F$6,$D$92:$J$92,0))),"") -> 2.776819129 | G25: =IF(ISNUMBER(G$6),IF(AND(G$6>=MTP_BaseYear,G$6<=OutturnThrough),'Step 2 - Update outturn data'!H23,INDEX($D$95:$J$95,MATCH(G$6,$D$92:$J$92,0))),"") -> 3.2 | H25: =IF(ISNUMBER(H$6),IF(AND(H$6>=MTP_BaseYear,H$6<=OutturnThrough),'Step 2 - Update outturn data'!I23,INDEX($D$95:$J$95,MATCH(H$6,$D$92:$J$92,0))),"") ->  | I25: =IF(ISNUMBER(I$6),IF(AND(I$6>=MTP_BaseYear,I$6<=OutturnThrough),'Step 2 - Update outturn data'!#REF!,INDEX($D$95:$J$95,MATCH(I$6,$D$92:$J$92,0))),"") ->  | J25: =IF(ISNUMBER(J$6),IF(AND(J$6>=MTP_BaseYear,J$6<=OutturnThrough),'Step 2 - Update outturn data'!J23,INDEX($D$95:$J$95,MATCH(J$6,$D$92:$J$92,0))),"") -> 
B26: Nominal GDP (rate of change, %) | C26: rate of change, % | D26: =IF(ISNUMBER(D$6),IF(AND(D$6>=MTP_BaseYear,D$6<=OutturnThrough),'Step 2 - Update outturn data'!E24,INDEX($D$96:$J$96,MATCH(D$6,$D$92:$J$92,0))),"") -> 8.539496166 | E26: =IF(ISNUMBER(E$6),IF(AND(E$6>=MTP_BaseYear,E$6<=OutturnThrough),'Step 2 - Update outturn data'!F24,INDEX($D$96:$J$96,MATCH(E$6,$D$92:$J$92,0))),"") -> 5.362946189 | F26: =IF(ISNUMBER(F$6),IF(AND(F$6>=MTP_BaseYear,F$6<=OutturnThrough),'Step 2 - Update outturn data'!G24,INDEX($D$96:$J$96,MATCH(F$6,$D$92:$J$92,0))),"") -> 4.907449649 | G26: =IF(ISNUMBER(G$6),IF(AND(G$6>=MTP_BaseYear,G$6<=OutturnThrough),'Step 2 - Update outturn data'!H24,INDEX($D$96:$J$96,MATCH(G$6,$D$92:$J$92,0))),"") -> 5.2 | H26: =IF(ISNUMBER(H$6),IF(AND(H$6>=MTP_BaseYear,H$6<=OutturnThrough),'Step 2 - Update outturn data'!I24,INDEX($D$96:$J$96,MATCH(H$6,$D$92:$J$92,0))),"") ->  | I26: =IF(ISNUMBER(I$6),IF(AND(I$6>=MTP_BaseYear,I$6<=OutturnThrough),'Step 2 - Update outturn data'!#REF!,INDEX($D$96:$J$96,MATCH(I$6,$D$92:$J$92,0))),"") ->  | J26: =IF(ISNUMBER(J$6),IF(AND(J$6>=MTP_BaseYear,J$6<=OutturnThrough),'Step 2 - Update outturn data'!J24,INDEX($D$96:$J$96,MATCH(J$6,$D$92:$J$92,0))),"") -> 
B27: Potential growth (rate of change, %) | C27: rate of change, % | D27: =IF(ISNUMBER(D$6),IF(AND(D$6>=MTP_BaseYear,D$6<=OutturnThrough),'Step 2 - Update outturn data'!E25,INDEX($D$125:$J$125,MATCH(D$6,$D$92:$J$92,0))),"") -> 0.4121477735 | E27: =IF(ISNUMBER(E$6),IF(AND(E$6>=MTP_BaseYear,E$6<=OutturnThrough),'Step 2 - Update outturn data'!F25,INDEX($D$125:$J$125,MATCH(E$6,$D$92:$J$92,0))),"") -> 0.8984012257 | F27: =IF(ISNUMBER(F$6),IF(AND(F$6>=MTP_BaseYear,F$6<=OutturnThrough),'Step 2 - Update outturn data'!G25,INDEX($D$125:$J$125,MATCH(F$6,$D$92:$J$92,0))),"") -> 1.605297922 | G27: =IF(ISNUMBER(G$6),IF(AND(G$6>=MTP_BaseYear,G$6<=OutturnThrough),'Step 2 - Update outturn data'!H25,INDEX($D$125:$J$125,MATCH(G$6,$D$92:$J$92,0))),"") -> 1.9 | H27: =IF(ISNUMBER(H$6),IF(AND(H$6>=MTP_BaseYear,H$6<=OutturnThrough),'Step 2 - Update outturn data'!I25,INDEX($D$125:$J$125,MATCH(H$6,$D$92:$J$92,0))),"") ->  | I27: =IF(ISNUMBER(I$6),IF(AND(I$6>=MTP_BaseYear,I$6<=OutturnThrough),'Step 2 - Update outturn data'!#REF!,INDEX($D$125:$J$125,MATCH(I$6,$D$92:$J$92,0))),"") ->  | J27: =IF(ISNUMBER(J$6),IF(AND(J$6>=MTP_BaseYear,J$6<=OutturnThrough),'Step 2 - Update outturn data'!J25,INDEX($D$125:$J$125,MATCH(J$6,$D$92:$J$92,0))),"") -> 
B28: Output gap (% pot. GDP) | C28: % pot. GDP | D28: =IF(ISNUMBER(D$6),IF(AND(D$6>=MTP_BaseYear,D$6<=OutturnThrough),'Step 2 - Update outturn data'!E26,INDEX($D$131:$J$131,MATCH(D$6,$D$92:$J$92,0))),"") -> 1.042873034 | E28: =IF(ISNUMBER(E$6),IF(AND(E$6>=MTP_BaseYear,E$6<=OutturnThrough),'Step 2 - Update outturn data'!F26,INDEX($D$131:$J$131,MATCH(E$6,$D$92:$J$92,0))),"") -> 2.232747373 | F28: =IF(ISNUMBER(F$6),IF(AND(F$6>=MTP_BaseYear,F$6<=OutturnThrough),'Step 2 - Update outturn data'!G26,INDEX($D$131:$J$131,MATCH(F$6,$D$92:$J$92,0))),"") -> 2.70340737 | G28: =IF(ISNUMBER(G$6),IF(AND(G$6>=MTP_BaseYear,G$6<=OutturnThrough),'Step 2 - Update outturn data'!H26,INDEX($D$131:$J$131,MATCH(G$6,$D$92:$J$92,0))),"") -> 2.7 | H28: =IF(ISNUMBER(H$6),IF(AND(H$6>=MTP_BaseYear,H$6<=OutturnThrough),'Step 2 - Update outturn data'!I26,INDEX($D$131:$J$131,MATCH(H$6,$D$92:$J$92,0))),"") ->  | I28: =IF(ISNUMBER(I$6),IF(AND(I$6>=MTP_BaseYear,I$6<=OutturnThrough),'Step 2 - Update outturn data'!#REF!,INDEX($D$131:$J$131,MATCH(I$6,$D$92:$J$92,0))),"") ->  | J28: =IF(ISNUMBER(J$6),IF(AND(J$6>=MTP_BaseYear,J$6<=OutturnThrough),'Step 2 - Update outturn data'!J26,INDEX($D$131:$J$131,MATCH(J$6,$D$92:$J$92,0))),"") -> 
B29: Nominal GDP (level) | C29: level, bn NAC | D29: =IF(ISNUMBER(D$6),IF(AND(D$6>=MTP_BaseYear,D$6<=OutturnThrough),'Step 2 - Update outturn data'!E27,C29*(1+INDEX($D$96:$J$96,MATCH(D$6,$D$92:$J$92,0))/100)),"") -> 224.6862 | E29: =IF(ISNUMBER(E$6),IF(AND(E$6>=MTP_BaseYear,E$6<=OutturnThrough),'Step 2 - Update outturn data'!F27,D29*(1+INDEX($D$96:$J$96,MATCH(E$6,$D$92:$J$92,0))/100)),"") -> 236.736 | F29: =IF(ISNUMBER(F$6),IF(AND(F$6>=MTP_BaseYear,F$6<=OutturnThrough),'Step 2 - Update outturn data'!G27,E29*(1+INDEX($D$96:$J$96,MATCH(F$6,$D$92:$J$92,0))/100)),"") -> 248.3537 | G29: =IF(ISNUMBER(G$6),IF(AND(G$6>=MTP_BaseYear,G$6<=OutturnThrough),'Step 2 - Update outturn data'!H27,F29*(1+INDEX($D$96:$J$96,MATCH(G$6,$D$92:$J$92,0))/100)),"") -> 261.2680924 | H29: =IF(ISNUMBER(H$6),IF(AND(H$6>=MTP_BaseYear,H$6<=OutturnThrough),'Step 2 - Update outturn data'!I27,G29*(1+INDEX($D$96:$J$96,MATCH(H$6,$D$92:$J$92,0))/100)),"") ->  | I29: =IF(ISNUMBER(I$6),IF(AND(I$6>=MTP_BaseYear,I$6<=OutturnThrough),'Step 2 - Update outturn data'!#REF!,H29*(1+INDEX($D$96:$J$96,MATCH(I$6,$D$92:$J$92,0))/100)),"") -> 
A33: Budgetary developments
D34: =P9 -> 2023 | E34: =_xlfn.SEQUENCE(1, MTP_EndYear-P9+1, P9) -> 2023 | F34: 2024 | G34: 2025 | H34: 2026 | I34: 2027 | J34: 2028
B35: Revenue | C35: ESA Code | D35: bn NAC | E35: =IF(ISNUMBER(_xlfn.ANCHORARRAY(E$34)),"% of GDP","") -> % of GDP | F35: % of GDP | G35: % of GDP | H35: % of GDP | I35: % of GDP | J35: % of GDP
A36: 1 | B36: Taxes on production and imports | C36: D.2 | D36: 38.4 | E36: 17.1 | F36: 17 | G36: 17.2 | H36: 17.2
A37: 2 | B37: Current taxes on income, wealth, etc. | C37: D.5 | D37: 22.8 | E37: 10.1 | F37: 11.2 | G37: 11.1 | H37: 10.8
A38: 3 | B38: Social contributions | C38: D.61 | D38: 29.2 | E38: 13 | F38: 13.3 | G38: 13.1 | H38: 12.8
A39: 4 | B39: Other current revenue | C39: (P.11+P.12+P.131)+D.39+D.4+D.7 | D39: 11.9 | E39: 5.3 | F39: 5.5 | G39: 5.3 | H39: 5.3
A40: 5 | B40: Capital taxes | C40: D.91 | D40: 0.3 | E40: 0.1 | F40: 0.1 | G40: 0.1 | H40: 0.1
A41: 6 | B41: Other capital revenue | C41: D.92+D.99 | D41: 5.4 | E41: 2.4 | F41: 2.4 | G41: 3.3 | H41: 4.2
A42: 7 | B42: Total revenue (=1+2+3+4+5+6) | C42: TR | D42: 108 | E42: 48.1 | F42: 49.4 | G42: 50 | H42: 50.4
A43: 8 | B43: Of which: Transfers from the EU (accrued revenue, not cash) | C43: D.7EU+D.9EU | D43: 5.7 | E43: 2.5 | F43: 2.5 | G43: 3.4 | H43: 4.8
A44: 9 | B44: Total revenue other than transfers from the EU (=7-8) | D44: 102.4 | E44: 45.6 | F44: 47 | G44: 46.6 | H44: 45.6
A45: 10 | B45: p.m. Revenue measures (increments, excluding EU funded measures) | D45: -4 | E45: -1.8 | F45: 0.8 | G45: 0.4 | H45: -0.2
A46: 11 | B46: p.m. One-off measures included in the projections (levels, excluding EU funded measures) | D46: 0 | E46: 0 | F46: 0 | G46: 0 | H46: 0
B47: Expenditure | C47: ESA Code | D47: bn NAC | E47: =IF(ISNUMBER(_xlfn.ANCHORARRAY(E$34)),"% of GDP","") -> % of GDP | F47: % of GDP | G47: % of GDP | H47: % of GDP | I47: % of GDP | J47: % of GDP
A48: 12 | B48: Compensation of employees | C48: D.1 | D48: 23.5 | E48: 10.5 | F48: 10.4 | G48: 10.2 | H48: 10.1
A49: 13 | B49: Intermediate consumption | C49: P.2 | D49: 12.4 | E49: 5.5 | F49: 5.2 | G49: 5.7 | H49: 5.9
A50: 14 | B50: Interest expenditure | C50: D.41 | D50: 7.6 | E50: 3.4 | F50: 3.5 | G50: 3.2 | H50: 3
A51: 15 | B51: Social benefits other than social transfers in kind | C51: D.62 | D51: 38.8 | E51: 17.3 | F51: 16.7 | G51: 16.4 | H51: 16.8
A52: 16 | B52: Social transfers in kind via market producers | C52: D.632 | D52: 7.1 | E52: 3.2 | F52: 2.8 | G52: 2.8 | H52: 2.5
A53: 17 | B53: Subsidies | C53: D.3 | D53: 4.5 | E53: 2 | F53: 1.4 | G53: 1.3 | H53: 1.2
A54: 18 | B54: Other current expenditure | C54: D.29+(D.4-D.41)+D.5+D.7+D.8 | D54: 3.1 | E54: 1.4 | F54: 1.5 | G54: 1.5 | H54: 1.9
A55: 19 | B55: Gross fixed capital formation | C55: P.51 | D55: 9.1 | E55: 4 | F55: 4.3 | G55: 4.8 | H55: 6.6
A56: 20 | B56: Of which: nationally financed public investment | D56: 5.6 | E56: 2.5 | F56: 2.8 | G56: 2.9 | H56: 2.8
A57: 21 | B57: Capital transfers | C57: D.9 | D57: 5.3 | E57: 2.3 | F57: 2.3 | G57: 2.5 | H57: 2
A58: 22 | B58: Other capital expenditure | C58: P.52+P.53+NP | D58: -0.1 | E58: 0 | F58: 0 | G58: 0 | H58: 0
A59: 23 | B59: Total expenditure (=12+13+14+15+16+17+18+19+21+22) | C59: TE | D59: 111.3 | E59: 49.5 | F59: 48.1 | G59: 48.3 | H59: 50.2
A60: 24 | B60: Of which: expenditure funded by transfers from the EU (=8) | C60: D.7EU+D.9EU | D60: 5.7 | E60: 2.5 | F60: 2.5 | G60: 3.4 | H60: 4.8
A61: 25 | B61: Nationally financed expenditure (=23-24) | D61: 105.6 | E61: 47 | F61: 45.6 | G61: 44.9 | H61: 45.4
A62: 26 | B62: p.m. National co-financing of programmes funded by transfers from the EU (=8) | D62: 0.7 | E62: 0.3 | F62: 0.3 | G62: 0.3 | H62: 0.5
A63: 27 | B63: p.m. Cyclical component of unemployment benefits | D63: 0.3 | E63: 0.1 | F63: 0.1 | G63: 0 | H63: -0.1
A64: 28 | B64: p.m. One-off expenditure included in the projections (levels, excluding EU funded measures) | D64: 0.3 | E64: 0.1 | F64: 0.2 | G64: 0.2 | H64: 0
A65: 29 | B65: Net nationally financed primary expenditure (before revenue measures) (=25-26-27-28-14) | D65: 96.7 | E65: 43 | F65: 41.6 | G65: 41.3 | H65: 42
B66: Net nationally financed primary expenditure | E66: =IF(ISNUMBER(_xlfn.ANCHORARRAY(E$34)),"growth rate","") -> growth rate | F66: growth rate | G66: growth rate | H66: growth rate | I66: growth rate | J66: growth rate
A67: 30 | B67: Net nationally financed primary expenditure growth | C67: MTP Table 1a, line 1 | F67: -0.1 | G67: 2.9 | H67: 7.5
B68: Balances | D68: bn NAC | E68: =IF(ISNUMBER(_xlfn.ANCHORARRAY(E$34)),"% of GDP","") -> % of GDP | F68: % of GDP | G68: % of GDP | H68: % of GDP | I68: % of GDP | J68: % of GDP
A69: 31 | B69: Net lending/borrowing (=7-23) | C69: B.9 | D69: -3.2 | E69: -1.4 | F69: 1.3 | G69: 1.7 | H69: 0.2
A70: 32 | B70: Primary balance (=31-14) | C70: B.9-D.41p | D70: 4.4 | E70: 2 | F70: 4.8 | G70: 4.9 | H70: 3.2
B71: Cyclical adjustment | E71: =IF(ISNUMBER(_xlfn.ANCHORARRAY(E$34)),"% of GDP","") -> % of GDP | F71: % of GDP | G71: % of GDP | H71: % of GDP | I71: % of GDP | J71: % of GDP
A72: 33 | B72: Structural balance | E72: -1.8 | F72: 0.5 | G72: 0.5 | H72: -1.2
A73: 34 | B73: Structural primary balance | E73: 1.6 | F73: 3.9 | G73: 3.7 | H73: 1.8
B74: Debt | D74: bn NAC | E74: % GDP | F74: % GDP | G74: % GDP
A75: 35 | B75: Gross debt | D75: 369.1 | E75: 164.3 | F75: 154.2 | G75: 146.1 | H75: 136.8
A76: 36 | B76: Change in gross debt | D76: 1.1 | E76: -13.5 | F76: -10.1 | G76: -8 | H76: -9.3
A77: 37 | B77: Contributions to change in gross debt
A78: 38 | B78: Primary balance (=-32) | E78: -2 | F78: -4.8 | G78: -4.9 | H78: -3.2
A79: 39 | B79: Snowball effect | E79: -10.6 | F79: -4.9 | G79: -4.1 | H79: -4.2
A80: 40 | B80: Interest expenditure (=14) | E80: 3.4 | F80: 3.5 | G80: 3.2 | H80: 3
A81: 41 | B81: Growth | E81: -3.4 | F81: -3.3 | G81: -3.1 | H81: -2.7
A82: 42 | B82: Inflation | E82: -10.5 | F82: -5.1 | G82: -4.2 | H82: -4.5
A83: 43 | B83: Stock-flow adjustment (=36-38-39) | E83: -1 | F83: -0.4 | G83: 1 | H83: -1.8
E84: =IF(ISNUMBER(_xlfn.ANCHORARRAY(E$34)),"%","") -> % | F84: % | G84: % | H84: % | I84: % | J84: %
A85: 44 | B85: p.m. Implicit interest rate on debt (=14/debt(t-1)) | E85: 2.1 | F85: 2.2 | G85: 2.1 | H85: 2.2
A87: 45 | B87: Total defence expenditure | C87: COFOG 2 | D87: 5.1 | E87: 2.3 | F87: 2.2 | G87: 2.4 | H87: 2.6
A88: 46 | B88: Of which: Defence investment | C88: COFOG 2, P.51g | D88: 0.6 | E88: 0.3 | F88: 0.3 | G88: 0.6 | H88: 0.8
A91: Macroeconomic developments
B92: GDP deflator | C92: ESA Code | D92: =P9 -> 2023 | E92: =_xlfn.SEQUENCE(1, MTP_EndYear-P9+1, P9) -> 2023 | F92: 2024 | G92: 2025 | H92: 2026 | I92: 2027 | J92: 2028
D93: bn NAC | E93: =IF(ISNUMBER(_xlfn.ANCHORARRAY(E$34)),"growth rate","") -> growth rate | F93: growth rate | G93: growth rate | H93: growth rate | I93: growth rate | J93: growth rate
A94: 1 | B94: Real GDP | C94: B1*g | E94: 2.1 | F94: 2.1 | G94: 2.1 | H94: 2
A95: 2 | B95: GDP deflator | E95: 6.3 | F95: 3.2 | G95: 2.8 | H95: 3.2
A96: 3 | B96: Nominal GDP | C96: B1*g | D96: 224.7 | E96: 8.5 | F96: 5.4 | G96: 4.9 | H96: 5.2
B97: Components of Real GDP | D97: bn NAC | E97: =IF(ISNUMBER(_xlfn.ANCHORARRAY(E$34)),"growth rate","") -> growth rate | F97: growth rate | G97: growth rate | H97: growth rate | I97: growth rate | J97: growth rate
A98: 4 | B98: Private consumption expenditure | C98: P.3 | E98: 2.3 | F98: 2.4 | G98: 2 | H98: 1.5
A99: 5 | B99: Government consumption expenditure | C99: P.3 | E99: 2.8 | F99: -2.6 | G99: 0.3 | H99: 1.1
A100: 6 | B100: Gross fixed capital formation | C100: P.51 | E100: 6.5 | F100: 4.5 | G100: 8.9 | H100: 7.1
A101: 7 | B101: Changes in inventories and net acquisition of valuables (% of GDP) | C101: P.52 + P.53 | E101: -1.3 | F101: 0.6 | G101: -1.5 | H101: -1.2
A102: 8 | B102: Exports of goods and services | C102: P.6 | E102: 2.2 | F102: 1 | G102: 1.7 | H102: 2.9
A103: 9 | B103: Imports of goods and services | C103: P.7 | E103: 0 | F103: 4.8 | G103: -1.3 | H103: 4.4
B104: Contribution to real GDP growth
A105: 10 | B105: Final domestic demand | E105: 3.3 | F105: 1.9 | G105: 3 | H105: 2.6
A106: 11 | B106: Changes in inventories and net acquisition of value | C106: P.52 + P.53 | E106: -1.9 | F106: 1.9 | G106: -2.1 | H106: 0.3
A107: 12 | B107: External balance of goods and services | C107: B.11 | E107: 0.8 | F107: -1.7 | G107: 1.2 | H107: -0.9
B108: Deflators and HICP | E108: =IF(ISNUMBER(_xlfn.ANCHORARRAY(E$34)),"growth rate","") -> growth rate | F108: growth rate | G108: growth rate | H108: growth rate | I108: growth rate | J108: growth rate
A109: 13 | B109: Private consumption deflator | E109: 3.5 | F109: 2.1 | G109: 3.4 | H109: 3.3
A110: 14 | B110: p.m. HICP | E110: 4.2 | F110: 3 | G110: 2.9 | H110: 3.2
A111: 15 | B111: Government consumption deflator | E111: 3.2 | F111: 3.4 | G111: 2.6 | H111: 3
A112: 16 | B112: Investment deflator | E112: 2.9 | F112: 1.9 | G112: 1.4 | H112: 3.2
A113: 17 | B113: Export price deflator (goods and services) | E113: -5.4 | F113: 0.2 | G113: -3.3 | H113: 2.1
A114: 18 | B114: Import price deflator (goods and services) | E114: -10.4 | F114: -1.4 | G114: -1.9 | H114: 2.5
B115: Labour market | C115: ESA code | D115: level | E115: =IF(ISNUMBER(_xlfn.ANCHORARRAY(E$34)),"growth rate","") -> growth rate | F115: growth rate | G115: growth rate | H115: growth rate | I115: growth rate | J115: growth rate
A116: 19 | B116: Domestic employment (1000 persons, national accounts) | D116: 3760 | E116: 2 | F116: 1.5 | G116: 3 | H116: 0.6
A117: 20 | B117: Average annual hours worked per person employed | D117: 1909 | E117: 1.2 | F117: -0.5 | G117: -0.8 | H117: -0.2
A118: 21 | B118: Real GDP per person employed | E118: 0.1 | F118: 0.6 | G118: -0.9 | H118: 1.3
A119: 22 | B119: Real GDP per hour worked | E119: -1.1 | F119: 1.1 | G119: -0.1 | H119: 1.5
A120: 23 | B120: Compensation of employees (bn NAC) | C120: D.1 | D120: 78.6 | E120: 5.4 | F120: 7.3 | G120: 6.6 | H120: 4.4
A121: 24 | B121: Compensation per employee (=23/19) | D121: 20.9 | E121: 3.3 | F121: 5.8 | G121: 3.5 | H121: 3.7
E122: =IF(ISNUMBER(_xlfn.ANCHORARRAY(E$34)),"%","") -> % | F122: % | G122: % | H122: % | I122: % | J122: %
A123: 25 | B123: Unemployment rate (%) | E123: 11.1 | F123: 10.1 | G123: 8.9 | H123: 8.4
B124: Potential GDP and components | E124: =IF(ISNUMBER(_xlfn.ANCHORARRAY(E$34)),"growth rate","") -> growth rate | F124: growth rate | G124: growth rate | H124: growth rate | I124: growth rate | J124: growth rate
A125: 26 | B125: Potential GDP | E125: 0.5 | F125: 1 | G125: 1.5 | H125: 1.9
B126: Contributions to potential growth
A127: 27 | B127: Labour | E127: 0.1 | F127: 0.1 | G127: 0.2 | H127: 0.2
A128: 28 | B128: Capital | E128: 0.1 | F128: 0.1 | G128: 0.2 | H128: 0.3
A129: 29 | B129: Total factor productivity | E129: 0.4 | F129: 0.9 | G129: 1.2 | H129: 1.3
E130: =IF(ISNUMBER(_xlfn.ANCHORARRAY(E$34)),"% pot. GDP","") -> % pot. GDP | F130: % pot. GDP | G130: % pot. GDP | H130: % pot. GDP | I130: % pot. GDP | J130: % pot. GDP
A131: 30 | B131: Output gap | E131: 1 | F131: 2 | G131: 2.6 | H131: 2.7

Sheet Step 4 (IMPL) - View results
B1: =Country&"'s adherence to Regulation (EU) 2024/1263 and associated guidance" -> Greece's adherence to Regulation (EU) 2024/1263 and associated guidance
B3: =IF(AssessmentRound="Implementation of an endorsed MTP","Assessing the implementation of the endorsed Medium-Term Plan","The below is not applicable as the parameters are set to assess a new or revised MTP; Please refer to the Step 5 (MTP) - View results worksheet") -> Assessing the implementation of the endorsed Medium-Term Plan
B4: =CHAR(149)&" This checks whether "&Country&" is adhering to its Council-endorsed medium-term structural-fiscal plan." -> • This checks whether Greece is adhering to its Council-endorsed medium-term structural-fiscal plan.
B5: =CHAR(149)&" "&MTP_Requirement -> • Greece's gross debt was above 60% of GDP in 2023 (T-1), therefore it must adhere to an MTP with a planned net expenditure path that does not exceed the Commission's reference trajectory (or an alternative path that meets all criteria). If the planned net expenditure path exceeds the reference trajectory, Greece must provide sound and data-driven economic arguments explaining the difference.
B6: =CHAR(149)&" "&IF(MTP_Council_Endorsed,"The net expenditure path in "&Country&"'s latest MTP was endorsed by the Council.","The net expenditure path in "&Country&"'s latest MTP is awaiting endorsement by the Council.") -> • The net expenditure path in Greece's latest MTP was endorsed by the Council.
B7: =CHAR(149)&" "& _xlfn.LET( _xlpm.rng, 'Step 1 - Set global parameters'!B13:H13, _xlpm.anyGeneral, COUNTIF(_xlpm.rng,"General")+COUNTIF(_xlpm.rng,"Both")>0, _xlpm.anyCountry, COUNTIF(_xlpm.rng,"Country")+COUNTIF(_xlpm.rng,"Both")>0, _xlfn.IFS( AND(_xlpm.anyGeneral, _xlpm.anyCountry), "Both the general and country-specific escape clauses have been activated.", _xlpm.anyGeneral, "The general escape clause has been activated.", _xlpm.anyCountry, "A country-specific escape clause has been activated.", TRUE, "No escape clauses are currently activated." ) ) -> • A country-specific escape clause has been activated.
B9: Rule | C9: Status | E9: Narrative
A10: P1 | B10: Compliance with agreed net expenditure path (single operational anchor) | C10: =IF(D10="At risk","⚠",IF(D10="Compliant","☑","⮽")) -> ☑ | D10: =IF(AssessmentRound="A new or revised MTP","N/A",IF( OR( Assessment!C96="Not applicable (all years adhere to the net expenditure path)", Assessment!C96=TRUE ), "Compliant", IF( Assessment!C94=FALSE, "Breach", IF( IFERROR(Assessment!C95=FALSE,FALSE), "At risk", "Compliant" ) ) )) -> Compliant | E10: =IF(AssessmentRound="A new or revised MTP",NA(),Assessment!C98) -> Greece's observed net expenditure to 2025 adheres to the net expenditure path in its latest Council-endorsed MTP, but planned net expenditure to 2026 does not. Deviations occur only in years covered by an escape clause.
A11: P2 | B11: Control account within limits | C11: ☑ | D11: =IF( AssessmentRound="A new or revised MTP", "N/A", IF( OR(IF(ISNA(Assessment!C152),FALSE,Assessment!C152), IF(ISNA(Assessment!C153),FALSE,Assessment!C153)), "Breach", IF( AND(OR(Assessment!C150,Assessment!C151), NOT(Assessment!C154)), "Breach", IF( AND(OR(Assessment!C148,Assessment!C149), NOT(Assessment!C154)), "At risk", "Compliant" ) ) ) ) -> Compliant | E11: =IF(AssessmentRound="A new or revised MTP",NA(),Assessment!C157) -> At the end of the assessment period (2026), the balance in Greece's cumulative control account is a credit (underspend) of 0.1 percentage points of GDP. Observed annual and cumulative deviations do not exceed the respective 0.3 and 0.6 percentage points of GDP limits. However, planned annual deviations exceed the 0.3 percentage point limit. An escape clause is active in all years where deviations exceed the limits. As this is a defence-related escape clause, annual caps apply; deviations do not exceed these caps.
A12: P3 | B12: Debt sustainability safeguard respected (diagnostic only) | C12: ☑ | D12: =IF(AssessmentRound="A new or revised MTP", "N/A", IF( OR( NOT(Receives_reference_trajectory), NOT(OR(Assessment!C160, Assessment!C161)) ), "N/A", IF( OR( IF(Assessment!C160, NOT(Assessment!C162), FALSE), IF(Assessment!C161, NOT(Assessment!C163), FALSE) ), "At risk", "Compliant" ) )) -> Compliant | E12: =IF(AssessmentRound="A new or revised MTP",NA(),Assessment!C165) -> The debt sustainability safeguard applies and Greece's outturn and plans are compliant (diagnostic only—not assessed as a separate compliance criterion during implementation).
A13: P4 | B13: Deficit resilience safeguard respected (diagnostic only) | C13: ☑ | D13: =IF(AssessmentRound="A new or revised MTP","N/A",IF( NOT(Receives_reference_trajectory), "N/A", IF( ISNA(Assessment!C175), "N/A", IF(Assessment!C175,"Compliant","At risk") ) )) -> Compliant | E13: =IF(AssessmentRound="A new or revised MTP",NA(),Assessment!C177) -> The deficit resilience safeguard applies and Greece's outturn and plans are compliant (diagnostic only—not assessed as a separate compliance criterion during implementation).
A14: P5 | B14: Structural primary balance progress and timing (diagnostic only) | C14: ☑ | D14: =IF(AssessmentRound="A new or revised MTP","N/A",IF(Assessment!C186,"Compliant",IF(EscapeClauseActivated,"Compliant","At risk"))) -> Compliant | E14: =IF(AssessmentRound="A new or revised MTP",NA(),Assessment!C188) -> Greece's SPB already exceeds the target level by 1.3 pp of GDP, but the planned path implies a deterioration of 1.8 pp of GDP per year on average over the assessment period. Additional adjustment in later years may be needed to maintain the target, creating a risk of backloading. However, an escape clause has been activated.
B15: Overall implementation | C15: ☑ | D15: =IF(AssessmentRound="A new or revised MTP","N/A",IF(COUNTIF(D10:D11,"Breach")=0,"Compliant","Breach")) -> Compliant | E15: =IF(AssessmentRound="A new or revised MTP",NA(),IF( D15="Compliant", "Overall, "&Country&"'s implementation of the medium-term fiscal-structural plan is compliant with the requirements of Regulation (EU) 2024/1263.", "Overall, "&Country&"'s implementation of the medium-term fiscal-structural plan is not compliant with the requirements of Regulation (EU) 2024/1263." )) -> Overall, Greece's implementation of the medium-term fiscal-structural plan is compliant with the requirements of Regulation (EU) 2024/1263.
B17: Control account
D18: =IF(AssessmentRound="New or revised MTP", "", IF(_xlfn.ANCHORARRAY(D21)<=AdjustmentPeriodEnd, IF(_xlfn.ANCHORARRAY(D21)<=OutturnThrough, "Observed", "Planned"), "")) -> Observed | E18: Observed | F18: Observed | G18: Planned
B19: Escape clause activated? | D19: =IF(AssessmentRound="New or revised MTP", "", IF(AssessmentRound="Revised MTP","",_xlfn.HSTACK("",IF(OFFSET(Assessment!$F$142,0,0,1,COLUMNS(_xlfn.ANCHORARRAY(D21))-1),"Yes","No")))) ->  | E19: Yes | F19: Yes | G19: Yes
B20: MTP reference year | D20: =IF((_xlfn.ANCHORARRAY(D21)>=MTP_YearT-1)*(_xlfn.ANCHORARRAY(D21)<=AdjustmentPeriodEnd), IF(_xlfn.ANCHORARRAY(D21)=MTP_YearT-1, "T-1", IF(_xlfn.ANCHORARRAY(D21)=MTP_YearT, "T", "T+"&(_xlfn.ANCHORARRAY(D21)-MTP_YearT))), "") -> T-1 | E20: T | F20: T+1 | G20: T+2
B21: Calendar year | D21: =_xlfn.SEQUENCE(1, AssessmentEnd-MTP_BaseYear+1, MTP_BaseYear) -> 2023 | E21: 2024 | F21: 2025 | G21: 2026
B22: Observed net expenditure
A23: 1 | B23: Total expenditure | C23: bn NAC | D23: =Assessment!D105 -> 111.255 | E23: =Assessment!E105 -> 113.87 | F23: =Assessment!F105 -> 119.875 | G23: =Assessment!G105 -> 131.1565824 | H23: =Assessment!H105 ->  | I23: =Assessment!I105 ->  | J23: =Assessment!J105 -> 
A24: 2 | B24: Interest expenditure | C24: bn NAC | D24: =Assessment!D106 -> 7.612 | E24: =Assessment!E106 -> 8.225 | F24: =Assessment!F106 -> 7.841 | G24: =Assessment!G106 -> 7.838042772 | H24: =Assessment!H106 ->  | I24: =Assessment!I106 ->  | J24: =Assessment!J106 -> 
A25: 3 | B25: Cyclical unemployment expenditure | C25: bn NAC | D25: =Assessment!D107 -> 0.3 | E25: =Assessment!E107 -> 0.1 | F25: =Assessment!F107 -> -0.1 | G25: =Assessment!G107 -> -0.2612680924 | H25: =Assessment!H107 ->  | I25: =Assessment!I107 ->  | J25: =Assessment!J107 -> 
A26: 4 | B26: EU funded expenditure | C26: bn NAC | D26: =Assessment!D108 -> 5.664 | E26: =Assessment!E108 -> 5.873 | F26: =Assessment!F108 -> 8.43 | G26: =Assessment!G108 -> 12.54086844 | H26: =Assessment!H108 ->  | I26: =Assessment!I108 ->  | J26: =Assessment!J108 -> 
A27: 5 | B27: National co-financing of EU programmes | C27: bn NAC | D27: =Assessment!D109 -> 0.739 | E27: =Assessment!E109 -> 0.705 | F27: =Assessment!F109 -> 0.78 | G27: =Assessment!G109 -> 1.306340462 | H27: =Assessment!H109 ->  | I27: =Assessment!I109 ->  | J27: =Assessment!J109 -> 
A28: 6 | B28: One-offs expenditure (levels, excl. EU funded) | C28: bn NAC | D28: =Assessment!D110 -> 0.302 | E28: =Assessment!E110 -> 0.4 | F28: =Assessment!F110 -> 0.436 | G28: =Assessment!G110 -> 0 | H28: =Assessment!H110 ->  | I28: =Assessment!I110 ->  | J28: =Assessment!J110 -> 
A29: 7 | B29: Net expenditure before DRMs (1-2-3-4-5-6) | C29: bn NAC | D29: =Assessment!D111 -> 96.64254 | E29: =Assessment!E111 -> 98.51742 | F29: =Assessment!F111 -> 102.40949 | G29: =Assessment!G111 -> 109.7325988 | H29: =Assessment!H111 ->  | I29: =Assessment!I111 ->  | J29: =Assessment!J111 -> 
A30: 8 | B30: Change in net expenditure before DRMs (∆7) | C30: bn NAC | E30: =Assessment!E112 -> 1.87488 | F30: =Assessment!F112 -> 3.89207 | G30: =Assessment!G112 -> 7.323108808 | H30: =Assessment!H112 ->  | I30: =Assessment!I112 ->  | J30: =Assessment!J112 -> 
A31: 9 | B31: DRM (annual incremental impact, excl. one-offs) | C31: bn NAC | E31: =Assessment!E113 -> 2 | F31: =Assessment!F113 -> 1.1 | G31: =Assessment!G113 -> -0.5225361848 | H31: =Assessment!H113 ->  | I31: =Assessment!I113 ->  | J31: =Assessment!J113 -> 
A32: 10 | B32: Annual change in net expenditure after DRMs (8-9) | C32: bn NAC | E32: =Assessment!E114 -> -0.12512 | F32: =Assessment!F114 -> 2.79207 | G32: =Assessment!G114 -> 7.845644993 | H32: =Assessment!H114 ->  | I32: =Assessment!I114 ->  | J32: =Assessment!J114 -> 
B33: Annual and cumulated deviations
A34: 11 | B34: Observed net expenditure growth (10(t)/7(t-1))*100 | C34: % change | E34: =Assessment!E116 -> -0.1294667959 | F34: =Assessment!F116 -> 2.834087616 | G34: =Assessment!G116 -> 7.661052694 | H34: =Assessment!H116 ->  | I34: =Assessment!I116 ->  | J34: =Assessment!J116 -> 
A35: 12 | B35: Recommended net expenditure growth | C35: % change | E35: =Assessment!E117 -> 2.6 | F35: =Assessment!F117 -> 3.7 | G35: =Assessment!G117 -> 3.6 | H35: =Assessment!H117 ->  | I35: =Assessment!I117 ->  | J35: =Assessment!J117 -> 
A36: 13 | B36: Annual deviation ((11-12) x 7(t-1)) | C36: bn NAC | E36: =Assessment!E118 -> -2.63782604 | F36: =Assessment!F118 -> -0.85307454 | G36: =Assessment!G118 -> 4.158903353 | H36: =Assessment!H118 ->  | I36: =Assessment!I118 ->  | J36: =Assessment!J118 -> 
A37: 14 | B37: Cumulated deviation (cumulative from 13) | C37: bn NAC | E37: =Assessment!E119 -> -2.63782604 | F37: =Assessment!F119 -> -3.49090058 | G37: =Assessment!G119 -> 0.6680027728 | H37: =Assessment!H119 ->  | I37: =Assessment!I119 ->  | J37: =Assessment!J119 -> 
A38: 15 | B38: Nominal GDP | C38: bn NAC | D38: =Assessment!D120 -> 224.6862 | E38: =Assessment!E120 -> 236.736 | F38: =Assessment!F120 -> 248.3537 | G38: =Assessment!G120 -> 261.2680924 | H38: =Assessment!H120 ->  | I38: =Assessment!I120 ->  | J38: =Assessment!J120 -> 
B39: Control account
A40: 16 | B40: Annual balance (13/15) | C40: % GDP | E40: =Assessment!E122 -> -1.114247956 | F40: =Assessment!F122 -> -0.3434917781 | G40: =Assessment!G122 -> 1.59181449 | H40: =Assessment!H122 ->  | I40: =Assessment!I122 ->  | J40: =Assessment!J122 -> 
A41: 17 | B41: Cumulated balance (14/15) | C41: % GDP | E41: =Assessment!E123 -> -1.114247956 | F41: =Assessment!F123 -> -1.405616498 | G41: =Assessment!G123 -> 0.2556771348 | H41: =Assessment!H123 ->  | I41: =Assessment!I123 ->  | J41: =Assessment!J123 -> 
B42: "Augmented" control account (while escape clauses are active)
A43: 18 | B43: =Assessment!B131 -> Growth of defence expenditure since 2024 | C43: % GDP | F43: =Assessment!F131 -> 0.210272124 | G43: =Assessment!G131 -> 0.4 | H43: =Assessment!H131 ->  | I43: =Assessment!I131 ->  | J43: =Assessment!J131 -> 
A44: 19 | B44: Augmented annual balance | C44: % GDP | E44: =Assessment!E139 -> -1.114247956 | F44: =Assessment!F139 -> -0.3434917781 | G44: =Assessment!G139 -> 1.19181449
A45: 20 | B45: Augmented cumulated balance | C45: % GDP | F45: =Assessment!F141 -> -1.615888622 | G45: =Assessment!G141 -> -0.1443228652 | H45: =Assessment!H141 ->  | I45: =Assessment!I141 ->  | J45: =Assessment!J141 -> 
I46: =Assessment!I127 ->  | J46: =Assessment!J127 -> 
I47: =Assessment!I128 ->  | J47: =Assessment!J128 -> 
B48: Main fiscal variables, implementation compared to MTP
B49: % of GDP unless noted | C49: =IF(_xlfn.SEQUENCE(1,MTP_PlanningHorizon+2,-1)=-1, "T-1", IF(_xlfn.SEQUENCE(1,MTP_PlanningHorizon+2,-1)=0, "T", "T+"&_xlfn.SEQUENCE(1,MTP_PlanningHorizon+2,-1))) -> T-1 | D49: T | E49: T+1 | F49: T+2 | G49: T+3 | H49: T+4
C50: =_xlfn.SEQUENCE(1, MTP_EndYear - MTP_BaseYear+1, MTP_BaseYear) -> 2023 | D50: 2024 | E50: 2025 | F50: 2026 | G50: 2027 | H50: 2028
C51: =IF(C50="", "", IF(C50<=OutturnThrough, "Observed", "Planned")) -> Observed | D51: Observed | E51: Observed | F51: Planned | G51: Planned | H51: Planned
B52: Net expenditure growth (annual) | C52: =INDEX( Assessment!$34:$34, 1, MATCH(MTP_BaseYear,Assessment!$32:$32,0) + _xlfn.SEQUENCE(1, COLUMNS(_xlfn.ANCHORARRAY(C50)), 0) ) ->  | D52: 2.6 | E52: 3.7 | F52: 3.6 | G52: 3.1 | H52: 3
B53: =ScenarioName -> Annual Progress Report 2026 | C53: =INDEX( Assessment!$15:$15, 1, MATCH(MTP_BaseYear,Assessment!$4:$4,0) + _xlfn.SEQUENCE(1, COLUMNS(_xlfn.ANCHORARRAY(C50)), 0) ) ->  | D53: -0.1294667959 | E53: 2.834087616 | F53: 7.5
B54: Net lending/borrowing | C54: =INDEX( Assessment!$35:$35, 1, MATCH(MTP_BaseYear,Assessment!$32:$32,0) + _xlfn.SEQUENCE(1, COLUMNS(_xlfn.ANCHORARRAY(C50)), 0) ) -> -1.6 | D54: -1 | E54: -0.6 | F54: -0.8 | G54: -1.1 | H54: -1.2
B55: =ScenarioName -> Annual Progress Report 2026 | C55: =INDEX( Assessment!$17:$17, 1, MATCH(MTP_BaseYear,Assessment!$4:$4,0) + _xlfn.SEQUENCE(1, COLUMNS(_xlfn.ANCHORARRAY(C50)), 0) ) -> -1.429994365 | D55: 1.347070154 | E55: 1.727375111 | F55: 0.2
B56: Structural balance | C56: =INDEX( Assessment!$36:$36, 1, MATCH(MTP_BaseYear,Assessment!$32:$32,0) + _xlfn.SEQUENCE(1, COLUMNS(_xlfn.ANCHORARRAY(C50)), 0) ) -> -1.5 | D56: -1.5 | E56: -1.1 | F56: -1.1 | G56: -1.2 | H56: -1.3
B57: =ScenarioName -> Annual Progress Report 2026 | C57: =INDEX( Assessment!$18:$18, 1, MATCH(MTP_BaseYear,Assessment!$4:$4,0) + _xlfn.SEQUENCE(1, COLUMNS(_xlfn.ANCHORARRAY(C50)), 0) ) -> -1.84205 | D57: 0.34607 | E57: 0.48634 | F57: -1.2
B58: Structural primary balance | C58: =INDEX( Assessment!$37:$37, 1, MATCH(MTP_BaseYear,Assessment!$32:$32,0) + _xlfn.SEQUENCE(1, COLUMNS(_xlfn.ANCHORARRAY(C50)), 0) ) -> 1.9 | D58: 1.9 | E58: 2 | F58: 2.1 | G58: 2.2 | H58: 2.3
B59: =ScenarioName -> Annual Progress Report 2026 | C59: =INDEX( Assessment!$19:$19, 1, MATCH(MTP_BaseYear,Assessment!$4:$4,0) + _xlfn.SEQUENCE(1, COLUMNS(_xlfn.ANCHORARRAY(C50)), 0) ) -> 1.54579 | D59: 3.82041 | E59: 3.64353 | F59: 1.8
B60: Gross debt | C60: =INDEX( Assessment!$38:$38, 1, MATCH(MTP_BaseYear,Assessment!$32:$32,0) + _xlfn.SEQUENCE(1, COLUMNS(_xlfn.ANCHORARRAY(C50)), 0) ) -> 161.9 | D60: 153.7 | E60: 149.1 | F60: 143.1 | G60: 138 | H60: 133.4
B61: =ScenarioName -> Annual Progress Report 2026 | C61: =INDEX( Assessment!$20:$20, 1, MATCH(MTP_BaseYear,Assessment!$4:$4,0) + _xlfn.SEQUENCE(1, COLUMNS(_xlfn.ANCHORARRAY(C50)), 0) ) -> 164.2780019 | D61: 154.164977 | E61: 146.1323105 | F61: 136.8
B62: Change in gross debt | C62: =INDEX( Assessment!$39:$39, 1, MATCH(MTP_BaseYear,Assessment!$32:$32,0) + _xlfn.SEQUENCE(1, COLUMNS(_xlfn.ANCHORARRAY(C50)), 0) ) -> -10.8 | D62: -8.2 | E62: -4.6 | F62: -6.1 | G62: -5 | H62: -4.7
B63: =ScenarioName -> Annual Progress Report 2026 | C63: =INDEX( Assessment!$21:$21, 1, MATCH(MTP_BaseYear,Assessment!$4:$4,0) + _xlfn.SEQUENCE(1, COLUMNS(_xlfn.ANCHORARRAY(C50)), 0) ) -> 0.491797004 | D63: -1.751317924 | E63: -0.821006492 | F63: -9.3
B65: Real GDP (rate of change, %) | C65: =INDEX( Assessment!$40:$40, 1, MATCH(MTP_BaseYear,Assessment!$32:$32,0) + _xlfn.SEQUENCE(1, COLUMNS(_xlfn.ANCHORARRAY(C50)), 0) ) -> 2 | D65: 2.2 | E65: 2.3 | F65: 2 | G65: 1.5 | H65: 1.3
B66: =ScenarioName -> Annual Progress Report 2026 | C66: =INDEX( Assessment!$22:$22, 1, MATCH(MTP_BaseYear,Assessment!$4:$4,0) + _xlfn.SEQUENCE(1, COLUMNS(_xlfn.ANCHORARRAY(C50)), 0) ) -> 2.135891186 | D66: 2.086577405 | E66: 2.073065247 | F66: 2
B67: GDP deflator (rate of change, %) | C67: =INDEX( Assessment!$41:$41, 1, MATCH(MTP_BaseYear,Assessment!$32:$32,0) + _xlfn.SEQUENCE(1, COLUMNS(_xlfn.ANCHORARRAY(C50)), 0) ) -> 4.5 | D67: 3 | E67: 2.2 | F67: 2.3 | G67: 2.3 | H67: 2.4
B68: =ScenarioName -> Annual Progress Report 2026 | C68: =INDEX( Assessment!$23:$23, 1, MATCH(MTP_BaseYear,Assessment!$4:$4,0) + _xlfn.SEQUENCE(1, COLUMNS(_xlfn.ANCHORARRAY(C50)), 0) ) -> 6.269691198 | D68: 3.209402124 | E68: 2.776819129 | F68: 3.2
B69: Nominal GDP (rate of change, %) | C69: =INDEX( Assessment!$42:$42, 1, MATCH(MTP_BaseYear,Assessment!$32:$32,0) + _xlfn.SEQUENCE(1, COLUMNS(_xlfn.ANCHORARRAY(C50)), 0) ) -> 6.6 | D69: 5.3 | E69: 4.5 | F69: 4.3 | G69: 3.8 | H69: 3.7
B70: =ScenarioName -> Annual Progress Report 2026 | C70: =INDEX( Assessment!$24:$24, 1, MATCH(MTP_BaseYear,Assessment!$4:$4,0) + _xlfn.SEQUENCE(1, COLUMNS(_xlfn.ANCHORARRAY(C50)), 0) ) -> 8.539496166 | D70: 5.362946189 | E70: 4.907449649 | F70: 5.2
B71: Potential growth | C71: =INDEX( Assessment!$43:$43, 1, MATCH(MTP_BaseYear,Assessment!$32:$32,0) + _xlfn.SEQUENCE(1, COLUMNS(_xlfn.ANCHORARRAY(C50)), 0) ) -> 0.6 | D71: 1.2 | E71: 2.5 | F71: 2.4 | G71: 1.7 | H71: 1.5
B72: =ScenarioName -> Annual Progress Report 2026 | C72: =INDEX( Assessment!$25:$25, 1, MATCH(MTP_BaseYear,Assessment!$4:$4,0) + _xlfn.SEQUENCE(1, COLUMNS(_xlfn.ANCHORARRAY(C50)), 0) ) -> 0.4121477735 | D72: 0.8984012257 | E72: 1.605297922 | F72: 1.9
B73: Output gap (% pot. GDP) | C73: =INDEX( Assessment!$44:$44, 1, MATCH(MTP_BaseYear,Assessment!$32:$32,0) + _xlfn.SEQUENCE(1, COLUMNS(_xlfn.ANCHORARRAY(C50)), 0) ) -> 0.3 | D73: 1.2 | E73: 1 | F73: 0.6 | G73: 0.3 | H73: 0.1
B74: =ScenarioName -> Annual Progress Report 2026 | C74: =INDEX( Assessment!$26:$26, 1, MATCH(MTP_BaseYear,Assessment!$4:$4,0) + _xlfn.SEQUENCE(1, COLUMNS(_xlfn.ANCHORARRAY(C50)), 0) ) -> 1.042873034 | D74: 2.232747373 | E74: 2.70340737 | F74: 2.7
B75: ="Numbers in green indicate "&ScenarioName&" is outperforming the medium-term plan" -> Numbers in green indicate Annual Progress Report 2026 is outperforming the medium-term plan
B76: ="Numbers in red indicate "&ScenarioName&" is underperforming the medium-term plan" -> Numbers in red indicate Annual Progress Report 2026 is underperforming the medium-term plan
B77: ="Numbers in amber indicate "&ScenarioName&" is underperforming the medium-term plan but an escape clause is in place" -> Numbers in amber indicate Annual Progress Report 2026 is underperforming the medium-term plan but an escape clause is in place

Sheet Step 3 (MTP) - Plan and prior
B1: Medium-term fiscal-structural plan (endorsed by Council), EC reference trajectory and DSA (Adjustment period currently set to 4 years)
B2: MTP parameters | AA2: MTP import tool:
B3: MTP base year (T-X) | C3: 2023 | AA3: Worksheet name containing budgetary developments | AB3: Sheet1
B4: MTP submission year (T) | C4: 2024 | AA4: Worksheet name containing macroeconomic developments | AB4: Sheet1
B5: MTP planning horizon | C5: 4 | AA5: Worksheet name containing Table 7 a,b,c,d | AB5: Sheet2
B6: MTP adjustment period (Years) | C6: 4 | AA6: Column with line reference numbers | AB6: A
B7: MTP uses different assumptions than EC's DSA framework in prior guidance | C7: TRUE | AA7: Column with MTP base year (bn NAC) | AB7: D
B8: MTP endorsed by Council | C8: TRUE | AA8: Row containing years labels of budgetary developments table | AB8: 2
B9: MTP base year is T-2 (Plan submitted Jan-Mar when T-1 outturn unavailable) | C9: FALSE | AA9: Row containing years label of macroeconomic developments table | AB9: 60
B10: Prior guidance transmittion date: | C10: 2024-06-30 | AA10: Row containing years label of Table 7a | AB10: 2
AA11: Row containing years label of Table 7b (first sub-table header) | AB11: 19
B12: Medium-term fiscal-structural plan | AA12: Row containing years label of Table 7c | AB12: 36
B13: % of GDP unless noted | AA13: Row containing years label of Table 7d | AB13: 52
B14: Calendar year | D14: =_xlfn.SEQUENCE(1, MTP_EndYear-MTP_PlanFirstYear+1, MTP_PlanFirstYear) -> 2023 | E14: 2024 | F14: 2025 | G14: 2026 | H14: 2027 | I14: 2028 | AA14: Note: Total defence spending should be number 45, "defence, of which investment" should be 46. Macro automatically detects in last year of imported plan.
B15: MTP reference year | D15: =_xlfn.LET( _xlpm.n, _xlfn.SEQUENCE(1, MTP_EndYear - MTP_PlanFirstYear + 1, MTP_PlanFirstYear - MTP_YearT), CHOOSE(SIGN(_xlpm.n) + 2, "T" & _xlpm.n, "T", "T+" & _xlpm.n) ) -> T-1 | E15: T | F15: T+1 | G15: T+2 | H15: T+3 | I15: T+4
B16: ="Planned path for net expenditure growth in MTP"&IF(MTP_Council_Endorsed," (endorsed by Council)"," (not yet endorsed by Council)") -> Planned path for net expenditure growth in MTP (endorsed by Council) | C16: growth rate (%) | E16: =F114 -> 2.6 | F16: =G114 -> 3.7 | G16: 3.6 | H16: 3.1 | I16: 3
B17: Net lending/borrowing | D17: =E116 -> -1.6 | E17: =F116 -> -1 | F17: -0.6 | G17: -0.8 | H17: -1.1 | I17: -1.2
B18: Structural balance | D18: =E119 -> -1.5 | E18: =F119 -> -1.5 | F18: -1.1 | G18: -1.1 | H18: -1.2 | I18: -1.3
B19: Structural primary balance | D19: =E120 -> 1.9 | E19: =F120 -> 1.9 | F19: 2 | G19: 2.1 | H19: 2.2 | I19: 2.3
B20: Gross debt | D20: =E122 -> 161.9 | E20: =F122 -> 153.7 | F20: 149.1 | G20: 143.1 | H20: 138 | I20: 133.4
B21: Change in gross debt | D21: =E123 -> -10.8 | E21: =F123 -> -8.2 | F21: -4.6 | G21: -6.1 | H21: -5 | I21: -4.7
B22: Real GDP | C22: rate of change, % | D22: =E141 -> 2 | E22: =F141 -> 2.2 | F22: 2.3 | G22: 2 | H22: 1.5 | I22: 1.3
B23: GDP deflator | C23: rate of change, % | D23: =E142 -> 4.5 | E23: =F142 -> 3 | F23: 2.2 | G23: 2.3 | H23: 2.3 | I23: 2.4
B24: Nominal GDP | C24: rate of change, % | D24: =E143 -> 6.6 | E24: =F143 -> 5.3 | F24: 4.5 | G24: 4.3 | H24: 3.8 | I24: 3.7
B25: Potential growth | C25: rate of change, % | D25: =E172 -> 0.6 | E25: =F172 -> 1.2 | F25: 2.5 | G25: 2.4 | H25: 1.7 | I25: 1.5
B26: Output gap | C26: % pot. GDP | D26: =E178 -> 0.3 | E26: =F178 -> 1.2 | F26: 1 | G26: 0.6 | H26: 0.3 | I26: 0.1
B27: For countries with a domestic primary balance rule (optional):
B28: Interest expenditure | C28: bn NAC | S28: ="<--- This conditional formatting indicates information that must be filled out. It changes depending on whether "&Country&" receives a reference trajectory (which in turn depends on outturn data for TFEU thresholds in year T-X)." -> <--- This conditional formatting indicates information that must be filled out. It changes depending on whether Greece receives a reference trajectory (which in turn depends on outturn data for TFEU thresholds in year T-X).
B29: Nominal GDP (level, millions of national currency) | C29: level, bn NAC
B31: Calendar year | D31: =_xlfn.SEQUENCE(1, MTP_YearT + MTP_PlanningHorizon + 10 - MTP_PlanFirstYear + 1, MTP_PlanFirstYear) -> 2023 | E31: 2024 | F31: 2025 | G31: 2026 | H31: 2027 | I31: 2028 | J31: 2029 | K31: 2030 | L31: 2031 | M31: 2032 | N31: 2033 | O31: 2034 | P31: 2035 | Q31: 2036 | R31: 2037 | S31: 2038
B32: MTP reference year | D32: =_xlfn.LET( _xlpm.n, _xlfn.SEQUENCE(1, MTP_EndYear - MTP_PlanFirstYear + 1, MTP_PlanFirstYear - MTP_YearT), CHOOSE(SIGN(_xlpm.n) + 2, "T" & _xlpm.n, "T", "T+" & _xlpm.n) ) -> T-1 | E32: T | F32: T+1 | G32: T+2 | H32: T+3 | I32: T+4
B33: ="Main budgetary variables under the planned fiscal path ("&AdjustmentPeriod&"-year adjustment period)" -> Main budgetary variables under the planned fiscal path (4-year adjustment period)
B34: Net expenditure growth
B35: Net lending/borrowing | D35: =E184 -> -1.6 | E35: =F184 -> -1 | F35: -0.6 | G35: -0.8 | H35: -1.1 | I35: -1.2 | J35: -1.4 | K35: -1.5 | L35: -1.6 | M35: -1.7 | N35: -1.9 | O35: -2.2 | P35: -2.4 | Q35: -2.2 | R35: -2.4 | S35: -2.5
B36: Structural balance
B37: Structural primary balance | D37: =E185 -> 1.9 | E37: =F185 -> 1.9 | F37: 2 | G37: 2.1 | H37: 2.2 | I37: 2.3 | J37: 2.3 | K37: 2.3 | L37: 2.3 | M37: 2.3 | N37: 2.3 | O37: 2.3 | P37: 2.3 | Q37: 2.3 | R37: 2.3 | S37: 2.3
B38: Gross debt | D38: =E183 -> 161.9 | E38: =F183 -> 153.7 | F38: 149.1 | G38: 143.1 | H38: 138 | I38: 133.4 | J38: 130.1 | K38: 127.1 | L38: 124.3 | M38: 121.7 | N38: 120.6 | O38: 119.6 | P38: 118.4 | Q38: 117.1 | R38: 115.9 | S38: 114.9
B39: Debt sustainability assessments
B40: Gross debt, no policy change scenario | D40: =E217 -> 161.9 | E40: =F217 -> 153.7 | F40: 148.8 | G40: 142.4 | H40: 137.2 | I40: 132.5 | J40: 128.8 | K40: 125.4 | L40: 122.2 | M40: 119.3 | N40: 117.8 | O40: 116.5 | P40: 114.9 | Q40: 113.3 | R40: 111.7 | S40: 110.3
B41: Gross debt, financial stress scenario | D41: =E200 -> 161.9 | E41: 153.7 | F41: 149.1 | G41: 143.1 | H41: 138 | I41: 133.4 | J41: 130.5 | K41: 127.7 | L41: 125.2 | M41: 122.7 | N41: 121.8 | O41: 121 | P41: 119.9 | Q41: 118.8 | R41: 117.7 | S41: 116.7
B42: Gross debt, lower structural primary balance scenario | D42: =E204 -> 161.9 | E42: 153.7 | F42: 149.1 | G42: 143.1 | H42: 138 | I42: 133.4 | J42: 130 | K42: 127.1 | L42: 124.8 | M42: 122.8 | N42: 122.4 | O42: 121.9 | P42: 121.3 | Q42: 120.5 | R42: 119.9 | S42: 119.3
B43: Gross debt, adverse r-g scenario | D43: =E207 -> 161.9 | E43: 153.7 | F43: 149.1 | G43: 143.1 | H43: 138 | I43: 133.4 | J43: 130.8 | K43: 128.5 | L43: 126.6 | M43: 124.7 | N43: 124.5 | O43: 124.4 | P43: 124.1 | Q43: 123.8 | R43: 123.5 | S43: 123.5
B44: Stochastic debt projections (probability of lower debt at end of projection than at end of adjustment period) | D44: =E213 -> 71.8
B46: =IF(Receives_reference_trajectory,"Prior guidance: reference trajectory and DSA","Prior guidance: technical information and DSA") -> Prior guidance: reference trajectory and DSA
B47: % of GDP unless noted | AA47: Prior guidance import tool:
B48: Calendar year | D48: =_xlfn.SEQUENCE(1, MTP_YearT + MTP_PlanningHorizon + 10 - MTP_PlanFirstYear + 1, MTP_PlanFirstYear) -> 2023 | E48: 2024 | F48: 2025 | G48: 2026 | H48: 2027 | I48: 2028 | J48: 2029 | K48: 2030 | L48: 2031 | M48: 2032 | N48: 2033 | O48: 2034 | P48: 2035 | Q48: 2036 | R48: 2037 | S48: 2038 | AA48: Worksheet name containing FASTOP Table 7s | AB48: FASTOP reporting
B49: MTP reference year | D49: =_xlfn.LET( _xlpm.n, _xlfn.SEQUENCE(1, MTP_EndYear - MTP_PlanFirstYear + 1, MTP_PlanFirstYear - MTP_YearT), CHOOSE(SIGN(_xlpm.n) + 2, "T" & _xlpm.n, "T", "T+" & _xlpm.n) ) -> T-1 | E49: T | F49: T+1 | G49: T+2 | H49: T+3 | I49: T+4 | AA49: Column containing line numbers | AB49: B
B50: ="Reference trajectory provided by the Commission"&IF(NOT(Receives_reference_trajectory)," (not applicable)","") -> Reference trajectory provided by the Commission | F50: 3 | G50: 3.2 | H50: 3.1 | I50: 3 | AA50: Row containing Table 7a years | AB50: 4
B51: ="Minimum level for the structural primary balance in "&AdjustmentPeriodEnd&IF(Receives_reference_trajectory," (not applicable)","")&", no safeguard" -> Minimum level for the structural primary balance in 2028 (not applicable), no safeguard | AA51: Row containing Table 7b years (first sub-table header) | AB51: 22
B52: ="Minimum level for the structural primary balance in "&AdjustmentPeriodEnd&IF(Receives_reference_trajectory," (not applicable)","")&", with safeguard" -> Minimum level for the structural primary balance in 2028 (not applicable), with safeguard | AA52: Row containing Table 7c years | AB52: 40
B53: =IF(Receives_reference_trajectory,"EC reference trajectory","EC technical information - Path to meet all requirements and safeguard.") -> EC reference trajectory | AA53: Worksheet name containing full net expenditure growth path (adjustment path) | AB53: Adjustment scenario
B54: ="Main budgetary variables ("&AdjustmentPeriod&"-year adjustment period)" -> Main budgetary variables (4-year adjustment period) | AA54: Row containing full net expenditure growth path years | AB54: 56
B55: ="Net expenditure growth in a plan"&IF(AdjustmentPeriod=4," without extention","with extension") -> Net expenditure growth in a plan without extention | D55: 4.5 | E55: 1.8 | F55: 3 | G55: 3.2 | H55: 3.1 | I55: 3 | J55: 3.3 | K55: 3.3 | L55: 3.3 | M55: 3.2 | N55: 3.2 | O55: 3.2 | P55: 3.2 | Q55: 3.2 | R55: 3.3 | S55: 3.3 | AA55: Row containing full net expenditure growth rates | AB55: 79
B56: Net lending/borrowing | D56: -1.6 | E56: -1.2 | F56: -0.3 | G56: -0.6 | H56: -0.9 | I56: -1 | J56: -1.2 | K56: -1.2 | L56: -1.3 | M56: -1.4 | N56: -1.6 | O56: -1.8 | P56: -2 | Q56: -1.9 | R56: -2 | S56: -2.1 | AA56: Worksheet name containing full stochastic debt projections | AB56: Stochastic
B57: Structural primary balance | D57: 1.9 | E57: 1.7 | F57: 2.1 | G57: 2.3 | H57: 2.4 | I57: 2.6 | J57: 2.6 | K57: 2.6 | L57: 2.6 | M57: 2.6 | N57: 2.6 | O57: 2.6 | P57: 2.6 | Q57: 2.6 | R57: 2.6 | S57: 2.6 | AA57: Row containing stochastic debt projection years | AB57: 21
B58: Gross debt | D58: 161.9 | E58: 153.9 | F58: 149.7 | G58: 145.1 | H58: 140.8 | I58: 136.6 | J58: 132.4 | K58: 128.4 | L58: 124.7 | M58: 121.2 | N58: 119.1 | O58: 117.4 | P58: 115.9 | Q58: 114.3 | R58: 112.9 | S58: 111.5
B59: ="Debt sustainability assessment ("&AdjustmentPeriod&"-year adjustment period)" -> Debt sustainability assessment (4-year adjustment period)
B60: Gross debt, no policy change scenario | D60: 161.9 | E60: 153.9 | F60: 149.3 | G60: 144.6 | H60: 141 | I60: 137.1 | J60: 133.1 | K60: 129.2 | L60: 125.6 | M60: 122.2 | N60: 120.4 | O60: 118.8 | P60: 117.5 | Q60: 116.1 | R60: 114.8 | S60: 113.6
B61: Gross debt, financial stress scenario | D61: 161.9 | E61: 153.9 | F61: 149.6 | G61: 145.3 | H61: 141.2 | I61: 137.3 | J61: 133.8 | K61: 130.3 | L61: 127.1 | M61: 124 | N61: 122.4 | O61: 121.1 | P61: 120 | Q61: 118.9 | R61: 117.8 | S61: 116.8
B62: Gross debt, lower structural primary balance scenario | D62: 161.9 | E62: 153.9 | F62: 149.6 | G62: 145.3 | H62: 141.2 | I62: 137.3 | J62: 133.2 | K62: 129.6 | L62: 126.6 | M62: 124 | N62: 122.9 | O62: 121.9 | P62: 121.2 | Q62: 120.4 | R62: 119.7 | S62: 119.2
B63: Gross debt, adverse r-g scenario | D63: 161.9 | E63: 153.9 | F63: 149.6 | G63: 145.3 | H63: 141.2 | I63: 137.3 | J63: 134 | K63: 131.1 | L63: 128.4 | M63: 126 | N63: 125 | O63: 124.4 | P63: 124.1 | Q63: 123.7 | R63: 123.5 | S63: 123.4
B64: ="Stochastic debt projections, "&AdjustmentPeriodEnd+1&"-"&StochasticLastYear -> Stochastic debt projections, 2029-2033
B65: p10 | J65: 122.3 | K65: 114.3 | L65: 107.6 | M65: 101.6 | N65: 98.1
B66: p30_p10 | J66: 6.4 | K66: 8.9 | L66: 11 | M66: 12.5 | N66: 13.2
B67: p50_p30 | J67: 4.6 | K67: 6.5 | L67: 7.6 | M67: 8.8 | N67: 9.8
B68: p70_p50 | J68: 4.8 | K68: 6.4 | L68: 8.1 | M68: 10 | N68: 11.1
B69: p90_p70 | J69: 7.1 | K69: 10.3 | L69: 12.4 | M69: 14.2 | N69: 16
B70: p10 | J70: 122.3 | K70: 114.3 | L70: 107.6 | M70: 101.6 | N70: 98.1
B71: p30 | J71: 128.7 | K71: 123.1 | L71: 118.6 | M71: 114.1 | N71: 111.3
B72: p50 | J72: 133.3 | K72: 129.6 | L72: 126.1 | M72: 122.9 | N72: 121.1
B73: p70 | J73: 138.1 | K73: 136 | L73: 134.3 | M73: 132.9 | N73: 132.2
B74: p90 | J74: 145.1 | K74: 146.3 | L74: 146.6 | M74: 147 | N74: 148.2
A80: Budgetary developments
D81: =MTP_BaseYear -> 2023 | E81: =_xlfn.SEQUENCE(1, MTP_EndYear-MTP_BaseYear+1, MTP_BaseYear) -> 2023 | F81: 2024 | G81: 2025 | H81: 2026 | I81: 2027 | J81: 2028
B82: Revenue | C82: ESA Code | D82: bn NAC | E82: =IF(ISNUMBER(_xlfn.ANCHORARRAY(E$81)),"% of GDP","") -> % of GDP | F82: % of GDP | G82: % of GDP | H82: % of GDP | I82: % of GDP | J82: % of GDP
A83: 1 | B83: Taxes on production and imports | C83: D.2 | D83: 38.4 | E83: 17.4 | F83: 17.3
A84: 2 | B84: Current taxes on income, wealth, etc. | C84: D.5 | D84: 23.3 | E84: 10.6 | F84: 10.8
A85: 3 | B85: Social contributions | C85: D.61 | D85: 29.2 | E85: 13.3 | F85: 13.3
A86: 4 | B86: Other current revenue | C86: (P.11+P.12+P.131)+D.39+D.4+D.7 | D86: 11.6 | E86: 5.3 | F86: 5.1
A87: 5 | B87: Capital taxes | C87: D.91 | D87: 0.3 | E87: 0.1 | F87: 0.1
A88: 6 | B88: Other capital revenue | C88: D.92+D.99 | D88: 5.1 | E88: 2.3 | F88: 2.6
A89: 7 | B89: Total revenue (=1+2+3+4+5+6) | C89: TR | D89: 107.8 | E89: 48.9 | F89: 49.3
A90: 8 | B90: Of which: Transfers from the EU (accrued revenue, not cash) | C90: D.7EU+D.9EU | D90: 5.4 | E90: 2.5 | F90: 3
A91: 9 | B91: Total revenue other than transfers from the EU (=7-8) | D91: 102.4 | E91: 46.5 | F91: 46.3
A92: 10 | B92: p.m. Revenue measures (increments, excluding EU funded measures) | D92: -4.3 | E92: -2 | F92: 0.4
A93: 11 | B93: p.m. One-off measures included in the projections (levels, excluding EU funded measures) | D93: 0 | E93: 0 | F93: 0
B94: Expenditure | C94: ESA Code | D94: bn NAC | E94: =IF(ISNUMBER(_xlfn.ANCHORARRAY(E$81)),"% of GDP","") -> % of GDP | F94: % of GDP | G94: % of GDP | H94: % of GDP | I94: % of GDP | J94: % of GDP
A95: 12 | B95: Compensation of employees | C95: D.1 | D95: 23.5 | E95: 10.7 | F95: 10.7
A96: 13 | B96: Intermediate consumption | C96: P.2 | D96: 12 | E96: 5.5 | F96: 5.6
A97: 14 | B97: Interest expenditure | C97: D.41 | D97: 7.6 | E97: 3.5 | F97: 3.4 | G97: 3.2 | H97: 3.3 | I97: 3.5 | J97: 3.6
A98: 15 | B98: Social benefits other than social transfers in kind | C98: D.62 | D98: 38.8 | E98: 17.6 | F98: 17.7
A99: 16 | B99: Social transfers in kind via market producers | C99: D.632 | D99: 7.1 | E99: 3.2 | F99: 2.5
A100: 17 | B100: Subsidies | C100: D.3 | D100: 4 | E100: 1.8 | F100: 1.7
A101: 18 | B101: Other current expenditure | C101: D.29+(D.4-D.41)+D.5+D.7+D.8 | D101: 3.3 | E101: 1.5 | F101: 1.5
A102: 19 | B102: Gross fixed capital formation | C102: P.51 | D102: 8.6 | E102: 3.9 | F102: 5.7
A103: 20 | B103: Of which: nationally financed public investment | D103: 5.2 | E103: 2.4 | F103: 3.8 | G103: 3.7 | H103: 3.6 | I103: 3.5 | J103: 3.5
A104: 21 | B104: Capital transfers | C104: D.9 | D104: 6.3 | E104: 2.9 | F104: 1.5
A105: 22 | B105: Other capital expenditure | C105: P.52+P.53+NP | D105: 0.1 | E105: 0 | F105: 0
A106: 23 | B106: Total expenditure (=12+13+14+15+16+17+18+19+21+22) | C106: TE | D106: 111.3 | E106: 50.5 | F106: 50.3
A107: 24 | B107: Of which: expenditure funded by transfers from the EU (=8) | C107: D.7EU+D.9EU | D107: 5.4 | E107: 2.5 | F107: 3
A108: 25 | B108: Nationally financed expenditure (=23-24) | D108: 105.9 | E108: 48.1 | F108: 47.3
A109: 26 | B109: p.m. National co-financing of programmes funded by transfers from the EU (=8) | D109: 0.8 | E109: 0.4 | F109: 0.3
A110: 27 | B110: p.m. Cyclical component of unemployment benefits | D110: 0.2 | E110: 0.1 | F110: 0.1
A111: 28 | B111: p.m. One-off expenditure included in the projections (levels, excluding EU funded measures) | D111: 0.5 | E111: 0.2 | F111: 0.2
A112: 29 | B112: Net nationally financed primary expenditure (before revenue measures) (=25-26-27-28-14) | D112: 96.8 | E112: 44 | F112: 43.3
B113: Net nationally financed primary expenditure | E113: =IF(ISNUMBER(_xlfn.ANCHORARRAY(E$81)),"growth rate","") -> growth rate | F113: growth rate | G113: growth rate | H113: growth rate | I113: growth rate | J113: growth rate
A114: 30 | B114: Net nationally financed primary expenditure growth | C114: MTP Table 1a, line 1 | F114: 2.6 | G114: 3.7 | H114: 3.6 | I114: 3.1 | J114: 3
B115: Balances | D115: bn NAC | E115: =IF(ISNUMBER(_xlfn.ANCHORARRAY(E$81)),"% of GDP","") -> % of GDP | F115: % of GDP | G115: % of GDP | H115: % of GDP | I115: % of GDP | J115: % of GDP
A116: 31 | B116: Net lending/borrowing (=7-23) | C116: B.9 | D116: -3.5 | E116: -1.6 | F116: -1 | G116: -0.6 | H116: -0.8 | I116: -1.1 | J116: -1.2
A117: 32 | B117: Primary balance (=31-14) | C117: B.9-D.41p | D117: 4.1 | E117: 1.9 | F117: 2.4 | G117: 2.5 | H117: 2.4 | I117: 2.4 | J117: 2.4
B118: Cyclical adjustment | E118: =IF(ISNUMBER(_xlfn.ANCHORARRAY(E$81)),"% of GDP","") -> % of GDP | F118: % of GDP | G118: % of GDP | H118: % of GDP | I118: % of GDP | J118: % of GDP
A119: 33 | B119: Structural balance | E119: -1.5 | F119: -1.5 | G119: -1.1 | H119: -1.1 | I119: -1.2 | J119: -1.3
A120: 34 | B120: Structural primary balance | E120: 1.9 | F120: 1.9 | G120: 2 | H120: 2.1 | I120: 2.2 | J120: 2.3
B121: Debt | D121: bn NAC | E121: % GDP | F121: % GDP | G121: % GDP
A122: 35 | B122: Gross debt | D122: 356.7 | E122: 161.9 | F122: 153.7 | G122: 149.1 | H122: 143.1 | I122: 138 | J122: 133.4
A123: 36 | B123: Change in gross debt | D123: -0.1 | E123: -10.8 | F123: -8.2 | G123: -4.6 | H123: -6.1 | I123: -5 | J123: -4.7
A124: 37 | B124: Contributions to change in gross debt
A125: 38 | B125: Primary balance (=-32) | E125: -1.9 | F125: -2.4 | G125: -2.5 | H125: -2.4 | I125: -2.4 | J125: -2.4
A126: 39 | B126: Snowball effect | E126: -7.3 | F126: -4.7 | G126: -3.5 | H126: -2.8 | I126: -1.7 | J126: -1.3
A127: 40 | B127: Interest expenditure (=14) | E127: 3.5 | F127: 3.4 | G127: 3.2 | H127: 3.3 | I127: 3.5 | J127: 3.6
A128: 41 | B128: Growth | E128: -3.3 | F128: -3.3 | G128: -3.3 | H128: -2.8 | I128: -2 | J128: -1.7
A129: 42 | B129: Inflation | E129: -7.5 | F129: -4.8 | G129: -3.4 | H129: -3.3 | I129: -3.2 | J129: -3.2
A130: 43 | B130: Stock-flow adjustment (=36-38-39) | E130: -1.6 | F130: -1.1 | G130: 1.5 | H130: -0.8 | I130: -0.9 | J130: -1
E131: =IF(ISNUMBER(_xlfn.ANCHORARRAY(E$81)),"%","") -> % | F131: % | G131: % | H131: % | I131: % | J131: %
A132: 44 | B132: p.m. Implicit interest rate on debt (=14/debt(t-1))
A134: 45 | B134: Total defence expenditure | C134: COFOG 2
A135: 46 | B135: Of which: Defence investment | C135: COFOG 2, P.51g
A138: Macroeconomic developments
B139: GDP deflator | C139: ESA Code | D139: =MTP_BaseYear -> 2023 | E139: =_xlfn.SEQUENCE(1, MTP_EndYear-MTP_BaseYear+1, MTP_BaseYear) -> 2023 | F139: 2024 | G139: 2025 | H139: 2026 | I139: 2027 | J139: 2028
D140: bn NAC | E140: =IF(ISNUMBER(_xlfn.ANCHORARRAY(E$81)),"growth rate","") -> growth rate | F140: growth rate | G140: growth rate | H140: growth rate | I140: growth rate | J140: growth rate
A141: 1 | B141: Real GDP | C141: B1*g | E141: 2 | F141: 2.2 | G141: 2.3 | H141: 2 | I141: 1.5 | J141: 1.3
A142: 2 | B142: GDP deflator | E142: 4.5 | F142: 3 | G142: 2.2 | H142: 2.3 | I142: 2.3 | J142: 2.4
A143: 3 | B143: Nominal GDP | C143: B1*g | D143: 220.3 | E143: 6.6 | F143: 5.3 | G143: 4.5 | H143: 4.3 | I143: 3.8 | J143: 3.7
B144: Components of Real GDP | D144: bn NAC | E144: =IF(ISNUMBER(_xlfn.ANCHORARRAY(E$81)),"growth rate","") -> growth rate | F144: growth rate | G144: growth rate | H144: growth rate | I144: growth rate | J144: growth rate
A145: 4 | B145: Private consumption expenditure | C145: P.3 | E145: 1.8 | F145: 1.7 | G145: 1.6
A146: 5 | B146: Government consumption expenditure | C146: P.3 | E146: 1.7 | F146: 0.4 | G146: 0
A147: 6 | B147: Gross fixed capital formation | C147: P.51 | E147: 4 | F147: 6.7 | G147: 8.4
A148: 7 | B148: Changes in inventories and net acquisition of valuables (% of GDP) | C148: P.52 + P.53
A149: 8 | B149: Exports of goods and services | C149: P.6 | E149: 3.7 | F149: 4.2 | G149: 4
A150: 9 | B150: Imports of goods and services | C150: P.7 | E150: 2.1 | F150: 3.8 | G150: 3.6
B151: Contribution to real GDP growth
A152: 10 | B152: Final domestic demand | E152: 2.2 | F152: 2.2 | G152: 2.3
A153: 11 | B153: Changes in inventories and net acquisition of value | C153: P.52 + P.53 | E153: -0.6 | F153: 0 | G153: -0.1
A154: 12 | B154: External balance of goods and services | C154: B.11 | E154: 0.5 | F154: 0 | G154: 0
B155: Deflators and HICP | E155: =IF(ISNUMBER(_xlfn.ANCHORARRAY(E$81)),"growth rate","") -> growth rate | F155: growth rate | G155: growth rate | H155: growth rate | I155: growth rate | J155: growth rate
A156: 13 | B156: Private consumption deflator | E156: 4.6 | F156: 2.7 | G156: 2.1
A157: 14 | B157: p.m. HICP | E157: 4.2 | F157: 2.8 | G157: 2.1
A158: 15 | B158: Government consumption deflator | E158: 2.8 | F158: 3.1 | G158: 2.2
A159: 16 | B159: Investment deflator | E159: 3.9 | F159: 2.3 | G159: 1.8
A160: 17 | B160: Export price deflator (goods and services) | E160: -6.1 | F160: 2.6 | G160: 1.6
A161: 18 | B161: Import price deflator (goods and services) | E161: -11.7 | F161: 2.5 | G161: 1.5
B162: Labour market | C162: ESA code | D162: level | E162: =IF(ISNUMBER(_xlfn.ANCHORARRAY(E$81)),"growth rate","") -> growth rate | F162: growth rate | G162: growth rate | H162: growth rate | I162: growth rate | J162: growth rate
A163: 19 | B163: Domestic employment (1000 persons, national accounts) | D163: 3504 | E163: 0.4 | F163: 0.9 | G163: 0.7
A164: 20 | B164: Average annual hours worked per person employed | D164: 1668 | E164: 1.7 | F164: 0 | G164: 0
A165: 21 | B165: Real GDP per person employed | E165: 1.6 | F165: 1.2 | G165: 1.5
A166: 22 | B166: Real GDP per hour worked | E166: -0.1 | F166: 1.2 | G166: 1.5
A167: 23 | B167: Compensation of employees (bn NAC) | C167: D.1 | D167: 76423 | E167: 6 | F167: 5.2 | G167: 3.4
A168: 24 | B168: Compensation per employee (=23/19) | D168: 21810 | E168: 5.6 | F168: 4.3 | G168: 2.7
E169: =IF(ISNUMBER(_xlfn.ANCHORARRAY(E$81)),"%","") -> % | F169: % | G169: % | H169: % | I169: % | J169: %
A170: 25 | B170: Unemployment rate (%) | E170: 11.1 | F170: 10.3 | G170: 9.7
B171: Potential GDP and components | E171: =IF(ISNUMBER(_xlfn.ANCHORARRAY(E$81)),"growth rate","") -> growth rate | F171: growth rate | G171: growth rate | H171: growth rate | I171: growth rate | J171: growth rate
A172: 26 | B172: Potential GDP | E172: 0.6 | F172: 1.2 | G172: 2.5 | H172: 2.4 | I172: 1.7 | J172: 1.5
B173: Contributions to potential growth
A174: 27 | B174: Labour | E174: -0.3 | F174: 0.1 | G174: 0.3 | H174: 0.3 | I174: 0.1 | J174: 0
A175: 28 | B175: Capital | E175: 0.1 | F175: 0.1 | G175: 0.3 | H175: 0.4 | I175: 0.5 | J175: 0.4
A176: 29 | B176: Total factor productivity | E176: 0.8 | F176: 1 | G176: 1.9 | H176: 1.7 | I176: 1.1 | J176: 1.1
E177: =IF(ISNUMBER(_xlfn.ANCHORARRAY(E$81)),"% pot. GDP","") -> % pot. GDP | F177: % pot. GDP | G177: % pot. GDP | H177: % pot. GDP | I177: % pot. GDP | J177: % pot. GDP
A178: 30 | B178: Output gap | E178: 0.3 | F178: 1.2 | G178: 1 | H178: 0.6 | I178: 0.3 | J178: 0.1
A181: MTP Table 7a: Debt and headline balance projections and key underlying assumptions (under the planned fiscal path)
C182: line | E182: 2023 | F182: 2024 | G182: 2025 | H182: 2026 | I182: 2027 | J182: 2028 | K182: 2029 | L182: 2030 | M182: 2031 | N182: 2032 | O182: 2033 | P182: 2034 | Q182: 2035 | R182: 2036 | S182: 2037 | T182: 2038 | U182: 2039 | V182: 2040 | W182: 2041
A183: 1 | B183: Gross debt | C183: MTP Table 4, line 35 | D183: (% GDP) | E183: 161.9 | F183: 153.7 | G183: 149.1 | H183: 143.1 | I183: 138 | J183: 133.4 | K183: 130.1 | L183: 127.1 | M183: 124.3 | N183: 121.7 | O183: 120.6 | P183: 119.6 | Q183: 118.4 | R183: 117.1 | S183: 115.9 | T183: 114.9
A184: 2 | B184: General government balance | C184: MTP Table 4, line 31 | D184: (% GDP) | E184: -1.6 | F184: -1 | G184: -0.6 | H184: -0.8 | I184: -1.1 | J184: -1.2 | K184: -1.4 | L184: -1.5 | M184: -1.6 | N184: -1.7 | O184: -1.9 | P184: -2.2 | Q184: -2.4 | R184: -2.2 | S184: -2.4 | T184: -2.5
A185: 3 | B185: Structural primary balance | C185: MTP Table 4, line 34 | D185: (% pot. GDP) | E185: 1.9 | F185: 1.9 | G185: 2 | H185: 2.1 | I185: 2.2 | J185: 2.3 | K185: 2.3 | L185: 2.3 | M185: 2.3 | N185: 2.3 | O185: 2.3 | P185: 2.3 | Q185: 2.3 | R185: 2.3 | S185: 2.3 | T185: 2.3
A186: 4 | B186: Cyclical component | D186: (% pot. GDP) | E186: -0.1 | F186: -0.7 | G186: -0.5 | H186: -0.3 | I186: -0.2 | J186: -0.1 | K186: 0 | L186: 0 | M186: 0 | N186: 0 | O186: 0 | P186: 0 | Q186: 0 | R186: 0 | S186: 0 | T186: 0
A187: 5 | B187: One-off measures | D187: (% GDP) | E187: -0.2 | F187: -0.2 | G187: 0 | H187: 0 | I187: 0 | J187: 0 | K187: 0 | L187: 0 | M187: 0 | N187: 0 | O187: 0 | P187: 0 | Q187: 0 | R187: 0 | S187: 0 | T187: 0
A188: 6 | B188: Interest expenditure | C188: MTP Table 4, line 14 | D188: (% GDP) | E188: 3.5 | F188: 3.4 | G188: 3.2 | H188: 3.3 | I188: 3.5 | J188: 3.6 | K188: 3.8 | L188: 3.8 | M188: 3.8 | N188: 3.8 | O188: 3.8 | P188: 3.9 | Q188: 4 | R188: 3.9 | S188: 3.9 | T188: 4
A189: 7 | B189: Long-term interest rate | C189: MTP Table 3, line 1 | D189: (%) | E189: 4 | F189: 3.5 | G189: 3.7 | H189: 3.8 | I189: 3.9 | J189: 4 | K189: 4 | L189: 4.1 | M189: 4.2 | N189: 4.3 | O189: 4.4 | P189: 4.3 | Q189: 4.3 | R189: 4.3 | S189: 4.3 | T189: 4.3
A190: 8 | B190: Short-term interest rate | C190: MTP Table 3, line 2 | D190: (%) | E190: 3.4 | F190: 3.6 | G190: 2.8 | H190: 2.8 | I190: 2.8 | J190: 2.8 | K190: 2.8 | L190: 2.8 | M190: 2.7 | N190: 2.7 | O190: 2.7 | P190: 2.7 | Q190: 2.7 | R190: 2.6 | S190: 2.6 | T190: 2.5
A191: 9 | B191: Implicit average interest rate | C191: MTP Table 4, line 44 | D191: (%) | E191: 2.1 | F191: 2.2 | G191: 2.2 | H191: 2.3 | I191: 2.5 | J191: 2.7 | K191: 2.9 | L191: 3 | M191: 3.1 | N191: 3.1 | O191: 3.2 | P191: 3.3 | Q191: 3.4 | R191: 3.4 | S191: 3.5 | T191: 3.5
A192: 10 | B192: Stock-flow adjustment | C192: MTP Table 4, line 43 | D192: (% GDP) | E192: -1.6 | F192: -1.1 | G192: 1.5 | H192: -0.8 | I192: -0.9 | J192: -1 | K192: -1 | L192: -1 | M192: -1.1 | N192: -1.1 | O192: 0.2 | P192: 0.2 | Q192: 0.2 | R192: 0.2 | S192: 0.2 | T192: 0.2
A193: 11 | B193: Potential GDP | C193: MTP Table 2, line 26 | D193: (growth rate) | E193: 0.6 | F193: 1.2 | G193: 2.5 | H193: 2.4 | I193: 1.7 | J193: 1.5 | K193: 0.5 | L193: 0.3 | M193: 0.2 | N193: 0.2 | O193: 0.2 | P193: 0.3 | Q193: 0.7 | R193: 0.7 | S193: 0.8 | T193: 0.9
A194: 12 | B194: Real GDP | C194: MTP Table 2, line 1 | D194: (growth rate) | E194: 2 | F194: 2.2 | G194: 2.3 | H194: 2 | I194: 1.5 | J194: 1.3 | K194: 0.4 | L194: 0.3 | M194: 0.2 | N194: 0.2 | O194: 0.2 | P194: 0.3 | Q194: 0.7 | R194: 0.7 | S194: 0.8 | T194: 0.9
A195: 13 | B195: GDP deflator | C195: MTP Table 2, line 2 | D195: (growth rate) | E195: 4.5 | F195: 3 | G195: 2.2 | H195: 2.3 | I195: 2.3 | J195: 2.4 | K195: 2.4 | L195: 2.4 | M195: 2.5 | N195: 2.5 | O195: 2.6 | P195: 2.5 | Q195: 2.5 | R195: 2.5 | S195: 2.4 | T195: 2.4
A196: 14 | B196: Nominal GDP | C196: MTP Table 2, line 3 | D196: (growth rate) | E196: 6.6 | F196: 5.3 | G196: 4.5 | H196: 4.3 | I196: 3.8 | J196: 3.7 | K196: 2.8 | L196: 2.7 | M196: 2.7 | N196: 2.7 | O196: 2.7 | P196: 2.8 | Q196: 3.2 | R196: 3.2 | S196: 3.3 | T196: 3.4
A198: Table 7b: Debt projections and key stressed variables, deterministic scenarios and stochastic simulations
B199: Financial stress scenario | E199: 2023 | F199: 2024 | G199: 2025 | H199: 2026 | I199: 2027 | J199: 2028 | K199: 2029 | L199: 2030 | M199: 2031 | N199: 2032 | O199: 2033 | P199: 2034 | Q199: 2035 | R199: 2036 | S199: 2037 | T199: 2038 | U199: 2039 | V199: 2040 | W199: 2041
A200: 1 | B200: Gross debt | C200: MTP Table 4, line 35 | D200: (% GDP) | E200: 161.9 | F200: 153.7 | G200: 149.1 | H200: 143.1 | I200: 138 | J200: 133.4 | K200: 130.5 | L200: 127.7 | M200: 125.2 | N200: 122.7 | O200: 121.8 | P200: 121 | Q200: 119.9 | R200: 118.8 | S200: 117.7 | T200: 116.7
A201: 2 | B201: Long-term interest rate | C201: MTP Table 3, line 1 | D201: (%) | E201: 4 | F201: 3.5 | G201: 3.7 | H201: 3.8 | I201: 3.9 | J201: 4 | K201: 7.6 | L201: 4.1 | M201: 4.2 | N201: 4.3 | O201: 4.4 | P201: 4.3 | Q201: 4.3 | R201: 4.3 | S201: 4.3 | T201: 4.3
A202: 3 | B202: Short-term interest rate | C202: MTP Table 3, line 2 | D202: (%) | E202: 3.4 | F202: 3.6 | G202: 2.8 | H202: 2.8 | I202: 2.8 | J202: 2.8 | K202: 6.4 | L202: 2.8 | M202: 2.7 | N202: 2.7 | O202: 2.7 | P202: 2.7 | Q202: 2.7 | R202: 2.6 | S202: 2.6 | T202: 2.5
B203: Lower SPB scenario | E203: 2023 | F203: 2024 | G203: 2025 | H203: 2026 | I203: 2027 | J203: 2028 | K203: 2029 | L203: 2030 | M203: 2031 | N203: 2032 | O203: 2033 | P203: 2034 | Q203: 2035 | R203: 2036 | S203: 2037 | T203: 2038 | U203: 2039 | V203: 2040 | W203: 2041
A204: 4 | B204: Gross debt | C204: MTP Table 4, line 35 | D204: (% GDP) | E204: 161.9 | F204: 153.7 | G204: 149.1 | H204: 143.1 | I204: 138 | J204: 133.4 | K204: 130 | L204: 127.1 | M204: 124.8 | N204: 122.8 | O204: 122.4 | P204: 121.9 | Q204: 121.3 | R204: 120.5 | S204: 119.9 | T204: 119.3
A205: 5 | B205: Structural primary balance | C205: MTP Table 4, line 34 | D205: (% pot. GDP) | E205: 1.9 | F205: 1.9 | G205: 2 | H205: 2.1 | I205: 2.2 | J205: 2.3 | K205: 2.1 | L205: 1.8 | M205: 1.8 | N205: 1.8 | O205: 1.8 | P205: 1.8 | Q205: 1.8 | R205: 1.8 | S205: 1.8 | T205: 1.8
B206: Adverse 'r-g' scenario
A207: 6 | B207: Gross debt | C207: MTP Table 4, line 35 | D207: (% GDP) | E207: 161.9 | F207: 153.7 | G207: 149.1 | H207: 143.1 | I207: 138 | J207: 133.4 | K207: 130.8 | L207: 128.5 | M207: 126.6 | N207: 124.7 | O207: 124.5 | P207: 124.4 | Q207: 124.1 | R207: 123.8 | S207: 123.5 | T207: 123.5
A208: 7 | B208: Long-term interest rate | C208: MTP Table 3, line 1 | D208: (%) | E208: 4 | F208: 3.5 | G208: 3.7 | H208: 3.8 | I208: 3.9 | J208: 4 | K208: 4.5 | L208: 4.6 | M208: 4.7 | N208: 4.8 | O208: 4.9 | P208: 4.8 | Q208: 4.8 | R208: 4.8 | S208: 4.8 | T208: 4.8
A209: 8 | B209: Short-term interest rate | C209: MTP Table 3, line 2 | D209: (%) | E209: 3.4 | F209: 3.6 | G209: 2.8 | H209: 2.8 | I209: 2.8 | J209: 2.8 | K209: 3.3 | L209: 3.3 | M209: 3.2 | N209: 3.2 | O209: 3.2 | P209: 3.2 | Q209: 3.2 | R209: 3.1 | S209: 3.1 | T209: 3
A210: 9 | B210: Real GDP | C210: MTP Table 2, line 1 | D210: (growth rate) | E210: 2 | F210: 2.2 | G210: 2.3 | H210: 2 | I210: 1.5 | J210: 1.3 | K210: -0.1 | L210: -0.2 | M210: -0.3 | N210: -0.3 | O210: -0.3 | P210: -0.2 | Q210: 0.2 | R210: 0.2 | S210: 0.3 | T210: 0.4
A211: 10 | B211: Potential GDP | C211: MTP Table 2, line 26 | D211: (growth rate) | E211: 0.6 | F211: 1.2 | G211: 2.5 | H211: 2.4 | I211: 1.7 | J211: 1.5 | K211: 0 | L211: -0.2 | M211: -0.3 | N211: -0.3 | O211: -0.3 | P211: -0.2 | Q211: 0.2 | R211: 0.2 | S211: 0.3 | T211: 0.4
B212: Stochastic simulations | E212: =StochasticLastYear -> 2033
A213: 11 | B213: Probability of debt being below its value in T+4/7 | D213: (%) | E213: 71.8
... 22 more rows

Sheet Step 4 (MTP) - IFI scrutiny
B2: 1. Net expenditure path assumptions
B3: If required to adhere to a reference trajectory and the latest MTP does not, is the explanation satisfactory and based on sound and data-driven economic arguments explaining the difference? | C3: Article 13(b) of Regulation(EU) 2024/1263 | D3: Yes | E3: =HYPERLINK("#"&ADDRESS(ROW(),COLUMN()-1),CHAR(128)) -> €
B4: If using different assumptions to the EU's prior guidance, is the explanation satisfactory and based on sound and data-driven economic arguments? | D4: Yes | E4: €
B5: If the IFI has been asked to issue an opinion on the macroeconomic forecast and the macroeconomic assumptions underpinning the net expenditure path, does it deem the forecast and assumptions to be plausible? | D5: Yes | E5: €
B7: 2. Regulation (EU) 2024/1263 compulsory elements checklist for MTP
B8: A multi-annual net expenditure path (including respect of the deficit resilience and debt sustainability safeguards), as well as … | C8: Articles 7; 8; 13(a) | D8: TRUE | E8: =HYPERLINK("#"&ADDRESS(ROW(),COLUMN()-1),CHAR(128)) -> €
B9: … the underlying macroeconomic assumptions and … | C9: Article 13(a) | D9: TRUE | E9: €
B10: … the planned fiscal-structural measures. | C10: Article 13(a) | D10: TRUE | E10: €
B11: The reference trajectory or technical information transmitted by the Commission. | C11: Article 13(b) | D11: TRUE | E11: €
B12: Where the national medium-term fiscal-structural plan includes a higher net expenditure path than in the reference trajectory issued by the Commission, sound and data-driven economic arguments explaining the difference. | C12: Article 13(b) | D12: TRUE | E12: €
B13: Investments and reforms responding to the main challenges identified under the European semester – in particular the CSRs – and addressing the common priorities of the Union. | C13: Article 13(c) | D13: TRUE | E13: €
B14: Actions to address CSRs relevant for the MIP and warnings by the Commission / recommendations by the Council. | C14: Article 13(d) | D14: TRUE | E14: €
B15: The impact of investments and reforms already implemented. | C15: Article 13(f) | D15: TRUE | E15: €
B16: Information related to the main macroeconomic and budgetary assumptions, … | C16: Article 13(g)(i) | D16: TRUE | E16: €
B17: … implicit and contingent liabilities, … | C17: Article 13(g)(ii) | D17: TRUE | E17: €
B18: … the expected impact of reforms and investments underpinning the extension of the adjustment period | C18: Article 13(g)(iii) | D18: NA | E18: €
B19: … the forecasted level of nationally-financed public investment throughout the period covered by the national mediumn-term fiscal-structural plan | C19: Article 13(g)(iv) | D19: TRUE | E19: €
B20: … public investment needs including those related to the common priorities of the Union referred to in point (c) of this Article | C20: Article 13(g)(v) | D20: TRUE | E20: €
B21: … the consultation of national parliaments and the consultation process referred to in Article 11 | C21: Article 13(g)(vi)); Article 11 | D21: TRUE | E21: €
B22: …the consistency and, where appropriate, complementarity with the cohesion policy funds as well as the recovery and resilience plan of the Member State concerned during the period of operation of the Recovery and Resilience Facility pursuant to Regulation (EU) 2021/241 | C22: Article 13(g)(vii) | D22: TRUE | E22: €
B23: The impact of the set of reforms and investment commitments underpinning an extension on growth and resilience potential, fiscal sustainability, and nationally financed public investment. | C23: Articles 14.2; 13(g) | D23: TRUE | E23: €
B24: Information on how the reforms and investment commitments underpinning an extension address the common priorities of the Union and relevant CSRs (including those issued under the MIP), and, … | C24: Article 14.2 | D24: TRUE | E24: €
B25: … for each of these reforms and investments, a clear description, timeline, and, where relevant, indicators. | C25: Article 14.3; 13(e) | D25: TRUE | E25: €
B26: Consistency of the set of reforms and investments for an extension with commitments included in the approved RRP and the agreed Partnership Agreement in the Multiannual Financial Framework. | C26: Article 14.4 | D26: TRUE | E26: €
B27: If the plan serves as a corrective action plan under the EIP/MIP, the specific policy action (to be) implemented and a timetable for those actions. | C27: Article 31 | D27: TRUE | E27: €
B28: Transitory arrangements: RRP commitments to be taken into account | C28: Article 36 | D28: TRUE | E28: €
B30: 3. Assessment of investment & reform package for extension requests (Article 14)
B31: Has the Member State requested an extension of the adjustment period beyond four years (i.e. to seven years) in its medium-term fiscal-structural plan? | C31: Art. 14(1) | D31: FALSE | E31: =HYPERLINK("#"&ADDRESS(ROW(),COLUMN()-1),CHAR(128)) -> €
B32: Taken together, do the proposed reforms and investments credibly improve the Member State’s growth and economic resilience in a sustainable manner? | C32: Art. 14(2)(a) | D32: NA | E32: €
B33: Taken together, do the proposed reforms and investments support fiscal sustainability, including a structural improvement in government finances over the medium term? | C33: Art. 14(2)(b) | D33: NA | E33: €
B34: Do the proposed reforms and investments address the Union’s common priorities referred to in Article 13(c) of Regulation (EU) 2024/1263? | C34: Art. 14(2)(c) | D34: NA | E34: €
B35: Do the proposed reforms and investments address the relevant country-specific recommendations, including any issued under the Macroeconomic Imbalances Procedure, where applicable? | C35: Art. 14(2)(d) | D35: NA | E35: €
B36: Is the overall level of nationally financed public investment over the MTP period at least as high as the medium-term level prior to the plan, taking into account country-specific challenges? | C36: Art. 14(2)(e) | D36: NA | E36: €
B37: Are the reform and investment commitments described clearly and in sufficient detail to allow assessment against the Article 14 criteria? | C37: Art. 14(3)(a) | D37: NA | E37: €
B38: Are the reform commitments time-bound and planned to be implemented within the period covered by the medium-term fiscal-structural plan? | C38: Art. 14(3)(b) | D38: NA | E38: €
B39: Is significant progress in the implementation of the investment commitments expected to be achieved by the end of the adjustment period? | C39: Art. 14(3)(c) | D39: NA | E39: €
B40: Do the descriptions of the reforms and investments include appropriate indicators or milestones to allow monitoring of their implementation? | C40: Art. 14(3)(d) | D40: NA | E40: €
B41: Are the reform and investment commitments consistent with the approved Recovery and Resilience Plan, where applicable? | C41: Art. 14(4) | D41: NA | E41: €
B42: Are the reform and investment commitments consistent with the Partnership Agreement under the Multiannual Financial Framework? | C42: Art. 14(4) | D42: NA | E42: €
B43: Overall, does the IFI judge that the reform and investment commitments fulfil the criteria in Article 14 for an extension of the adjustment period? | C43: Art. 14(1)–(4) (overall judgement) | D43: NA | E43: €
B45: 4. Adherence to investment & reform commitments (if an extension was granted)
B46: Were milestones/metrices implemented as set out in Table 8 of the plan? (Guidance, Section 2.6; Art. 14) | D46: Yes | E46: =HYPERLINK("#"&ADDRESS(ROW(),COLUMN()-1),CHAR(128)) -> €

Sheet Step 5 (MTP) - View results
B1: =Country&"'s adherence to Regulation (EU) 2024/1263 and associated guidance" -> Greece's adherence to Regulation (EU) 2024/1263 and associated guidance
B3: ="Assessing a new or revised MTP"&IF(Receives_reference_trajectory," under Article 5 pathway (receiving a reference trajectory)","under Article 9(3) pathway (receiving technical information)") -> Assessing a new or revised MTP under Article 5 pathway (receiving a reference trajectory)
B4: =CHAR(149)&IF(AssessmentRound="Implementation of an endorsed MTP"," The net expenditure path in the Medium-Term Plan under assessment was endorsed by the European Council; the below is for information only"," A new or revised MTP has been submitted for assessment") -> • The net expenditure path in the Medium-Term Plan under assessment was endorsed by the European Council; the below is for information only
B5: =CHAR(149)&" "&MTP_Requirement -> • Greece's gross debt was above 60% of GDP in 2023 (T-1), therefore it must adhere to an MTP with a planned net expenditure path that does not exceed the Commission's reference trajectory (or an alternative path that meets all criteria). If the planned net expenditure path exceeds the reference trajectory, Greece must provide sound and data-driven economic arguments explaining the difference.
B6: =CHAR(149)&" "&Country&IF(AdjustmentPeriod=4," has not requested an extension of the adjustment period; the adjustment period is the four years "&MTP_YearT+1&" to "&AdjustmentPeriodEnd&"."," has requested an extension of the adjustment period; the adjustment period is the seven years "&MTP_YearT+1&" to "&AdjustmentPeriodEnd&".") -> • Greece has not requested an extension of the adjustment period; the adjustment period is the four years 2025 to 2028.
B7: =CHAR(149)&" "& _xlfn.LET( _xlpm.rng, 'Step 1 - Set global parameters'!B13:H13, _xlpm.anyGeneral, COUNTIF(_xlpm.rng,"General")+COUNTIF(_xlpm.rng,"Both")>0, _xlpm.anyCountry, COUNTIF(_xlpm.rng,"Country")+COUNTIF(_xlpm.rng,"Both")>0, _xlfn.IFS( AND(_xlpm.anyGeneral, _xlpm.anyCountry), "Both the general and country-specific escape clauses have been activated.", _xlpm.anyGeneral, "The general escape clause has been activated.", _xlpm.anyCountry, "A country-specific escape clause has been activated.", TRUE, "No escape clauses are currently activated." ) ) -> • A country-specific escape clause has been activated.
B8: =CHAR(149)&" "&IF('Step 1 - Set global parameters'!B21, IF('Step 1 - Set global parameters'!B23, Country&" is subject to both an excessive deficit procedure and an excessive debt procedure.", Country&" is subject to an excessive deficit procedure."), IF('Step 1 - Set global parameters'!B23, Country&" is subject to an excessive debt procedure.", Country&" is not currently subject to any excessive deficit or debt procedure.")) -> • Greece is not currently subject to any excessive deficit or debt procedure.
B9: Plan plausibility and completeness (Articles 11, 13 and 14)
A10: M1 | B10: Macroeconomic assumption plausibility (IFI assessment) | C10: Article 11(2) | D10: =IF(E10="At risk","⚠",IF(E10="Compliant","☑",IF(E10="Breach","⮽","☐"))) -> ☑ | E10: =IF(Assessment!$C$212,"Compliant","Breach") -> Compliant | F10: =Assessment!C213 -> The Hellenic Fiscal Council has concluded that the MTP's alternative macroeconomic assumptions are based on sound and data-driven arguments and are plausible.
A11: M2 | B11: Completeness of information under Article 13 (Qualitative IFI assessment) | C11: Article 13 | D11: =IF(E11="At risk","⚠",IF(E11="Compliant","☑",IF(E11="Breach","⮽","☐"))) -> ☑ | E11: =IF(Assessment!$C$216,"Compliant","Breach") -> Compliant | F11: =Assessment!C217 -> The Hellenic Fiscal Council has concluded that the plan contains all information required by Article 13 of Regulation (EU) 2024/1263.
A12: M3 | B12: Fulfilment of criteria for an extension of the adjustment period | C12: Article 14 | D12: =IF(E12="At risk","⚠",IF(E12="Compliant","☑",IF(E12="Breach","⮽","☐"))) -> ☐ | E12: =IF( AdjustmentPeriod=7, IF(Assessment!C221, "Compliant", "Breach"), "N/A" ) -> N/A | F12: =Assessment!C222 -> Not applicable. Greece has not requested an extension of the adjustment period.
B13: Net expenditure path (Articles 6, 16)
A14: M4 | B14: Compliance of MTP average net expenditure growth with prior guidance | C14: Articles 6, 16(3) | D14: =IF(E14="At risk","⚠",IF(E14="Compliant","☑",IF(E14="Breach","⮽","☐"))) -> ☑ | E14: =IF( NOT(Receives_reference_trajectory), "N/A", IF( NOT(Assessment!$C$230), "Compliant", IF( Assessment!$C$231, "Compliant", "Breach" ) ) ) -> Compliant | F14: =Assessment!C232 -> The average net expenditure growth reported in Greece's plan over the adjustment period (2025–2028) is higher than the reference trajectory transmitted by the Commission on 30 June 2024, but the Hellenic Fiscal Council deems the explanation and alternative assumptions to be satisfactory.
A15: M5 | B15: Compliance of MTP annual net expenditure growth path with prior guidance | C15: Articles 6, 16(3) | D15: =IF(E15="At risk","⚠",IF(E15="Compliant","☑",IF(E15="Breach","⮽","☐"))) -> ☑ | E15: =IF(Receives_reference_trajectory,IF(Assessment!C238,"Compliant","Breach"),IF(Assessment!C248,"Compliant","Breach")) -> Compliant | F15: =IF(Receives_reference_trajectory,Assessment!C239,Assessment!C249) -> The net expenditure path in Greece's latest MTP exceeds the Commission's reference trajectory but the Hellenic Fiscal Council deems the explanation and alternative assumptions to be satisfactory.
A16: M6 | B16: Net expenditure growth path meets general debt requirements | C16: Article 16(2) | D16: =IF(E16="At risk","⚠",IF(E16="Compliant","☑",IF(E16="Breach","⮽","☐"))) -> ☑ | E16: =IF(Receives_reference_trajectory,IF(Assessment!C261,"Compliant","Breach"),IF(Assessment!C265,"Compliant","Breach")) -> Compliant | F16: =IF(Receives_reference_trajectory,Assessment!$C$262,Assessment!$C$266) -> Greece's planned net expenditure ensures gross government debt meets all risk-based debt requirements for a plausible downward path.
A17: M7 | B17: Net expenditure growth path meets deficit requirements | C17: Article 16(2) | D17: ☑ | E17: =IF(Receives_reference_trajectory,IF(Assessment!C271,"Compliant","Breach"),IF(Assessment!C275,"Compliant","Breach")) -> Compliant | F17: =IF(Receives_reference_trajectory,Assessment!$C$272,Assessment!$C$279) -> Greece's net expenditure path maintains the government deficit below 3% of GDP throughout the adjustment period and over the medium term.
A18: M8 | B18: Time profile of the fiscal adjustment (no back-loading condition) | C18: Article 6(c), 15(5) | D18: ☑ | E18: =IF(Receives_reference_trajectory,IF(Assessment!C290,"Compliant","Breach"),"N/A") -> Compliant | F18: =Assessment!C292 -> The time profile of the fiscal adjustment, measured as the change in the structural primary balance, is linear. The adjustment effort does not rise over the adjustment period, and it is proportional to the total effort over the adjustment period. Therefore the net expenditure path put forward in Greece's latest MTP is consistent with the no backloading safeguard clause.
A19: M9 | B19: Consistency with EDP corrective path | C19: Article 6(d) | D19: ☐ | E19: =_xlfn.IFNA(IF(Assessment!C303,"Compliant",IF(NOT(Assessment!C312),"Breach")),"N/A") -> N/A | F19: =Assessment!C304 -> The Council has not opened an excessive deficit procedure against Greece.
B20: Debt and deficit sustainability (Articles 6(a), 6(b), 6(c), 6(d), 7, 8)
A21: M10 | B21: Debt sustainability safeguard ex ante | C21: Article 7 | D21: =IF(E21="At risk","⚠",IF(E21="Compliant","☑",IF(E21="Breach","⮽","☐"))) -> ☑ | E21: =IF( NOT(Receives_reference_trajectory), "N/A", IF( OR(Assessment!C309, Assessment!C310), IF( OR( IF(Assessment!C309,NOT(Assessment!C311), FALSE), IF(Assessment!C310,NOT(Assessment!C312), FALSE) ), "Breach", "Compliant" ), "The debt sustainability safeguard does not apply." ) ) -> Compliant | F21: =Assessment!C315 -> The debt sustainability safeguard applies and Greece's fiscal path is compliant.
A22: M11 | B22: Deficit resilience safeguard ex ante | C22: Article 8 | D22: ☐ | E22: =IF( NOT(Receives_reference_trajectory), "N/A", IF( OR(Assessment!C324=FALSE, ISNA(Assessment!C326)), "N/A", IF(Assessment!C326, "Compliant", "Breach") ) ) -> N/A | F22: =Assessment!C328 -> The deficit resilience safeguard does not apply, as the structural deficit does not exceed 1.5% of GDP during the adjustment period.
A23: M12 | B23: Primary structural balance adjustment over adjustment period (supportive) | C23: EC practice | D23: =IF(E23="At risk","⚠",IF(E23="Compliant","☑",IF(E23="Breach","⮽","☐"))) -> ☑ | E23: =IF( Receives_reference_trajectory, IF( OR(ISNA(Assessment!C332), ISNA(Assessment!C333)), "N/A", IF( Assessment!C333 >= Assessment!C332, "Compliant", IF( EscapeClauseActivated, "At risk", "At risk" ) ) ), IF( ISNA(Assessment!$C$344), "N/A", IF( Assessment!$C$344, "Compliant", "Breach" ) ) ) -> Compliant | F23: =IF(Receives_reference_trajectory,Assessment!C338,Assessment!C347) -> Greece's total SPB adjustment required over the adjustment period is 0.9 pp of GDP. The planned average annual consolidation of 0.4 pp exceeds the required 0.2 pp, indicating that the plan appears consistent with achieving the target SPB implied by the reference trajectory by the end of the horizon.
B24: Overall MTP compliance
B25: Overall MTP net expenditure path compliance | D25: =IF(E23="At risk","⚠",IF(E23="Compliant","☑",IF(E23="Breach","⮽","☐"))) -> ☑ | E25: =IF(COUNTIF(E11:E22,"Breach")>0,"Breach",IF(COUNTIF(E14:E22,"At risk")>0,"At risk","Compliant")) -> Compliant | F25: =IF(Receives_reference_trajectory,Assessment!C352,Assessment!C356) -> The net expenditure path in Greece's latest MTP exceeds the Commission's reference trajectory but the Hellenic Fiscal Council deems the explanation and alternative assumptions to be satisfactory, and it meets all requirements of Regulation (EU) 2024/1263.

Sheet Assessment
B1: Assessment outlook
B2: ="Latest outturn data to "&OutturnThrough&IF(OutturnThrough=AssessmentEnd,""," and "&ScenarioName) -> Latest outturn data to 2025 and Annual Progress Report 2026
B4: Calendar year | D4: =_xlfn.SEQUENCE(1, AssessmentEnd-MTP_BaseYear+1, MTP_BaseYear) -> 2023 | E4: 2024 | F4: 2025 | G4: 2026
B5: MTP reference year | D5: =IF( AND(_xlfn.ANCHORARRAY(D4)>=MTP_YearT-1,_xlfn.ANCHORARRAY( D4)<=MTP_EndYear), CHOOSE(SIGN(_xlfn.ANCHORARRAY(D4)-MTP_YearT)+2, "T-1", "T", "T+"&(_xlfn.ANCHORARRAY(D4)-MTP_YearT)), "" ) -> T-1 | E5: T | F5: T+1 | G5: T+2
B6: Total expenditure | C6: bn NAC | D6: =IF(D$4<=OutturnThrough,IF(ISNUMBER('Step 2 - Update outturn data'!E6),'Step 2 - Update outturn data'!E6,""),IF(ISNUMBER('Step 3 (IMPL) - Enter outlook'!D8),'Step 3 (IMPL) - Enter outlook'!D8,"")) -> 111.255 | E6: =IF(E$4<=OutturnThrough,IF(ISNUMBER('Step 2 - Update outturn data'!F6),'Step 2 - Update outturn data'!F6,""),IF(ISNUMBER('Step 3 (IMPL) - Enter outlook'!E8),'Step 3 (IMPL) - Enter outlook'!E8,"")) -> 113.87 | F6: =IF(F$4<=OutturnThrough,IF(ISNUMBER('Step 2 - Update outturn data'!G6),'Step 2 - Update outturn data'!G6,""),IF(ISNUMBER('Step 3 (IMPL) - Enter outlook'!F8),'Step 3 (IMPL) - Enter outlook'!F8,"")) -> 119.875 | G6: =IF(G$4<=OutturnThrough,IF(ISNUMBER('Step 2 - Update outturn data'!H6),'Step 2 - Update outturn data'!H6,""),IF(ISNUMBER('Step 3 (IMPL) - Enter outlook'!G8),'Step 3 (IMPL) - Enter outlook'!G8,"")) -> 131.1565824 | H6: =IF(H$4<=OutturnThrough,IF(ISNUMBER('Step 2 - Update outturn data'!I6),'Step 2 - Update outturn data'!I6,""),IF(ISNUMBER('Step 3 (IMPL) - Enter outlook'!H8),'Step 3 (IMPL) - Enter outlook'!H8,"")) ->  | I6: =IF(I$4<=OutturnThrough,IF(ISNUMBER('Step 2 - Update outturn data'!J6),'Step 2 - Update outturn data'!J6,""),IF(ISNUMBER('Step 3 (IMPL) - Enter outlook'!I8),'Step 3 (IMPL) - Enter outlook'!I8,"")) ->  | J6: =IF(J$4<=OutturnThrough,IF(ISNUMBER('Step 2 - Update outturn data'!K6),'Step 2 - Update outturn data'!K6,""),IF(ISNUMBER('Step 3 (IMPL) - Enter outlook'!J8),'Step 3 (IMPL) - Enter outlook'!J8,"")) ->  | K6: =IF(K$4<=OutturnThrough,IF(ISNUMBER('Step 2 - Update outturn data'!L6),'Step 2 - Update outturn data'!L6,""),IF(ISNUMBER('Step 3 (IMPL) - Enter outlook'!K8),'Step 3 (IMPL) - Enter outlook'!K8,"")) -> 
B7: Interest expenditure | C7: bn NAC | D7: =IF(D$4<=OutturnThrough,IF(ISNUMBER('Step 2 - Update outturn data'!E7),'Step 2 - Update outturn data'!E7,""),IF(ISNUMBER('Step 3 (IMPL) - Enter outlook'!D9),'Step 3 (IMPL) - Enter outlook'!D9,"")) -> 7.612 | E7: =IF(E$4<=OutturnThrough,IF(ISNUMBER('Step 2 - Update outturn data'!F7),'Step 2 - Update outturn data'!F7,""),IF(ISNUMBER('Step 3 (IMPL) - Enter outlook'!E9),'Step 3 (IMPL) - Enter outlook'!E9,"")) -> 8.225 | F7: =IF(F$4<=OutturnThrough,IF(ISNUMBER('Step 2 - Update outturn data'!G7),'Step 2 - Update outturn data'!G7,""),IF(ISNUMBER('Step 3 (IMPL) - Enter outlook'!F9),'Step 3 (IMPL) - Enter outlook'!F9,"")) -> 7.841 | G7: =IF(G$4<=OutturnThrough,IF(ISNUMBER('Step 2 - Update outturn data'!H7),'Step 2 - Update outturn data'!H7,""),IF(ISNUMBER('Step 3 (IMPL) - Enter outlook'!G9),'Step 3 (IMPL) - Enter outlook'!G9,"")) -> 7.838042772 | H7: =IF(H$4<=OutturnThrough,IF(ISNUMBER('Step 2 - Update outturn data'!I7),'Step 2 - Update outturn data'!I7,""),IF(ISNUMBER('Step 3 (IMPL) - Enter outlook'!H9),'Step 3 (IMPL) - Enter outlook'!H9,"")) ->  | I7: =IF(I$4<=OutturnThrough,IF(ISNUMBER('Step 2 - Update outturn data'!J7),'Step 2 - Update outturn data'!J7,""),IF(ISNUMBER('Step 3 (IMPL) - Enter outlook'!I9),'Step 3 (IMPL) - Enter outlook'!I9,"")) ->  | J7: =IF(J$4<=OutturnThrough,IF(ISNUMBER('Step 2 - Update outturn data'!K7),'Step 2 - Update outturn data'!K7,""),IF(ISNUMBER('Step 3 (IMPL) - Enter outlook'!J9),'Step 3 (IMPL) - Enter outlook'!J9,"")) ->  | K7: =IF(K$4<=OutturnThrough,IF(ISNUMBER('Step 2 - Update outturn data'!L7),'Step 2 - Update outturn data'!L7,""),IF(ISNUMBER('Step 3 (IMPL) - Enter outlook'!K9),'Step 3 (IMPL) - Enter outlook'!K9,"")) -> 
B8: Cyclical unemployment expenditure | C8: bn NAC | D8: =IF(D$4<=OutturnThrough,IF(ISNUMBER('Step 2 - Update outturn data'!E8),'Step 2 - Update outturn data'!E8,""),IF(ISNUMBER('Step 3 (IMPL) - Enter outlook'!D10),'Step 3 (IMPL) - Enter outlook'!D10,"")) -> 0.3 | E8: =IF(E$4<=OutturnThrough,IF(ISNUMBER('Step 2 - Update outturn data'!F8),'Step 2 - Update outturn data'!F8,""),IF(ISNUMBER('Step 3 (IMPL) - Enter outlook'!E10),'Step 3 (IMPL) - Enter outlook'!E10,"")) -> 0.1 | F8: =IF(F$4<=OutturnThrough,IF(ISNUMBER('Step 2 - Update outturn data'!G8),'Step 2 - Update outturn data'!G8,""),IF(ISNUMBER('Step 3 (IMPL) - Enter outlook'!F10),'Step 3 (IMPL) - Enter outlook'!F10,"")) -> -0.1 | G8: =IF(G$4<=OutturnThrough,IF(ISNUMBER('Step 2 - Update outturn data'!H8),'Step 2 - Update outturn data'!H8,""),IF(ISNUMBER('Step 3 (IMPL) - Enter outlook'!G10),'Step 3 (IMPL) - Enter outlook'!G10,"")) -> -0.2612680924 | H8: =IF(H$4<=OutturnThrough,IF(ISNUMBER('Step 2 - Update outturn data'!I8),'Step 2 - Update outturn data'!I8,""),IF(ISNUMBER('Step 3 (IMPL) - Enter outlook'!H10),'Step 3 (IMPL) - Enter outlook'!H10,"")) ->  | I8: =IF(I$4<=OutturnThrough,IF(ISNUMBER('Step 2 - Update outturn data'!J8),'Step 2 - Update outturn data'!J8,""),IF(ISNUMBER('Step 3 (IMPL) - Enter outlook'!I10),'Step 3 (IMPL) - Enter outlook'!I10,"")) ->  | J8: =IF(J$4<=OutturnThrough,IF(ISNUMBER('Step 2 - Update outturn data'!K8),'Step 2 - Update outturn data'!K8,""),IF(ISNUMBER('Step 3 (IMPL) - Enter outlook'!J10),'Step 3 (IMPL) - Enter outlook'!J10,"")) ->  | K8: =IF(K$4<=OutturnThrough,IF(ISNUMBER('Step 2 - Update outturn data'!L8),'Step 2 - Update outturn data'!L8,""),IF(ISNUMBER('Step 3 (IMPL) - Enter outlook'!K10),'Step 3 (IMPL) - Enter outlook'!K10,"")) -> 
B9: Expenditure funded by transfers from the EU | C9: bn NAC | D9: =IF(D$4<=OutturnThrough,IF(ISNUMBER('Step 2 - Update outturn data'!E9),'Step 2 - Update outturn data'!E9,""),IF(ISNUMBER('Step 3 (IMPL) - Enter outlook'!D11),'Step 3 (IMPL) - Enter outlook'!D11,"")) -> 5.664 | E9: =IF(E$4<=OutturnThrough,IF(ISNUMBER('Step 2 - Update outturn data'!F9),'Step 2 - Update outturn data'!F9,""),IF(ISNUMBER('Step 3 (IMPL) - Enter outlook'!E11),'Step 3 (IMPL) - Enter outlook'!E11,"")) -> 5.873 | F9: =IF(F$4<=OutturnThrough,IF(ISNUMBER('Step 2 - Update outturn data'!G9),'Step 2 - Update outturn data'!G9,""),IF(ISNUMBER('Step 3 (IMPL) - Enter outlook'!F11),'Step 3 (IMPL) - Enter outlook'!F11,"")) -> 8.43 | G9: =IF(G$4<=OutturnThrough,IF(ISNUMBER('Step 2 - Update outturn data'!H9),'Step 2 - Update outturn data'!H9,""),IF(ISNUMBER('Step 3 (IMPL) - Enter outlook'!G11),'Step 3 (IMPL) - Enter outlook'!G11,"")) -> 12.54086844 | H9: =IF(H$4<=OutturnThrough,IF(ISNUMBER('Step 2 - Update outturn data'!I9),'Step 2 - Update outturn data'!I9,""),IF(ISNUMBER('Step 3 (IMPL) - Enter outlook'!H11),'Step 3 (IMPL) - Enter outlook'!H11,"")) ->  | I9: =IF(I$4<=OutturnThrough,IF(ISNUMBER('Step 2 - Update outturn data'!J9),'Step 2 - Update outturn data'!J9,""),IF(ISNUMBER('Step 3 (IMPL) - Enter outlook'!I11),'Step 3 (IMPL) - Enter outlook'!I11,"")) ->  | J9: =IF(J$4<=OutturnThrough,IF(ISNUMBER('Step 2 - Update outturn data'!K9),'Step 2 - Update outturn data'!K9,""),IF(ISNUMBER('Step 3 (IMPL) - Enter outlook'!J11),'Step 3 (IMPL) - Enter outlook'!J11,"")) ->  | K9: =IF(K$4<=OutturnThrough,IF(ISNUMBER('Step 2 - Update outturn data'!L9),'Step 2 - Update outturn data'!L9,""),IF(ISNUMBER('Step 3 (IMPL) - Enter outlook'!K11),'Step 3 (IMPL) - Enter outlook'!K11,"")) -> 
B10: National co-financing of EU programmes | C10: bn NAC | D10: =IF(D$4<=OutturnThrough,IF(ISNUMBER('Step 2 - Update outturn data'!E10),'Step 2 - Update outturn data'!E10,""),IF(ISNUMBER('Step 3 (IMPL) - Enter outlook'!D12),'Step 3 (IMPL) - Enter outlook'!D12,"")) -> 0.739 | E10: =IF(E$4<=OutturnThrough,IF(ISNUMBER('Step 2 - Update outturn data'!F10),'Step 2 - Update outturn data'!F10,""),IF(ISNUMBER('Step 3 (IMPL) - Enter outlook'!E12),'Step 3 (IMPL) - Enter outlook'!E12,"")) -> 0.705 | F10: =IF(F$4<=OutturnThrough,IF(ISNUMBER('Step 2 - Update outturn data'!G10),'Step 2 - Update outturn data'!G10,""),IF(ISNUMBER('Step 3 (IMPL) - Enter outlook'!F12),'Step 3 (IMPL) - Enter outlook'!F12,"")) -> 0.78 | G10: =IF(G$4<=OutturnThrough,IF(ISNUMBER('Step 2 - Update outturn data'!H10),'Step 2 - Update outturn data'!H10,""),IF(ISNUMBER('Step 3 (IMPL) - Enter outlook'!G12),'Step 3 (IMPL) - Enter outlook'!G12,"")) -> 1.306340462 | H10: =IF(H$4<=OutturnThrough,IF(ISNUMBER('Step 2 - Update outturn data'!I10),'Step 2 - Update outturn data'!I10,""),IF(ISNUMBER('Step 3 (IMPL) - Enter outlook'!H12),'Step 3 (IMPL) - Enter outlook'!H12,"")) ->  | I10: =IF(I$4<=OutturnThrough,IF(ISNUMBER('Step 2 - Update outturn data'!J10),'Step 2 - Update outturn data'!J10,""),IF(ISNUMBER('Step 3 (IMPL) - Enter outlook'!I12),'Step 3 (IMPL) - Enter outlook'!I12,"")) ->  | J10: =IF(J$4<=OutturnThrough,IF(ISNUMBER('Step 2 - Update outturn data'!K10),'Step 2 - Update outturn data'!K10,""),IF(ISNUMBER('Step 3 (IMPL) - Enter outlook'!J12),'Step 3 (IMPL) - Enter outlook'!J12,"")) ->  | K10: =IF(K$4<=OutturnThrough,IF(ISNUMBER('Step 2 - Update outturn data'!L10),'Step 2 - Update outturn data'!L10,""),IF(ISNUMBER('Step 3 (IMPL) - Enter outlook'!K12),'Step 3 (IMPL) - Enter outlook'!K12,"")) -> 
B11: One-off expenditure ( excl. EU funded) | C11: bn NAC | D11: =IF(D$4<=OutturnThrough,IF(ISNUMBER('Step 2 - Update outturn data'!E11),'Step 2 - Update outturn data'!E11,""),IF(ISNUMBER('Step 3 (IMPL) - Enter outlook'!D13),'Step 3 (IMPL) - Enter outlook'!D13,"")) -> 0.302 | E11: =IF(E$4<=OutturnThrough,IF(ISNUMBER('Step 2 - Update outturn data'!F11),'Step 2 - Update outturn data'!F11,""),IF(ISNUMBER('Step 3 (IMPL) - Enter outlook'!E13),'Step 3 (IMPL) - Enter outlook'!E13,"")) -> 0.4 | F11: =IF(F$4<=OutturnThrough,IF(ISNUMBER('Step 2 - Update outturn data'!G11),'Step 2 - Update outturn data'!G11,""),IF(ISNUMBER('Step 3 (IMPL) - Enter outlook'!F13),'Step 3 (IMPL) - Enter outlook'!F13,"")) -> 0.436 | G11: =IF(G$4<=OutturnThrough,IF(ISNUMBER('Step 2 - Update outturn data'!H11),'Step 2 - Update outturn data'!H11,""),IF(ISNUMBER('Step 3 (IMPL) - Enter outlook'!G13),'Step 3 (IMPL) - Enter outlook'!G13,"")) -> 0 | H11: =IF(H$4<=OutturnThrough,IF(ISNUMBER('Step 2 - Update outturn data'!I11),'Step 2 - Update outturn data'!I11,""),IF(ISNUMBER('Step 3 (IMPL) - Enter outlook'!H13),'Step 3 (IMPL) - Enter outlook'!H13,"")) ->  | I11: =IF(I$4<=OutturnThrough,IF(ISNUMBER('Step 2 - Update outturn data'!J11),'Step 2 - Update outturn data'!J11,""),IF(ISNUMBER('Step 3 (IMPL) - Enter outlook'!I13),'Step 3 (IMPL) - Enter outlook'!I13,"")) ->  | J11: =IF(J$4<=OutturnThrough,IF(ISNUMBER('Step 2 - Update outturn data'!K11),'Step 2 - Update outturn data'!K11,""),IF(ISNUMBER('Step 3 (IMPL) - Enter outlook'!J13),'Step 3 (IMPL) - Enter outlook'!J13,"")) ->  | K11: =IF(K$4<=OutturnThrough,IF(ISNUMBER('Step 2 - Update outturn data'!L11),'Step 2 - Update outturn data'!L11,""),IF(ISNUMBER('Step 3 (IMPL) - Enter outlook'!K13),'Step 3 (IMPL) - Enter outlook'!K13,"")) -> 
B12: Net nationally financed primary expenditure (before DRM) | C12: bn NAC | D12: =IF(D$4<=OutturnThrough,IF(ISNUMBER('Step 2 - Update outturn data'!E12),'Step 2 - Update outturn data'!E12,""),IF(ISNUMBER('Step 3 (IMPL) - Enter outlook'!D14),'Step 3 (IMPL) - Enter outlook'!D14,"")) -> 96.64254 | E12: =IF(E$4<=OutturnThrough,IF(ISNUMBER('Step 2 - Update outturn data'!F12),'Step 2 - Update outturn data'!F12,""),IF(ISNUMBER('Step 3 (IMPL) - Enter outlook'!E14),'Step 3 (IMPL) - Enter outlook'!E14,"")) -> 98.51742 | F12: =IF(F$4<=OutturnThrough,IF(ISNUMBER('Step 2 - Update outturn data'!G12),'Step 2 - Update outturn data'!G12,""),IF(ISNUMBER('Step 3 (IMPL) - Enter outlook'!F14),'Step 3 (IMPL) - Enter outlook'!F14,"")) -> 102.40949 | G12: =IF(G$4<=OutturnThrough,IF(ISNUMBER('Step 2 - Update outturn data'!H12),'Step 2 - Update outturn data'!H12,""),IF(ISNUMBER('Step 3 (IMPL) - Enter outlook'!G14),'Step 3 (IMPL) - Enter outlook'!G14,"")) -> 109.7325988 | H12: =IF(H$4<=OutturnThrough,IF(ISNUMBER('Step 2 - Update outturn data'!I12),'Step 2 - Update outturn data'!I12,""),IF(ISNUMBER('Step 3 (IMPL) - Enter outlook'!H14),'Step 3 (IMPL) - Enter outlook'!H14,"")) ->  | I12: =IF(I$4<=OutturnThrough,IF(ISNUMBER('Step 2 - Update outturn data'!J12),'Step 2 - Update outturn data'!J12,""),IF(ISNUMBER('Step 3 (IMPL) - Enter outlook'!I14),'Step 3 (IMPL) - Enter outlook'!I14,"")) ->  | J12: =IF(J$4<=OutturnThrough,IF(ISNUMBER('Step 2 - Update outturn data'!K12),'Step 2 - Update outturn data'!K12,""),IF(ISNUMBER('Step 3 (IMPL) - Enter outlook'!J14),'Step 3 (IMPL) - Enter outlook'!J14,"")) ->  | K12: =IF(K$4<=OutturnThrough,IF(ISNUMBER('Step 2 - Update outturn data'!L12),'Step 2 - Update outturn data'!L12,""),IF(ISNUMBER('Step 3 (IMPL) - Enter outlook'!K14),'Step 3 (IMPL) - Enter outlook'!K14,"")) -> 
B13: Discretionary revenue measures (excl. one-off revenue, incremental impact) | C13: bn NAC | D13: =IF(D$4<=OutturnThrough,IF(ISNUMBER('Step 2 - Update outturn data'!E13),'Step 2 - Update outturn data'!E13,""),IF(ISNUMBER('Step 3 (IMPL) - Enter outlook'!D15),'Step 3 (IMPL) - Enter outlook'!D15,"")) -> 0 | E13: =IF(E$4<=OutturnThrough,IF(ISNUMBER('Step 2 - Update outturn data'!F13),'Step 2 - Update outturn data'!F13,""),IF(ISNUMBER('Step 3 (IMPL) - Enter outlook'!E15),'Step 3 (IMPL) - Enter outlook'!E15,"")) -> 2 | F13: =IF(F$4<=OutturnThrough,IF(ISNUMBER('Step 2 - Update outturn data'!G13),'Step 2 - Update outturn data'!G13,""),IF(ISNUMBER('Step 3 (IMPL) - Enter outlook'!F15),'Step 3 (IMPL) - Enter outlook'!F15,"")) -> 1.1 | G13: =IF(G$4<=OutturnThrough,IF(ISNUMBER('Step 2 - Update outturn data'!H13),'Step 2 - Update outturn data'!H13,""),IF(ISNUMBER('Step 3 (IMPL) - Enter outlook'!G15),'Step 3 (IMPL) - Enter outlook'!G15,"")) -> -0.5225361848 | H13: =IF(H$4<=OutturnThrough,IF(ISNUMBER('Step 2 - Update outturn data'!I13),'Step 2 - Update outturn data'!I13,""),IF(ISNUMBER('Step 3 (IMPL) - Enter outlook'!H15),'Step 3 (IMPL) - Enter outlook'!H15,"")) ->  | I13: =IF(I$4<=OutturnThrough,IF(ISNUMBER('Step 2 - Update outturn data'!J13),'Step 2 - Update outturn data'!J13,""),IF(ISNUMBER('Step 3 (IMPL) - Enter outlook'!I15),'Step 3 (IMPL) - Enter outlook'!I15,"")) ->  | J13: =IF(J$4<=OutturnThrough,IF(ISNUMBER('Step 2 - Update outturn data'!K13),'Step 2 - Update outturn data'!K13,""),IF(ISNUMBER('Step 3 (IMPL) - Enter outlook'!J15),'Step 3 (IMPL) - Enter outlook'!J15,"")) ->  | K13: =IF(K$4<=OutturnThrough,IF(ISNUMBER('Step 2 - Update outturn data'!L13),'Step 2 - Update outturn data'!L13,""),IF(ISNUMBER('Step 3 (IMPL) - Enter outlook'!K15),'Step 3 (IMPL) - Enter outlook'!K15,"")) -> 
B14: Defence expenditure | C14: bn NAC | D14: =IF(D$4<=OutturnThrough,IF(ISNUMBER('Step 2 - Update outturn data'!E14),'Step 2 - Update outturn data'!E14,""),IF(ISNUMBER('Step 3 (IMPL) - Enter outlook'!D16),'Step 3 (IMPL) - Enter outlook'!D16,"")) -> 5.2 | E14: =IF(E$4<=OutturnThrough,IF(ISNUMBER('Step 2 - Update outturn data'!F14),'Step 2 - Update outturn data'!F14,""),IF(ISNUMBER('Step 3 (IMPL) - Enter outlook'!E16),'Step 3 (IMPL) - Enter outlook'!E16,"")) -> 5.288 | F14: =IF(F$4<=OutturnThrough,IF(ISNUMBER('Step 2 - Update outturn data'!G14),'Step 2 - Update outturn data'!G14,""),IF(ISNUMBER('Step 3 (IMPL) - Enter outlook'!F16),'Step 3 (IMPL) - Enter outlook'!F16,"")) -> 5.986 | G14: =IF(G$4<=OutturnThrough,IF(ISNUMBER('Step 2 - Update outturn data'!H14),'Step 2 - Update outturn data'!H14,""),IF(ISNUMBER('Step 3 (IMPL) - Enter outlook'!G16),'Step 3 (IMPL) - Enter outlook'!G16,"")) -> 6.792970402 | H14: =IF(H$4<=OutturnThrough,IF(ISNUMBER('Step 2 - Update outturn data'!I14),'Step 2 - Update outturn data'!I14,""),IF(ISNUMBER('Step 3 (IMPL) - Enter outlook'!H16),'Step 3 (IMPL) - Enter outlook'!H16,"")) ->  | I14: =IF(I$4<=OutturnThrough,IF(ISNUMBER('Step 2 - Update outturn data'!J14),'Step 2 - Update outturn data'!J14,""),IF(ISNUMBER('Step 3 (IMPL) - Enter outlook'!I16),'Step 3 (IMPL) - Enter outlook'!I16,"")) ->  | J14: =IF(J$4<=OutturnThrough,IF(ISNUMBER('Step 2 - Update outturn data'!K14),'Step 2 - Update outturn data'!K14,""),IF(ISNUMBER('Step 3 (IMPL) - Enter outlook'!J16),'Step 3 (IMPL) - Enter outlook'!J16,"")) ->  | K14: =IF(K$4<=OutturnThrough,IF(ISNUMBER('Step 2 - Update outturn data'!L14),'Step 2 - Update outturn data'!L14,""),IF(ISNUMBER('Step 3 (IMPL) - Enter outlook'!K16),'Step 3 (IMPL) - Enter outlook'!K16,"")) -> 
B15: Net expenditure growth (annual) | C15: growth rate (%) | D15: =IF(D$4<=OutturnThrough,IF(ISNUMBER('Step 2 - Update outturn data'!E15),'Step 2 - Update outturn data'!E15,""),IF(ISNUMBER('Step 3 (IMPL) - Enter outlook'!D17),'Step 3 (IMPL) - Enter outlook'!D17,"")) ->  | E15: =IF(E$4<=OutturnThrough,IF(ISNUMBER('Step 2 - Update outturn data'!F15),'Step 2 - Update outturn data'!F15,""),IF(ISNUMBER('Step 3 (IMPL) - Enter outlook'!E17),'Step 3 (IMPL) - Enter outlook'!E17,"")) -> -0.1294667959 | F15: =IF(F$4<=OutturnThrough,IF(ISNUMBER('Step 2 - Update outturn data'!G15),'Step 2 - Update outturn data'!G15,""),IF(ISNUMBER('Step 3 (IMPL) - Enter outlook'!F17),'Step 3 (IMPL) - Enter outlook'!F17,"")) -> 2.834087616 | G15: =IF(G$4<=OutturnThrough,IF(ISNUMBER('Step 2 - Update outturn data'!H15),'Step 2 - Update outturn data'!H15,""),IF(ISNUMBER('Step 3 (IMPL) - Enter outlook'!G17),'Step 3 (IMPL) - Enter outlook'!G17,"")) -> 7.5 | H15: =IF(H$4<=OutturnThrough,IF(ISNUMBER('Step 2 - Update outturn data'!I15),'Step 2 - Update outturn data'!I15,""),IF(ISNUMBER('Step 3 (IMPL) - Enter outlook'!H17),'Step 3 (IMPL) - Enter outlook'!H17,"")) ->  | I15: =IF(I$4<=OutturnThrough,IF(ISNUMBER('Step 2 - Update outturn data'!J15),'Step 2 - Update outturn data'!J15,""),IF(ISNUMBER('Step 3 (IMPL) - Enter outlook'!I17),'Step 3 (IMPL) - Enter outlook'!I17,"")) ->  | J15: =IF(J$4<=OutturnThrough,IF(ISNUMBER('Step 2 - Update outturn data'!K15),'Step 2 - Update outturn data'!K15,""),IF(ISNUMBER('Step 3 (IMPL) - Enter outlook'!J17),'Step 3 (IMPL) - Enter outlook'!J17,"")) ->  | K15: =IF(K$4<=OutturnThrough,IF(ISNUMBER('Step 2 - Update outturn data'!L15),'Step 2 - Update outturn data'!L15,""),IF(ISNUMBER('Step 3 (IMPL) - Enter outlook'!K17),'Step 3 (IMPL) - Enter outlook'!K17,"")) -> 
B16: Net expenditure growth (cumulative) | C16: growth rate (%) | D16: =IF(D$4<=OutturnThrough,IF(ISNUMBER('Step 2 - Update outturn data'!E16),'Step 2 - Update outturn data'!E16,""),IF(ISNUMBER('Step 3 (IMPL) - Enter outlook'!D18),'Step 3 (IMPL) - Enter outlook'!D18,"")) ->  | E16: =IF(E$4<=OutturnThrough,IF(ISNUMBER('Step 2 - Update outturn data'!F16),'Step 2 - Update outturn data'!F16,""),IF(ISNUMBER('Step 3 (IMPL) - Enter outlook'!E18),'Step 3 (IMPL) - Enter outlook'!E18,"")) -> -0.1294667959 | F16: =IF(F$4<=OutturnThrough,IF(ISNUMBER('Step 2 - Update outturn data'!G16),'Step 2 - Update outturn data'!G16,""),IF(ISNUMBER('Step 3 (IMPL) - Enter outlook'!F18),'Step 3 (IMPL) - Enter outlook'!F18,"")) -> 2.700951618 | G16: =IF(G$4<=OutturnThrough,IF(ISNUMBER('Step 2 - Update outturn data'!H16),'Step 2 - Update outturn data'!H16,""),IF(ISNUMBER('Step 3 (IMPL) - Enter outlook'!G18),'Step 3 (IMPL) - Enter outlook'!G18,"")) -> 10.40352299 | H16: =IF(H$4<=OutturnThrough,IF(ISNUMBER('Step 2 - Update outturn data'!I16),'Step 2 - Update outturn data'!I16,""),IF(ISNUMBER('Step 3 (IMPL) - Enter outlook'!H18),'Step 3 (IMPL) - Enter outlook'!H18,"")) ->  | I16: =IF(I$4<=OutturnThrough,IF(ISNUMBER('Step 2 - Update outturn data'!J16),'Step 2 - Update outturn data'!J16,""),IF(ISNUMBER('Step 3 (IMPL) - Enter outlook'!I18),'Step 3 (IMPL) - Enter outlook'!I18,"")) ->  | J16: =IF(J$4<=OutturnThrough,IF(ISNUMBER('Step 2 - Update outturn data'!K16),'Step 2 - Update outturn data'!K16,""),IF(ISNUMBER('Step 3 (IMPL) - Enter outlook'!J18),'Step 3 (IMPL) - Enter outlook'!J18,"")) ->  | K16: =IF(K$4<=OutturnThrough,IF(ISNUMBER('Step 2 - Update outturn data'!L16),'Step 2 - Update outturn data'!L16,""),IF(ISNUMBER('Step 3 (IMPL) - Enter outlook'!K18),'Step 3 (IMPL) - Enter outlook'!K18,"")) -> 
B17: Net lending/borrowing | C17: % GDP | D17: =IF(D$4<=OutturnThrough,IF(ISNUMBER('Step 2 - Update outturn data'!E17),'Step 2 - Update outturn data'!E17,""),IF(ISNUMBER('Step 3 (IMPL) - Enter outlook'!D19),'Step 3 (IMPL) - Enter outlook'!D19,"")) -> -1.429994365 | E17: =IF(E$4<=OutturnThrough,IF(ISNUMBER('Step 2 - Update outturn data'!F17),'Step 2 - Update outturn data'!F17,""),IF(ISNUMBER('Step 3 (IMPL) - Enter outlook'!E19),'Step 3 (IMPL) - Enter outlook'!E19,"")) -> 1.347070154 | F17: =IF(F$4<=OutturnThrough,IF(ISNUMBER('Step 2 - Update outturn data'!G17),'Step 2 - Update outturn data'!G17,""),IF(ISNUMBER('Step 3 (IMPL) - Enter outlook'!F19),'Step 3 (IMPL) - Enter outlook'!F19,"")) -> 1.727375111 | G17: =IF(G$4<=OutturnThrough,IF(ISNUMBER('Step 2 - Update outturn data'!H17),'Step 2 - Update outturn data'!H17,""),IF(ISNUMBER('Step 3 (IMPL) - Enter outlook'!G19),'Step 3 (IMPL) - Enter outlook'!G19,"")) -> 0.2 | H17: =IF(H$4<=OutturnThrough,IF(ISNUMBER('Step 2 - Update outturn data'!I17),'Step 2 - Update outturn data'!I17,""),IF(ISNUMBER('Step 3 (IMPL) - Enter outlook'!H19),'Step 3 (IMPL) - Enter outlook'!H19,"")) ->  | I17: =IF(I$4<=OutturnThrough,IF(ISNUMBER('Step 2 - Update outturn data'!J17),'Step 2 - Update outturn data'!J17,""),IF(ISNUMBER('Step 3 (IMPL) - Enter outlook'!I19),'Step 3 (IMPL) - Enter outlook'!I19,"")) ->  | J17: =IF(J$4<=OutturnThrough,IF(ISNUMBER('Step 2 - Update outturn data'!K17),'Step 2 - Update outturn data'!K17,""),IF(ISNUMBER('Step 3 (IMPL) - Enter outlook'!J19),'Step 3 (IMPL) - Enter outlook'!J19,"")) ->  | K17: =IF(K$4<=OutturnThrough,IF(ISNUMBER('Step 2 - Update outturn data'!L17),'Step 2 - Update outturn data'!L17,""),IF(ISNUMBER('Step 3 (IMPL) - Enter outlook'!K19),'Step 3 (IMPL) - Enter outlook'!K19,"")) -> 
B18: Structural balance | C18: % GDP | D18: =IF(D$4<=OutturnThrough,IF(ISNUMBER('Step 2 - Update outturn data'!E18),'Step 2 - Update outturn data'!E18,""),IF(ISNUMBER('Step 3 (IMPL) - Enter outlook'!D20),'Step 3 (IMPL) - Enter outlook'!D20,"")) -> -1.84205 | E18: =IF(E$4<=OutturnThrough,IF(ISNUMBER('Step 2 - Update outturn data'!F18),'Step 2 - Update outturn data'!F18,""),IF(ISNUMBER('Step 3 (IMPL) - Enter outlook'!E20),'Step 3 (IMPL) - Enter outlook'!E20,"")) -> 0.34607 | F18: =IF(F$4<=OutturnThrough,IF(ISNUMBER('Step 2 - Update outturn data'!G18),'Step 2 - Update outturn data'!G18,""),IF(ISNUMBER('Step 3 (IMPL) - Enter outlook'!F20),'Step 3 (IMPL) - Enter outlook'!F20,"")) -> 0.48634 | G18: =IF(G$4<=OutturnThrough,IF(ISNUMBER('Step 2 - Update outturn data'!H18),'Step 2 - Update outturn data'!H18,""),IF(ISNUMBER('Step 3 (IMPL) - Enter outlook'!G20),'Step 3 (IMPL) - Enter outlook'!G20,"")) -> -1.2 | H18: =IF(H$4<=OutturnThrough,IF(ISNUMBER('Step 2 - Update outturn data'!I18),'Step 2 - Update outturn data'!I18,""),IF(ISNUMBER('Step 3 (IMPL) - Enter outlook'!H20),'Step 3 (IMPL) - Enter outlook'!H20,"")) ->  | I18: =IF(I$4<=OutturnThrough,IF(ISNUMBER('Step 2 - Update outturn data'!J18),'Step 2 - Update outturn data'!J18,""),IF(ISNUMBER('Step 3 (IMPL) - Enter outlook'!I20),'Step 3 (IMPL) - Enter outlook'!I20,"")) ->  | J18: =IF(J$4<=OutturnThrough,IF(ISNUMBER('Step 2 - Update outturn data'!K18),'Step 2 - Update outturn data'!K18,""),IF(ISNUMBER('Step 3 (IMPL) - Enter outlook'!J20),'Step 3 (IMPL) - Enter outlook'!J20,"")) ->  | K18: =IF(K$4<=OutturnThrough,IF(ISNUMBER('Step 2 - Update outturn data'!L18),'Step 2 - Update outturn data'!L18,""),IF(ISNUMBER('Step 3 (IMPL) - Enter outlook'!K20),'Step 3 (IMPL) - Enter outlook'!K20,"")) -> 
B19: Structural primary balance | C19: % GDP | D19: =IF(D$4<=OutturnThrough,IF(ISNUMBER('Step 2 - Update outturn data'!E19),'Step 2 - Update outturn data'!E19,""),IF(ISNUMBER('Step 3 (IMPL) - Enter outlook'!D21),'Step 3 (IMPL) - Enter outlook'!D21,"")) -> 1.54579 | E19: =IF(E$4<=OutturnThrough,IF(ISNUMBER('Step 2 - Update outturn data'!F19),'Step 2 - Update outturn data'!F19,""),IF(ISNUMBER('Step 3 (IMPL) - Enter outlook'!E21),'Step 3 (IMPL) - Enter outlook'!E21,"")) -> 3.82041 | F19: =IF(F$4<=OutturnThrough,IF(ISNUMBER('Step 2 - Update outturn data'!G19),'Step 2 - Update outturn data'!G19,""),IF(ISNUMBER('Step 3 (IMPL) - Enter outlook'!F21),'Step 3 (IMPL) - Enter outlook'!F21,"")) -> 3.64353 | G19: =IF(G$4<=OutturnThrough,IF(ISNUMBER('Step 2 - Update outturn data'!H19),'Step 2 - Update outturn data'!H19,""),IF(ISNUMBER('Step 3 (IMPL) - Enter outlook'!G21),'Step 3 (IMPL) - Enter outlook'!G21,"")) -> 1.8 | H19: =IF(H$4<=OutturnThrough,IF(ISNUMBER('Step 2 - Update outturn data'!I19),'Step 2 - Update outturn data'!I19,""),IF(ISNUMBER('Step 3 (IMPL) - Enter outlook'!H21),'Step 3 (IMPL) - Enter outlook'!H21,"")) ->  | I19: =IF(I$4<=OutturnThrough,IF(ISNUMBER('Step 2 - Update outturn data'!J19),'Step 2 - Update outturn data'!J19,""),IF(ISNUMBER('Step 3 (IMPL) - Enter outlook'!I21),'Step 3 (IMPL) - Enter outlook'!I21,"")) ->  | J19: =IF(J$4<=OutturnThrough,IF(ISNUMBER('Step 2 - Update outturn data'!K19),'Step 2 - Update outturn data'!K19,""),IF(ISNUMBER('Step 3 (IMPL) - Enter outlook'!J21),'Step 3 (IMPL) - Enter outlook'!J21,"")) ->  | K19: =IF(K$4<=OutturnThrough,IF(ISNUMBER('Step 2 - Update outturn data'!L19),'Step 2 - Update outturn data'!L19,""),IF(ISNUMBER('Step 3 (IMPL) - Enter outlook'!K21),'Step 3 (IMPL) - Enter outlook'!K21,"")) -> 
B20: Gross debt | C20: % GDP | D20: =IF(D$4<=OutturnThrough,IF(ISNUMBER('Step 2 - Update outturn data'!E20),'Step 2 - Update outturn data'!E20,""),IF(ISNUMBER('Step 3 (IMPL) - Enter outlook'!D22),'Step 3 (IMPL) - Enter outlook'!D22,"")) -> 164.2780019 | E20: =IF(E$4<=OutturnThrough,IF(ISNUMBER('Step 2 - Update outturn data'!F20),'Step 2 - Update outturn data'!F20,""),IF(ISNUMBER('Step 3 (IMPL) - Enter outlook'!E22),'Step 3 (IMPL) - Enter outlook'!E22,"")) -> 154.164977 | F20: =IF(F$4<=OutturnThrough,IF(ISNUMBER('Step 2 - Update outturn data'!G20),'Step 2 - Update outturn data'!G20,""),IF(ISNUMBER('Step 3 (IMPL) - Enter outlook'!F22),'Step 3 (IMPL) - Enter outlook'!F22,"")) -> 146.1323105 | G20: =IF(G$4<=OutturnThrough,IF(ISNUMBER('Step 2 - Update outturn data'!H20),'Step 2 - Update outturn data'!H20,""),IF(ISNUMBER('Step 3 (IMPL) - Enter outlook'!G22),'Step 3 (IMPL) - Enter outlook'!G22,"")) -> 136.8 | H20: =IF(H$4<=OutturnThrough,IF(ISNUMBER('Step 2 - Update outturn data'!I20),'Step 2 - Update outturn data'!I20,""),IF(ISNUMBER('Step 3 (IMPL) - Enter outlook'!H22),'Step 3 (IMPL) - Enter outlook'!H22,"")) ->  | I20: =IF(I$4<=OutturnThrough,IF(ISNUMBER('Step 2 - Update outturn data'!J20),'Step 2 - Update outturn data'!J20,""),IF(ISNUMBER('Step 3 (IMPL) - Enter outlook'!I22),'Step 3 (IMPL) - Enter outlook'!I22,"")) ->  | J20: =IF(J$4<=OutturnThrough,IF(ISNUMBER('Step 2 - Update outturn data'!K20),'Step 2 - Update outturn data'!K20,""),IF(ISNUMBER('Step 3 (IMPL) - Enter outlook'!J22),'Step 3 (IMPL) - Enter outlook'!J22,"")) ->  | K20: =IF(K$4<=OutturnThrough,IF(ISNUMBER('Step 2 - Update outturn data'!L20),'Step 2 - Update outturn data'!L20,""),IF(ISNUMBER('Step 3 (IMPL) - Enter outlook'!K22),'Step 3 (IMPL) - Enter outlook'!K22,"")) -> 
B21: Change in gross debt | C21: % GDP | D21: =IF(D$4<=OutturnThrough,IF(ISNUMBER('Step 2 - Update outturn data'!E21),'Step 2 - Update outturn data'!E21,""),IF(ISNUMBER('Step 3 (IMPL) - Enter outlook'!D23),'Step 3 (IMPL) - Enter outlook'!D23,"")) -> 0.491797004 | E21: =IF(E$4<=OutturnThrough,IF(ISNUMBER('Step 2 - Update outturn data'!F21),'Step 2 - Update outturn data'!F21,""),IF(ISNUMBER('Step 3 (IMPL) - Enter outlook'!E23),'Step 3 (IMPL) - Enter outlook'!E23,"")) -> -1.751317924 | F21: =IF(F$4<=OutturnThrough,IF(ISNUMBER('Step 2 - Update outturn data'!G21),'Step 2 - Update outturn data'!G21,""),IF(ISNUMBER('Step 3 (IMPL) - Enter outlook'!F23),'Step 3 (IMPL) - Enter outlook'!F23,"")) -> -0.821006492 | G21: =IF(G$4<=OutturnThrough,IF(ISNUMBER('Step 2 - Update outturn data'!H21),'Step 2 - Update outturn data'!H21,""),IF(ISNUMBER('Step 3 (IMPL) - Enter outlook'!G23),'Step 3 (IMPL) - Enter outlook'!G23,"")) -> -9.3 | H21: =IF(H$4<=OutturnThrough,IF(ISNUMBER('Step 2 - Update outturn data'!I21),'Step 2 - Update outturn data'!I21,""),IF(ISNUMBER('Step 3 (IMPL) - Enter outlook'!H23),'Step 3 (IMPL) - Enter outlook'!H23,"")) ->  | I21: =IF(I$4<=OutturnThrough,IF(ISNUMBER('Step 2 - Update outturn data'!J21),'Step 2 - Update outturn data'!J21,""),IF(ISNUMBER('Step 3 (IMPL) - Enter outlook'!I23),'Step 3 (IMPL) - Enter outlook'!I23,"")) ->  | J21: =IF(J$4<=OutturnThrough,IF(ISNUMBER('Step 2 - Update outturn data'!K21),'Step 2 - Update outturn data'!K21,""),IF(ISNUMBER('Step 3 (IMPL) - Enter outlook'!J23),'Step 3 (IMPL) - Enter outlook'!J23,"")) ->  | K21: =IF(K$4<=OutturnThrough,IF(ISNUMBER('Step 2 - Update outturn data'!L21),'Step 2 - Update outturn data'!L21,""),IF(ISNUMBER('Step 3 (IMPL) - Enter outlook'!K23),'Step 3 (IMPL) - Enter outlook'!K23,"")) -> 
B22: Real GDP (rate of change, %) | C22: rate of change, % | D22: =IF(D$4<=OutturnThrough,IF(ISNUMBER('Step 2 - Update outturn data'!E22),'Step 2 - Update outturn data'!E22,""),IF(ISNUMBER('Step 3 (IMPL) - Enter outlook'!D24),'Step 3 (IMPL) - Enter outlook'!D24,"")) -> 2.135891186 | E22: =IF(E$4<=OutturnThrough,IF(ISNUMBER('Step 2 - Update outturn data'!F22),'Step 2 - Update outturn data'!F22,""),IF(ISNUMBER('Step 3 (IMPL) - Enter outlook'!E24),'Step 3 (IMPL) - Enter outlook'!E24,"")) -> 2.086577405 | F22: =IF(F$4<=OutturnThrough,IF(ISNUMBER('Step 2 - Update outturn data'!G22),'Step 2 - Update outturn data'!G22,""),IF(ISNUMBER('Step 3 (IMPL) - Enter outlook'!F24),'Step 3 (IMPL) - Enter outlook'!F24,"")) -> 2.073065247 | G22: =IF(G$4<=OutturnThrough,IF(ISNUMBER('Step 2 - Update outturn data'!H22),'Step 2 - Update outturn data'!H22,""),IF(ISNUMBER('Step 3 (IMPL) - Enter outlook'!G24),'Step 3 (IMPL) - Enter outlook'!G24,"")) -> 2 | H22: =IF(H$4<=OutturnThrough,IF(ISNUMBER('Step 2 - Update outturn data'!I22),'Step 2 - Update outturn data'!I22,""),IF(ISNUMBER('Step 3 (IMPL) - Enter outlook'!H24),'Step 3 (IMPL) - Enter outlook'!H24,"")) ->  | I22: =IF(I$4<=OutturnThrough,IF(ISNUMBER('Step 2 - Update outturn data'!J22),'Step 2 - Update outturn data'!J22,""),IF(ISNUMBER('Step 3 (IMPL) - Enter outlook'!I24),'Step 3 (IMPL) - Enter outlook'!I24,"")) ->  | J22: =IF(J$4<=OutturnThrough,IF(ISNUMBER('Step 2 - Update outturn data'!K22),'Step 2 - Update outturn data'!K22,""),IF(ISNUMBER('Step 3 (IMPL) - Enter outlook'!J24),'Step 3 (IMPL) - Enter outlook'!J24,"")) ->  | K22: =IF(K$4<=OutturnThrough,IF(ISNUMBER('Step 2 - Update outturn data'!L22),'Step 2 - Update outturn data'!L22,""),IF(ISNUMBER('Step 3 (IMPL) - Enter outlook'!K24),'Step 3 (IMPL) - Enter outlook'!K24,"")) -> 
B23: GDP deflator (rate of change, %) | C23: rate of change, % | D23: =IF(D$4<=OutturnThrough,IF(ISNUMBER('Step 2 - Update outturn data'!E23),'Step 2 - Update outturn data'!E23,""),IF(ISNUMBER('Step 3 (IMPL) - Enter outlook'!D25),'Step 3 (IMPL) - Enter outlook'!D25,"")) -> 6.269691198 | E23: =IF(E$4<=OutturnThrough,IF(ISNUMBER('Step 2 - Update outturn data'!F23),'Step 2 - Update outturn data'!F23,""),IF(ISNUMBER('Step 3 (IMPL) - Enter outlook'!E25),'Step 3 (IMPL) - Enter outlook'!E25,"")) -> 3.209402124 | F23: =IF(F$4<=OutturnThrough,IF(ISNUMBER('Step 2 - Update outturn data'!G23),'Step 2 - Update outturn data'!G23,""),IF(ISNUMBER('Step 3 (IMPL) - Enter outlook'!F25),'Step 3 (IMPL) - Enter outlook'!F25,"")) -> 2.776819129 | G23: =IF(G$4<=OutturnThrough,IF(ISNUMBER('Step 2 - Update outturn data'!H23),'Step 2 - Update outturn data'!H23,""),IF(ISNUMBER('Step 3 (IMPL) - Enter outlook'!G25),'Step 3 (IMPL) - Enter outlook'!G25,"")) -> 3.2 | H23: =IF(H$4<=OutturnThrough,IF(ISNUMBER('Step 2 - Update outturn data'!I23),'Step 2 - Update outturn data'!I23,""),IF(ISNUMBER('Step 3 (IMPL) - Enter outlook'!H25),'Step 3 (IMPL) - Enter outlook'!H25,"")) ->  | I23: =IF(I$4<=OutturnThrough,IF(ISNUMBER('Step 2 - Update outturn data'!J23),'Step 2 - Update outturn data'!J23,""),IF(ISNUMBER('Step 3 (IMPL) - Enter outlook'!I25),'Step 3 (IMPL) - Enter outlook'!I25,"")) ->  | J23: =IF(J$4<=OutturnThrough,IF(ISNUMBER('Step 2 - Update outturn data'!K23),'Step 2 - Update outturn data'!K23,""),IF(ISNUMBER('Step 3 (IMPL) - Enter outlook'!J25),'Step 3 (IMPL) - Enter outlook'!J25,"")) ->  | K23: =IF(K$4<=OutturnThrough,IF(ISNUMBER('Step 2 - Update outturn data'!L23),'Step 2 - Update outturn data'!L23,""),IF(ISNUMBER('Step 3 (IMPL) - Enter outlook'!K25),'Step 3 (IMPL) - Enter outlook'!K25,"")) -> 
B24: Nominal GDP (rate of change, %) | C24: rate of change, % | D24: =IF(D$4<=OutturnThrough,IF(ISNUMBER('Step 2 - Update outturn data'!E24),'Step 2 - Update outturn data'!E24,""),IF(ISNUMBER('Step 3 (IMPL) - Enter outlook'!D26),'Step 3 (IMPL) - Enter outlook'!D26,"")) -> 8.539496166 | E24: =IF(E$4<=OutturnThrough,IF(ISNUMBER('Step 2 - Update outturn data'!F24),'Step 2 - Update outturn data'!F24,""),IF(ISNUMBER('Step 3 (IMPL) - Enter outlook'!E26),'Step 3 (IMPL) - Enter outlook'!E26,"")) -> 5.362946189 | F24: =IF(F$4<=OutturnThrough,IF(ISNUMBER('Step 2 - Update outturn data'!G24),'Step 2 - Update outturn data'!G24,""),IF(ISNUMBER('Step 3 (IMPL) - Enter outlook'!F26),'Step 3 (IMPL) - Enter outlook'!F26,"")) -> 4.907449649 | G24: =IF(G$4<=OutturnThrough,IF(ISNUMBER('Step 2 - Update outturn data'!H24),'Step 2 - Update outturn data'!H24,""),IF(ISNUMBER('Step 3 (IMPL) - Enter outlook'!G26),'Step 3 (IMPL) - Enter outlook'!G26,"")) -> 5.2 | H24: =IF(H$4<=OutturnThrough,IF(ISNUMBER('Step 2 - Update outturn data'!I24),'Step 2 - Update outturn data'!I24,""),IF(ISNUMBER('Step 3 (IMPL) - Enter outlook'!H26),'Step 3 (IMPL) - Enter outlook'!H26,"")) ->  | I24: =IF(I$4<=OutturnThrough,IF(ISNUMBER('Step 2 - Update outturn data'!J24),'Step 2 - Update outturn data'!J24,""),IF(ISNUMBER('Step 3 (IMPL) - Enter outlook'!I26),'Step 3 (IMPL) - Enter outlook'!I26,"")) ->  | J24: =IF(J$4<=OutturnThrough,IF(ISNUMBER('Step 2 - Update outturn data'!K24),'Step 2 - Update outturn data'!K24,""),IF(ISNUMBER('Step 3 (IMPL) - Enter outlook'!J26),'Step 3 (IMPL) - Enter outlook'!J26,"")) ->  | K24: =IF(K$4<=OutturnThrough,IF(ISNUMBER('Step 2 - Update outturn data'!L24),'Step 2 - Update outturn data'!L24,""),IF(ISNUMBER('Step 3 (IMPL) - Enter outlook'!K26),'Step 3 (IMPL) - Enter outlook'!K26,"")) -> 
B25: Potential growth (rate of change, %) | C25: rate of change, % | D25: =IF(D$4<=OutturnThrough,IF(ISNUMBER('Step 2 - Update outturn data'!E25),'Step 2 - Update outturn data'!E25,""),IF(ISNUMBER('Step 3 (IMPL) - Enter outlook'!D27),'Step 3 (IMPL) - Enter outlook'!D27,"")) -> 0.4121477735 | E25: =IF(E$4<=OutturnThrough,IF(ISNUMBER('Step 2 - Update outturn data'!F25),'Step 2 - Update outturn data'!F25,""),IF(ISNUMBER('Step 3 (IMPL) - Enter outlook'!E27),'Step 3 (IMPL) - Enter outlook'!E27,"")) -> 0.8984012257 | F25: =IF(F$4<=OutturnThrough,IF(ISNUMBER('Step 2 - Update outturn data'!G25),'Step 2 - Update outturn data'!G25,""),IF(ISNUMBER('Step 3 (IMPL) - Enter outlook'!F27),'Step 3 (IMPL) - Enter outlook'!F27,"")) -> 1.605297922 | G25: =IF(G$4<=OutturnThrough,IF(ISNUMBER('Step 2 - Update outturn data'!H25),'Step 2 - Update outturn data'!H25,""),IF(ISNUMBER('Step 3 (IMPL) - Enter outlook'!G27),'Step 3 (IMPL) - Enter outlook'!G27,"")) -> 1.9 | H25: =IF(H$4<=OutturnThrough,IF(ISNUMBER('Step 2 - Update outturn data'!I25),'Step 2 - Update outturn data'!I25,""),IF(ISNUMBER('Step 3 (IMPL) - Enter outlook'!H27),'Step 3 (IMPL) - Enter outlook'!H27,"")) ->  | I25: =IF(I$4<=OutturnThrough,IF(ISNUMBER('Step 2 - Update outturn data'!J25),'Step 2 - Update outturn data'!J25,""),IF(ISNUMBER('Step 3 (IMPL) - Enter outlook'!I27),'Step 3 (IMPL) - Enter outlook'!I27,"")) ->  | J25: =IF(J$4<=OutturnThrough,IF(ISNUMBER('Step 2 - Update outturn data'!K25),'Step 2 - Update outturn data'!K25,""),IF(ISNUMBER('Step 3 (IMPL) - Enter outlook'!J27),'Step 3 (IMPL) - Enter outlook'!J27,"")) ->  | K25: =IF(K$4<=OutturnThrough,IF(ISNUMBER('Step 2 - Update outturn data'!L25),'Step 2 - Update outturn data'!L25,""),IF(ISNUMBER('Step 3 (IMPL) - Enter outlook'!K27),'Step 3 (IMPL) - Enter outlook'!K27,"")) -> 
B26: Output gap (% pot. GDP) | C26: % pot. GDP | D26: =IF(D$4<=OutturnThrough,IF(ISNUMBER('Step 2 - Update outturn data'!E26),'Step 2 - Update outturn data'!E26,""),IF(ISNUMBER('Step 3 (IMPL) - Enter outlook'!D28),'Step 3 (IMPL) - Enter outlook'!D28,"")) -> 1.042873034 | E26: =IF(E$4<=OutturnThrough,IF(ISNUMBER('Step 2 - Update outturn data'!F26),'Step 2 - Update outturn data'!F26,""),IF(ISNUMBER('Step 3 (IMPL) - Enter outlook'!E28),'Step 3 (IMPL) - Enter outlook'!E28,"")) -> 2.232747373 | F26: =IF(F$4<=OutturnThrough,IF(ISNUMBER('Step 2 - Update outturn data'!G26),'Step 2 - Update outturn data'!G26,""),IF(ISNUMBER('Step 3 (IMPL) - Enter outlook'!F28),'Step 3 (IMPL) - Enter outlook'!F28,"")) -> 2.70340737 | G26: =IF(G$4<=OutturnThrough,IF(ISNUMBER('Step 2 - Update outturn data'!H26),'Step 2 - Update outturn data'!H26,""),IF(ISNUMBER('Step 3 (IMPL) - Enter outlook'!G28),'Step 3 (IMPL) - Enter outlook'!G28,"")) -> 2.7 | H26: =IF(H$4<=OutturnThrough,IF(ISNUMBER('Step 2 - Update outturn data'!I26),'Step 2 - Update outturn data'!I26,""),IF(ISNUMBER('Step 3 (IMPL) - Enter outlook'!H28),'Step 3 (IMPL) - Enter outlook'!H28,"")) ->  | I26: =IF(I$4<=OutturnThrough,IF(ISNUMBER('Step 2 - Update outturn data'!J26),'Step 2 - Update outturn data'!J26,""),IF(ISNUMBER('Step 3 (IMPL) - Enter outlook'!I28),'Step 3 (IMPL) - Enter outlook'!I28,"")) ->  | J26: =IF(J$4<=OutturnThrough,IF(ISNUMBER('Step 2 - Update outturn data'!K26),'Step 2 - Update outturn data'!K26,""),IF(ISNUMBER('Step 3 (IMPL) - Enter outlook'!J28),'Step 3 (IMPL) - Enter outlook'!J28,"")) ->  | K26: =IF(K$4<=OutturnThrough,IF(ISNUMBER('Step 2 - Update outturn data'!L26),'Step 2 - Update outturn data'!L26,""),IF(ISNUMBER('Step 3 (IMPL) - Enter outlook'!K28),'Step 3 (IMPL) - Enter outlook'!K28,"")) -> 
B27: Nominal GDP (level) | C27: level, bn NAC | D27: =IF(D$4<=OutturnThrough,IF(ISNUMBER('Step 2 - Update outturn data'!E27),'Step 2 - Update outturn data'!E27,""),IF(ISNUMBER('Step 3 (IMPL) - Enter outlook'!D29),'Step 3 (IMPL) - Enter outlook'!D29,"")) -> 224.6862 | E27: =IF(E$4<=OutturnThrough,IF(ISNUMBER('Step 2 - Update outturn data'!F27),'Step 2 - Update outturn data'!F27,""),IF(ISNUMBER('Step 3 (IMPL) - Enter outlook'!E29),'Step 3 (IMPL) - Enter outlook'!E29,"")) -> 236.736 | F27: =IF(F$4<=OutturnThrough,IF(ISNUMBER('Step 2 - Update outturn data'!G27),'Step 2 - Update outturn data'!G27,""),IF(ISNUMBER('Step 3 (IMPL) - Enter outlook'!F29),'Step 3 (IMPL) - Enter outlook'!F29,"")) -> 248.3537 | G27: =IF(G$4<=OutturnThrough,IF(ISNUMBER('Step 2 - Update outturn data'!H27),'Step 2 - Update outturn data'!H27,""),IF(ISNUMBER('Step 3 (IMPL) - Enter outlook'!G29),'Step 3 (IMPL) - Enter outlook'!G29,"")) -> 261.2680924 | H27: =IF(H$4<=OutturnThrough,IF(ISNUMBER('Step 2 - Update outturn data'!I27),'Step 2 - Update outturn data'!I27,""),IF(ISNUMBER('Step 3 (IMPL) - Enter outlook'!H29),'Step 3 (IMPL) - Enter outlook'!H29,"")) ->  | I27: =IF(I$4<=OutturnThrough,IF(ISNUMBER('Step 2 - Update outturn data'!J27),'Step 2 - Update outturn data'!J27,""),IF(ISNUMBER('Step 3 (IMPL) - Enter outlook'!I29),'Step 3 (IMPL) - Enter outlook'!I29,"")) ->  | J27: =IF(J$4<=OutturnThrough,IF(ISNUMBER('Step 2 - Update outturn data'!K27),'Step 2 - Update outturn data'!K27,""),IF(ISNUMBER('Step 3 (IMPL) - Enter outlook'!J29),'Step 3 (IMPL) - Enter outlook'!J29,"")) ->  | K27: =IF(K$4<=OutturnThrough,IF(ISNUMBER('Step 2 - Update outturn data'!L27),'Step 2 - Update outturn data'!L27,""),IF(ISNUMBER('Step 3 (IMPL) - Enter outlook'!K29),'Step 3 (IMPL) - Enter outlook'!K29,"")) -> 
B29: ="Medium-term fiscal-structural plan "&IF(MTP_Council_Endorsed," (endorsed by Council)"," (not yet endorsed by Council)")&", EC prior guidance and DSA (Adjustment period currently set to "&AdjustmentPeriod&" years)" -> Medium-term fiscal-structural plan (endorsed by Council), EC prior guidance and DSA (Adjustment period currently set to 4 years)
B30: Medium-term fiscal-structural plan
B31: % of GDP unless noted
B32: Calendar year | D32: =_xlfn.SEQUENCE(1, MTP_EndYear-MTP_BaseYear+1, MTP_BaseYear) -> 2023 | E32: 2024 | F32: 2025 | G32: 2026 | H32: 2027 | I32: 2028
B33: MTP reference year | D33: =CHOOSE( SIGN(_xlfn.SEQUENCE(1, MTP_PlanningHorizon+2, -1)) + 2, "T" & _xlfn.SEQUENCE(1, MTP_PlanningHorizon+2, -1), "T", "T+" & _xlfn.SEQUENCE(1, MTP_PlanningHorizon+2, -1) ) -> T-1 | E33: T | F33: T+1 | G33: T+2 | H33: T+3 | I33: T+4
B34: Net expenditure growth | D34: =IF(ISNUMBER('Step 3 (MTP) - Plan and prior'!D16),'Step 3 (MTP) - Plan and prior'!D16,"") ->  | E34: =IF(ISNUMBER('Step 3 (MTP) - Plan and prior'!E16),'Step 3 (MTP) - Plan and prior'!E16,"") -> 2.6 | F34: =IF(ISNUMBER('Step 3 (MTP) - Plan and prior'!F16),'Step 3 (MTP) - Plan and prior'!F16,"") -> 3.7 | G34: =IF(ISNUMBER('Step 3 (MTP) - Plan and prior'!G16),'Step 3 (MTP) - Plan and prior'!G16,"") -> 3.6 | H34: =IF(ISNUMBER('Step 3 (MTP) - Plan and prior'!H16),'Step 3 (MTP) - Plan and prior'!H16,"") -> 3.1 | I34: =IF(ISNUMBER('Step 3 (MTP) - Plan and prior'!I16),'Step 3 (MTP) - Plan and prior'!I16,"") -> 3 | J34: =IF(ISNUMBER('Step 3 (MTP) - Plan and prior'!J16),'Step 3 (MTP) - Plan and prior'!J16,"") ->  | K34: =IF(ISNUMBER('Step 3 (MTP) - Plan and prior'!K16),'Step 3 (MTP) - Plan and prior'!K16,"") ->  | L34: =IF(ISNUMBER('Step 3 (MTP) - Plan and prior'!L16),'Step 3 (MTP) - Plan and prior'!L16,"") ->  | M34: =IF(ISNUMBER('Step 3 (MTP) - Plan and prior'!M16),'Step 3 (MTP) - Plan and prior'!M16,"") ->  | N34: =IF(ISNUMBER('Step 3 (MTP) - Plan and prior'!N16),'Step 3 (MTP) - Plan and prior'!N16,"") -> 
B35: Net lending/borrowing | D35: =IF(ISNUMBER('Step 3 (MTP) - Plan and prior'!D17),'Step 3 (MTP) - Plan and prior'!D17,"") -> -1.6 | E35: =IF(ISNUMBER('Step 3 (MTP) - Plan and prior'!E17),'Step 3 (MTP) - Plan and prior'!E17,"") -> -1 | F35: =IF(ISNUMBER('Step 3 (MTP) - Plan and prior'!F17),'Step 3 (MTP) - Plan and prior'!F17,"") -> -0.6 | G35: =IF(ISNUMBER('Step 3 (MTP) - Plan and prior'!G17),'Step 3 (MTP) - Plan and prior'!G17,"") -> -0.8 | H35: =IF(ISNUMBER('Step 3 (MTP) - Plan and prior'!H17),'Step 3 (MTP) - Plan and prior'!H17,"") -> -1.1 | I35: =IF(ISNUMBER('Step 3 (MTP) - Plan and prior'!I17),'Step 3 (MTP) - Plan and prior'!I17,"") -> -1.2 | J35: =IF(ISNUMBER('Step 3 (MTP) - Plan and prior'!J17),'Step 3 (MTP) - Plan and prior'!J17,"") ->  | K35: =IF(ISNUMBER('Step 3 (MTP) - Plan and prior'!K17),'Step 3 (MTP) - Plan and prior'!K17,"") ->  | L35: =IF(ISNUMBER('Step 3 (MTP) - Plan and prior'!L17),'Step 3 (MTP) - Plan and prior'!L17,"") ->  | M35: =IF(ISNUMBER('Step 3 (MTP) - Plan and prior'!M17),'Step 3 (MTP) - Plan and prior'!M17,"") ->  | N35: =IF(ISNUMBER('Step 3 (MTP) - Plan and prior'!N17),'Step 3 (MTP) - Plan and prior'!N17,"") -> 
B36: Structural balance | D36: =IF(ISNUMBER('Step 3 (MTP) - Plan and prior'!D18),'Step 3 (MTP) - Plan and prior'!D18,"") -> -1.5 | E36: =IF(ISNUMBER('Step 3 (MTP) - Plan and prior'!E18),'Step 3 (MTP) - Plan and prior'!E18,"") -> -1.5 | F36: =IF(ISNUMBER('Step 3 (MTP) - Plan and prior'!F18),'Step 3 (MTP) - Plan and prior'!F18,"") -> -1.1 | G36: =IF(ISNUMBER('Step 3 (MTP) - Plan and prior'!G18),'Step 3 (MTP) - Plan and prior'!G18,"") -> -1.1 | H36: =IF(ISNUMBER('Step 3 (MTP) - Plan and prior'!H18),'Step 3 (MTP) - Plan and prior'!H18,"") -> -1.2 | I36: =IF(ISNUMBER('Step 3 (MTP) - Plan and prior'!I18),'Step 3 (MTP) - Plan and prior'!I18,"") -> -1.3 | J36: =IF(ISNUMBER('Step 3 (MTP) - Plan and prior'!J18),'Step 3 (MTP) - Plan and prior'!J18,"") ->  | K36: =IF(ISNUMBER('Step 3 (MTP) - Plan and prior'!K18),'Step 3 (MTP) - Plan and prior'!K18,"") ->  | L36: =IF(ISNUMBER('Step 3 (MTP) - Plan and prior'!L18),'Step 3 (MTP) - Plan and prior'!L18,"") ->  | M36: =IF(ISNUMBER('Step 3 (MTP) - Plan and prior'!M18),'Step 3 (MTP) - Plan and prior'!M18,"") ->  | N36: =IF(ISNUMBER('Step 3 (MTP) - Plan and prior'!N18),'Step 3 (MTP) - Plan and prior'!N18,"") -> 
B37: Structural primary balance | D37: =IF(ISNUMBER('Step 3 (MTP) - Plan and prior'!D19),'Step 3 (MTP) - Plan and prior'!D19,"") -> 1.9 | E37: =IF(ISNUMBER('Step 3 (MTP) - Plan and prior'!E19),'Step 3 (MTP) - Plan and prior'!E19,"") -> 1.9 | F37: =IF(ISNUMBER('Step 3 (MTP) - Plan and prior'!F19),'Step 3 (MTP) - Plan and prior'!F19,"") -> 2 | G37: =IF(ISNUMBER('Step 3 (MTP) - Plan and prior'!G19),'Step 3 (MTP) - Plan and prior'!G19,"") -> 2.1 | H37: =IF(ISNUMBER('Step 3 (MTP) - Plan and prior'!H19),'Step 3 (MTP) - Plan and prior'!H19,"") -> 2.2 | I37: =IF(ISNUMBER('Step 3 (MTP) - Plan and prior'!I19),'Step 3 (MTP) - Plan and prior'!I19,"") -> 2.3 | J37: =IF(ISNUMBER('Step 3 (MTP) - Plan and prior'!J19),'Step 3 (MTP) - Plan and prior'!J19,"") ->  | K37: =IF(ISNUMBER('Step 3 (MTP) - Plan and prior'!K19),'Step 3 (MTP) - Plan and prior'!K19,"") ->  | L37: =IF(ISNUMBER('Step 3 (MTP) - Plan and prior'!L19),'Step 3 (MTP) - Plan and prior'!L19,"") ->  | M37: =IF(ISNUMBER('Step 3 (MTP) - Plan and prior'!M19),'Step 3 (MTP) - Plan and prior'!M19,"") ->  | N37: =IF(ISNUMBER('Step 3 (MTP) - Plan and prior'!N19),'Step 3 (MTP) - Plan and prior'!N19,"") -> 
B38: Gross debt | D38: =IF(ISNUMBER('Step 3 (MTP) - Plan and prior'!D20),'Step 3 (MTP) - Plan and prior'!D20,"") -> 161.9 | E38: =IF(ISNUMBER('Step 3 (MTP) - Plan and prior'!E20),'Step 3 (MTP) - Plan and prior'!E20,"") -> 153.7 | F38: =IF(ISNUMBER('Step 3 (MTP) - Plan and prior'!F20),'Step 3 (MTP) - Plan and prior'!F20,"") -> 149.1 | G38: =IF(ISNUMBER('Step 3 (MTP) - Plan and prior'!G20),'Step 3 (MTP) - Plan and prior'!G20,"") -> 143.1 | H38: =IF(ISNUMBER('Step 3 (MTP) - Plan and prior'!H20),'Step 3 (MTP) - Plan and prior'!H20,"") -> 138 | I38: =IF(ISNUMBER('Step 3 (MTP) - Plan and prior'!I20),'Step 3 (MTP) - Plan and prior'!I20,"") -> 133.4 | J38: =IF(ISNUMBER('Step 3 (MTP) - Plan and prior'!J20),'Step 3 (MTP) - Plan and prior'!J20,"") ->  | K38: =IF(ISNUMBER('Step 3 (MTP) - Plan and prior'!K20),'Step 3 (MTP) - Plan and prior'!K20,"") ->  | L38: =IF(ISNUMBER('Step 3 (MTP) - Plan and prior'!L20),'Step 3 (MTP) - Plan and prior'!L20,"") ->  | M38: =IF(ISNUMBER('Step 3 (MTP) - Plan and prior'!M20),'Step 3 (MTP) - Plan and prior'!M20,"") ->  | N38: =IF(ISNUMBER('Step 3 (MTP) - Plan and prior'!N20),'Step 3 (MTP) - Plan and prior'!N20,"") -> 
B39: Change in gross debt | D39: =IF(ISNUMBER('Step 3 (MTP) - Plan and prior'!D21),'Step 3 (MTP) - Plan and prior'!D21,"") -> -10.8 | E39: =IF(ISNUMBER('Step 3 (MTP) - Plan and prior'!E21),'Step 3 (MTP) - Plan and prior'!E21,"") -> -8.2 | F39: =IF(ISNUMBER('Step 3 (MTP) - Plan and prior'!F21),'Step 3 (MTP) - Plan and prior'!F21,"") -> -4.6 | G39: =IF(ISNUMBER('Step 3 (MTP) - Plan and prior'!G21),'Step 3 (MTP) - Plan and prior'!G21,"") -> -6.1 | H39: =IF(ISNUMBER('Step 3 (MTP) - Plan and prior'!H21),'Step 3 (MTP) - Plan and prior'!H21,"") -> -5 | I39: =IF(ISNUMBER('Step 3 (MTP) - Plan and prior'!I21),'Step 3 (MTP) - Plan and prior'!I21,"") -> -4.7 | J39: =IF(ISNUMBER('Step 3 (MTP) - Plan and prior'!J21),'Step 3 (MTP) - Plan and prior'!J21,"") ->  | K39: =IF(ISNUMBER('Step 3 (MTP) - Plan and prior'!K21),'Step 3 (MTP) - Plan and prior'!K21,"") ->  | L39: =IF(ISNUMBER('Step 3 (MTP) - Plan and prior'!L21),'Step 3 (MTP) - Plan and prior'!L21,"") ->  | M39: =IF(ISNUMBER('Step 3 (MTP) - Plan and prior'!M21),'Step 3 (MTP) - Plan and prior'!M21,"") ->  | N39: =IF(ISNUMBER('Step 3 (MTP) - Plan and prior'!N21),'Step 3 (MTP) - Plan and prior'!N21,"") -> 
B40: Real GDP | D40: =IF(ISNUMBER('Step 3 (MTP) - Plan and prior'!D22),'Step 3 (MTP) - Plan and prior'!D22,"") -> 2 | E40: =IF(ISNUMBER('Step 3 (MTP) - Plan and prior'!E22),'Step 3 (MTP) - Plan and prior'!E22,"") -> 2.2 | F40: =IF(ISNUMBER('Step 3 (MTP) - Plan and prior'!F22),'Step 3 (MTP) - Plan and prior'!F22,"") -> 2.3 | G40: =IF(ISNUMBER('Step 3 (MTP) - Plan and prior'!G22),'Step 3 (MTP) - Plan and prior'!G22,"") -> 2 | H40: =IF(ISNUMBER('Step 3 (MTP) - Plan and prior'!H22),'Step 3 (MTP) - Plan and prior'!H22,"") -> 1.5 | I40: =IF(ISNUMBER('Step 3 (MTP) - Plan and prior'!I22),'Step 3 (MTP) - Plan and prior'!I22,"") -> 1.3 | J40: =IF(ISNUMBER('Step 3 (MTP) - Plan and prior'!J22),'Step 3 (MTP) - Plan and prior'!J22,"") ->  | K40: =IF(ISNUMBER('Step 3 (MTP) - Plan and prior'!K22),'Step 3 (MTP) - Plan and prior'!K22,"") ->  | L40: =IF(ISNUMBER('Step 3 (MTP) - Plan and prior'!L22),'Step 3 (MTP) - Plan and prior'!L22,"") ->  | M40: =IF(ISNUMBER('Step 3 (MTP) - Plan and prior'!M22),'Step 3 (MTP) - Plan and prior'!M22,"") ->  | N40: =IF(ISNUMBER('Step 3 (MTP) - Plan and prior'!N22),'Step 3 (MTP) - Plan and prior'!N22,"") -> 
B41: GDP deflator | D41: =IF(ISNUMBER('Step 3 (MTP) - Plan and prior'!D23),'Step 3 (MTP) - Plan and prior'!D23,"") -> 4.5 | E41: =IF(ISNUMBER('Step 3 (MTP) - Plan and prior'!E23),'Step 3 (MTP) - Plan and prior'!E23,"") -> 3 | F41: =IF(ISNUMBER('Step 3 (MTP) - Plan and prior'!F23),'Step 3 (MTP) - Plan and prior'!F23,"") -> 2.2 | G41: =IF(ISNUMBER('Step 3 (MTP) - Plan and prior'!G23),'Step 3 (MTP) - Plan and prior'!G23,"") -> 2.3 | H41: =IF(ISNUMBER('Step 3 (MTP) - Plan and prior'!H23),'Step 3 (MTP) - Plan and prior'!H23,"") -> 2.3 | I41: =IF(ISNUMBER('Step 3 (MTP) - Plan and prior'!I23),'Step 3 (MTP) - Plan and prior'!I23,"") -> 2.4 | J41: =IF(ISNUMBER('Step 3 (MTP) - Plan and prior'!J23),'Step 3 (MTP) - Plan and prior'!J23,"") ->  | K41: =IF(ISNUMBER('Step 3 (MTP) - Plan and prior'!K23),'Step 3 (MTP) - Plan and prior'!K23,"") ->  | L41: =IF(ISNUMBER('Step 3 (MTP) - Plan and prior'!L23),'Step 3 (MTP) - Plan and prior'!L23,"") ->  | M41: =IF(ISNUMBER('Step 3 (MTP) - Plan and prior'!M23),'Step 3 (MTP) - Plan and prior'!M23,"") ->  | N41: =IF(ISNUMBER('Step 3 (MTP) - Plan and prior'!N23),'Step 3 (MTP) - Plan and prior'!N23,"") -> 
B42: Nominal GDP | D42: =IF(ISNUMBER('Step 3 (MTP) - Plan and prior'!D24),'Step 3 (MTP) - Plan and prior'!D24,"") -> 6.6 | E42: =IF(ISNUMBER('Step 3 (MTP) - Plan and prior'!E24),'Step 3 (MTP) - Plan and prior'!E24,"") -> 5.3 | F42: =IF(ISNUMBER('Step 3 (MTP) - Plan and prior'!F24),'Step 3 (MTP) - Plan and prior'!F24,"") -> 4.5 | G42: =IF(ISNUMBER('Step 3 (MTP) - Plan and prior'!G24),'Step 3 (MTP) - Plan and prior'!G24,"") -> 4.3 | H42: =IF(ISNUMBER('Step 3 (MTP) - Plan and prior'!H24),'Step 3 (MTP) - Plan and prior'!H24,"") -> 3.8 | I42: =IF(ISNUMBER('Step 3 (MTP) - Plan and prior'!I24),'Step 3 (MTP) - Plan and prior'!I24,"") -> 3.7 | J42: =IF(ISNUMBER('Step 3 (MTP) - Plan and prior'!J24),'Step 3 (MTP) - Plan and prior'!J24,"") ->  | K42: =IF(ISNUMBER('Step 3 (MTP) - Plan and prior'!K24),'Step 3 (MTP) - Plan and prior'!K24,"") ->  | L42: =IF(ISNUMBER('Step 3 (MTP) - Plan and prior'!L24),'Step 3 (MTP) - Plan and prior'!L24,"") ->  | M42: =IF(ISNUMBER('Step 3 (MTP) - Plan and prior'!M24),'Step 3 (MTP) - Plan and prior'!M24,"") ->  | N42: =IF(ISNUMBER('Step 3 (MTP) - Plan and prior'!N24),'Step 3 (MTP) - Plan and prior'!N24,"") -> 
B43: Potential growth | D43: =IF(ISNUMBER('Step 3 (MTP) - Plan and prior'!D25),'Step 3 (MTP) - Plan and prior'!D25,"") -> 0.6 | E43: =IF(ISNUMBER('Step 3 (MTP) - Plan and prior'!E25),'Step 3 (MTP) - Plan and prior'!E25,"") -> 1.2 | F43: =IF(ISNUMBER('Step 3 (MTP) - Plan and prior'!F25),'Step 3 (MTP) - Plan and prior'!F25,"") -> 2.5 | G43: =IF(ISNUMBER('Step 3 (MTP) - Plan and prior'!G25),'Step 3 (MTP) - Plan and prior'!G25,"") -> 2.4 | H43: =IF(ISNUMBER('Step 3 (MTP) - Plan and prior'!H25),'Step 3 (MTP) - Plan and prior'!H25,"") -> 1.7 | I43: =IF(ISNUMBER('Step 3 (MTP) - Plan and prior'!I25),'Step 3 (MTP) - Plan and prior'!I25,"") -> 1.5 | J43: =IF(ISNUMBER('Step 3 (MTP) - Plan and prior'!J25),'Step 3 (MTP) - Plan and prior'!J25,"") ->  | K43: =IF(ISNUMBER('Step 3 (MTP) - Plan and prior'!K25),'Step 3 (MTP) - Plan and prior'!K25,"") ->  | L43: =IF(ISNUMBER('Step 3 (MTP) - Plan and prior'!L25),'Step 3 (MTP) - Plan and prior'!L25,"") ->  | M43: =IF(ISNUMBER('Step 3 (MTP) - Plan and prior'!M25),'Step 3 (MTP) - Plan and prior'!M25,"") ->  | N43: =IF(ISNUMBER('Step 3 (MTP) - Plan and prior'!N25),'Step 3 (MTP) - Plan and prior'!N25,"") -> 
B44: Output gap | D44: =IF(ISNUMBER('Step 3 (MTP) - Plan and prior'!D26),'Step 3 (MTP) - Plan and prior'!D26,"") -> 0.3 | E44: =IF(ISNUMBER('Step 3 (MTP) - Plan and prior'!E26),'Step 3 (MTP) - Plan and prior'!E26,"") -> 1.2 | F44: =IF(ISNUMBER('Step 3 (MTP) - Plan and prior'!F26),'Step 3 (MTP) - Plan and prior'!F26,"") -> 1 | G44: =IF(ISNUMBER('Step 3 (MTP) - Plan and prior'!G26),'Step 3 (MTP) - Plan and prior'!G26,"") -> 0.6 | H44: =IF(ISNUMBER('Step 3 (MTP) - Plan and prior'!H26),'Step 3 (MTP) - Plan and prior'!H26,"") -> 0.3 | I44: =IF(ISNUMBER('Step 3 (MTP) - Plan and prior'!I26),'Step 3 (MTP) - Plan and prior'!I26,"") -> 0.1 | J44: =IF(ISNUMBER('Step 3 (MTP) - Plan and prior'!J26),'Step 3 (MTP) - Plan and prior'!J26,"") ->  | K44: =IF(ISNUMBER('Step 3 (MTP) - Plan and prior'!K26),'Step 3 (MTP) - Plan and prior'!K26,"") ->  | L44: =IF(ISNUMBER('Step 3 (MTP) - Plan and prior'!L26),'Step 3 (MTP) - Plan and prior'!L26,"") ->  | M44: =IF(ISNUMBER('Step 3 (MTP) - Plan and prior'!M26),'Step 3 (MTP) - Plan and prior'!M26,"") ->  | N44: =IF(ISNUMBER('Step 3 (MTP) - Plan and prior'!N26),'Step 3 (MTP) - Plan and prior'!N26,"") -> 
B46: Calendar year | D46: =_xlfn.SEQUENCE(1, AdjustmentPeriodEnd+10-MTP_BaseYear+1, MTP_BaseYear) -> 2023 | E46: 2024 | F46: 2025 | G46: 2026 | H46: 2027 | I46: 2028 | J46: 2029 | K46: 2030 | L46: 2031 | M46: 2032 | N46: 2033 | O46: 2034 | P46: 2035 | Q46: 2036 | R46: 2037 | S46: 2038
B47: MTP reference year | D47: =IF(AND(D$46>=MTP_YearT-1, D$46<=AdjustmentPeriodEnd), IF(D$46=MTP_YearT-1, "T-1", IF(D$46=MTP_YearT, "T", "T+"&(D$46-MTP_YearT))), "") -> T-1 | E47: T | F47: T+1 | G47: T+2 | H47: T+3 | I47: T+4
B48: ='Step 3 (MTP) - Plan and prior'!B54 -> Main budgetary variables (4-year adjustment period)
B49: Net expenditure growth | D49: =IF(ISNUMBER('Step 3 (MTP) - Plan and prior'!D34),'Step 3 (MTP) - Plan and prior'!D34,"") ->  | E49: =IF(ISNUMBER('Step 3 (MTP) - Plan and prior'!E34),'Step 3 (MTP) - Plan and prior'!E34,"") ->  | F49: =IF(ISNUMBER('Step 3 (MTP) - Plan and prior'!F34),'Step 3 (MTP) - Plan and prior'!F34,"") ->  | G49: =IF(ISNUMBER('Step 3 (MTP) - Plan and prior'!G34),'Step 3 (MTP) - Plan and prior'!G34,"") ->  | H49: =IF(ISNUMBER('Step 3 (MTP) - Plan and prior'!H34),'Step 3 (MTP) - Plan and prior'!H34,"") ->  | I49: =IF(ISNUMBER('Step 3 (MTP) - Plan and prior'!I34),'Step 3 (MTP) - Plan and prior'!I34,"") ->  | J49: =IF(ISNUMBER('Step 3 (MTP) - Plan and prior'!J34),'Step 3 (MTP) - Plan and prior'!J34,"") ->  | K49: =IF(ISNUMBER('Step 3 (MTP) - Plan and prior'!K34),'Step 3 (MTP) - Plan and prior'!K34,"") ->  | L49: =IF(ISNUMBER('Step 3 (MTP) - Plan and prior'!L34),'Step 3 (MTP) - Plan and prior'!L34,"") ->  | M49: =IF(ISNUMBER('Step 3 (MTP) - Plan and prior'!M34),'Step 3 (MTP) - Plan and prior'!M34,"") ->  | N49: =IF(ISNUMBER('Step 3 (MTP) - Plan and prior'!N34),'Step 3 (MTP) - Plan and prior'!N34,"") ->  | O49: =IF(ISNUMBER('Step 3 (MTP) - Plan and prior'!O34),'Step 3 (MTP) - Plan and prior'!O34,"") ->  | P49: =IF(ISNUMBER('Step 3 (MTP) - Plan and prior'!P34),'Step 3 (MTP) - Plan and prior'!P34,"") ->  | Q49: =IF(ISNUMBER('Step 3 (MTP) - Plan and prior'!Q34),'Step 3 (MTP) - Plan and prior'!Q34,"") ->  | R49: =IF(ISNUMBER('Step 3 (MTP) - Plan and prior'!R34),'Step 3 (MTP) - Plan and prior'!R34,"") ->  | S49: =IF(ISNUMBER('Step 3 (MTP) - Plan and prior'!S34),'Step 3 (MTP) - Plan and prior'!S34,"") ->  | T49: =IF(ISNUMBER('Step 3 (MTP) - Plan and prior'!T34),'Step 3 (MTP) - Plan and prior'!T34,"") ->  | U49: =IF(ISNUMBER('Step 3 (MTP) - Plan and prior'!U34),'Step 3 (MTP) - Plan and prior'!U34,"") ->  | V49: =IF(ISNUMBER('Step 3 (MTP) - Plan and prior'!V34),'Step 3 (MTP) - Plan and prior'!V34,"") ->  | W49: =IF(ISNUMBER('Step 3 (MTP) - Plan and prior'!W34),'Step 3 (MTP) - Plan and prior'!W34,"") -> 
B50: Net lending/borrowing | D50: =IF(ISNUMBER('Step 3 (MTP) - Plan and prior'!D35),'Step 3 (MTP) - Plan and prior'!D35,"") -> -1.6 | E50: =IF(ISNUMBER('Step 3 (MTP) - Plan and prior'!E35),'Step 3 (MTP) - Plan and prior'!E35,"") -> -1 | F50: =IF(ISNUMBER('Step 3 (MTP) - Plan and prior'!F35),'Step 3 (MTP) - Plan and prior'!F35,"") -> -0.6 | G50: =IF(ISNUMBER('Step 3 (MTP) - Plan and prior'!G35),'Step 3 (MTP) - Plan and prior'!G35,"") -> -0.8 | H50: =IF(ISNUMBER('Step 3 (MTP) - Plan and prior'!H35),'Step 3 (MTP) - Plan and prior'!H35,"") -> -1.1 | I50: =IF(ISNUMBER('Step 3 (MTP) - Plan and prior'!I35),'Step 3 (MTP) - Plan and prior'!I35,"") -> -1.2 | J50: =IF(ISNUMBER('Step 3 (MTP) - Plan and prior'!J35),'Step 3 (MTP) - Plan and prior'!J35,"") -> -1.4 | K50: =IF(ISNUMBER('Step 3 (MTP) - Plan and prior'!K35),'Step 3 (MTP) - Plan and prior'!K35,"") -> -1.5 | L50: =IF(ISNUMBER('Step 3 (MTP) - Plan and prior'!L35),'Step 3 (MTP) - Plan and prior'!L35,"") -> -1.6 | M50: =IF(ISNUMBER('Step 3 (MTP) - Plan and prior'!M35),'Step 3 (MTP) - Plan and prior'!M35,"") -> -1.7 | N50: =IF(ISNUMBER('Step 3 (MTP) - Plan and prior'!N35),'Step 3 (MTP) - Plan and prior'!N35,"") -> -1.9 | O50: =IF(ISNUMBER('Step 3 (MTP) - Plan and prior'!O35),'Step 3 (MTP) - Plan and prior'!O35,"") -> -2.2 | P50: =IF(ISNUMBER('Step 3 (MTP) - Plan and prior'!P35),'Step 3 (MTP) - Plan and prior'!P35,"") -> -2.4 | Q50: =IF(ISNUMBER('Step 3 (MTP) - Plan and prior'!Q35),'Step 3 (MTP) - Plan and prior'!Q35,"") -> -2.2 | R50: =IF(ISNUMBER('Step 3 (MTP) - Plan and prior'!R35),'Step 3 (MTP) - Plan and prior'!R35,"") -> -2.4 | S50: =IF(ISNUMBER('Step 3 (MTP) - Plan and prior'!S35),'Step 3 (MTP) - Plan and prior'!S35,"") -> -2.5 | T50: =IF(ISNUMBER('Step 3 (MTP) - Plan and prior'!T35),'Step 3 (MTP) - Plan and prior'!T35,"") ->  | U50: =IF(ISNUMBER('Step 3 (MTP) - Plan and prior'!U35),'Step 3 (MTP) - Plan and prior'!U35,"") ->  | V50: =IF(ISNUMBER('Step 3 (MTP) - Plan and prior'!V35),'Step 3 (MTP) - Plan and prior'!V35,"") ->  | W50: =IF(ISNUMBER('Step 3 (MTP) - Plan and prior'!W35),'Step 3 (MTP) - Plan and prior'!W35,"") -> 
B51: Structural balance | D51: =IF(ISNUMBER('Step 3 (MTP) - Plan and prior'!D36),'Step 3 (MTP) - Plan and prior'!D36,"") ->  | E51: =IF(ISNUMBER('Step 3 (MTP) - Plan and prior'!E36),'Step 3 (MTP) - Plan and prior'!E36,"") ->  | F51: =IF(ISNUMBER('Step 3 (MTP) - Plan and prior'!F36),'Step 3 (MTP) - Plan and prior'!F36,"") ->  | G51: =IF(ISNUMBER('Step 3 (MTP) - Plan and prior'!G36),'Step 3 (MTP) - Plan and prior'!G36,"") ->  | H51: =IF(ISNUMBER('Step 3 (MTP) - Plan and prior'!H36),'Step 3 (MTP) - Plan and prior'!H36,"") ->  | I51: =IF(ISNUMBER('Step 3 (MTP) - Plan and prior'!I36),'Step 3 (MTP) - Plan and prior'!I36,"") ->  | J51: =IF(ISNUMBER('Step 3 (MTP) - Plan and prior'!J36),'Step 3 (MTP) - Plan and prior'!J36,"") ->  | K51: =IF(ISNUMBER('Step 3 (MTP) - Plan and prior'!K36),'Step 3 (MTP) - Plan and prior'!K36,"") ->  | L51: =IF(ISNUMBER('Step 3 (MTP) - Plan and prior'!L36),'Step 3 (MTP) - Plan and prior'!L36,"") ->  | M51: =IF(ISNUMBER('Step 3 (MTP) - Plan and prior'!M36),'Step 3 (MTP) - Plan and prior'!M36,"") ->  | N51: =IF(ISNUMBER('Step 3 (MTP) - Plan and prior'!N36),'Step 3 (MTP) - Plan and prior'!N36,"") ->  | O51: =IF(ISNUMBER('Step 3 (MTP) - Plan and prior'!O36),'Step 3 (MTP) - Plan and prior'!O36,"") ->  | P51: =IF(ISNUMBER('Step 3 (MTP) - Plan and prior'!P36),'Step 3 (MTP) - Plan and prior'!P36,"") ->  | Q51: =IF(ISNUMBER('Step 3 (MTP) - Plan and prior'!Q36),'Step 3 (MTP) - Plan and prior'!Q36,"") ->  | R51: =IF(ISNUMBER('Step 3 (MTP) - Plan and prior'!R36),'Step 3 (MTP) - Plan and prior'!R36,"") ->  | S51: =IF(ISNUMBER('Step 3 (MTP) - Plan and prior'!S36),'Step 3 (MTP) - Plan and prior'!S36,"") ->  | T51: =IF(ISNUMBER('Step 3 (MTP) - Plan and prior'!T36),'Step 3 (MTP) - Plan and prior'!T36,"") ->  | U51: =IF(ISNUMBER('Step 3 (MTP) - Plan and prior'!U36),'Step 3 (MTP) - Plan and prior'!U36,"") ->  | V51: =IF(ISNUMBER('Step 3 (MTP) - Plan and prior'!V36),'Step 3 (MTP) - Plan and prior'!V36,"") ->  | W51: =IF(ISNUMBER('Step 3 (MTP) - Plan and prior'!W36),'Step 3 (MTP) - Plan and prior'!W36,"") -> 
B52: Structural primary balance | D52: =IF(ISNUMBER('Step 3 (MTP) - Plan and prior'!D37),'Step 3 (MTP) - Plan and prior'!D37,"") -> 1.9 | E52: =IF(ISNUMBER('Step 3 (MTP) - Plan and prior'!E37),'Step 3 (MTP) - Plan and prior'!E37,"") -> 1.9 | F52: =IF(ISNUMBER('Step 3 (MTP) - Plan and prior'!F37),'Step 3 (MTP) - Plan and prior'!F37,"") -> 2 | G52: =IF(ISNUMBER('Step 3 (MTP) - Plan and prior'!G37),'Step 3 (MTP) - Plan and prior'!G37,"") -> 2.1 | H52: =IF(ISNUMBER('Step 3 (MTP) - Plan and prior'!H37),'Step 3 (MTP) - Plan and prior'!H37,"") -> 2.2 | I52: =IF(ISNUMBER('Step 3 (MTP) - Plan and prior'!I37),'Step 3 (MTP) - Plan and prior'!I37,"") -> 2.3 | J52: =IF(ISNUMBER('Step 3 (MTP) - Plan and prior'!J37),'Step 3 (MTP) - Plan and prior'!J37,"") -> 2.3 | K52: =IF(ISNUMBER('Step 3 (MTP) - Plan and prior'!K37),'Step 3 (MTP) - Plan and prior'!K37,"") -> 2.3 | L52: =IF(ISNUMBER('Step 3 (MTP) - Plan and prior'!L37),'Step 3 (MTP) - Plan and prior'!L37,"") -> 2.3 | M52: =IF(ISNUMBER('Step 3 (MTP) - Plan and prior'!M37),'Step 3 (MTP) - Plan and prior'!M37,"") -> 2.3 | N52: =IF(ISNUMBER('Step 3 (MTP) - Plan and prior'!N37),'Step 3 (MTP) - Plan and prior'!N37,"") -> 2.3 | O52: =IF(ISNUMBER('Step 3 (MTP) - Plan and prior'!O37),'Step 3 (MTP) - Plan and prior'!O37,"") -> 2.3 | P52: =IF(ISNUMBER('Step 3 (MTP) - Plan and prior'!P37),'Step 3 (MTP) - Plan and prior'!P37,"") -> 2.3 | Q52: =IF(ISNUMBER('Step 3 (MTP) - Plan and prior'!Q37),'Step 3 (MTP) - Plan and prior'!Q37,"") -> 2.3 | R52: =IF(ISNUMBER('Step 3 (MTP) - Plan and prior'!R37),'Step 3 (MTP) - Plan and prior'!R37,"") -> 2.3 | S52: =IF(ISNUMBER('Step 3 (MTP) - Plan and prior'!S37),'Step 3 (MTP) - Plan and prior'!S37,"") -> 2.3 | T52: =IF(ISNUMBER('Step 3 (MTP) - Plan and prior'!T37),'Step 3 (MTP) - Plan and prior'!T37,"") ->  | U52: =IF(ISNUMBER('Step 3 (MTP) - Plan and prior'!U37),'Step 3 (MTP) - Plan and prior'!U37,"") ->  | V52: =IF(ISNUMBER('Step 3 (MTP) - Plan and prior'!V37),'Step 3 (MTP) - Plan and prior'!V37,"") ->  | W52: =IF(ISNUMBER('Step 3 (MTP) - Plan and prior'!W37),'Step 3 (MTP) - Plan and prior'!W37,"") -> 
B53: Gross debt | D53: =IF(ISNUMBER('Step 3 (MTP) - Plan and prior'!D38),'Step 3 (MTP) - Plan and prior'!D38,"") -> 161.9 | E53: =IF(ISNUMBER('Step 3 (MTP) - Plan and prior'!E38),'Step 3 (MTP) - Plan and prior'!E38,"") -> 153.7 | F53: =IF(ISNUMBER('Step 3 (MTP) - Plan and prior'!F38),'Step 3 (MTP) - Plan and prior'!F38,"") -> 149.1 | G53: =IF(ISNUMBER('Step 3 (MTP) - Plan and prior'!G38),'Step 3 (MTP) - Plan and prior'!G38,"") -> 143.1 | H53: =IF(ISNUMBER('Step 3 (MTP) - Plan and prior'!H38),'Step 3 (MTP) - Plan and prior'!H38,"") -> 138 | I53: =IF(ISNUMBER('Step 3 (MTP) - Plan and prior'!I38),'Step 3 (MTP) - Plan and prior'!I38,"") -> 133.4 | J53: =IF(ISNUMBER('Step 3 (MTP) - Plan and prior'!J38),'Step 3 (MTP) - Plan and prior'!J38,"") -> 130.1 | K53: =IF(ISNUMBER('Step 3 (MTP) - Plan and prior'!K38),'Step 3 (MTP) - Plan and prior'!K38,"") -> 127.1 | L53: =IF(ISNUMBER('Step 3 (MTP) - Plan and prior'!L38),'Step 3 (MTP) - Plan and prior'!L38,"") -> 124.3 | M53: =IF(ISNUMBER('Step 3 (MTP) - Plan and prior'!M38),'Step 3 (MTP) - Plan and prior'!M38,"") -> 121.7 | N53: =IF(ISNUMBER('Step 3 (MTP) - Plan and prior'!N38),'Step 3 (MTP) - Plan and prior'!N38,"") -> 120.6 | O53: =IF(ISNUMBER('Step 3 (MTP) - Plan and prior'!O38),'Step 3 (MTP) - Plan and prior'!O38,"") -> 119.6 | P53: =IF(ISNUMBER('Step 3 (MTP) - Plan and prior'!P38),'Step 3 (MTP) - Plan and prior'!P38,"") -> 118.4 | Q53: =IF(ISNUMBER('Step 3 (MTP) - Plan and prior'!Q38),'Step 3 (MTP) - Plan and prior'!Q38,"") -> 117.1 | R53: =IF(ISNUMBER('Step 3 (MTP) - Plan and prior'!R38),'Step 3 (MTP) - Plan and prior'!R38,"") -> 115.9 | S53: =IF(ISNUMBER('Step 3 (MTP) - Plan and prior'!S38),'Step 3 (MTP) - Plan and prior'!S38,"") -> 114.9 | T53: =IF(ISNUMBER('Step 3 (MTP) - Plan and prior'!T38),'Step 3 (MTP) - Plan and prior'!T38,"") ->  | U53: =IF(ISNUMBER('Step 3 (MTP) - Plan and prior'!U38),'Step 3 (MTP) - Plan and prior'!U38,"") ->  | V53: =IF(ISNUMBER('Step 3 (MTP) - Plan and prior'!V38),'Step 3 (MTP) - Plan and prior'!V38,"") ->  | W53: =IF(ISNUMBER('Step 3 (MTP) - Plan and prior'!W38),'Step 3 (MTP) - Plan and prior'!W38,"") -> 
B54: Debt sustainability assessments
B55: Gross debt, no policy change scenario | D55: =IF(ISNUMBER('Step 3 (MTP) - Plan and prior'!#REF!),'Step 3 (MTP) - Plan and prior'!#REF!,"") ->  | E55: =IF(ISNUMBER('Step 3 (MTP) - Plan and prior'!#REF!),'Step 3 (MTP) - Plan and prior'!#REF!,"") ->  | F55: =IF(ISNUMBER('Step 3 (MTP) - Plan and prior'!#REF!),'Step 3 (MTP) - Plan and prior'!#REF!,"") ->  | G55: =IF(ISNUMBER('Step 3 (MTP) - Plan and prior'!#REF!),'Step 3 (MTP) - Plan and prior'!#REF!,"") ->  | H55: =IF(ISNUMBER('Step 3 (MTP) - Plan and prior'!#REF!),'Step 3 (MTP) - Plan and prior'!#REF!,"") ->  | I55: =IF(ISNUMBER('Step 3 (MTP) - Plan and prior'!#REF!),'Step 3 (MTP) - Plan and prior'!#REF!,"") ->  | J55: =IF(ISNUMBER('Step 3 (MTP) - Plan and prior'!#REF!),'Step 3 (MTP) - Plan and prior'!#REF!,"") ->  | K55: =IF(ISNUMBER('Step 3 (MTP) - Plan and prior'!#REF!),'Step 3 (MTP) - Plan and prior'!#REF!,"") ->  | L55: =IF(ISNUMBER('Step 3 (MTP) - Plan and prior'!#REF!),'Step 3 (MTP) - Plan and prior'!#REF!,"") ->  | M55: =IF(ISNUMBER('Step 3 (MTP) - Plan and prior'!#REF!),'Step 3 (MTP) - Plan and prior'!#REF!,"") ->  | N55: =IF(ISNUMBER('Step 3 (MTP) - Plan and prior'!#REF!),'Step 3 (MTP) - Plan and prior'!#REF!,"") ->  | O55: =IF(ISNUMBER('Step 3 (MTP) - Plan and prior'!#REF!),'Step 3 (MTP) - Plan and prior'!#REF!,"") ->  | P55: =IF(ISNUMBER('Step 3 (MTP) - Plan and prior'!#REF!),'Step 3 (MTP) - Plan and prior'!#REF!,"") ->  | Q55: =IF(ISNUMBER('Step 3 (MTP) - Plan and prior'!#REF!),'Step 3 (MTP) - Plan and prior'!#REF!,"") ->  | R55: =IF(ISNUMBER('Step 3 (MTP) - Plan and prior'!#REF!),'Step 3 (MTP) - Plan and prior'!#REF!,"") ->  | S55: =IF(ISNUMBER('Step 3 (MTP) - Plan and prior'!#REF!),'Step 3 (MTP) - Plan and prior'!#REF!,"") ->  | T55: =IF(ISNUMBER('Step 3 (MTP) - Plan and prior'!T40),'Step 3 (MTP) - Plan and prior'!T40,"") ->  | U55: =IF(ISNUMBER('Step 3 (MTP) - Plan and prior'!U40),'Step 3 (MTP) - Plan and prior'!U40,"") ->  | V55: =IF(ISNUMBER('Step 3 (MTP) - Plan and prior'!V40),'Step 3 (MTP) - Plan and prior'!V40,"") ->  | W55: =IF(ISNUMBER('Step 3 (MTP) - Plan and prior'!W40),'Step 3 (MTP) - Plan and prior'!W40,"") -> 
B56: Gross debt, financial stress scenario | D56: =IF(ISNUMBER('Step 3 (MTP) - Plan and prior'!#REF!),'Step 3 (MTP) - Plan and prior'!#REF!,"") ->  | E56: =IF(ISNUMBER('Step 3 (MTP) - Plan and prior'!#REF!),'Step 3 (MTP) - Plan and prior'!#REF!,"") ->  | F56: =IF(ISNUMBER('Step 3 (MTP) - Plan and prior'!#REF!),'Step 3 (MTP) - Plan and prior'!#REF!,"") ->  | G56: =IF(ISNUMBER('Step 3 (MTP) - Plan and prior'!#REF!),'Step 3 (MTP) - Plan and prior'!#REF!,"") ->  | H56: =IF(ISNUMBER('Step 3 (MTP) - Plan and prior'!#REF!),'Step 3 (MTP) - Plan and prior'!#REF!,"") ->  | I56: =IF(ISNUMBER('Step 3 (MTP) - Plan and prior'!#REF!),'Step 3 (MTP) - Plan and prior'!#REF!,"") ->  | J56: =IF(ISNUMBER('Step 3 (MTP) - Plan and prior'!#REF!),'Step 3 (MTP) - Plan and prior'!#REF!,"") ->  | K56: =IF(ISNUMBER('Step 3 (MTP) - Plan and prior'!#REF!),'Step 3 (MTP) - Plan and prior'!#REF!,"") ->  | L56: =IF(ISNUMBER('Step 3 (MTP) - Plan and prior'!#REF!),'Step 3 (MTP) - Plan and prior'!#REF!,"") ->  | M56: =IF(ISNUMBER('Step 3 (MTP) - Plan and prior'!#REF!),'Step 3 (MTP) - Plan and prior'!#REF!,"") ->  | N56: =IF(ISNUMBER('Step 3 (MTP) - Plan and prior'!#REF!),'Step 3 (MTP) - Plan and prior'!#REF!,"") ->  | O56: =IF(ISNUMBER('Step 3 (MTP) - Plan and prior'!#REF!),'Step 3 (MTP) - Plan and prior'!#REF!,"") ->  | P56: =IF(ISNUMBER('Step 3 (MTP) - Plan and prior'!#REF!),'Step 3 (MTP) - Plan and prior'!#REF!,"") ->  | Q56: =IF(ISNUMBER('Step 3 (MTP) - Plan and prior'!#REF!),'Step 3 (MTP) - Plan and prior'!#REF!,"") ->  | R56: =IF(ISNUMBER('Step 3 (MTP) - Plan and prior'!#REF!),'Step 3 (MTP) - Plan and prior'!#REF!,"") ->  | S56: =IF(ISNUMBER('Step 3 (MTP) - Plan and prior'!#REF!),'Step 3 (MTP) - Plan and prior'!#REF!,"") ->  | T56: =IF(ISNUMBER('Step 3 (MTP) - Plan and prior'!T41),'Step 3 (MTP) - Plan and prior'!T41,"") ->  | U56: =IF(ISNUMBER('Step 3 (MTP) - Plan and prior'!U41),'Step 3 (MTP) - Plan and prior'!U41,"") ->  | V56: =IF(ISNUMBER('Step 3 (MTP) - Plan and prior'!V41),'Step 3 (MTP) - Plan and prior'!V41,"") ->  | W56: =IF(ISNUMBER('Step 3 (MTP) - Plan and prior'!W41),'Step 3 (MTP) - Plan and prior'!W41,"") -> 
B57: Gross debt, lower structural primary balance scenario | D57: =IF(ISNUMBER('Step 3 (MTP) - Plan and prior'!#REF!),'Step 3 (MTP) - Plan and prior'!#REF!,"") ->  | E57: =IF(ISNUMBER('Step 3 (MTP) - Plan and prior'!#REF!),'Step 3 (MTP) - Plan and prior'!#REF!,"") ->  | F57: =IF(ISNUMBER('Step 3 (MTP) - Plan and prior'!#REF!),'Step 3 (MTP) - Plan and prior'!#REF!,"") ->  | G57: =IF(ISNUMBER('Step 3 (MTP) - Plan and prior'!#REF!),'Step 3 (MTP) - Plan and prior'!#REF!,"") ->  | H57: =IF(ISNUMBER('Step 3 (MTP) - Plan and prior'!#REF!),'Step 3 (MTP) - Plan and prior'!#REF!,"") ->  | I57: =IF(ISNUMBER('Step 3 (MTP) - Plan and prior'!#REF!),'Step 3 (MTP) - Plan and prior'!#REF!,"") ->  | J57: =IF(ISNUMBER('Step 3 (MTP) - Plan and prior'!#REF!),'Step 3 (MTP) - Plan and prior'!#REF!,"") ->  | K57: =IF(ISNUMBER('Step 3 (MTP) - Plan and prior'!#REF!),'Step 3 (MTP) - Plan and prior'!#REF!,"") ->  | L57: =IF(ISNUMBER('Step 3 (MTP) - Plan and prior'!#REF!),'Step 3 (MTP) - Plan and prior'!#REF!,"") ->  | M57: =IF(ISNUMBER('Step 3 (MTP) - Plan and prior'!#REF!),'Step 3 (MTP) - Plan and prior'!#REF!,"") ->  | N57: =IF(ISNUMBER('Step 3 (MTP) - Plan and prior'!#REF!),'Step 3 (MTP) - Plan and prior'!#REF!,"") ->  | O57: =IF(ISNUMBER('Step 3 (MTP) - Plan and prior'!#REF!),'Step 3 (MTP) - Plan and prior'!#REF!,"") ->  | P57: =IF(ISNUMBER('Step 3 (MTP) - Plan and prior'!#REF!),'Step 3 (MTP) - Plan and prior'!#REF!,"") ->  | Q57: =IF(ISNUMBER('Step 3 (MTP) - Plan and prior'!#REF!),'Step 3 (MTP) - Plan and prior'!#REF!,"") ->  | R57: =IF(ISNUMBER('Step 3 (MTP) - Plan and prior'!#REF!),'Step 3 (MTP) - Plan and prior'!#REF!,"") ->  | S57: =IF(ISNUMBER('Step 3 (MTP) - Plan and prior'!#REF!),'Step 3 (MTP) - Plan and prior'!#REF!,"") ->  | T57: =IF(ISNUMBER('Step 3 (MTP) - Plan and prior'!T42),'Step 3 (MTP) - Plan and prior'!T42,"") ->  | U57: =IF(ISNUMBER('Step 3 (MTP) - Plan and prior'!U42),'Step 3 (MTP) - Plan and prior'!U42,"") ->  | V57: =IF(ISNUMBER('Step 3 (MTP) - Plan and prior'!V42),'Step 3 (MTP) - Plan and prior'!V42,"") ->  | W57: =IF(ISNUMBER('Step 3 (MTP) - Plan and prior'!W42),'Step 3 (MTP) - Plan and prior'!W42,"") -> 
B58: Gross debt, adverse r-g scenario | D58: =IF(ISNUMBER('Step 3 (MTP) - Plan and prior'!#REF!),'Step 3 (MTP) - Plan and prior'!#REF!,"") ->  | E58: =IF(ISNUMBER('Step 3 (MTP) - Plan and prior'!#REF!),'Step 3 (MTP) - Plan and prior'!#REF!,"") ->  | F58: =IF(ISNUMBER('Step 3 (MTP) - Plan and prior'!#REF!),'Step 3 (MTP) - Plan and prior'!#REF!,"") ->  | G58: =IF(ISNUMBER('Step 3 (MTP) - Plan and prior'!#REF!),'Step 3 (MTP) - Plan and prior'!#REF!,"") ->  | H58: =IF(ISNUMBER('Step 3 (MTP) - Plan and prior'!#REF!),'Step 3 (MTP) - Plan and prior'!#REF!,"") ->  | I58: =IF(ISNUMBER('Step 3 (MTP) - Plan and prior'!#REF!),'Step 3 (MTP) - Plan and prior'!#REF!,"") ->  | J58: =IF(ISNUMBER('Step 3 (MTP) - Plan and prior'!#REF!),'Step 3 (MTP) - Plan and prior'!#REF!,"") ->  | K58: =IF(ISNUMBER('Step 3 (MTP) - Plan and prior'!#REF!),'Step 3 (MTP) - Plan and prior'!#REF!,"") ->  | L58: =IF(ISNUMBER('Step 3 (MTP) - Plan and prior'!#REF!),'Step 3 (MTP) - Plan and prior'!#REF!,"") ->  | M58: =IF(ISNUMBER('Step 3 (MTP) - Plan and prior'!#REF!),'Step 3 (MTP) - Plan and prior'!#REF!,"") ->  | N58: =IF(ISNUMBER('Step 3 (MTP) - Plan and prior'!#REF!),'Step 3 (MTP) - Plan and prior'!#REF!,"") ->  | O58: =IF(ISNUMBER('Step 3 (MTP) - Plan and prior'!#REF!),'Step 3 (MTP) - Plan and prior'!#REF!,"") ->  | P58: =IF(ISNUMBER('Step 3 (MTP) - Plan and prior'!#REF!),'Step 3 (MTP) - Plan and prior'!#REF!,"") ->  | Q58: =IF(ISNUMBER('Step 3 (MTP) - Plan and prior'!#REF!),'Step 3 (MTP) - Plan and prior'!#REF!,"") ->  | R58: =IF(ISNUMBER('Step 3 (MTP) - Plan and prior'!#REF!),'Step 3 (MTP) - Plan and prior'!#REF!,"") ->  | S58: =IF(ISNUMBER('Step 3 (MTP) - Plan and prior'!#REF!),'Step 3 (MTP) - Plan and prior'!#REF!,"") ->  | T58: =IF(ISNUMBER('Step 3 (MTP) - Plan and prior'!T43),'Step 3 (MTP) - Plan and prior'!T43,"") ->  | U58: =IF(ISNUMBER('Step 3 (MTP) - Plan and prior'!U43),'Step 3 (MTP) - Plan and prior'!U43,"") ->  | V58: =IF(ISNUMBER('Step 3 (MTP) - Plan and prior'!V43),'Step 3 (MTP) - Plan and prior'!V43,"") ->  | W58: =IF(ISNUMBER('Step 3 (MTP) - Plan and prior'!W43),'Step 3 (MTP) - Plan and prior'!W43,"") -> 
B59: Stochastic debt projections (probability of lower debt at end of projection than at end of adjustment period) | D59: =IF(ISNUMBER('Step 3 (MTP) - Plan and prior'!D44),'Step 3 (MTP) - Plan and prior'!D44,"") -> 71.8 | E59: =IF(ISNUMBER('Step 3 (MTP) - Plan and prior'!E44),'Step 3 (MTP) - Plan and prior'!E44,"") ->  | F59: =IF(ISNUMBER('Step 3 (MTP) - Plan and prior'!F44),'Step 3 (MTP) - Plan and prior'!F44,"") ->  | G59: =IF(ISNUMBER('Step 3 (MTP) - Plan and prior'!G44),'Step 3 (MTP) - Plan and prior'!G44,"") ->  | H59: =IF(ISNUMBER('Step 3 (MTP) - Plan and prior'!H44),'Step 3 (MTP) - Plan and prior'!H44,"") ->  | I59: =IF(ISNUMBER('Step 3 (MTP) - Plan and prior'!I44),'Step 3 (MTP) - Plan and prior'!I44,"") ->  | J59: =IF(ISNUMBER('Step 3 (MTP) - Plan and prior'!J44),'Step 3 (MTP) - Plan and prior'!J44,"") ->  | K59: =IF(ISNUMBER('Step 3 (MTP) - Plan and prior'!K44),'Step 3 (MTP) - Plan and prior'!K44,"") ->  | L59: =IF(ISNUMBER('Step 3 (MTP) - Plan and prior'!L44),'Step 3 (MTP) - Plan and prior'!L44,"") ->  | M59: =IF(ISNUMBER('Step 3 (MTP) - Plan and prior'!M44),'Step 3 (MTP) - Plan and prior'!M44,"") ->  | N59: =IF(ISNUMBER('Step 3 (MTP) - Plan and prior'!N44),'Step 3 (MTP) - Plan and prior'!N44,"") ->  | O59: =IF(ISNUMBER('Step 3 (MTP) - Plan and prior'!O44),'Step 3 (MTP) - Plan and prior'!O44,"") ->  | P59: =IF(ISNUMBER('Step 3 (MTP) - Plan and prior'!P44),'Step 3 (MTP) - Plan and prior'!P44,"") ->  | Q59: =IF(ISNUMBER('Step 3 (MTP) - Plan and prior'!Q44),'Step 3 (MTP) - Plan and prior'!Q44,"") ->  | R59: =IF(ISNUMBER('Step 3 (MTP) - Plan and prior'!R44),'Step 3 (MTP) - Plan and prior'!R44,"") ->  | S59: =IF(ISNUMBER('Step 3 (MTP) - Plan and prior'!S44),'Step 3 (MTP) - Plan and prior'!S44,"") ->  | T59: =IF(ISNUMBER('Step 3 (MTP) - Plan and prior'!T44),'Step 3 (MTP) - Plan and prior'!T44,"") ->  | U59: =IF(ISNUMBER('Step 3 (MTP) - Plan and prior'!U44),'Step 3 (MTP) - Plan and prior'!U44,"") ->  | V59: =IF(ISNUMBER('Step 3 (MTP) - Plan and prior'!V44),'Step 3 (MTP) - Plan and prior'!V44,"") ->  | W59: =IF(ISNUMBER('Step 3 (MTP) - Plan and prior'!W44),'Step 3 (MTP) - Plan and prior'!W44,"") -> 
B61: =IF(Receives_reference_trajectory,"Prior guidance: reference trajectory and DSA","Prior guidance: technical information and DSA") -> Prior guidance: reference trajectory and DSA
B62: % of GDP unless noted
B63: Calendar year | D63: =_xlfn.SEQUENCE(1, AdjustmentPeriodEnd+10-MTP_BaseYear+1, MTP_BaseYear) -> 2023 | E63: 2024 | F63: 2025 | G63: 2026 | H63: 2027 | I63: 2028 | J63: 2029 | K63: 2030 | L63: 2031 | M63: 2032 | N63: 2033 | O63: 2034 | P63: 2035 | Q63: 2036 | R63: 2037 | S63: 2038
B64: MTP reference year | D64: =IF(AND(D$63>=MTP_YearT-1, D$63<=AdjustmentPeriodEnd), IF(D$63=MTP_YearT-1, "T-1", IF(D$63=MTP_YearT, "T", "T+"&(D$63-MTP_YearT))), "") -> T-1 | E64: T | F64: T+1 | G64: T+2 | H64: T+3 | I64: T+4
B65: ='Step 3 (MTP) - Plan and prior'!B50 -> Reference trajectory provided by the Commission | D65: =IF(ISNUMBER('Step 3 (MTP) - Plan and prior'!D50),'Step 3 (MTP) - Plan and prior'!D50,"") ->  | E65: =IF(ISNUMBER('Step 3 (MTP) - Plan and prior'!E50),'Step 3 (MTP) - Plan and prior'!E50,"") ->  | F65: =IF(ISNUMBER('Step 3 (MTP) - Plan and prior'!F50),'Step 3 (MTP) - Plan and prior'!F50,"") -> 3 | G65: =IF(ISNUMBER('Step 3 (MTP) - Plan and prior'!G50),'Step 3 (MTP) - Plan and prior'!G50,"") -> 3.2 | H65: =IF(ISNUMBER('Step 3 (MTP) - Plan and prior'!H50),'Step 3 (MTP) - Plan and prior'!H50,"") -> 3.1 | I65: =IF(ISNUMBER('Step 3 (MTP) - Plan and prior'!I50),'Step 3 (MTP) - Plan and prior'!I50,"") -> 3 | J65: =IF(ISNUMBER('Step 3 (MTP) - Plan and prior'!J50),'Step 3 (MTP) - Plan and prior'!J50,"") ->  | K65: =IF(ISNUMBER('Step 3 (MTP) - Plan and prior'!K50),'Step 3 (MTP) - Plan and prior'!K50,"") ->  | L65: =IF(ISNUMBER('Step 3 (MTP) - Plan and prior'!L50),'Step 3 (MTP) - Plan and prior'!L50,"") ->  | M65: =IF(ISNUMBER('Step 3 (MTP) - Plan and prior'!M50),'Step 3 (MTP) - Plan and prior'!M50,"") ->  | N65: =IF(ISNUMBER('Step 3 (MTP) - Plan and prior'!N50),'Step 3 (MTP) - Plan and prior'!N50,"") ->  | O65: =IF(ISNUMBER('Step 3 (MTP) - Plan and prior'!O50),'Step 3 (MTP) - Plan and prior'!O50,"") ->  | P65: =IF(ISNUMBER('Step 3 (MTP) - Plan and prior'!P50),'Step 3 (MTP) - Plan and prior'!P50,"") ->  | Q65: =IF(ISNUMBER('Step 3 (MTP) - Plan and prior'!Q50),'Step 3 (MTP) - Plan and prior'!Q50,"") ->  | R65: =IF(ISNUMBER('Step 3 (MTP) - Plan and prior'!R50),'Step 3 (MTP) - Plan and prior'!R50,"") ->  | S65: =IF(ISNUMBER('Step 3 (MTP) - Plan and prior'!S50),'Step 3 (MTP) - Plan and prior'!S50,"") ->  | T65: =IF(ISNUMBER('Step 3 (MTP) - Plan and prior'!T50),'Step 3 (MTP) - Plan and prior'!T50,"") ->  | U65: =IF(ISNUMBER('Step 3 (MTP) - Plan and prior'!U50),'Step 3 (MTP) - Plan and prior'!U50,"") ->  | V65: =IF(ISNUMBER('Step 3 (MTP) - Plan and prior'!V50),'Step 3 (MTP) - Plan and prior'!V50,"") ->  | W65: =IF(ISNUMBER('Step 3 (MTP) - Plan and prior'!W50),'Step 3 (MTP) - Plan and prior'!W50,"") ->  | X65: =IF(ISNUMBER('Step 3 (MTP) - Plan and prior'!X50),'Step 3 (MTP) - Plan and prior'!X50,"") -> 
B66: ='Step 3 (MTP) - Plan and prior'!B51 -> Minimum level for the structural primary balance in 2028 (not applicable), no safeguard | D66: =IF(ISNUMBER('Step 3 (MTP) - Plan and prior'!D51),'Step 3 (MTP) - Plan and prior'!D51,"") ->  | E66: =IF(ISNUMBER('Step 3 (MTP) - Plan and prior'!E51),'Step 3 (MTP) - Plan and prior'!E51,"") ->  | F66: =IF(ISNUMBER('Step 3 (MTP) - Plan and prior'!F51),'Step 3 (MTP) - Plan and prior'!F51,"") ->  | G66: =IF(ISNUMBER('Step 3 (MTP) - Plan and prior'!G51),'Step 3 (MTP) - Plan and prior'!G51,"") ->  | H66: =IF(ISNUMBER('Step 3 (MTP) - Plan and prior'!H51),'Step 3 (MTP) - Plan and prior'!H51,"") ->  | I66: =IF(ISNUMBER('Step 3 (MTP) - Plan and prior'!I51),'Step 3 (MTP) - Plan and prior'!I51,"") ->  | J66: =IF(ISNUMBER('Step 3 (MTP) - Plan and prior'!J51),'Step 3 (MTP) - Plan and prior'!J51,"") ->  | K66: =IF(ISNUMBER('Step 3 (MTP) - Plan and prior'!K51),'Step 3 (MTP) - Plan and prior'!K51,"") ->  | L66: =IF(ISNUMBER('Step 3 (MTP) - Plan and prior'!L51),'Step 3 (MTP) - Plan and prior'!L51,"") ->  | M66: =IF(ISNUMBER('Step 3 (MTP) - Plan and prior'!M51),'Step 3 (MTP) - Plan and prior'!M51,"") ->  | N66: =IF(ISNUMBER('Step 3 (MTP) - Plan and prior'!N51),'Step 3 (MTP) - Plan and prior'!N51,"") ->  | O66: =IF(ISNUMBER('Step 3 (MTP) - Plan and prior'!O51),'Step 3 (MTP) - Plan and prior'!O51,"") ->  | P66: =IF(ISNUMBER('Step 3 (MTP) - Plan and prior'!P51),'Step 3 (MTP) - Plan and prior'!P51,"") ->  | Q66: =IF(ISNUMBER('Step 3 (MTP) - Plan and prior'!Q51),'Step 3 (MTP) - Plan and prior'!Q51,"") ->  | R66: =IF(ISNUMBER('Step 3 (MTP) - Plan and prior'!R51),'Step 3 (MTP) - Plan and prior'!R51,"") ->  | S66: =IF(ISNUMBER('Step 3 (MTP) - Plan and prior'!S51),'Step 3 (MTP) - Plan and prior'!S51,"") ->  | T66: =IF(ISNUMBER('Step 3 (MTP) - Plan and prior'!T51),'Step 3 (MTP) - Plan and prior'!T51,"") ->  | U66: =IF(ISNUMBER('Step 3 (MTP) - Plan and prior'!U51),'Step 3 (MTP) - Plan and prior'!U51,"") ->  | V66: =IF(ISNUMBER('Step 3 (MTP) - Plan and prior'!V51),'Step 3 (MTP) - Plan and prior'!V51,"") ->  | W66: =IF(ISNUMBER('Step 3 (MTP) - Plan and prior'!W51),'Step 3 (MTP) - Plan and prior'!W51,"") ->  | X66: =IF(ISNUMBER('Step 3 (MTP) - Plan and prior'!X51),'Step 3 (MTP) - Plan and prior'!X51,"") -> 
B67: ='Step 3 (MTP) - Plan and prior'!B52 -> Minimum level for the structural primary balance in 2028 (not applicable), with safeguard | D67: =IF(ISNUMBER('Step 3 (MTP) - Plan and prior'!D52),'Step 3 (MTP) - Plan and prior'!D52,"") ->  | E67: =IF(ISNUMBER('Step 3 (MTP) - Plan and prior'!E52),'Step 3 (MTP) - Plan and prior'!E52,"") ->  | F67: =IF(ISNUMBER('Step 3 (MTP) - Plan and prior'!F52),'Step 3 (MTP) - Plan and prior'!F52,"") ->  | G67: =IF(ISNUMBER('Step 3 (MTP) - Plan and prior'!G52),'Step 3 (MTP) - Plan and prior'!G52,"") ->  | H67: =IF(ISNUMBER('Step 3 (MTP) - Plan and prior'!H52),'Step 3 (MTP) - Plan and prior'!H52,"") ->  | I67: =IF(ISNUMBER('Step 3 (MTP) - Plan and prior'!I52),'Step 3 (MTP) - Plan and prior'!I52,"") ->  | J67: =IF(ISNUMBER('Step 3 (MTP) - Plan and prior'!J52),'Step 3 (MTP) - Plan and prior'!J52,"") ->  | K67: =IF(ISNUMBER('Step 3 (MTP) - Plan and prior'!K52),'Step 3 (MTP) - Plan and prior'!K52,"") ->  | L67: =IF(ISNUMBER('Step 3 (MTP) - Plan and prior'!L52),'Step 3 (MTP) - Plan and prior'!L52,"") ->  | M67: =IF(ISNUMBER('Step 3 (MTP) - Plan and prior'!M52),'Step 3 (MTP) - Plan and prior'!M52,"") ->  | N67: =IF(ISNUMBER('Step 3 (MTP) - Plan and prior'!N52),'Step 3 (MTP) - Plan and prior'!N52,"") ->  | O67: =IF(ISNUMBER('Step 3 (MTP) - Plan and prior'!O52),'Step 3 (MTP) - Plan and prior'!O52,"") ->  | P67: =IF(ISNUMBER('Step 3 (MTP) - Plan and prior'!P52),'Step 3 (MTP) - Plan and prior'!P52,"") ->  | Q67: =IF(ISNUMBER('Step 3 (MTP) - Plan and prior'!Q52),'Step 3 (MTP) - Plan and prior'!Q52,"") ->  | R67: =IF(ISNUMBER('Step 3 (MTP) - Plan and prior'!R52),'Step 3 (MTP) - Plan and prior'!R52,"") ->  | S67: =IF(ISNUMBER('Step 3 (MTP) - Plan and prior'!S52),'Step 3 (MTP) - Plan and prior'!S52,"") ->  | T67: =IF(ISNUMBER('Step 3 (MTP) - Plan and prior'!T52),'Step 3 (MTP) - Plan and prior'!T52,"") ->  | U67: =IF(ISNUMBER('Step 3 (MTP) - Plan and prior'!U52),'Step 3 (MTP) - Plan and prior'!U52,"") ->  | V67: =IF(ISNUMBER('Step 3 (MTP) - Plan and prior'!V52),'Step 3 (MTP) - Plan and prior'!V52,"") ->  | W67: =IF(ISNUMBER('Step 3 (MTP) - Plan and prior'!W52),'Step 3 (MTP) - Plan and prior'!W52,"") ->  | X67: =IF(ISNUMBER('Step 3 (MTP) - Plan and prior'!X52),'Step 3 (MTP) - Plan and prior'!X52,"") -> 
B68: EC technical information - Path to meet all requirements and safeguard. | D68: =IF(ISNUMBER('Step 3 (MTP) - Plan and prior'!D53),'Step 3 (MTP) - Plan and prior'!D53,"") ->  | E68: =IF(ISNUMBER('Step 3 (MTP) - Plan and prior'!E53),'Step 3 (MTP) - Plan and prior'!E53,"") ->  | F68: =IF(ISNUMBER('Step 3 (MTP) - Plan and prior'!F53),'Step 3 (MTP) - Plan and prior'!F53,"") ->  | G68: =IF(ISNUMBER('Step 3 (MTP) - Plan and prior'!G53),'Step 3 (MTP) - Plan and prior'!G53,"") ->  | H68: =IF(ISNUMBER('Step 3 (MTP) - Plan and prior'!H53),'Step 3 (MTP) - Plan and prior'!H53,"") ->  | I68: =IF(ISNUMBER('Step 3 (MTP) - Plan and prior'!I53),'Step 3 (MTP) - Plan and prior'!I53,"") ->  | J68: =IF(ISNUMBER('Step 3 (MTP) - Plan and prior'!J53),'Step 3 (MTP) - Plan and prior'!J53,"") ->  | K68: =IF(ISNUMBER('Step 3 (MTP) - Plan and prior'!K53),'Step 3 (MTP) - Plan and prior'!K53,"") ->  | L68: =IF(ISNUMBER('Step 3 (MTP) - Plan and prior'!L53),'Step 3 (MTP) - Plan and prior'!L53,"") ->  | M68: =IF(ISNUMBER('Step 3 (MTP) - Plan and prior'!M53),'Step 3 (MTP) - Plan and prior'!M53,"") ->  | N68: =IF(ISNUMBER('Step 3 (MTP) - Plan and prior'!N53),'Step 3 (MTP) - Plan and prior'!N53,"") ->  | O68: =IF(ISNUMBER('Step 3 (MTP) - Plan and prior'!O53),'Step 3 (MTP) - Plan and prior'!O53,"") ->  | P68: =IF(ISNUMBER('Step 3 (MTP) - Plan and prior'!P53),'Step 3 (MTP) - Plan and prior'!P53,"") ->  | Q68: =IF(ISNUMBER('Step 3 (MTP) - Plan and prior'!Q53),'Step 3 (MTP) - Plan and prior'!Q53,"") ->  | R68: =IF(ISNUMBER('Step 3 (MTP) - Plan and prior'!R53),'Step 3 (MTP) - Plan and prior'!R53,"") ->  | S68: =IF(ISNUMBER('Step 3 (MTP) - Plan and prior'!S53),'Step 3 (MTP) - Plan and prior'!S53,"") ->  | T68: =IF(ISNUMBER('Step 3 (MTP) - Plan and prior'!T53),'Step 3 (MTP) - Plan and prior'!T53,"") ->  | U68: =IF(ISNUMBER('Step 3 (MTP) - Plan and prior'!U53),'Step 3 (MTP) - Plan and prior'!U53,"") ->  | V68: =IF(ISNUMBER('Step 3 (MTP) - Plan and prior'!V53),'Step 3 (MTP) - Plan and prior'!V53,"") ->  | W68: =IF(ISNUMBER('Step 3 (MTP) - Plan and prior'!W53),'Step 3 (MTP) - Plan and prior'!W53,"") ->  | X68: =IF(ISNUMBER('Step 3 (MTP) - Plan and prior'!X53),'Step 3 (MTP) - Plan and prior'!X53,"") -> 
B69: ='Step 3 (MTP) - Plan and prior'!B54 -> Main budgetary variables (4-year adjustment period) | D69: =IF(ISNUMBER('Step 3 (MTP) - Plan and prior'!D54),'Step 3 (MTP) - Plan and prior'!D54,"") ->  | E69: =IF(ISNUMBER('Step 3 (MTP) - Plan and prior'!E54),'Step 3 (MTP) - Plan and prior'!E54,"") ->  | F69: =IF(ISNUMBER('Step 3 (MTP) - Plan and prior'!F54),'Step 3 (MTP) - Plan and prior'!F54,"") ->  | G69: =IF(ISNUMBER('Step 3 (MTP) - Plan and prior'!G54),'Step 3 (MTP) - Plan and prior'!G54,"") ->  | H69: =IF(ISNUMBER('Step 3 (MTP) - Plan and prior'!H54),'Step 3 (MTP) - Plan and prior'!H54,"") ->  | I69: =IF(ISNUMBER('Step 3 (MTP) - Plan and prior'!I54),'Step 3 (MTP) - Plan and prior'!I54,"") ->  | J69: =IF(ISNUMBER('Step 3 (MTP) - Plan and prior'!J54),'Step 3 (MTP) - Plan and prior'!J54,"") ->  | K69: =IF(ISNUMBER('Step 3 (MTP) - Plan and prior'!K54),'Step 3 (MTP) - Plan and prior'!K54,"") ->  | L69: =IF(ISNUMBER('Step 3 (MTP) - Plan and prior'!L54),'Step 3 (MTP) - Plan and prior'!L54,"") ->  | M69: =IF(ISNUMBER('Step 3 (MTP) - Plan and prior'!M54),'Step 3 (MTP) - Plan and prior'!M54,"") ->  | N69: =IF(ISNUMBER('Step 3 (MTP) - Plan and prior'!N54),'Step 3 (MTP) - Plan and prior'!N54,"") ->  | O69: =IF(ISNUMBER('Step 3 (MTP) - Plan and prior'!O54),'Step 3 (MTP) - Plan and prior'!O54,"") ->  | P69: =IF(ISNUMBER('Step 3 (MTP) - Plan and prior'!P54),'Step 3 (MTP) - Plan and prior'!P54,"") ->  | Q69: =IF(ISNUMBER('Step 3 (MTP) - Plan and prior'!Q54),'Step 3 (MTP) - Plan and prior'!Q54,"") ->  | R69: =IF(ISNUMBER('Step 3 (MTP) - Plan and prior'!R54),'Step 3 (MTP) - Plan and prior'!R54,"") ->  | S69: =IF(ISNUMBER('Step 3 (MTP) - Plan and prior'!S54),'Step 3 (MTP) - Plan and prior'!S54,"") ->  | T69: =IF(ISNUMBER('Step 3 (MTP) - Plan and prior'!T54),'Step 3 (MTP) - Plan and prior'!T54,"") ->  | U69: =IF(ISNUMBER('Step 3 (MTP) - Plan and prior'!U54),'Step 3 (MTP) - Plan and prior'!U54,"") ->  | V69: =IF(ISNUMBER('Step 3 (MTP) - Plan and prior'!V54),'Step 3 (MTP) - Plan and prior'!V54,"") ->  | W69: =IF(ISNUMBER('Step 3 (MTP) - Plan and prior'!W54),'Step 3 (MTP) - Plan and prior'!W54,"") ->  | X69: =IF(ISNUMBER('Step 3 (MTP) - Plan and prior'!X54),'Step 3 (MTP) - Plan and prior'!X54,"") -> 
B70: Net expenditure growth in a plan without extention | D70: =IF(ISNUMBER('Step 3 (MTP) - Plan and prior'!D55),'Step 3 (MTP) - Plan and prior'!D55,"") -> 4.5 | E70: =IF(ISNUMBER('Step 3 (MTP) - Plan and prior'!E55),'Step 3 (MTP) - Plan and prior'!E55,"") -> 1.8 | F70: =IF(ISNUMBER('Step 3 (MTP) - Plan and prior'!F55),'Step 3 (MTP) - Plan and prior'!F55,"") -> 3 | G70: =IF(ISNUMBER('Step 3 (MTP) - Plan and prior'!G55),'Step 3 (MTP) - Plan and prior'!G55,"") -> 3.2 | H70: =IF(ISNUMBER('Step 3 (MTP) - Plan and prior'!H55),'Step 3 (MTP) - Plan and prior'!H55,"") -> 3.1 | I70: =IF(ISNUMBER('Step 3 (MTP) - Plan and prior'!I55),'Step 3 (MTP) - Plan and prior'!I55,"") -> 3 | J70: =IF(ISNUMBER('Step 3 (MTP) - Plan and prior'!J55),'Step 3 (MTP) - Plan and prior'!J55,"") -> 3.3 | K70: =IF(ISNUMBER('Step 3 (MTP) - Plan and prior'!K55),'Step 3 (MTP) - Plan and prior'!K55,"") -> 3.3 | L70: =IF(ISNUMBER('Step 3 (MTP) - Plan and prior'!L55),'Step 3 (MTP) - Plan and prior'!L55,"") -> 3.3 | M70: =IF(ISNUMBER('Step 3 (MTP) - Plan and prior'!M55),'Step 3 (MTP) - Plan and prior'!M55,"") -> 3.2 | N70: =IF(ISNUMBER('Step 3 (MTP) - Plan and prior'!N55),'Step 3 (MTP) - Plan and prior'!N55,"") -> 3.2 | O70: =IF(ISNUMBER('Step 3 (MTP) - Plan and prior'!O55),'Step 3 (MTP) - Plan and prior'!O55,"") -> 3.2 | P70: =IF(ISNUMBER('Step 3 (MTP) - Plan and prior'!P55),'Step 3 (MTP) - Plan and prior'!P55,"") -> 3.2 | Q70: =IF(ISNUMBER('Step 3 (MTP) - Plan and prior'!Q55),'Step 3 (MTP) - Plan and prior'!Q55,"") -> 3.2 | R70: =IF(ISNUMBER('Step 3 (MTP) - Plan and prior'!R55),'Step 3 (MTP) - Plan and prior'!R55,"") -> 3.3 | S70: =IF(ISNUMBER('Step 3 (MTP) - Plan and prior'!S55),'Step 3 (MTP) - Plan and prior'!S55,"") -> 3.3 | T70: =IF(ISNUMBER('Step 3 (MTP) - Plan and prior'!T55),'Step 3 (MTP) - Plan and prior'!T55,"") ->  | U70: =IF(ISNUMBER('Step 3 (MTP) - Plan and prior'!U55),'Step 3 (MTP) - Plan and prior'!U55,"") ->  | V70: =IF(ISNUMBER('Step 3 (MTP) - Plan and prior'!V55),'Step 3 (MTP) - Plan and prior'!V55,"") ->  | W70: =IF(ISNUMBER('Step 3 (MTP) - Plan and prior'!W55),'Step 3 (MTP) - Plan and prior'!W55,"") ->  | X70: =IF(ISNUMBER('Step 3 (MTP) - Plan and prior'!X55),'Step 3 (MTP) - Plan and prior'!X55,"") -> 
B71: Structural balance | D71: =IF(ISNUMBER('Step 3 (MTP) - Plan and prior'!#REF!),'Step 3 (MTP) - Plan and prior'!#REF!,"") ->  | E71: =IF(ISNUMBER('Step 3 (MTP) - Plan and prior'!#REF!),'Step 3 (MTP) - Plan and prior'!#REF!,"") ->  | F71: =IF(ISNUMBER('Step 3 (MTP) - Plan and prior'!#REF!),'Step 3 (MTP) - Plan and prior'!#REF!,"") ->  | G71: =IF(ISNUMBER('Step 3 (MTP) - Plan and prior'!#REF!),'Step 3 (MTP) - Plan and prior'!#REF!,"") ->  | H71: =IF(ISNUMBER('Step 3 (MTP) - Plan and prior'!#REF!),'Step 3 (MTP) - Plan and prior'!#REF!,"") ->  | I71: =IF(ISNUMBER('Step 3 (MTP) - Plan and prior'!#REF!),'Step 3 (MTP) - Plan and prior'!#REF!,"") ->  | J71: =IF(ISNUMBER('Step 3 (MTP) - Plan and prior'!#REF!),'Step 3 (MTP) - Plan and prior'!#REF!,"") ->  | K71: =IF(ISNUMBER('Step 3 (MTP) - Plan and prior'!#REF!),'Step 3 (MTP) - Plan and prior'!#REF!,"") ->  | L71: =IF(ISNUMBER('Step 3 (MTP) - Plan and prior'!#REF!),'Step 3 (MTP) - Plan and prior'!#REF!,"") ->  | M71: =IF(ISNUMBER('Step 3 (MTP) - Plan and prior'!#REF!),'Step 3 (MTP) - Plan and prior'!#REF!,"") ->  | N71: =IF(ISNUMBER('Step 3 (MTP) - Plan and prior'!#REF!),'Step 3 (MTP) - Plan and prior'!#REF!,"") ->  | O71: =IF(ISNUMBER('Step 3 (MTP) - Plan and prior'!#REF!),'Step 3 (MTP) - Plan and prior'!#REF!,"") ->  | P71: =IF(ISNUMBER('Step 3 (MTP) - Plan and prior'!#REF!),'Step 3 (MTP) - Plan and prior'!#REF!,"") ->  | Q71: =IF(ISNUMBER('Step 3 (MTP) - Plan and prior'!#REF!),'Step 3 (MTP) - Plan and prior'!#REF!,"") ->  | R71: =IF(ISNUMBER('Step 3 (MTP) - Plan and prior'!#REF!),'Step 3 (MTP) - Plan and prior'!#REF!,"") ->  | S71: =IF(ISNUMBER('Step 3 (MTP) - Plan and prior'!#REF!),'Step 3 (MTP) - Plan and prior'!#REF!,"") ->  | T71: =IF(ISNUMBER('Step 3 (MTP) - Plan and prior'!#REF!),'Step 3 (MTP) - Plan and prior'!#REF!,"") ->  | U71: =IF(ISNUMBER('Step 3 (MTP) - Plan and prior'!#REF!),'Step 3 (MTP) - Plan and prior'!#REF!,"") ->  | V71: =IF(ISNUMBER('Step 3 (MTP) - Plan and prior'!#REF!),'Step 3 (MTP) - Plan and prior'!#REF!,"") ->  | W71: =IF(ISNUMBER('Step 3 (MTP) - Plan and prior'!#REF!),'Step 3 (MTP) - Plan and prior'!#REF!,"") ->  | X71: =IF(ISNUMBER('Step 3 (MTP) - Plan and prior'!#REF!),'Step 3 (MTP) - Plan and prior'!#REF!,"") -> 
B72: Structural primary balance | D72: =IF(ISNUMBER('Step 3 (MTP) - Plan and prior'!D57),'Step 3 (MTP) - Plan and prior'!D57,"") -> 1.9 | E72: =IF(ISNUMBER('Step 3 (MTP) - Plan and prior'!E57),'Step 3 (MTP) - Plan and prior'!E57,"") -> 1.7 | F72: =IF(ISNUMBER('Step 3 (MTP) - Plan and prior'!F57),'Step 3 (MTP) - Plan and prior'!F57,"") -> 2.1 | G72: =IF(ISNUMBER('Step 3 (MTP) - Plan and prior'!G57),'Step 3 (MTP) - Plan and prior'!G57,"") -> 2.3 | H72: =IF(ISNUMBER('Step 3 (MTP) - Plan and prior'!H57),'Step 3 (MTP) - Plan and prior'!H57,"") -> 2.4 | I72: =IF(ISNUMBER('Step 3 (MTP) - Plan and prior'!I57),'Step 3 (MTP) - Plan and prior'!I57,"") -> 2.6 | J72: =IF(ISNUMBER('Step 3 (MTP) - Plan and prior'!J57),'Step 3 (MTP) - Plan and prior'!J57,"") -> 2.6 | K72: =IF(ISNUMBER('Step 3 (MTP) - Plan and prior'!K57),'Step 3 (MTP) - Plan and prior'!K57,"") -> 2.6 | L72: =IF(ISNUMBER('Step 3 (MTP) - Plan and prior'!L57),'Step 3 (MTP) - Plan and prior'!L57,"") -> 2.6 | M72: =IF(ISNUMBER('Step 3 (MTP) - Plan and prior'!M57),'Step 3 (MTP) - Plan and prior'!M57,"") -> 2.6 | N72: =IF(ISNUMBER('Step 3 (MTP) - Plan and prior'!N57),'Step 3 (MTP) - Plan and prior'!N57,"") -> 2.6 | O72: =IF(ISNUMBER('Step 3 (MTP) - Plan and prior'!O57),'Step 3 (MTP) - Plan and prior'!O57,"") -> 2.6 | P72: =IF(ISNUMBER('Step 3 (MTP) - Plan and prior'!P57),'Step 3 (MTP) - Plan and prior'!P57,"") -> 2.6 | Q72: =IF(ISNUMBER('Step 3 (MTP) - Plan and prior'!Q57),'Step 3 (MTP) - Plan and prior'!Q57,"") -> 2.6 | R72: =IF(ISNUMBER('Step 3 (MTP) - Plan and prior'!R57),'Step 3 (MTP) - Plan and prior'!R57,"") -> 2.6 | S72: =IF(ISNUMBER('Step 3 (MTP) - Plan and prior'!S57),'Step 3 (MTP) - Plan and prior'!S57,"") -> 2.6 | T72: =IF(ISNUMBER('Step 3 (MTP) - Plan and prior'!T57),'Step 3 (MTP) - Plan and prior'!T57,"") ->  | U72: =IF(ISNUMBER('Step 3 (MTP) - Plan and prior'!U57),'Step 3 (MTP) - Plan and prior'!U57,"") ->  | V72: =IF(ISNUMBER('Step 3 (MTP) - Plan and prior'!V57),'Step 3 (MTP) - Plan and prior'!V57,"") ->  | W72: =IF(ISNUMBER('Step 3 (MTP) - Plan and prior'!W57),'Step 3 (MTP) - Plan and prior'!W57,"") ->  | X72: =IF(ISNUMBER('Step 3 (MTP) - Plan and prior'!X57),'Step 3 (MTP) - Plan and prior'!X57,"") -> 
B73: Gross debt | D73: =IF(ISNUMBER('Step 3 (MTP) - Plan and prior'!D58),'Step 3 (MTP) - Plan and prior'!D58,"") -> 161.9 | E73: =IF(ISNUMBER('Step 3 (MTP) - Plan and prior'!E58),'Step 3 (MTP) - Plan and prior'!E58,"") -> 153.9 | F73: =IF(ISNUMBER('Step 3 (MTP) - Plan and prior'!F58),'Step 3 (MTP) - Plan and prior'!F58,"") -> 149.7 | G73: =IF(ISNUMBER('Step 3 (MTP) - Plan and prior'!G58),'Step 3 (MTP) - Plan and prior'!G58,"") -> 145.1 | H73: =IF(ISNUMBER('Step 3 (MTP) - Plan and prior'!H58),'Step 3 (MTP) - Plan and prior'!H58,"") -> 140.8 | I73: =IF(ISNUMBER('Step 3 (MTP) - Plan and prior'!I58),'Step 3 (MTP) - Plan and prior'!I58,"") -> 136.6 | J73: =IF(ISNUMBER('Step 3 (MTP) - Plan and prior'!J58),'Step 3 (MTP) - Plan and prior'!J58,"") -> 132.4 | K73: =IF(ISNUMBER('Step 3 (MTP) - Plan and prior'!K58),'Step 3 (MTP) - Plan and prior'!K58,"") -> 128.4 | L73: =IF(ISNUMBER('Step 3 (MTP) - Plan and prior'!L58),'Step 3 (MTP) - Plan and prior'!L58,"") -> 124.7 | M73: =IF(ISNUMBER('Step 3 (MTP) - Plan and prior'!M58),'Step 3 (MTP) - Plan and prior'!M58,"") -> 121.2 | N73: =IF(ISNUMBER('Step 3 (MTP) - Plan and prior'!N58),'Step 3 (MTP) - Plan and prior'!N58,"") -> 119.1 | O73: =IF(ISNUMBER('Step 3 (MTP) - Plan and prior'!O58),'Step 3 (MTP) - Plan and prior'!O58,"") -> 117.4 | P73: =IF(ISNUMBER('Step 3 (MTP) - Plan and prior'!P58),'Step 3 (MTP) - Plan and prior'!P58,"") -> 115.9 | Q73: =IF(ISNUMBER('Step 3 (MTP) - Plan and prior'!Q58),'Step 3 (MTP) - Plan and prior'!Q58,"") -> 114.3 | R73: =IF(ISNUMBER('Step 3 (MTP) - Plan and prior'!R58),'Step 3 (MTP) - Plan and prior'!R58,"") -> 112.9 | S73: =IF(ISNUMBER('Step 3 (MTP) - Plan and prior'!S58),'Step 3 (MTP) - Plan and prior'!S58,"") -> 111.5 | T73: =IF(ISNUMBER('Step 3 (MTP) - Plan and prior'!T58),'Step 3 (MTP) - Plan and prior'!T58,"") ->  | U73: =IF(ISNUMBER('Step 3 (MTP) - Plan and prior'!U58),'Step 3 (MTP) - Plan and prior'!U58,"") ->  | V73: =IF(ISNUMBER('Step 3 (MTP) - Plan and prior'!V58),'Step 3 (MTP) - Plan and prior'!V58,"") ->  | W73: =IF(ISNUMBER('Step 3 (MTP) - Plan and prior'!W58),'Step 3 (MTP) - Plan and prior'!W58,"") ->  | X73: =IF(ISNUMBER('Step 3 (MTP) - Plan and prior'!X58),'Step 3 (MTP) - Plan and prior'!X58,"") -> 
B74: ='Step 3 (MTP) - Plan and prior'!B59 -> Debt sustainability assessment (4-year adjustment period) | D74: =IF(ISNUMBER('Step 3 (MTP) - Plan and prior'!D59),'Step 3 (MTP) - Plan and prior'!D59,"") ->  | E74: =IF(ISNUMBER('Step 3 (MTP) - Plan and prior'!E59),'Step 3 (MTP) - Plan and prior'!E59,"") ->  | F74: =IF(ISNUMBER('Step 3 (MTP) - Plan and prior'!F59),'Step 3 (MTP) - Plan and prior'!F59,"") ->  | G74: =IF(ISNUMBER('Step 3 (MTP) - Plan and prior'!G59),'Step 3 (MTP) - Plan and prior'!G59,"") ->  | H74: =IF(ISNUMBER('Step 3 (MTP) - Plan and prior'!H59),'Step 3 (MTP) - Plan and prior'!H59,"") ->  | I74: =IF(ISNUMBER('Step 3 (MTP) - Plan and prior'!I59),'Step 3 (MTP) - Plan and prior'!I59,"") ->  | J74: =IF(ISNUMBER('Step 3 (MTP) - Plan and prior'!J59),'Step 3 (MTP) - Plan and prior'!J59,"") ->  | K74: =IF(ISNUMBER('Step 3 (MTP) - Plan and prior'!K59),'Step 3 (MTP) - Plan and prior'!K59,"") ->  | L74: =IF(ISNUMBER('Step 3 (MTP) - Plan and prior'!L59),'Step 3 (MTP) - Plan and prior'!L59,"") ->  | M74: =IF(ISNUMBER('Step 3 (MTP) - Plan and prior'!M59),'Step 3 (MTP) - Plan and prior'!M59,"") ->  | N74: =IF(ISNUMBER('Step 3 (MTP) - Plan and prior'!N59),'Step 3 (MTP) - Plan and prior'!N59,"") ->  | O74: =IF(ISNUMBER('Step 3 (MTP) - Plan and prior'!O59),'Step 3 (MTP) - Plan and prior'!O59,"") ->  | P74: =IF(ISNUMBER('Step 3 (MTP) - Plan and prior'!P59),'Step 3 (MTP) - Plan and prior'!P59,"") ->  | Q74: =IF(ISNUMBER('Step 3 (MTP) - Plan and prior'!Q59),'Step 3 (MTP) - Plan and prior'!Q59,"") ->  | R74: =IF(ISNUMBER('Step 3 (MTP) - Plan and prior'!R59),'Step 3 (MTP) - Plan and prior'!R59,"") ->  | S74: =IF(ISNUMBER('Step 3 (MTP) - Plan and prior'!S59),'Step 3 (MTP) - Plan and prior'!S59,"") ->  | T74: =IF(ISNUMBER('Step 3 (MTP) - Plan and prior'!T59),'Step 3 (MTP) - Plan and prior'!T59,"") ->  | U74: =IF(ISNUMBER('Step 3 (MTP) - Plan and prior'!U59),'Step 3 (MTP) - Plan and prior'!U59,"") ->  | V74: =IF(ISNUMBER('Step 3 (MTP) - Plan and prior'!V59),'Step 3 (MTP) - Plan and prior'!V59,"") ->  | W74: =IF(ISNUMBER('Step 3 (MTP) - Plan and prior'!W59),'Step 3 (MTP) - Plan and prior'!W59,"") ->  | X74: =IF(ISNUMBER('Step 3 (MTP) - Plan and prior'!X59),'Step 3 (MTP) - Plan and prior'!X59,"") -> 
B75: Gross debt, no policy change scenario | D75: =IF(ISNUMBER('Step 3 (MTP) - Plan and prior'!D40),'Step 3 (MTP) - Plan and prior'!D40,"") -> 161.9 | E75: =IF(ISNUMBER('Step 3 (MTP) - Plan and prior'!E40),'Step 3 (MTP) - Plan and prior'!E40,"") -> 153.7 | F75: =IF(ISNUMBER('Step 3 (MTP) - Plan and prior'!F40),'Step 3 (MTP) - Plan and prior'!F40,"") -> 148.8 | G75: =IF(ISNUMBER('Step 3 (MTP) - Plan and prior'!G40),'Step 3 (MTP) - Plan and prior'!G40,"") -> 142.4 | H75: =IF(ISNUMBER('Step 3 (MTP) - Plan and prior'!H40),'Step 3 (MTP) - Plan and prior'!H40,"") -> 137.2 | I75: =IF(ISNUMBER('Step 3 (MTP) - Plan and prior'!I40),'Step 3 (MTP) - Plan and prior'!I40,"") -> 132.5 | J75: =IF(ISNUMBER('Step 3 (MTP) - Plan and prior'!J40),'Step 3 (MTP) - Plan and prior'!J40,"") -> 128.8 | K75: =IF(ISNUMBER('Step 3 (MTP) - Plan and prior'!K40),'Step 3 (MTP) - Plan and prior'!K40,"") -> 125.4 | L75: =IF(ISNUMBER('Step 3 (MTP) - Plan and prior'!L40),'Step 3 (MTP) - Plan and prior'!L40,"") -> 122.2 | M75: =IF(ISNUMBER('Step 3 (MTP) - Plan and prior'!M40),'Step 3 (MTP) - Plan and prior'!M40,"") -> 119.3 | N75: =IF(ISNUMBER('Step 3 (MTP) - Plan and prior'!N40),'Step 3 (MTP) - Plan and prior'!N40,"") -> 117.8 | O75: =IF(ISNUMBER('Step 3 (MTP) - Plan and prior'!O40),'Step 3 (MTP) - Plan and prior'!O40,"") -> 116.5 | P75: =IF(ISNUMBER('Step 3 (MTP) - Plan and prior'!P40),'Step 3 (MTP) - Plan and prior'!P40,"") -> 114.9 | Q75: =IF(ISNUMBER('Step 3 (MTP) - Plan and prior'!Q40),'Step 3 (MTP) - Plan and prior'!Q40,"") -> 113.3 | R75: =IF(ISNUMBER('Step 3 (MTP) - Plan and prior'!R40),'Step 3 (MTP) - Plan and prior'!R40,"") -> 111.7 | S75: =IF(ISNUMBER('Step 3 (MTP) - Plan and prior'!S40),'Step 3 (MTP) - Plan and prior'!S40,"") -> 110.3 | T75: =IF(ISNUMBER('Step 3 (MTP) - Plan and prior'!T60),'Step 3 (MTP) - Plan and prior'!T60,"") ->  | U75: =IF(ISNUMBER('Step 3 (MTP) - Plan and prior'!U60),'Step 3 (MTP) - Plan and prior'!U60,"") ->  | V75: =IF(ISNUMBER('Step 3 (MTP) - Plan and prior'!V60),'Step 3 (MTP) - Plan and prior'!V60,"") ->  | W75: =IF(ISNUMBER('Step 3 (MTP) - Plan and prior'!W60),'Step 3 (MTP) - Plan and prior'!W60,"") ->  | X75: =IF(ISNUMBER('Step 3 (MTP) - Plan and prior'!X60),'Step 3 (MTP) - Plan and prior'!X60,"") -> 
B76: Gross debt, financial stress scenario | D76: =IF(ISNUMBER('Step 3 (MTP) - Plan and prior'!D41),'Step 3 (MTP) - Plan and prior'!D41,"") -> 161.9 | E76: =IF(ISNUMBER('Step 3 (MTP) - Plan and prior'!E41),'Step 3 (MTP) - Plan and prior'!E41,"") -> 153.7 | F76: =IF(ISNUMBER('Step 3 (MTP) - Plan and prior'!F41),'Step 3 (MTP) - Plan and prior'!F41,"") -> 149.1 | G76: =IF(ISNUMBER('Step 3 (MTP) - Plan and prior'!G41),'Step 3 (MTP) - Plan and prior'!G41,"") -> 143.1 | H76: =IF(ISNUMBER('Step 3 (MTP) - Plan and prior'!H41),'Step 3 (MTP) - Plan and prior'!H41,"") -> 138 | I76: =IF(ISNUMBER('Step 3 (MTP) - Plan and prior'!I41),'Step 3 (MTP) - Plan and prior'!I41,"") -> 133.4 | J76: =IF(ISNUMBER('Step 3 (MTP) - Plan and prior'!J41),'Step 3 (MTP) - Plan and prior'!J41,"") -> 130.5 | K76: =IF(ISNUMBER('Step 3 (MTP) - Plan and prior'!K41),'Step 3 (MTP) - Plan and prior'!K41,"") -> 127.7 | L76: =IF(ISNUMBER('Step 3 (MTP) - Plan and prior'!L41),'Step 3 (MTP) - Plan and prior'!L41,"") -> 125.2 | M76: =IF(ISNUMBER('Step 3 (MTP) - Plan and prior'!M41),'Step 3 (MTP) - Plan and prior'!M41,"") -> 122.7 | N76: =IF(ISNUMBER('Step 3 (MTP) - Plan and prior'!N41),'Step 3 (MTP) - Plan and prior'!N41,"") -> 121.8 | O76: =IF(ISNUMBER('Step 3 (MTP) - Plan and prior'!O41),'Step 3 (MTP) - Plan and prior'!O41,"") -> 121 | P76: =IF(ISNUMBER('Step 3 (MTP) - Plan and prior'!P41),'Step 3 (MTP) - Plan and prior'!P41,"") -> 119.9 | Q76: =IF(ISNUMBER('Step 3 (MTP) - Plan and prior'!Q41),'Step 3 (MTP) - Plan and prior'!Q41,"") -> 118.8 | R76: =IF(ISNUMBER('Step 3 (MTP) - Plan and prior'!R41),'Step 3 (MTP) - Plan and prior'!R41,"") -> 117.7 | S76: =IF(ISNUMBER('Step 3 (MTP) - Plan and prior'!S41),'Step 3 (MTP) - Plan and prior'!S41,"") -> 116.7 | T76: =IF(ISNUMBER('Step 3 (MTP) - Plan and prior'!T61),'Step 3 (MTP) - Plan and prior'!T61,"") ->  | U76: =IF(ISNUMBER('Step 3 (MTP) - Plan and prior'!U61),'Step 3 (MTP) - Plan and prior'!U61,"") ->  | V76: =IF(ISNUMBER('Step 3 (MTP) - Plan and prior'!V61),'Step 3 (MTP) - Plan and prior'!V61,"") ->  | W76: =IF(ISNUMBER('Step 3 (MTP) - Plan and prior'!W61),'Step 3 (MTP) - Plan and prior'!W61,"") ->  | X76: =IF(ISNUMBER('Step 3 (MTP) - Plan and prior'!X61),'Step 3 (MTP) - Plan and prior'!X61,"") -> 
B77: Gross debt, lower structural primary balance scenario | D77: =IF(ISNUMBER('Step 3 (MTP) - Plan and prior'!D42),'Step 3 (MTP) - Plan and prior'!D42,"") -> 161.9 | E77: =IF(ISNUMBER('Step 3 (MTP) - Plan and prior'!E42),'Step 3 (MTP) - Plan and prior'!E42,"") -> 153.7 | F77: =IF(ISNUMBER('Step 3 (MTP) - Plan and prior'!F42),'Step 3 (MTP) - Plan and prior'!F42,"") -> 149.1 | G77: =IF(ISNUMBER('Step 3 (MTP) - Plan and prior'!G42),'Step 3 (MTP) - Plan and prior'!G42,"") -> 143.1 | H77: =IF(ISNUMBER('Step 3 (MTP) - Plan and prior'!H42),'Step 3 (MTP) - Plan and prior'!H42,"") -> 138 | I77: =IF(ISNUMBER('Step 3 (MTP) - Plan and prior'!I42),'Step 3 (MTP) - Plan and prior'!I42,"") -> 133.4 | J77: =IF(ISNUMBER('Step 3 (MTP) - Plan and prior'!J42),'Step 3 (MTP) - Plan and prior'!J42,"") -> 130 | K77: =IF(ISNUMBER('Step 3 (MTP) - Plan and prior'!K42),'Step 3 (MTP) - Plan and prior'!K42,"") -> 127.1 | L77: =IF(ISNUMBER('Step 3 (MTP) - Plan and prior'!L42),'Step 3 (MTP) - Plan and prior'!L42,"") -> 124.8 | M77: =IF(ISNUMBER('Step 3 (MTP) - Plan and prior'!M42),'Step 3 (MTP) - Plan and prior'!M42,"") -> 122.8 | N77: =IF(ISNUMBER('Step 3 (MTP) - Plan and prior'!N42),'Step 3 (MTP) - Plan and prior'!N42,"") -> 122.4 | O77: =IF(ISNUMBER('Step 3 (MTP) - Plan and prior'!O42),'Step 3 (MTP) - Plan and prior'!O42,"") -> 121.9 | P77: =IF(ISNUMBER('Step 3 (MTP) - Plan and prior'!P42),'Step 3 (MTP) - Plan and prior'!P42,"") -> 121.3 | Q77: =IF(ISNUMBER('Step 3 (MTP) - Plan and prior'!Q42),'Step 3 (MTP) - Plan and prior'!Q42,"") -> 120.5 | R77: =IF(ISNUMBER('Step 3 (MTP) - Plan and prior'!R42),'Step 3 (MTP) - Plan and prior'!R42,"") -> 119.9 | S77: =IF(ISNUMBER('Step 3 (MTP) - Plan and prior'!S42),'Step 3 (MTP) - Plan and prior'!S42,"") -> 119.3 | T77: =IF(ISNUMBER('Step 3 (MTP) - Plan and prior'!T62),'Step 3 (MTP) - Plan and prior'!T62,"") ->  | U77: =IF(ISNUMBER('Step 3 (MTP) - Plan and prior'!U62),'Step 3 (MTP) - Plan and prior'!U62,"") ->  | V77: =IF(ISNUMBER('Step 3 (MTP) - Plan and prior'!V62),'Step 3 (MTP) - Plan and prior'!V62,"") ->  | W77: =IF(ISNUMBER('Step 3 (MTP) - Plan and prior'!W62),'Step 3 (MTP) - Plan and prior'!W62,"") ->  | X77: =IF(ISNUMBER('Step 3 (MTP) - Plan and prior'!X62),'Step 3 (MTP) - Plan and prior'!X62,"") -> 
B78: Gross debt, adverse r-g scenario | D78: =IF(ISNUMBER('Step 3 (MTP) - Plan and prior'!D43),'Step 3 (MTP) - Plan and prior'!D43,"") -> 161.9 | E78: =IF(ISNUMBER('Step 3 (MTP) - Plan and prior'!E43),'Step 3 (MTP) - Plan and prior'!E43,"") -> 153.7 | F78: =IF(ISNUMBER('Step 3 (MTP) - Plan and prior'!F43),'Step 3 (MTP) - Plan and prior'!F43,"") -> 149.1 | G78: =IF(ISNUMBER('Step 3 (MTP) - Plan and prior'!G43),'Step 3 (MTP) - Plan and prior'!G43,"") -> 143.1 | H78: =IF(ISNUMBER('Step 3 (MTP) - Plan and prior'!H43),'Step 3 (MTP) - Plan and prior'!H43,"") -> 138 | I78: =IF(ISNUMBER('Step 3 (MTP) - Plan and prior'!I43),'Step 3 (MTP) - Plan and prior'!I43,"") -> 133.4 | J78: =IF(ISNUMBER('Step 3 (MTP) - Plan and prior'!J43),'Step 3 (MTP) - Plan and prior'!J43,"") -> 130.8 | K78: =IF(ISNUMBER('Step 3 (MTP) - Plan and prior'!K43),'Step 3 (MTP) - Plan and prior'!K43,"") -> 128.5 | L78: =IF(ISNUMBER('Step 3 (MTP) - Plan and prior'!L43),'Step 3 (MTP) - Plan and prior'!L43,"") -> 126.6 | M78: =IF(ISNUMBER('Step 3 (MTP) - Plan and prior'!M43),'Step 3 (MTP) - Plan and prior'!M43,"") -> 124.7 | N78: =IF(ISNUMBER('Step 3 (MTP) - Plan and prior'!N43),'Step 3 (MTP) - Plan and prior'!N43,"") -> 124.5 | O78: =IF(ISNUMBER('Step 3 (MTP) - Plan and prior'!O43),'Step 3 (MTP) - Plan and prior'!O43,"") -> 124.4 | P78: =IF(ISNUMBER('Step 3 (MTP) - Plan and prior'!P43),'Step 3 (MTP) - Plan and prior'!P43,"") -> 124.1 | Q78: =IF(ISNUMBER('Step 3 (MTP) - Plan and prior'!Q43),'Step 3 (MTP) - Plan and prior'!Q43,"") -> 123.8 | R78: =IF(ISNUMBER('Step 3 (MTP) - Plan and prior'!R43),'Step 3 (MTP) - Plan and prior'!R43,"") -> 123.5 | S78: =IF(ISNUMBER('Step 3 (MTP) - Plan and prior'!S43),'Step 3 (MTP) - Plan and prior'!S43,"") -> 123.5 | T78: =IF(ISNUMBER('Step 3 (MTP) - Plan and prior'!T63),'Step 3 (MTP) - Plan and prior'!T63,"") ->  | U78: =IF(ISNUMBER('Step 3 (MTP) - Plan and prior'!U63),'Step 3 (MTP) - Plan and prior'!U63,"") ->  | V78: =IF(ISNUMBER('Step 3 (MTP) - Plan and prior'!V63),'Step 3 (MTP) - Plan and prior'!V63,"") ->  | W78: =IF(ISNUMBER('Step 3 (MTP) - Plan and prior'!W63),'Step 3 (MTP) - Plan and prior'!W63,"") ->  | X78: =IF(ISNUMBER('Step 3 (MTP) - Plan and prior'!X63),'Step 3 (MTP) - Plan and prior'!X63,"") -> 
B79: ='Step 3 (MTP) - Plan and prior'!B64 -> Stochastic debt projections, 2029-2033 | D79: =IF(ISNUMBER('Step 3 (MTP) - Plan and prior'!D64),'Step 3 (MTP) - Plan and prior'!D64,"") ->  | E79: =IF(ISNUMBER('Step 3 (MTP) - Plan and prior'!E64),'Step 3 (MTP) - Plan and prior'!E64,"") ->  | F79: =IF(ISNUMBER('Step 3 (MTP) - Plan and prior'!F64),'Step 3 (MTP) - Plan and prior'!F64,"") ->  | G79: =IF(ISNUMBER('Step 3 (MTP) - Plan and prior'!G64),'Step 3 (MTP) - Plan and prior'!G64,"") ->  | H79: =IF(ISNUMBER('Step 3 (MTP) - Plan and prior'!H64),'Step 3 (MTP) - Plan and prior'!H64,"") ->  | I79: =IF(ISNUMBER('Step 3 (MTP) - Plan and prior'!I64),'Step 3 (MTP) - Plan and prior'!I64,"") ->  | J79: =IF(ISNUMBER('Step 3 (MTP) - Plan and prior'!J64),'Step 3 (MTP) - Plan and prior'!J64,"") ->  | K79: =IF(ISNUMBER('Step 3 (MTP) - Plan and prior'!K64),'Step 3 (MTP) - Plan and prior'!K64,"") ->  | L79: =IF(ISNUMBER('Step 3 (MTP) - Plan and prior'!L64),'Step 3 (MTP) - Plan and prior'!L64,"") ->  | M79: =IF(ISNUMBER('Step 3 (MTP) - Plan and prior'!M64),'Step 3 (MTP) - Plan and prior'!M64,"") ->  | N79: =IF(ISNUMBER('Step 3 (MTP) - Plan and prior'!N64),'Step 3 (MTP) - Plan and prior'!N64,"") ->  | O79: =IF(ISNUMBER('Step 3 (MTP) - Plan and prior'!O64),'Step 3 (MTP) - Plan and prior'!O64,"") ->  | P79: =IF(ISNUMBER('Step 3 (MTP) - Plan and prior'!P64),'Step 3 (MTP) - Plan and prior'!P64,"") ->  | Q79: =IF(ISNUMBER('Step 3 (MTP) - Plan and prior'!Q64),'Step 3 (MTP) - Plan and prior'!Q64,"") ->  | R79: =IF(ISNUMBER('Step 3 (MTP) - Plan and prior'!R64),'Step 3 (MTP) - Plan and prior'!R64,"") ->  | S79: =IF(ISNUMBER('Step 3 (MTP) - Plan and prior'!S64),'Step 3 (MTP) - Plan and prior'!S64,"") ->  | T79: =IF(ISNUMBER('Step 3 (MTP) - Plan and prior'!T64),'Step 3 (MTP) - Plan and prior'!T64,"") ->  | U79: =IF(ISNUMBER('Step 3 (MTP) - Plan and prior'!U64),'Step 3 (MTP) - Plan and prior'!U64,"") ->  | V79: =IF(ISNUMBER('Step 3 (MTP) - Plan and prior'!V64),'Step 3 (MTP) - Plan and prior'!V64,"") ->  | W79: =IF(ISNUMBER('Step 3 (MTP) - Plan and prior'!W64),'Step 3 (MTP) - Plan and prior'!W64,"") ->  | X79: =IF(ISNUMBER('Step 3 (MTP) - Plan and prior'!X64),'Step 3 (MTP) - Plan and prior'!X64,"") -> 
B80: p10 | D80: =IF(ISNUMBER('Step 3 (MTP) - Plan and prior'!D65),'Step 3 (MTP) - Plan and prior'!D65,"") ->  | E80: =IF(ISNUMBER('Step 3 (MTP) - Plan and prior'!E65),'Step 3 (MTP) - Plan and prior'!E65,"") ->  | F80: =IF(ISNUMBER('Step 3 (MTP) - Plan and prior'!F65),'Step 3 (MTP) - Plan and prior'!F65,"") ->  | G80: =IF(ISNUMBER('Step 3 (MTP) - Plan and prior'!G65),'Step 3 (MTP) - Plan and prior'!G65,"") ->  | H80: =IF(ISNUMBER('Step 3 (MTP) - Plan and prior'!H65),'Step 3 (MTP) - Plan and prior'!H65,"") ->  | I80: =IF(ISNUMBER('Step 3 (MTP) - Plan and prior'!I65),'Step 3 (MTP) - Plan and prior'!I65,"") ->  | J80: =IF(ISNUMBER('Step 3 (MTP) - Plan and prior'!J65),'Step 3 (MTP) - Plan and prior'!J65,"") -> 122.3 | K80: =IF(ISNUMBER('Step 3 (MTP) - Plan and prior'!K65),'Step 3 (MTP) - Plan and prior'!K65,"") -> 114.3 | L80: =IF(ISNUMBER('Step 3 (MTP) - Plan and prior'!L65),'Step 3 (MTP) - Plan and prior'!L65,"") -> 107.6 | M80: =IF(ISNUMBER('Step 3 (MTP) - Plan and prior'!M65),'Step 3 (MTP) - Plan and prior'!M65,"") -> 101.6 | N80: =IF(ISNUMBER('Step 3 (MTP) - Plan and prior'!N65),'Step 3 (MTP) - Plan and prior'!N65,"") -> 98.1 | O80: =IF(ISNUMBER('Step 3 (MTP) - Plan and prior'!O65),'Step 3 (MTP) - Plan and prior'!O65,"") ->  | P80: =IF(ISNUMBER('Step 3 (MTP) - Plan and prior'!P65),'Step 3 (MTP) - Plan and prior'!P65,"") ->  | Q80: =IF(ISNUMBER('Step 3 (MTP) - Plan and prior'!Q65),'Step 3 (MTP) - Plan and prior'!Q65,"") ->  | R80: =IF(ISNUMBER('Step 3 (MTP) - Plan and prior'!R65),'Step 3 (MTP) - Plan and prior'!R65,"") ->  | S80: =IF(ISNUMBER('Step 3 (MTP) - Plan and prior'!S65),'Step 3 (MTP) - Plan and prior'!S65,"") ->  | T80: =IF(ISNUMBER('Step 3 (MTP) - Plan and prior'!T65),'Step 3 (MTP) - Plan and prior'!T65,"") ->  | U80: =IF(ISNUMBER('Step 3 (MTP) - Plan and prior'!U65),'Step 3 (MTP) - Plan and prior'!U65,"") ->  | V80: =IF(ISNUMBER('Step 3 (MTP) - Plan and prior'!V65),'Step 3 (MTP) - Plan and prior'!V65,"") ->  | W80: =IF(ISNUMBER('Step 3 (MTP) - Plan and prior'!W65),'Step 3 (MTP) - Plan and prior'!W65,"") ->  | X80: =IF(ISNUMBER('Step 3 (MTP) - Plan and prior'!X65),'Step 3 (MTP) - Plan and prior'!X65,"") -> 
B81: p30_p10 | D81: =IF(ISNUMBER('Step 3 (MTP) - Plan and prior'!D66),'Step 3 (MTP) - Plan and prior'!D66,"") ->  | E81: =IF(ISNUMBER('Step 3 (MTP) - Plan and prior'!E66),'Step 3 (MTP) - Plan and prior'!E66,"") ->  | F81: =IF(ISNUMBER('Step 3 (MTP) - Plan and prior'!F66),'Step 3 (MTP) - Plan and prior'!F66,"") ->  | G81: =IF(ISNUMBER('Step 3 (MTP) - Plan and prior'!G66),'Step 3 (MTP) - Plan and prior'!G66,"") ->  | H81: =IF(ISNUMBER('Step 3 (MTP) - Plan and prior'!H66),'Step 3 (MTP) - Plan and prior'!H66,"") ->  | I81: =IF(ISNUMBER('Step 3 (MTP) - Plan and prior'!I66),'Step 3 (MTP) - Plan and prior'!I66,"") ->  | J81: =IF(ISNUMBER('Step 3 (MTP) - Plan and prior'!J66),'Step 3 (MTP) - Plan and prior'!J66,"") -> 6.4 | K81: =IF(ISNUMBER('Step 3 (MTP) - Plan and prior'!K66),'Step 3 (MTP) - Plan and prior'!K66,"") -> 8.9 | L81: =IF(ISNUMBER('Step 3 (MTP) - Plan and prior'!L66),'Step 3 (MTP) - Plan and prior'!L66,"") -> 11 | M81: =IF(ISNUMBER('Step 3 (MTP) - Plan and prior'!M66),'Step 3 (MTP) - Plan and prior'!M66,"") -> 12.5 | N81: =IF(ISNUMBER('Step 3 (MTP) - Plan and prior'!N66),'Step 3 (MTP) - Plan and prior'!N66,"") -> 13.2 | O81: =IF(ISNUMBER('Step 3 (MTP) - Plan and prior'!O66),'Step 3 (MTP) - Plan and prior'!O66,"") ->  | P81: =IF(ISNUMBER('Step 3 (MTP) - Plan and prior'!P66),'Step 3 (MTP) - Plan and prior'!P66,"") ->  | Q81: =IF(ISNUMBER('Step 3 (MTP) - Plan and prior'!Q66),'Step 3 (MTP) - Plan and prior'!Q66,"") ->  | R81: =IF(ISNUMBER('Step 3 (MTP) - Plan and prior'!R66),'Step 3 (MTP) - Plan and prior'!R66,"") ->  | S81: =IF(ISNUMBER('Step 3 (MTP) - Plan and prior'!S66),'Step 3 (MTP) - Plan and prior'!S66,"") ->  | T81: =IF(ISNUMBER('Step 3 (MTP) - Plan and prior'!T66),'Step 3 (MTP) - Plan and prior'!T66,"") ->  | U81: =IF(ISNUMBER('Step 3 (MTP) - Plan and prior'!U66),'Step 3 (MTP) - Plan and prior'!U66,"") ->  | V81: =IF(ISNUMBER('Step 3 (MTP) - Plan and prior'!V66),'Step 3 (MTP) - Plan and prior'!V66,"") ->  | W81: =IF(ISNUMBER('Step 3 (MTP) - Plan and prior'!W66),'Step 3 (MTP) - Plan and prior'!W66,"") ->  | X81: =IF(ISNUMBER('Step 3 (MTP) - Plan and prior'!X66),'Step 3 (MTP) - Plan and prior'!X66,"") -> 
B82: p50_p30 | D82: =IF(ISNUMBER('Step 3 (MTP) - Plan and prior'!D67),'Step 3 (MTP) - Plan and prior'!D67,"") ->  | E82: =IF(ISNUMBER('Step 3 (MTP) - Plan and prior'!E67),'Step 3 (MTP) - Plan and prior'!E67,"") ->  | F82: =IF(ISNUMBER('Step 3 (MTP) - Plan and prior'!F67),'Step 3 (MTP) - Plan and prior'!F67,"") ->  | G82: =IF(ISNUMBER('Step 3 (MTP) - Plan and prior'!G67),'Step 3 (MTP) - Plan and prior'!G67,"") ->  | H82: =IF(ISNUMBER('Step 3 (MTP) - Plan and prior'!H67),'Step 3 (MTP) - Plan and prior'!H67,"") ->  | I82: =IF(ISNUMBER('Step 3 (MTP) - Plan and prior'!I67),'Step 3 (MTP) - Plan and prior'!I67,"") ->  | J82: =IF(ISNUMBER('Step 3 (MTP) - Plan and prior'!J67),'Step 3 (MTP) - Plan and prior'!J67,"") -> 4.6 | K82: =IF(ISNUMBER('Step 3 (MTP) - Plan and prior'!K67),'Step 3 (MTP) - Plan and prior'!K67,"") -> 6.5 | L82: =IF(ISNUMBER('Step 3 (MTP) - Plan and prior'!L67),'Step 3 (MTP) - Plan and prior'!L67,"") -> 7.6 | M82: =IF(ISNUMBER('Step 3 (MTP) - Plan and prior'!M67),'Step 3 (MTP) - Plan and prior'!M67,"") -> 8.8 | N82: =IF(ISNUMBER('Step 3 (MTP) - Plan and prior'!N67),'Step 3 (MTP) - Plan and prior'!N67,"") -> 9.8 | O82: =IF(ISNUMBER('Step 3 (MTP) - Plan and prior'!O67),'Step 3 (MTP) - Plan and prior'!O67,"") ->  | P82: =IF(ISNUMBER('Step 3 (MTP) - Plan and prior'!P67),'Step 3 (MTP) - Plan and prior'!P67,"") ->  | Q82: =IF(ISNUMBER('Step 3 (MTP) - Plan and prior'!Q67),'Step 3 (MTP) - Plan and prior'!Q67,"") ->  | R82: =IF(ISNUMBER('Step 3 (MTP) - Plan and prior'!R67),'Step 3 (MTP) - Plan and prior'!R67,"") ->  | S82: =IF(ISNUMBER('Step 3 (MTP) - Plan and prior'!S67),'Step 3 (MTP) - Plan and prior'!S67,"") ->  | T82: =IF(ISNUMBER('Step 3 (MTP) - Plan and prior'!T67),'Step 3 (MTP) - Plan and prior'!T67,"") ->  | U82: =IF(ISNUMBER('Step 3 (MTP) - Plan and prior'!U67),'Step 3 (MTP) - Plan and prior'!U67,"") ->  | V82: =IF(ISNUMBER('Step 3 (MTP) - Plan and prior'!V67),'Step 3 (MTP) - Plan and prior'!V67,"") ->  | W82: =IF(ISNUMBER('Step 3 (MTP) - Plan and prior'!W67),'Step 3 (MTP) - Plan and prior'!W67,"") ->  | X82: =IF(ISNUMBER('Step 3 (MTP) - Plan and prior'!X67),'Step 3 (MTP) - Plan and prior'!X67,"") -> 
B83: p70_p50 | D83: =IF(ISNUMBER('Step 3 (MTP) - Plan and prior'!D68),'Step 3 (MTP) - Plan and prior'!D68,"") ->  | E83: =IF(ISNUMBER('Step 3 (MTP) - Plan and prior'!E68),'Step 3 (MTP) - Plan and prior'!E68,"") ->  | F83: =IF(ISNUMBER('Step 3 (MTP) - Plan and prior'!F68),'Step 3 (MTP) - Plan and prior'!F68,"") ->  | G83: =IF(ISNUMBER('Step 3 (MTP) - Plan and prior'!G68),'Step 3 (MTP) - Plan and prior'!G68,"") ->  | H83: =IF(ISNUMBER('Step 3 (MTP) - Plan and prior'!H68),'Step 3 (MTP) - Plan and prior'!H68,"") ->  | I83: =IF(ISNUMBER('Step 3 (MTP) - Plan and prior'!I68),'Step 3 (MTP) - Plan and prior'!I68,"") ->  | J83: =IF(ISNUMBER('Step 3 (MTP) - Plan and prior'!J68),'Step 3 (MTP) - Plan and prior'!J68,"") -> 4.8 | K83: =IF(ISNUMBER('Step 3 (MTP) - Plan and prior'!K68),'Step 3 (MTP) - Plan and prior'!K68,"") -> 6.4 | L83: =IF(ISNUMBER('Step 3 (MTP) - Plan and prior'!L68),'Step 3 (MTP) - Plan and prior'!L68,"") -> 8.1 | M83: =IF(ISNUMBER('Step 3 (MTP) - Plan and prior'!M68),'Step 3 (MTP) - Plan and prior'!M68,"") -> 10 | N83: =IF(ISNUMBER('Step 3 (MTP) - Plan and prior'!N68),'Step 3 (MTP) - Plan and prior'!N68,"") -> 11.1 | O83: =IF(ISNUMBER('Step 3 (MTP) - Plan and prior'!O68),'Step 3 (MTP) - Plan and prior'!O68,"") ->  | P83: =IF(ISNUMBER('Step 3 (MTP) - Plan and prior'!P68),'Step 3 (MTP) - Plan and prior'!P68,"") ->  | Q83: =IF(ISNUMBER('Step 3 (MTP) - Plan and prior'!Q68),'Step 3 (MTP) - Plan and prior'!Q68,"") ->  | R83: =IF(ISNUMBER('Step 3 (MTP) - Plan and prior'!R68),'Step 3 (MTP) - Plan and prior'!R68,"") ->  | S83: =IF(ISNUMBER('Step 3 (MTP) - Plan and prior'!S68),'Step 3 (MTP) - Plan and prior'!S68,"") ->  | T83: =IF(ISNUMBER('Step 3 (MTP) - Plan and prior'!T68),'Step 3 (MTP) - Plan and prior'!T68,"") ->  | U83: =IF(ISNUMBER('Step 3 (MTP) - Plan and prior'!U68),'Step 3 (MTP) - Plan and prior'!U68,"") ->  | V83: =IF(ISNUMBER('Step 3 (MTP) - Plan and prior'!V68),'Step 3 (MTP) - Plan and prior'!V68,"") ->  | W83: =IF(ISNUMBER('Step 3 (MTP) - Plan and prior'!W68),'Step 3 (MTP) - Plan and prior'!W68,"") ->  | X83: =IF(ISNUMBER('Step 3 (MTP) - Plan and prior'!X68),'Step 3 (MTP) - Plan and prior'!X68,"") -> 
B84: p90_p70 | D84: =IF(ISNUMBER('Step 3 (MTP) - Plan and prior'!D69),'Step 3 (MTP) - Plan and prior'!D69,"") ->  | E84: =IF(ISNUMBER('Step 3 (MTP) - Plan and prior'!E69),'Step 3 (MTP) - Plan and prior'!E69,"") ->  | F84: =IF(ISNUMBER('Step 3 (MTP) - Plan and prior'!F69),'Step 3 (MTP) - Plan and prior'!F69,"") ->  | G84: =IF(ISNUMBER('Step 3 (MTP) - Plan and prior'!G69),'Step 3 (MTP) - Plan and prior'!G69,"") ->  | H84: =IF(ISNUMBER('Step 3 (MTP) - Plan and prior'!H69),'Step 3 (MTP) - Plan and prior'!H69,"") ->  | I84: =IF(ISNUMBER('Step 3 (MTP) - Plan and prior'!I69),'Step 3 (MTP) - Plan and prior'!I69,"") ->  | J84: =IF(ISNUMBER('Step 3 (MTP) - Plan and prior'!J69),'Step 3 (MTP) - Plan and prior'!J69,"") -> 7.1 | K84: =IF(ISNUMBER('Step 3 (MTP) - Plan and prior'!K69),'Step 3 (MTP) - Plan and prior'!K69,"") -> 10.3 | L84: =IF(ISNUMBER('Step 3 (MTP) - Plan and prior'!L69),'Step 3 (MTP) - Plan and prior'!L69,"") -> 12.4 | M84: =IF(ISNUMBER('Step 3 (MTP) - Plan and prior'!M69),'Step 3 (MTP) - Plan and prior'!M69,"") -> 14.2 | N84: =IF(ISNUMBER('Step 3 (MTP) - Plan and prior'!N69),'Step 3 (MTP) - Plan and prior'!N69,"") -> 16 | O84: =IF(ISNUMBER('Step 3 (MTP) - Plan and prior'!O69),'Step 3 (MTP) - Plan and prior'!O69,"") ->  | P84: =IF(ISNUMBER('Step 3 (MTP) - Plan and prior'!P69),'Step 3 (MTP) - Plan and prior'!P69,"") ->  | Q84: =IF(ISNUMBER('Step 3 (MTP) - Plan and prior'!Q69),'Step 3 (MTP) - Plan and prior'!Q69,"") ->  | R84: =IF(ISNUMBER('Step 3 (MTP) - Plan and prior'!R69),'Step 3 (MTP) - Plan and prior'!R69,"") ->  | S84: =IF(ISNUMBER('Step 3 (MTP) - Plan and prior'!S69),'Step 3 (MTP) - Plan and prior'!S69,"") ->  | T84: =IF(ISNUMBER('Step 3 (MTP) - Plan and prior'!T69),'Step 3 (MTP) - Plan and prior'!T69,"") ->  | U84: =IF(ISNUMBER('Step 3 (MTP) - Plan and prior'!U69),'Step 3 (MTP) - Plan and prior'!U69,"") ->  | V84: =IF(ISNUMBER('Step 3 (MTP) - Plan and prior'!V69),'Step 3 (MTP) - Plan and prior'!V69,"") ->  | W84: =IF(ISNUMBER('Step 3 (MTP) - Plan and prior'!W69),'Step 3 (MTP) - Plan and prior'!W69,"") ->  | X84: =IF(ISNUMBER('Step 3 (MTP) - Plan and prior'!X69),'Step 3 (MTP) - Plan and prior'!X69,"") -> 
B85: p10 | D85: =IF(ISNUMBER('Step 3 (MTP) - Plan and prior'!D70),'Step 3 (MTP) - Plan and prior'!D70,"") ->  | E85: =IF(ISNUMBER('Step 3 (MTP) - Plan and prior'!E70),'Step 3 (MTP) - Plan and prior'!E70,"") ->  | F85: =IF(ISNUMBER('Step 3 (MTP) - Plan and prior'!F70),'Step 3 (MTP) - Plan and prior'!F70,"") ->  | G85: =IF(ISNUMBER('Step 3 (MTP) - Plan and prior'!G70),'Step 3 (MTP) - Plan and prior'!G70,"") ->  | H85: =IF(ISNUMBER('Step 3 (MTP) - Plan and prior'!H70),'Step 3 (MTP) - Plan and prior'!H70,"") ->  | I85: =IF(ISNUMBER('Step 3 (MTP) - Plan and prior'!I70),'Step 3 (MTP) - Plan and prior'!I70,"") ->  | J85: =IF(ISNUMBER('Step 3 (MTP) - Plan and prior'!J70),'Step 3 (MTP) - Plan and prior'!J70,"") -> 122.3 | K85: =IF(ISNUMBER('Step 3 (MTP) - Plan and prior'!K70),'Step 3 (MTP) - Plan and prior'!K70,"") -> 114.3 | L85: =IF(ISNUMBER('Step 3 (MTP) - Plan and prior'!L70),'Step 3 (MTP) - Plan and prior'!L70,"") -> 107.6 | M85: =IF(ISNUMBER('Step 3 (MTP) - Plan and prior'!M70),'Step 3 (MTP) - Plan and prior'!M70,"") -> 101.6 | N85: =IF(ISNUMBER('Step 3 (MTP) - Plan and prior'!N70),'Step 3 (MTP) - Plan and prior'!N70,"") -> 98.1 | O85: =IF(ISNUMBER('Step 3 (MTP) - Plan and prior'!O70),'Step 3 (MTP) - Plan and prior'!O70,"") ->  | P85: =IF(ISNUMBER('Step 3 (MTP) - Plan and prior'!P70),'Step 3 (MTP) - Plan and prior'!P70,"") ->  | Q85: =IF(ISNUMBER('Step 3 (MTP) - Plan and prior'!Q70),'Step 3 (MTP) - Plan and prior'!Q70,"") ->  | R85: =IF(ISNUMBER('Step 3 (MTP) - Plan and prior'!R70),'Step 3 (MTP) - Plan and prior'!R70,"") ->  | S85: =IF(ISNUMBER('Step 3 (MTP) - Plan and prior'!S70),'Step 3 (MTP) - Plan and prior'!S70,"") ->  | T85: =IF(ISNUMBER('Step 3 (MTP) - Plan and prior'!T70),'Step 3 (MTP) - Plan and prior'!T70,"") ->  | U85: =IF(ISNUMBER('Step 3 (MTP) - Plan and prior'!U70),'Step 3 (MTP) - Plan and prior'!U70,"") ->  | V85: =IF(ISNUMBER('Step 3 (MTP) - Plan and prior'!V70),'Step 3 (MTP) - Plan and prior'!V70,"") ->  | W85: =IF(ISNUMBER('Step 3 (MTP) - Plan and prior'!W70),'Step 3 (MTP) - Plan and prior'!W70,"") ->  | X85: =IF(ISNUMBER('Step 3 (MTP) - Plan and prior'!X70),'Step 3 (MTP) - Plan and prior'!X70,"") -> 
B86: p30 | D86: =IF(ISNUMBER('Step 3 (MTP) - Plan and prior'!D71),'Step 3 (MTP) - Plan and prior'!D71,"") ->  | E86: =IF(ISNUMBER('Step 3 (MTP) - Plan and prior'!E71),'Step 3 (MTP) - Plan and prior'!E71,"") ->  | F86: =IF(ISNUMBER('Step 3 (MTP) - Plan and prior'!F71),'Step 3 (MTP) - Plan and prior'!F71,"") ->  | G86: =IF(ISNUMBER('Step 3 (MTP) - Plan and prior'!G71),'Step 3 (MTP) - Plan and prior'!G71,"") ->  | H86: =IF(ISNUMBER('Step 3 (MTP) - Plan and prior'!H71),'Step 3 (MTP) - Plan and prior'!H71,"") ->  | I86: =IF(ISNUMBER('Step 3 (MTP) - Plan and prior'!I71),'Step 3 (MTP) - Plan and prior'!I71,"") ->  | J86: =IF(ISNUMBER('Step 3 (MTP) - Plan and prior'!J71),'Step 3 (MTP) - Plan and prior'!J71,"") -> 128.7 | K86: =IF(ISNUMBER('Step 3 (MTP) - Plan and prior'!K71),'Step 3 (MTP) - Plan and prior'!K71,"") -> 123.1 | L86: =IF(ISNUMBER('Step 3 (MTP) - Plan and prior'!L71),'Step 3 (MTP) - Plan and prior'!L71,"") -> 118.6 | M86: =IF(ISNUMBER('Step 3 (MTP) - Plan and prior'!M71),'Step 3 (MTP) - Plan and prior'!M71,"") -> 114.1 | N86: =IF(ISNUMBER('Step 3 (MTP) - Plan and prior'!N71),'Step 3 (MTP) - Plan and prior'!N71,"") -> 111.3 | O86: =IF(ISNUMBER('Step 3 (MTP) - Plan and prior'!O71),'Step 3 (MTP) - Plan and prior'!O71,"") ->  | P86: =IF(ISNUMBER('Step 3 (MTP) - Plan and prior'!P71),'Step 3 (MTP) - Plan and prior'!P71,"") ->  | Q86: =IF(ISNUMBER('Step 3 (MTP) - Plan and prior'!Q71),'Step 3 (MTP) - Plan and prior'!Q71,"") ->  | R86: =IF(ISNUMBER('Step 3 (MTP) - Plan and prior'!R71),'Step 3 (MTP) - Plan and prior'!R71,"") ->  | S86: =IF(ISNUMBER('Step 3 (MTP) - Plan and prior'!S71),'Step 3 (MTP) - Plan and prior'!S71,"") ->  | T86: =IF(ISNUMBER('Step 3 (MTP) - Plan and prior'!T71),'Step 3 (MTP) - Plan and prior'!T71,"") ->  | U86: =IF(ISNUMBER('Step 3 (MTP) - Plan and prior'!U71),'Step 3 (MTP) - Plan and prior'!U71,"") ->  | V86: =IF(ISNUMBER('Step 3 (MTP) - Plan and prior'!V71),'Step 3 (MTP) - Plan and prior'!V71,"") ->  | W86: =IF(ISNUMBER('Step 3 (MTP) - Plan and prior'!W71),'Step 3 (MTP) - Plan and prior'!W71,"") ->  | X86: =IF(ISNUMBER('Step 3 (MTP) - Plan and prior'!X71),'Step 3 (MTP) - Plan and prior'!X71,"") -> 
B87: p50 | D87: =IF(ISNUMBER('Step 3 (MTP) - Plan and prior'!D72),'Step 3 (MTP) - Plan and prior'!D72,"") ->  | E87: =IF(ISNUMBER('Step 3 (MTP) - Plan and prior'!E72),'Step 3 (MTP) - Plan and prior'!E72,"") ->  | F87: =IF(ISNUMBER('Step 3 (MTP) - Plan and prior'!F72),'Step 3 (MTP) - Plan and prior'!F72,"") ->  | G87: =IF(ISNUMBER('Step 3 (MTP) - Plan and prior'!G72),'Step 3 (MTP) - Plan and prior'!G72,"") ->  | H87: =IF(ISNUMBER('Step 3 (MTP) - Plan and prior'!H72),'Step 3 (MTP) - Plan and prior'!H72,"") ->  | I87: =IF(ISNUMBER('Step 3 (MTP) - Plan and prior'!I72),'Step 3 (MTP) - Plan and prior'!I72,"") ->  | J87: =IF(ISNUMBER('Step 3 (MTP) - Plan and prior'!J72),'Step 3 (MTP) - Plan and prior'!J72,"") -> 133.3 | K87: =IF(ISNUMBER('Step 3 (MTP) - Plan and prior'!K72),'Step 3 (MTP) - Plan and prior'!K72,"") -> 129.6 | L87: =IF(ISNUMBER('Step 3 (MTP) - Plan and prior'!L72),'Step 3 (MTP) - Plan and prior'!L72,"") -> 126.1 | M87: =IF(ISNUMBER('Step 3 (MTP) - Plan and prior'!M72),'Step 3 (MTP) - Plan and prior'!M72,"") -> 122.9 | N87: =IF(ISNUMBER('Step 3 (MTP) - Plan and prior'!N72),'Step 3 (MTP) - Plan and prior'!N72,"") -> 121.1 | O87: =IF(ISNUMBER('Step 3 (MTP) - Plan and prior'!O72),'Step 3 (MTP) - Plan and prior'!O72,"") ->  | P87: =IF(ISNUMBER('Step 3 (MTP) - Plan and prior'!P72),'Step 3 (MTP) - Plan and prior'!P72,"") ->  | Q87: =IF(ISNUMBER('Step 3 (MTP) - Plan and prior'!Q72),'Step 3 (MTP) - Plan and prior'!Q72,"") ->  | R87: =IF(ISNUMBER('Step 3 (MTP) - Plan and prior'!R72),'Step 3 (MTP) - Plan and prior'!R72,"") ->  | S87: =IF(ISNUMBER('Step 3 (MTP) - Plan and prior'!S72),'Step 3 (MTP) - Plan and prior'!S72,"") ->  | T87: =IF(ISNUMBER('Step 3 (MTP) - Plan and prior'!T72),'Step 3 (MTP) - Plan and prior'!T72,"") ->  | U87: =IF(ISNUMBER('Step 3 (MTP) - Plan and prior'!U72),'Step 3 (MTP) - Plan and prior'!U72,"") ->  | V87: =IF(ISNUMBER('Step 3 (MTP) - Plan and prior'!V72),'Step 3 (MTP) - Plan and prior'!V72,"") ->  | W87: =IF(ISNUMBER('Step 3 (MTP) - Plan and prior'!W72),'Step 3 (MTP) - Plan and prior'!W72,"") ->  | X87: =IF(ISNUMBER('Step 3 (MTP) - Plan and prior'!X72),'Step 3 (MTP) - Plan and prior'!X72,"") -> 
B88: p70 | D88: =IF(ISNUMBER('Step 3 (MTP) - Plan and prior'!D73),'Step 3 (MTP) - Plan and prior'!D73,"") ->  | E88: =IF(ISNUMBER('Step 3 (MTP) - Plan and prior'!E73),'Step 3 (MTP) - Plan and prior'!E73,"") ->  | F88: =IF(ISNUMBER('Step 3 (MTP) - Plan and prior'!F73),'Step 3 (MTP) - Plan and prior'!F73,"") ->  | G88: =IF(ISNUMBER('Step 3 (MTP) - Plan and prior'!G73),'Step 3 (MTP) - Plan and prior'!G73,"") ->  | H88: =IF(ISNUMBER('Step 3 (MTP) - Plan and prior'!H73),'Step 3 (MTP) - Plan and prior'!H73,"") ->  | I88: =IF(ISNUMBER('Step 3 (MTP) - Plan and prior'!I73),'Step 3 (MTP) - Plan and prior'!I73,"") ->  | J88: =IF(ISNUMBER('Step 3 (MTP) - Plan and prior'!J73),'Step 3 (MTP) - Plan and prior'!J73,"") -> 138.1 | K88: =IF(ISNUMBER('Step 3 (MTP) - Plan and prior'!K73),'Step 3 (MTP) - Plan and prior'!K73,"") -> 136 | L88: =IF(ISNUMBER('Step 3 (MTP) - Plan and prior'!L73),'Step 3 (MTP) - Plan and prior'!L73,"") -> 134.3 | M88: =IF(ISNUMBER('Step 3 (MTP) - Plan and prior'!M73),'Step 3 (MTP) - Plan and prior'!M73,"") -> 132.9 | N88: =IF(ISNUMBER('Step 3 (MTP) - Plan and prior'!N73),'Step 3 (MTP) - Plan and prior'!N73,"") -> 132.2 | O88: =IF(ISNUMBER('Step 3 (MTP) - Plan and prior'!O73),'Step 3 (MTP) - Plan and prior'!O73,"") ->  | P88: =IF(ISNUMBER('Step 3 (MTP) - Plan and prior'!P73),'Step 3 (MTP) - Plan and prior'!P73,"") ->  | Q88: =IF(ISNUMBER('Step 3 (MTP) - Plan and prior'!Q73),'Step 3 (MTP) - Plan and prior'!Q73,"") ->  | R88: =IF(ISNUMBER('Step 3 (MTP) - Plan and prior'!R73),'Step 3 (MTP) - Plan and prior'!R73,"") ->  | S88: =IF(ISNUMBER('Step 3 (MTP) - Plan and prior'!S73),'Step 3 (MTP) - Plan and prior'!S73,"") ->  | T88: =IF(ISNUMBER('Step 3 (MTP) - Plan and prior'!T73),'Step 3 (MTP) - Plan and prior'!T73,"") ->  | U88: =IF(ISNUMBER('Step 3 (MTP) - Plan and prior'!U73),'Step 3 (MTP) - Plan and prior'!U73,"") ->  | V88: =IF(ISNUMBER('Step 3 (MTP) - Plan and prior'!V73),'Step 3 (MTP) - Plan and prior'!V73,"") ->  | W88: =IF(ISNUMBER('Step 3 (MTP) - Plan and prior'!W73),'Step 3 (MTP) - Plan and prior'!W73,"") ->  | X88: =IF(ISNUMBER('Step 3 (MTP) - Plan and prior'!X73),'Step 3 (MTP) - Plan and prior'!X73,"") -> 
B89: p90 | D89: =IF(ISNUMBER('Step 3 (MTP) - Plan and prior'!D74),'Step 3 (MTP) - Plan and prior'!D74,"") ->  | E89: =IF(ISNUMBER('Step 3 (MTP) - Plan and prior'!E74),'Step 3 (MTP) - Plan and prior'!E74,"") ->  | F89: =IF(ISNUMBER('Step 3 (MTP) - Plan and prior'!F74),'Step 3 (MTP) - Plan and prior'!F74,"") ->  | G89: =IF(ISNUMBER('Step 3 (MTP) - Plan and prior'!G74),'Step 3 (MTP) - Plan and prior'!G74,"") ->  | H89: =IF(ISNUMBER('Step 3 (MTP) - Plan and prior'!H74),'Step 3 (MTP) - Plan and prior'!H74,"") ->  | I89: =IF(ISNUMBER('Step 3 (MTP) - Plan and prior'!I74),'Step 3 (MTP) - Plan and prior'!I74,"") ->  | J89: =IF(ISNUMBER('Step 3 (MTP) - Plan and prior'!J74),'Step 3 (MTP) - Plan and prior'!J74,"") -> 145.1 | K89: =IF(ISNUMBER('Step 3 (MTP) - Plan and prior'!K74),'Step 3 (MTP) - Plan and prior'!K74,"") -> 146.3 | L89: =IF(ISNUMBER('Step 3 (MTP) - Plan and prior'!L74),'Step 3 (MTP) - Plan and prior'!L74,"") -> 146.6 | M89: =IF(ISNUMBER('Step 3 (MTP) - Plan and prior'!M74),'Step 3 (MTP) - Plan and prior'!M74,"") -> 147 | N89: =IF(ISNUMBER('Step 3 (MTP) - Plan and prior'!N74),'Step 3 (MTP) - Plan and prior'!N74,"") -> 148.2 | O89: =IF(ISNUMBER('Step 3 (MTP) - Plan and prior'!O74),'Step 3 (MTP) - Plan and prior'!O74,"") ->  | P89: =IF(ISNUMBER('Step 3 (MTP) - Plan and prior'!P74),'Step 3 (MTP) - Plan and prior'!P74,"") ->  | Q89: =IF(ISNUMBER('Step 3 (MTP) - Plan and prior'!Q74),'Step 3 (MTP) - Plan and prior'!Q74,"") ->  | R89: =IF(ISNUMBER('Step 3 (MTP) - Plan and prior'!R74),'Step 3 (MTP) - Plan and prior'!R74,"") ->  | S89: =IF(ISNUMBER('Step 3 (MTP) - Plan and prior'!S74),'Step 3 (MTP) - Plan and prior'!S74,"") ->  | T89: =IF(ISNUMBER('Step 3 (MTP) - Plan and prior'!T74),'Step 3 (MTP) - Plan and prior'!T74,"") ->  | U89: =IF(ISNUMBER('Step 3 (MTP) - Plan and prior'!U74),'Step 3 (MTP) - Plan and prior'!U74,"") ->  | V89: =IF(ISNUMBER('Step 3 (MTP) - Plan and prior'!V74),'Step 3 (MTP) - Plan and prior'!V74,"") ->  | W89: =IF(ISNUMBER('Step 3 (MTP) - Plan and prior'!W74),'Step 3 (MTP) - Plan and prior'!W74,"") ->  | X89: =IF(ISNUMBER('Step 3 (MTP) - Plan and prior'!X74),'Step 3 (MTP) - Plan and prior'!X74,"") -> 
B91: Assessment of the implementation of the Medium-Term Plan
B92: P1. Checking whether net expenditure outcomes and plans adhere to the Council-recommended path in the latest MTP
B93: For both Member States receiving a reference trajectory and technical information:
B94: Does observed net expenditure adhere to the MTP path endorsed by the Council? | C94: =IF(OutturnThrough<MTP_YearT,"Not yet assessable", SUMPRODUCT(((4:4>=MTP_YearT)*(4:4<=OutturnThrough)*(34:34<15:15)))=0) -> TRUE | E94: Observed adherence (outturn compliance with the MTP path) | AC94: NNFPE_t^observed/planned​<NNFPE_t^Commission​, ∀t ∈{T,T+1,…,T+N}
B95: Does updated forward-looking net expenditure adhere to the MTP path endorsed by the Council? | C95: =IF( AssessmentEnd <= OutturnThrough, NA(), SUMPRODUCT( (4:4 >= OutturnThrough+1) * (4:4 <= AssessmentEnd) * (34:34 < 15:15) ) = 0 ) -> FALSE | E95: Planned adherence (forward-looking compliance) | AC95: NNFPE_t^observed/planned​<NNFPE_t^Commission​, ∀t ∈{T,T+1,…,T+N}
B96: Was/is an escape clause in place for all years where net expenditure does not adhere to the planned path for net expenditure growth endorsed by the Council? | C96: =IF( SUMPRODUCT( (4:4>=MTP_YearT+1)* (4:4<=AssessmentEnd)* (34:34<15:15) )=0, "Not applicable (all years adhere to the net expenditure path)", SUMPRODUCT( (4:4>=MTP_YearT+1)* (4:4<=AssessmentEnd)* (34:34<15:15)* (1-IFERROR(--INDEX('Step 1 - Set global parameters'!$12:$12, MATCH(4:4, 'Step 1 - Set global parameters'!$10:$10, 0)),0)) )=0 ) -> TRUE
B98: Natural-language output string | C98: =_xlfn.IFS( ISTEXT(C94), Country & "'s observed net expenditure cannot yet be assessed against its latest Council-endorsed MTP — no plan year has closed (most recent outturn year is " & OutturnThrough & "; first plan year is " & MTP_YearT+1 & "). " & IF(ISNA(C95), "", IF(OR(C95=TRUE, C96="Not applicable (all years adhere to the net expenditure path)"), "Planned net expenditure to " & AssessmentEnd & " adheres to the net expenditure path in the MTP.", "Planned net expenditure to " & AssessmentEnd & " does not adhere to the net expenditure path in the MTP." & IF(C96=TRUE, " Deviations occur only in years covered by an escape clause.", " At least one year of deviation is not covered by an escape clause." ) ) ), C96="Not applicable (all years adhere to the net expenditure path)", Country & "'s observed net expenditure to " & OutturnThrough & IF(ISNA(C95), "", " and planned net expenditure to " & AssessmentEnd) & " adheres to the net expenditure path in its latest Council-endorsed MTP.", AND(C94=FALSE, ISNA(C95), C96=TRUE), Country & "'s observed net expenditure to " & OutturnThrough & " does not adhere to the net expenditure path in its latest Council-endorsed MTP." & " Deviations occur only in years covered by an escape clause.", AND(C94=FALSE, ISNA(C95), C96=FALSE), Country & "'s observed net expenditure to " & OutturnThrough & " does not adhere to the net expenditure path in its latest Council-endorsed MTP." & " At least one year of deviation is not covered by an escape clause.", AND(C94=TRUE, C95=FALSE, C96=TRUE), Country & "'s observed net expenditure to " & OutturnThrough & " adheres to the net expenditure path in its latest Council-endorsed MTP," & " but planned net expenditure to " & AssessmentEnd & " does not." & " Deviations occur only in years covered by an escape clause.", AND(C94=TRUE, C95=FALSE, C96=FALSE), Country & "'s observed net expenditure to " & OutturnThrough & " adheres to the net expenditure path in its latest Council-endorsed MTP," & " but planned net expenditure to " & AssessmentEnd & " does not." & " At least one year of deviation is not covered by an escape clause.", AND(C94=FALSE, C95=TRUE, C96=TRUE), Country & "'s observed net expenditure to " & OutturnThrough & " does not adhere to the net expenditure path in its latest Council-endorsed MTP," & " but planned net expenditure to " & AssessmentEnd & " does." & " Deviations occur only in years covered by an escape clause.", AND(C94=FALSE, C95=TRUE, C96=FALSE), Country & "'s observed net expenditure to " & OutturnThrough & " does not adhere to the net expenditure path in its latest Council-endorsed MTP," & " but planned net expenditure to " & AssessmentEnd & " does." & " At least one year of deviation is not covered by an escape clause.", AND(C94=FALSE, C95=FALSE, C96=TRUE), Country & "'s observed net expenditure to " & OutturnThrough & " and planned net expenditure to " & AssessmentEnd & " do not adhere to the net expenditure path in its latest Council-endorsed MTP." & " Deviations occur only in years covered by an escape clause.", AND(C94=FALSE, C95=FALSE, C96=FALSE), Country & "'s observed net expenditure to " & OutturnThrough & " and planned net expenditure to " & AssessmentEnd & " do not adhere to the net expenditure path in its latest Council-endorsed MTP." & " At least one year of deviation is not covered by an escape clause.", TRUE, "" ) -> Greece's observed net expenditure to 2025 adheres to the net expenditure path in its latest Council-endorsed MTP, but planned net expenditure to 2026 does not. Deviations occur only in years covered by an escape clause.
B100: P2. Recording performance of net expenditure growth in the control account against the Council-endorsed planned fiscal path
B101: Methodology from "Specifications on the Implementation of the Stability and Growth Pact (Code of Conduct)" ECOFIN 16230/25, 5 December 2025 and technical discussions with ECOFIN
D102: =_xlfn.SEQUENCE(1, AssessmentEnd-MTP_BaseYear+1, MTP_BaseYear) -> 2023 | E102: 2024 | F102: 2025 | G102: 2026
D103: =IF(_xlfn.SEQUENCE(1,COLUMNS(_xlfn.ANCHORARRAY(D102)),-1)=-1,"T-1",IF(_xlfn.SEQUENCE(1,COLUMNS(_xlfn.ANCHORARRAY(D102)),-1)=0,"T","T+"&_xlfn.SEQUENCE(1,COLUMNS(_xlfn.ANCHORARRAY(D102)),-1))) -> T-1 | E103: T | F103: T+1 | G103: T+2
B104: Observed net expenditure
A105: 1 | B105: Total expenditure | C105: bn NAC | D105: =IF(ISNUMBER(D102),D6,"") -> 111.255 | E105: 113.87 | F105: 119.875 | G105: 131.1565824
A106: 2 | B106: Interest expenditure | C106: bn NAC | D106: =IF(ISNUMBER(D102),D7,"") -> 7.612 | E106: 8.225 | F106: 7.841 | G106: 7.838042772
A107: 3 | B107: Cyclical unemployment expenditure | C107: bn NAC | D107: =IF(ISNUMBER(D102),D8,"") -> 0.3 | E107: 0.1 | F107: -0.1 | G107: -0.2612680924
A108: 4 | B108: EU funded expenditure | C108: bn NAC | D108: =IF(ISNUMBER(D102),D9,"") -> 5.664 | E108: 5.873 | F108: 8.43 | G108: 12.54086844
A109: 5 | B109: National co-financing of EU programmes | C109: bn NAC | D109: =IF(ISNUMBER(D102),D10,"") -> 0.739 | E109: 0.705 | F109: 0.78 | G109: 1.306340462
A110: 6 | B110: One-offs expenditure (levels, excl. EU funded) | C110: bn NAC | D110: =IF(ISNUMBER(D102),D11,"") -> 0.302 | E110: 0.4 | F110: 0.436 | G110: 0
A111: 7 | B111: Net expenditure before DRMs (1-2-3-4-5-6) | C111: bn NAC | D111: =IF(ISNUMBER(D102),D12,"") -> 96.64254 | E111: 98.51742 | F111: 102.40949 | G111: 109.7325988
A112: 8 | B112: Change in net expenditure before DRMs (∆7) | C112: bn NAC | E112: =IF(ISNUMBER(E102),E111-D111,"") -> 1.87488 | F112: =IF(ISNUMBER(F102),F111-E111,"") -> 3.89207 | G112: 7.323108808
A113: 9 | B113: DRM (annual incremental impact, excl. one-offs) | C113: bn NAC | E113: =IF(ISNUMBER(E102),E13,"") -> 2 | F113: 1.1 | G113: -0.5225361848
A114: 10 | B114: Annual change in net expenditure after DRMs (8-9) | C114: bn NAC | E114: =IF(ISNUMBER(E102),E112-E113,"") -> -0.12512 | F114: =IF(ISNUMBER(F102),F112-F113,"") -> 2.79207 | G114: 7.845644993
B115: Annual and cumulated deviations
A116: 11 | B116: Observed net expenditure growth (10(t)/7(t-1))*100 | C116: % change | E116: =IF(ISNUMBER(E102),E114/D111*100,"") -> -0.1294667959 | F116: =IF(ISNUMBER(F102),F114/E111*100,"") -> 2.834087616 | G116: 7.661052694
A117: 12 | B117: Recommended net expenditure growth | C117: % change | E117: =IF(ISNUMBER(E102),E34,"") -> 2.6 | F117: 3.7 | G117: 3.6
A118: 13 | B118: Annual deviation ((11-12) x 7(t-1)) | C118: bn NAC | E118: =IF(ISNUMBER(E102),((E116-E117)/100)*D111,"") -> -2.63782604 | F118: =IF(ISNUMBER(F102),((F116-F117)/100)*E111,"") -> -0.85307454 | G118: 4.158903353
A119: 14 | B119: Cumulated deviation (cumulative from 13) | C119: bn NAC | E119: =IF(ISNUMBER(E102),E118+IF(ISNUMBER(D102),D119,0),"") -> -2.63782604 | F119: =IF(ISNUMBER(F102),F118+IF(ISNUMBER(E102),E119,0),"") -> -3.49090058 | G119: 0.6680027728
A120: 15 | B120: Nominal GDP | C120: bn NAC | D120: =IF(ISNUMBER(D102),D27,"") -> 224.6862 | E120: 236.736 | F120: 248.3537 | G120: 261.2680924
B121: "Regular" control account
A122: 16 | B122: Annual balance (13/15) | C122: % GDP | E122: =IF(ISNUMBER(E102),E118/E$120*100,"") -> -1.114247956 | F122: =IF(ISNUMBER(F102),F118/F$120*100,"") -> -0.3434917781 | G122: 1.59181449
A123: 17 | B123: Cumulated balance (14/15) | C123: % GDP | E123: =IF(ISNUMBER(E102),E119/E$120*100,"") -> -1.114247956 | F123: =IF(ISNUMBER(F102),F119/F$120*100,"") -> -1.405616498 | G123: 0.2556771348
B124: "Augmented" control account (while escape clauses are active)
A125: 16a | B125: Annual balance (13/15) | C125: % GDP | E125: =IF(ISNUMBER(E102),E118/E$120*100,"") -> -1.114247956 | F125: =IF(ISNUMBER(F102),F118/F$120*100,"") -> -0.3434917781 | G125: 1.59181449
B126: Defence expenditure | C126: bn NAC | D126: =IF(ISNUMBER(D102),D14,"") -> 5.2 | E126: 5.288 | F126: 5.986 | G126: 6.792970402
B127: Defence expenditure | C127: % GDP | D127: =IF(ISNUMBER(D102),D14/D120*100,"") -> 2.314338842 | E127: 2.233711814 | F127: 2.410272124 | G127: 2.6
B128: Increase in defence expenditure | C128: bn NAC | E128: =IF(ISNUMBER(E102),E126-D126,"") -> 0.088 | F128: =IF(ISNUMBER(F102),F126-E126,"") -> 0.698 | G128: 0.8069704024
B129: Increase in defence expenditure | C129: % GDP | E129: =IF(ISNUMBER(E102),E128/E$27*100,"") -> 0.03717220871 | F129: =IF(ISNUMBER(F102),F128/F$27*100,"") -> 0.2810507756 | G129: =IF(ISNUMBER(G102),G128/G$27*100,"") -> 0.3088668023
B130: ="Growth of defence expenditure since "&'Step 1 - Set global parameters'!B17&"" -> Growth of defence expenditure since 2024 | C130: bn NAC | E130: =IF(ISNUMBER(E102),E131/100*E$27,"") -> 0.079808 | F130: =IF(ISNUMBER(F102),F131/100*F$27,"") -> 0.5222186 | G130: 1.04507237
B131: ="Growth of defence expenditure since "&'Step 1 - Set global parameters'!B17&"" -> Growth of defence expenditure since 2024 | C131: % GDP | E131: =IF(ISNUMBER(E102),E127-'Step 1 - Set global parameters'!$B$18,"") -> 0.033711814 | F131: =IF(ISNUMBER(F102),F127-'Step 1 - Set global parameters'!$B$18,"") -> 0.210272124 | G131: =IF(ISNUMBER(G102),G127-'Step 1 - Set global parameters'!$B$18,"") -> 0.4 | H131: =IF(ISNUMBER(H102),H127-'Step 1 - Set global parameters'!$B$18,"") ->  | I131: =IF(ISNUMBER(I102),I127-'Step 1 - Set global parameters'!$B$18,"") ->  | J131: =IF(ISNUMBER(J102),J127-'Step 1 - Set global parameters'!$B$18,"") -> 
B132: Upward deviations from the recommended expenditure path other than those resulting from defence expenditure | C132: % GDP | E132: =IF(ISNUMBER(E102),IF((E125-E131)>0,E125-E131,0),"") -> 0 | F132: 0 | G132: 1.19181449
B133: Annual deviation | C133: bnNAC | E133: =IF(ISNUMBER(E102),E118,"") -> -2.63782604 | F133: =IF(ISNUMBER(F102),F118,"") -> -0.85307454 | G133: 4.158903353
B134: Debit | C134: bnNAC | E134: =IF(ISNUMBER(E102),IF(OR(E133="",ISNA(E133)),"",MAX(E133,0)),"") -> 0 | F134: =IF(ISNUMBER(F102),IF(OR(F133="",ISNA(F133)),"",MAX(F133,0)),"") -> 0 | G134: 4.158903353
B135: Debit excluding increase in defence expenditure | C135: bnNAC | E135: =IF(ISNUMBER(E102),IF((E134-MAX(E130,0))>0,E134-MAX(E130,0),0),"") -> 0 | F135: =IF(ISNUMBER(F102),IF((F134-MAX(F130,0))>0,F134-MAX(F130,0),0),"") -> 0 | G135: 3.113830983 | H135: =IF(ISNUMBER(H102),IF((H134-MAX(H128,0))>0,H134-MAX(H128,0),0),"") -> 
B136: Credit | C136: bnNAC | E136: =IF(ISNUMBER(E102),IF(OR(E133="",ISNA(E133)),"",ABS(MIN(E133,0))),"") -> 2.63782604 | F136: =IF(ISNUMBER(F102),IF(OR(F133="",ISNA(F133)),"",ABS(MIN(F133,0))),"") -> 0.85307454 | G136: 0
B137: Recorded annual balance | C137: bnNAC | E137: =IF(ISNUMBER(E102),IF(E142=FALSE,E134-E136,IF(E143=TRUE,E135-E136,E136)),"") -> -2.63782604 | F137: =IF(ISNUMBER(F102),IF(F142=FALSE,F134-F136,IF(F143=TRUE,F135-F136,F136)),"") -> -0.85307454 | G137: 3.113830983
B138: Recorded cumulative balance | C138: bnNAC | E138: =IF(ISNUMBER(E102),E137+IF(ISNUMBER(D102),D138,0),"") -> -2.63782604 | F138: =IF(ISNUMBER(F102),F137+IF(ISNUMBER(E102),E138,0),"") -> -3.49090058 | G138: =IF(ISNUMBER(G102),G137+IF(ISNUMBER(F102),F138,0),"") -> -0.3770695968 | H138: =IF(ISNUMBER(H102),H137+IF(ISNUMBER(G102),G138,0),"") -> 
B139: Recorded annual balance | C139: % GDP | E139: =IF(ISNUMBER(E102),E137/E120*100,"") -> -1.114247956 | F139: =IF(ISNUMBER(F102),F137/F120*100,"") -> -0.3434917781 | G139: 1.19181449
B140: Recorded cumulated balance | C140: % GDP | E140: =IF(ISNUMBER(E102),E138/E$120*100,"") -> -1.114247956 | F140: =IF(ISNUMBER(F102),F138/F$120*100,"") -> -1.405616498 | G140: -0.1443228652
B141: Cumulated balance (2026 APR majority presentation) | E141: =IF(ISNUMBER(E102),E123-E131,"") -> -1.14795977 | F141: =IF(ISNUMBER(F102),F123-F131,"") -> -1.615888622 | G141: -0.1443228652
B142: ='Step 1 - Set global parameters'!A12 -> Years for which an escape clause has been activated | E142: ='Step 1 - Set global parameters'!B12 -> FALSE | F142: ='Step 1 - Set global parameters'!C12 -> TRUE | G142: ='Step 1 - Set global parameters'!D12 -> TRUE | H142: ='Step 1 - Set global parameters'!E12 -> TRUE | I142: ='Step 1 - Set global parameters'!F12 -> TRUE | J142: ='Step 1 - Set global parameters'!G12 -> FALSE
B143: Whether escape clause was activated for defence (for augmented control account) | E143: =IF('Step 1 - Set global parameters'!B12,IF('Step 1 - Set global parameters'!B14="Defence", TRUE, FALSE),NA()) ->  | F143: =IF('Step 1 - Set global parameters'!C12,IF('Step 1 - Set global parameters'!C14="Defence", TRUE, FALSE),NA()) -> TRUE | G143: =IF('Step 1 - Set global parameters'!D12,IF('Step 1 - Set global parameters'!D14="Defence", TRUE, FALSE),NA()) -> TRUE | H143: =IF('Step 1 - Set global parameters'!E12,IF('Step 1 - Set global parameters'!E14="Defence", TRUE, FALSE),NA()) -> TRUE | I143: =IF('Step 1 - Set global parameters'!F12,IF('Step 1 - Set global parameters'!F14="Defence", TRUE, FALSE),NA()) -> TRUE | J143: =IF('Step 1 - Set global parameters'!G12,IF('Step 1 - Set global parameters'!G14="Defence", TRUE, FALSE),NA()) -> 
B144: Absolute deviation cap | C144: % GDP | E144: =IF('Step 1 - Set global parameters'!B12,'Step 1 - Set global parameters'!B15,NA()) ->  | F144: =IF('Step 1 - Set global parameters'!C12,'Step 1 - Set global parameters'!C15,NA()) -> 1.5 | G144: =IF('Step 1 - Set global parameters'!D12,'Step 1 - Set global parameters'!D15,NA()) -> 1.5 | H144: =IF('Step 1 - Set global parameters'!E12,'Step 1 - Set global parameters'!E15,NA()) -> 1.5 | I144: =IF('Step 1 - Set global parameters'!F12,'Step 1 - Set global parameters'!F15,NA()) -> 1.5 | J144: =IF('Step 1 - Set global parameters'!G12,'Step 1 - Set global parameters'!G15,NA()) -> 
B145: Annual threshold breached? >0.3 pp | F145: =F139 > 0.3 -> FALSE | G145: =G139 > 0.3 -> TRUE | H145: =H139 > 0.3 -> TRUE | I145: =I139 > 0.3 -> TRUE | J145: =J139 > 0.3 -> TRUE
B146: Cumulative threshold breached? >0.6pp | F146: =IF(F140 > 0.6, TRUE, FALSE) -> FALSE | G146: =IF(G140 > 0.6, TRUE, FALSE) -> FALSE | H146: =IF(H140 > 0.6, TRUE, FALSE) -> TRUE | I146: =IF(I140 > 0.6, TRUE, FALSE) -> TRUE | J146: =IF(J140 > 0.6, TRUE, FALSE) -> TRUE
B148: Do deviations exceed 0.3 percentage points of GDP annually over the assessment period? | C148: =MAX(INDEX(139:139,_xlfn.XMATCH(MTP_YearT,102:102,0)):INDEX(139:139,_xlfn.XMATCH(AssessmentEnd,102:102,0)))>0.3 -> TRUE
B149: Do deviations exceed 0.6 percentage points of GDP cumulatively over the assessment period? | C149: =MAX(INDEX(140:140,_xlfn.XMATCH(MTP_YearT,102:102,0)):INDEX(140:140,_xlfn.XMATCH(AssessmentEnd,102:102,0)))>0.6 -> FALSE
B150: Do deviations exceed 0.3 percentage points of GDP annually over the outturn period? | C150: =MAX(INDEX(139:139,_xlfn.XMATCH(MTP_YearT,102:102,0)):INDEX(139:139,_xlfn.XMATCH(OutturnThrough,102:102,0)))>0.3 -> FALSE
B151: Do deviations exceed 0.6 percentage points of GDP cumulatively over the outturn period? | C151: =MAX(INDEX(140:140,_xlfn.XMATCH(MTP_YearT,102:102,0)):INDEX(140:140,_xlfn.XMATCH(OutturnThrough,102:102,0)))>0.6 -> FALSE
B152: Do deviations exceed a capped amount over the assessment period? | C152: =IF(SUMPRODUCT((INDEX(142:142,_xlfn.XMATCH(MTP_YearT,102:102,0)+_xlfn.SEQUENCE(1,AssessmentEnd-MTP_YearT+1)-1)=TRUE)*1)=0,NA(),ISNUMBER(MATCH(TRUE,IF(INDEX(142:142,_xlfn.XMATCH(MTP_YearT,102:102,0)+_xlfn.SEQUENCE(1,AssessmentEnd-MTP_YearT+1)-1)=TRUE,INDEX(140:140,_xlfn.XMATCH(MTP_YearT,102:102,0)+_xlfn.SEQUENCE(1,AssessmentEnd-MTP_YearT+1)-1)>INDEX(144:144,_xlfn.XMATCH(MTP_YearT,102:102,0)+_xlfn.SEQUENCE(1,AssessmentEnd-MTP_YearT+1)-1),FALSE),0))) -> FALSE
B153: Do deviations exceed a capped amount over the outturn period period? | C153: =IF(SUMPRODUCT((INDEX(142:142,_xlfn.XMATCH(MTP_YearT,102:102,0)+_xlfn.SEQUENCE(1,OutturnThrough-MTP_YearT+1)-1)=TRUE)*1)=0,NA(),ISNUMBER(MATCH(TRUE,IF(INDEX(142:142,_xlfn.XMATCH(MTP_YearT,102:102,0)+_xlfn.SEQUENCE(1,OutturnThrough-MTP_YearT+1)-1)=TRUE,INDEX(122:122,_xlfn.XMATCH(MTP_YearT,102:102,0)+_xlfn.SEQUENCE(1,OutturnThrough-MTP_YearT+1)-1)>INDEX(144:144,_xlfn.XMATCH(MTP_YearT,102:102,0)+_xlfn.SEQUENCE(1,OutturnThrough-MTP_YearT+1)-1),FALSE),0))) -> FALSE
B154: Is an escape clause active in any year where there's an annual or cumulative excess? | C154: =IF(SUMPRODUCT(((INDEX(139:139,_xlfn.XMATCH(MTP_YearT,102:102,0)+_xlfn.SEQUENCE(1,AssessmentEnd-MTP_YearT+1)-1)>0.3)+(INDEX(140:140,_xlfn.XMATCH(MTP_YearT,102:102,0)+_xlfn.SEQUENCE(1,AssessmentEnd-MTP_YearT+1)-1)>0.6))*1)=0,FALSE,SUMPRODUCT(((INDEX(139:139,_xlfn.XMATCH(MTP_YearT,102:102,0)+_xlfn.SEQUENCE(1,AssessmentEnd-MTP_YearT+1)-1)>0.3)+(INDEX(140:140,_xlfn.XMATCH(MTP_YearT,102:102,0)+_xlfn.SEQUENCE(1,AssessmentEnd-MTP_YearT+1)-1)>0.6))*(INDEX(142:142,_xlfn.XMATCH(MTP_YearT,102:102,0)+_xlfn.SEQUENCE(1,AssessmentEnd-MTP_YearT+1)-1)=TRUE)*1)=SUMPRODUCT(((INDEX(139:139,_xlfn.XMATCH(MTP_YearT,102:102,0)+_xlfn.SEQUENCE(1,AssessmentEnd-MTP_YearT+1)-1)>0.3)+(INDEX(140:140,_xlfn.XMATCH(MTP_YearT,102:102,0)+_xlfn.SEQUENCE(1,AssessmentEnd-MTP_YearT+1)-1)>0.6))*1)) -> TRUE
B155: Is there a defence-related escape clause active in any year where there's an annual or cumulative excess? | C155: =IF(SUMPRODUCT(((INDEX(139:139,_xlfn.XMATCH(MTP_YearT,102:102,0)+_xlfn.SEQUENCE(1,AssessmentEnd-MTP_YearT+1)-1)>0.3)+(INDEX(140:140,_xlfn.XMATCH(MTP_YearT,102:102,0)+_xlfn.SEQUENCE(1,AssessmentEnd-MTP_YearT+1)-1)>0.6))*(IFERROR(INDEX(143:143,_xlfn.XMATCH(MTP_YearT,102:102,0)+_xlfn.SEQUENCE(1,AssessmentEnd-MTP_YearT+1)-1)=TRUE,FALSE))*1)>0,TRUE,FALSE) -> TRUE
